Workbook

Sheet Disclaimer
B1: Mid West and South West Gas Distribution Systems - Tariff Model
B4: Model Disclaimer

Sheet Model Outline
B2: Mid West and South West Gas Distribution Systems - Tariff Model
B3: Model Outline
B6: Worksheet Name | C6: Description
B8: Assumptions | C8: Summary of key assumptions
B9: Inputs | C9: All model inputs
B10: Output | C10: Summary of outputs
B11: Tariff | C11: Calculation of Total Revenue and tariffs under the following method: - assets at 30 June 2014 are inflated and depreciated under a current cost accouting method (CCA); - and additions are treated on a historical cost nominal method.
B12: RAB_Summary | C12: High level summary of Regulated Asset Base
B13: RAB Scenarios | C13: Summary of Regulated Asset Base by asset category. Also includes RAB based on historic cost which is used to calculate the interest tax deduction to determine tax payable for Revenue Building Blocks (Total Revenue)
B14: ICB_at Jun_2014 | C14: Summary of Capital Base at 30 Jun 2014.
B15: ICB_at_2000 | C15: Calculations of depreciation and RAB on Initial Capital Base at 2000
B16: Vines | C16: Calculations of depreciation and RAB on Vines capex additions
B17: WestNet | C17: Calculations of depreciation and RAB on WestNet capex additions
B18: Capex_to_ Jun_2014 | C18: Summary of RAB for all capex additions from 2000 to 30 Jun 2014 (in Jun 2014 $)
B19: Capex_from_ Jul_2014 | C19: Summary of RAB for all capex additions form 1 Jul 2014 (in Jun 2014 $)
B20: 2000 | C20: Calculations of depreciation and RAB on capex additions in the 2000 calendar year
B21: 2001 | C21: Calculations of depreciation and RAB on capex additions in the 2001 calendar year
B22: 2002 | C22: Calculations of depreciation and RAB on capex additions in the 2002 calendar year
B23: 2003 | C23: Calculations of depreciation and RAB on capex additions in the 2003 calendar year
B24: 2004 | C24: Calculations of depreciation and RAB on capex additions in the 2004 calendar year
B25: 2005 | C25: Calculations of depreciation and RAB on capex additions in the 2005 calendar year
B26: 2006 | C26: Calculations of depreciation and RAB on capex additions in the 2006 calendar year
B27: 2007 | C27: Calculations of depreciation and RAB on capex additions in the 2007 calendar year
B28: 2008 | C28: Calculations of depreciation and RAB on capex additions in the 2008 calendar year
B29: 2009 | C29: Calculations of depreciation and RAB on capex additions in the 2009 calendar year
B30: 2010 Jan-Jun | C30: Calculations of depreciation and RAB on capex additions in Jan to Jun 2010
B31: 2011 | C31: Calculations of depreciation and RAB on capex additions in 2010/11 financial year
B32: 2012 | C32: Calculations of depreciation and RAB on capex additions in 2011/12 financial year
B33: 2013 | C33: Calculations of depreciation and RAB on capex additions in 2012/13 financial year
B34: 2014 | C34: Calculations of depreciation and RAB on capex additions in 2013/14 financial year
B35: 2014_Jul-Dec | C35: Calculations of depreciation and RAB on capex additions in Jul to Dec 2014
B36: 2015_Jan-Jun | C36: Calculations of depreciation and RAB on capex additions in Jan to Jun 2015
B37: 2015_Jul-Dec | C37: Calculations of depreciation and RAB on capex additions in Jul to Dec 2015
B38: 2016 | C38: Calculations of depreciation and RAB on capex additions in the 2016 calendar year
B39: 2017 | C39: Calculations of depreciation and RAB on capex additions in the 2017 calendar year
B40: 2018 | C40: Calculations of depreciation and RAB on capex additions in the 2018 calendar year
B41: 2019 | C41: Calculations of depreciation and RAB on capex additions in the 2019 calendar year

Sheet Assumptions
B1: Mid West and South West Gas Distribution Systems - Tariff Model
B2: Key Assumptions
B5: Opex and capex inputs are in nominal dollars have been converted to real dollars, where applicable, as if spent on the last day of the period to be consistent with the ERA cash flow assumption that all money is spent on the last day of the period.
B7: Nominal After Tax Cost of Equity (EAn) | C7: 0.107
B8: Nominal Cost of Debt (DPn) | C8: 0.0709
B9: Nominal After Tax WACC | C9: 0.08534
B10: Nominal Risk Free Rate (Rfn) Based on 5 year Commonwealth bond rate current market | C10: 0.0406
B11: Debt funded portion of asset base | C11: 0.6
B12: Equity funded portion of asset base | C12: =1-C11 -> 0.4
B14: Inflation
B15: Actual inflation to 31 December 2013.
B16: Annual inflation post December 2013 | C16: 0.025 | D16: pa
B18: Delivery point numbers based on actual data to December 2013 and Core Energy consultants forecast thereafter.
B20: Volumes based on average consumption per delivery point per Core Energy consultants forecast for all tariff classes.
B22: Tax depreciation assumes regulatory capital expenditure is grossed up for capital contributions. Actual tax depreciation rates used. Capital contributions are assumed to be taxable in the year received.
B23: Interest costs tax deduction is based on the regulated asset base calculated at historic cost.
B25: Imputation (franking) credits are based on: | C25: 0.25 | D25: of tax payable
B26: The corporate tax is assumed to be: | C26: 0.3
B28: Tariff path is assumed to be annual percentage change each year beginning on | C28: 2015-01-01

Sheet Inputs
O1: Jan - Jun | T1: Jul - Dec | U1: Jan - Jun | V1: Jul - Dec
B2: Mid West and South West Gas Distribution Systems | D2: =E2-1 -> 1999 | E2: 2000 | F2: =E2+1 -> 2001 | G2: 2002 | H2: 2003 | I2: 2004 | J2: 2005 | K2: 2006 | L2: 2007 | M2: 2008 | N2: 2009 | O2: 2010 | P2: 2010/11 | Q2: 2011/12 | R2: 2012/13 | S2: 2013/14 | T2: =YEAR(T4) -> 2014 | U2: =YEAR(U4) -> 2015 | V2: 2015 | W2: 2016 | X2: 2017 | Y2: 2018 | Z2: 2019
B3: Access Arrangement Revisions 2014 | E3: Actual | F3: Actual | G3: Actual | H3: Actual | I3: Actual | J3: Actual | K3: Actual | L3: Actual | M3: Actual | N3: Actual | O3: Actual | P3: Actual | Q3: Actual | R3: Actual | S3: Forecast | T3: Forecast | U3: Forecast | V3: Forecast | W3: Forecast | X3: Forecast | Y3: Forecast | Z3: Forecast
B4: Period ending | D4: =C36 -> 1999-12-31 | E4: =EOMONTH(D4,$C$38) -> 2000-12-31 | F4: 2001-12-31 | G4: 2002-12-31 | H4: 2003-12-31 | I4: 2004-12-31 | J4: 2005-12-31 | K4: 2006-12-31 | L4: 2007-12-31 | M4: 2008-12-31 | N4: 2009-12-31 | O4: =EOMONTH(N4,6) -> 2010-06-30 | P4: =EOMONTH(O4,$C$38) -> 2011-06-30 | Q4: =EOMONTH(P4,$C$38) -> 2012-06-30 | R4: =EOMONTH(Q4,$C$38) -> 2013-06-30 | S4: =EOMONTH(R4,$C$38) -> 2014-06-30 | T4: =EOMONTH(S4,6) -> 2014-12-31 | U4: =EOMONTH(T4,6) -> 2015-06-30 | V4: =EOMONTH(T4,$C$38) -> 2015-12-31 | W4: =EOMONTH(V4,$C$38) -> 2016-12-31 | X4: 2017-12-31 | Y4: 2018-12-31 | Z4: 2019-12-31
B5: Days in period | E5: =E4-D4 -> 366 | F5: =F4-E4 -> 365 | G5: =G4-F4 -> 365 | H5: 365 | I5: 366 | J5: 365 | K5: 365 | L5: 365 | M5: 366 | N5: 365 | O5: 181 | P5: 365 | Q5: 366 | R5: 365 | S5: 365 | T5: 184 | U5: 181 | V5: 184 | W5: 366 | X5: 365 | Y5: 365 | Z5: 365
B6: Year fraction for depreciation | E6: =ROUND(E$5/$C$37,1) -> 1 | F6: 1 | G6: 1 | H6: 1 | I6: 1 | J6: 1 | K6: 1 | L6: 1 | M6: 1 | N6: 1 | O6: 0.5 | P6: 1 | Q6: 1 | R6: 1 | S6: 1 | T6: 0.5 | U6: 0.5 | V6: 0.5 | W6: 1 | X6: 1 | Y6: 1 | Z6: 1
B7: Access Arrangement | E7: AA1 | F7: =E7 -> AA1 | G7: =F7 -> AA1 | H7: =G7 -> AA1 | I7: =H7 -> AA1 | J7: AA2 | K7: =J7 -> AA2 | L7: =K7 -> AA2 | M7: =L7 -> AA2 | N7: =M7 -> AA2 | O7: AA3 | P7: =O7 -> AA3 | Q7: =P7 -> AA3 | R7: =Q7 -> AA3 | S7: =R7 -> AA3 | T7: AA4 | U7: =T7 -> AA4 | V7: AA4 | W7: AA4 | X7: AA4 | Y7: AA4 | Z7: AA4
B9: Last User | D9: Allan Hudson
B10: Last Saved | D10: 2014-04-03T13:59:11
B11: Last Updated | D11: 2014-03-13
B13: Checks
B14: Closing Assets Base - ICB | C14: =SUM(N14:Z14) -> 0 | E14: =ICB_at_2000!E912 -> 0 | F14: =ICB_at_2000!F912 -> 0 | G14: =ICB_at_2000!G912 -> 0 | H14: =ICB_at_2000!H912 -> 0 | I14: =ICB_at_2000!I912 -> 0 | J14: =ICB_at_2000!J912 -> 0 | K14: =ICB_at_2000!K912 -> 0 | L14: =ICB_at_2000!L912 -> 0 | M14: =ICB_at_2000!M912 -> 0 | N14: =ICB_at_2000!N912 -> 0 | O14: =ICB_at_2000!O912 -> 0 | P14: =ICB_at_2000!P912 -> 0 | Q14: =ICB_at_2000!Q912 -> 0 | R14: =ICB_at_2000!R912 -> 0 | S14: =ICB_at_2000!S912 -> 0 | T14: =ICB_at_2000!T912 -> 0 | U14: =ICB_at_2000!U912 -> 0 | V14: =ICB_at_2000!V912 -> 0 | W14: =ICB_at_2000!W912 -> 0 | X14: =ICB_at_2000!X912 -> 0 | Y14: =ICB_at_2000!Y912 -> 0 | Z14: =ICB_at_2000!Z912 -> 0
B15: Closing Assets Base - Vines | C15: =SUM(N15:Z15) -> 0 | E15: =Vines!E912 -> 0 | F15: =Vines!F912 -> 0 | G15: =Vines!G912 -> 0 | H15: =Vines!H912 -> 0 | I15: =Vines!I912 -> 0 | J15: =Vines!J912 -> 0 | K15: =Vines!K912 -> 0 | L15: =Vines!L912 -> 0 | M15: =Vines!M912 -> 0 | N15: =Vines!N912 -> 0 | O15: =Vines!O912 -> 0 | P15: =Vines!P912 -> 0 | Q15: =Vines!Q912 -> 0 | R15: =Vines!R912 -> 0 | S15: =Vines!S912 -> 0 | T15: =Vines!T912 -> 0 | U15: =Vines!U912 -> 0 | V15: =Vines!V912 -> 0 | W15: =Vines!W912 -> 0 | X15: =Vines!X912 -> 0 | Y15: =Vines!Y912 -> 0 | Z15: =Vines!Z912 -> 0
B16: Closing Assets Base - WestNet | C16: =SUM(N16:Z16) -> 0 | E16: =WestNet!E912 -> 0 | F16: =WestNet!F912 -> 0 | G16: =WestNet!G912 -> 0 | H16: =WestNet!H912 -> 0 | I16: =WestNet!I912 -> 0 | J16: =WestNet!J912 -> 0 | K16: =WestNet!K912 -> 0 | L16: =WestNet!L912 -> 0 | M16: =WestNet!M912 -> 0 | N16: =WestNet!N912 -> 0 | O16: =WestNet!O912 -> 0 | P16: =WestNet!P912 -> 0 | Q16: =WestNet!Q912 -> 0 | R16: =WestNet!R912 -> 0 | S16: =WestNet!S912 -> 0 | T16: =WestNet!T912 -> 0 | U16: =WestNet!U912 -> 0 | V16: =WestNet!V912 -> 0 | W16: =WestNet!W912 -> 0 | X16: =WestNet!X912 -> 0 | Y16: =WestNet!Y912 -> 0 | Z16: =WestNet!Z912 -> 0
B17: Closing Assets Base - Capex 2000 to 2019 | C17: =SUM(E17:Z17) -> 0 | E17: ='2000'!$C$912 -> 0 | F17: ='2001'!$C$912 -> 0 | G17: ='2002'!$C$912 -> 0 | H17: ='2003'!$C$912 -> 0 | I17: ='2004'!$C$912 -> 0 | J17: ='2005'!$C$912 -> 0 | K17: ='2006'!$C$912 -> 0 | L17: ='2007'!$C$912 -> 0 | M17: ='2008'!$C$912 -> 0 | N17: ='2009'!$C$912 -> 0 | O17: ='2010 Jan-Jun'!C912 -> 0 | P17: ='2011'!$C$912 -> 0 | Q17: ='2012'!$C$912 -> 0 | R17: ='2013'!$C$912 -> 0 | S17: ='2014'!$C$912 -> 0 | T17: ='2014_Jul-Dec'!C912 -> 0 | U17: ='2015_Jan-Jun'!C912 -> 0 | V17: ='2015_Jan-Jun'!C912 -> 0 | W17: ='2016'!$C$912 -> 0 | X17: ='2017'!$C$912 -> 0 | Y17: ='2018'!$C$912 -> 0 | Z17: ='2019'!$C$912 -> 0
B21: Legend
B22: Input cells | C22: xxxx
B23: Formulae | C23: xxxx
B24: Cell linked to external files | C24: xxxx
B25: Cell contains hard-coding or intended inconsistent formula
B26: Cell value the result of running a macro or goal seek function
B27: No formula required
B29: Reconciliation to Closing RAB in AA3
B30: Closing RAB - from ERA Final Approval tariff model (AA3) | D30: $, Dec 2009 | I30: 762.0265987 | J30: 760.893918 | K30: 763.5753744 | L30: 766.2632103 | M30: 768.2306242 | N30: 781.8594427
D31: $, Jun 2014 | I31: =I30*$N$97 -> 857.3963954 | J31: 856.1219565 | K31: 859.1390047 | L31: 862.163231 | M31: 864.3768724 | N31: 879.7113762
B32: Closing RAB - from this model | I32: =RAB_Summary!I21 -> 857.3963954 | J32: =RAB_Summary!J21 -> 856.1219565 | K32: =RAB_Summary!K21 -> 859.1390047 | L32: =RAB_Summary!L21 -> 862.163231 | M32: =RAB_Summary!M21 -> 864.3768724 | N32: =RAB_Summary!N21 -> 879.7113762
B33: Variance | I33: =I32-I31 -> 0 | J33: =J32-J31 -> 0 | K33: 0 | L33: 0 | M33: 0 | N33: 0
B35: General Assumptions
B36: Model start | C36: 1999-12-31
B37: Days in year | C37: 365
B38: Months in year | C38: 12
B40: AA4 Tariff start | C40: 2015-01-01
B48: Weighted Average Cost of Capital (WACC)
B50: Weighted Average Cost of Capital (WACC)
T51: Proposed AA4
B53: Nominal Risk Free Rate (Rfn) | T53: 0.0406
B54: Real Risk Free Rate (Rfr) | T54: =(1+T53)/(1+T55)-1 -> 0.0152195122
B55: Inflation Rate (I) | T55: 0.025
B56: Debt Proportion (D) | T56: 0.6
B57: Equity Proportion (E) | T57: =1-T56 -> 0.4
B58: Cost of Debt; Debt Risk Premium (Drp) | T58: 0.0288
B59: Cost of Debt; Debt Issuing Cost (Disc) | T59: 0.00125
B60: Cost of Debt; Hedging Cost | T60: 0.00025
B61: Cost of Debt; Risk Margin (Rm) | T61: =SUM(T58:T60) -> 0.0303
B62: Australian Market Risk Premium (Rp) | T62: 0.06
B63: Equity Beta (Be) | T63: 0.82
B64: Corporate Tax Rate (T) | T64: 0.3
B65: Franking Credit (g) | T65: 0.25
B66: Imputation Adj (G) | T66: =(1-T64)/(1-T64*(1-T65)) -> 0.9032258065
B68: Debt
B69: Nominal Cost of Debt (DPn) | T69: =T53+T61 -> 0.0709
B71: Equity
B72: Nominal Pre Tax Cost of Equity (EPn) | T72: =T73/(1-T64*(1-T65)) -> 0.1380645161
B73: Nominal After Tax Cost of Equity (EAn) | T73: 0.107
B75: WACC; Pre-tax Officer (Market Practise or Forward Transformation)
B76: Nominal Pre Tax WACC (WPn) | T76: =T72*T57+T69*T56 -> 0.09776580645
B77: Real Pre Tax WACC (WPr) | T77: =(1+T76)/(1+T55)-1 -> 0.07099103068
B79: WACC: Vanilla
B80: Nominal After Tax WACC | T80: =T56*T69+T57*T73 -> 0.08534
B81: Real After Tax WACC | T81: =(1+T80)/(1+T55)-1 -> 0.05886829268
B83: Real Pre Tax Cost of Equity (EPn)
B84: Real after tax cost of equity | T84: =(1+T73)/(1+T55)-1 -> 0.08
B85: Real cost of debt | T85: =(1+T69)/(1+T55)-1 -> 0.0447804878
B86: Real post tax WACC | T86: =T84*T57+T85*T56 -> 0.05886829268
B89: Inflation
B90: Forecast Inflation | T90: 0.025 | U90: =T90 -> 0.025 | V90: =U90 -> 0.025 | W90: =V90 -> 0.025 | X90: 0.025 | Y90: 0.025 | Z90: 0.025
E91: =YEAR(E4) -> 2000 | F91: 2001 | G91: 2002 | H91: 2003 | I91: 2004 | J91: 2005 | K91: 2006 | L91: 2007 | M91: 2008 | N91: 2009 | O91: 2010 | P91: 2011 | Q91: 2012 | R91: 2013 | S91: 2014 | T91: 2014 | U91: 2015 | V91: 2015 | W91: 2016 | X91: 2017 | Y91: 2018 | Z91: 2019
B92: June CPI All Groups, 8 Capital Cities | E92: 126.2 | F92: 133.8 | G92: 137.6 | H92: 141.3 | I92: 144.8 | J92: 148.4 | K92: 154.3 | L92: 157.5 | M92: 164.6 | N92: 167
B93: June CPI All Groups, 8 Capital Cities - rereferenced Sep 2012 | E93: 70.2 | F93: 74.5 | G93: 76.6 | H93: 78.6 | I93: 80.6 | J93: 82.6 | K93: 85.9 | L93: 87.7 | M93: 91.6 | N93: 92.9 | O93: 95.8 | P93: 99.2 | Q93: 100.4 | R93: 102.8 | S93: =R96*(1+$T$90)^0.5 -> 106.1019133 | U93: =S93*(1+$U$90) -> 108.7544611 | W93: =U93*(1+W$90) -> 111.4733226 | X93: =W93*(1+X$90) -> 114.2601557 | Y93: =X93*(1+Y$90) -> 117.1166596 | Z93: 120.0445761
B94: Escalation/de-escalation factor to 30 June 2014 | E94: =$S$93/E93 -> 1.511423266 | F94: 1.424186755 | G94: 1.385142471 | H94: 1.349897115 | I94: 1.316400909 | J94: 1.284526795 | K94: 1.235179433 | L94: 1.209827973 | M94: 1.15831783 | N94: 1.142108862 | O94: 1.107535629 | P94: 1.069575739 | Q94: 1.056791965 | R94: 1.032119779 | S94: 1 | U94: =$S$93/U93 -> 0.9756097561 | W94: =$S$93/W93 -> 0.9518143962 | X94: 0.9285994109 | Y94: 0.9059506448 | Z94: 0.8838542876
B95: December CPI All Groups, 8 Capital Cities | D95: 124.1 | E95: 131.3 | F95: 135.4 | G95: 139.5 | H95: 142.8 | I95: 146.5 | J95: 150.6 | K95: 155.5 | L95: 160.1 | M95: 166 | N95: 169.5
B96: December CPI All Groups, 8 Capital Cities - rereferenced Sep 2012 | D96: 69.1 | E96: 73.1 | F96: 75.4 | G96: 77.6 | H96: 79.5 | I96: 81.5 | J96: 83.8 | K96: 86.6 | L96: 89.1 | M96: 92.4 | N96: 94.3 | O96: 96.9 | P96: 99.8 | Q96: 102 | R96: 104.8 | T96: =R96*(1+$T$90) -> 107.42 | V96: =T96*(1+V$90) -> 110.1055 | W96: =V96*(1+W$90) -> 112.8581375 | X96: =W96*(1+X$90) -> 115.6795909 | Y96: 118.5715807 | Z96: 121.5358702
B97: Escalation/de-escalation factor to 30 June 2014 | D97: =$S$93/D96 -> 1.53548355 | E97: 1.451462562 | F97: 1.407187179 | G97: 1.367292697 | H97: 1.334615261 | I97: 1.301863967 | J97: 1.266132617 | K97: 1.225195303 | L97: 1.190818331 | M97: 1.148289105 | N97: 1.125152845 | O97: 1.094962985 | P97: 1.063145424 | Q97: 1.040214836 | R97: 1.012422837 | S97: =S94 -> 1 | T97: =$S$93/T96 -> 0.9877295966 | U97: =V97 -> 0.9636386309 | V97: 0.9636386309 | W97: 0.9401352496 | X97: 0.9172051216 | Y97: 0.894834265 | Z97: 0.873009039
B99: Net connections
B101: Net Connections (excluding customers receiving prudent discounts)
B102: (Number)
B104: Tariff class A1 | J104: =SUM(J114+J125) -> 70.5 | K104: 72.5 | L104: 71.75 | M104: 74.08333333 | N104: 75.16666667 | O104: 75.33333333 | P104: 75.16666667 | Q104: 72.91666667 | R104: 75.66666667 | S104: 74.25 | T104: =SUM(T114+T125) -> 69.90673853 | U104: =SUM(U114+U125) -> 69.87867533 | V104: 69.85061213 | W104: 69.73853943 | X104: 69.62664655 | Y104: 69.5149332 | Z104: 69.40339909
B105: Tariff class A2 | J105: =SUM(J115+J126) -> 93 | K105: 96 | L105: 95.75 | M105: 98.41666667 | N105: 99.66666667 | O105: 102.1666667 | P105: 105 | Q105: 112.5 | R105: 109.0833333 | S105: 112.25 | T105: =SUM(T115+T126) -> 114.3797774 | U105: 117.3659675 | V105: 120.3521576 | W105: 126.2912292 | X105: 132.3058406 | Y105: 138.3979333 | Z105: 144.5694988
B106: Tariff class B1 | J106: =SUM(J116+J127) -> 1074 | K106: 1084.5 | L106: 1109.666667 | M106: 1135 | N106: 1187.25 | O106: 1225.166667 | P106: 1258.833333 | Q106: 1298.916667 | R106: 1335.416667 | S106: 1385.333333 | T106: =SUM(T116+T127) -> 1405.996907 | U106: 1437.009417 | V106: 1468.021927 | W106: 1527.699101 | X106: 1589.085267 | Y106: 1652.239218 | Z106: 1717.221768
B107: Tariff class B2 | J107: =SUM(J117+J128) -> 5988 | K107: 5810 | L107: 6211.75 | M107: 6660.833333 | N107: 7250.166667 | O107: 7702.5 | P107: 8110.083333 | Q107: 8713.75 | R107: 9267.25 | S107: 9900.166667 | T107: =SUM(T117+T128) -> 9931.572442 | U107: 10138.70552 | V107: 10345.8386 | W107: 10791.65188 | X107: 11269.80993 | Y107: 11781.00786 | Z107: 12325.84063
B108: Tariff class B3 | J108: =SUM(J118+J129) -> 515677.5 | K108: 536107.5 | L108: 556833.0833 | M108: 574250.25 | N108: 589879.8333 | O108: 601247 | P108: 614525 | Q108: 629900.5833 | R108: 642710.8333 | S108: 658385.6667 | T108: =SUM(T118+T129) -> 664762.7136 | U108: 672155.964 | V108: 679549.2144 | W108: 694283.9589 | X108: 708948.1965 | Y108: 723541.7669 | Z108: 738065.0108
J109: =SUM(J104:J108) -> 522903 | K109: 543170.5 | L109: 564322 | M109: 582218.5833 | N109: 598492.0833 | O109: 610352.1667 | P109: 624074.0833 | Q109: 640098.6667 | R109: 653498.25 | S109: 669857.6667 | T109: =SUM(T104:T108) -> 676284.5695 | U109: =SUM(U104:U108) -> 683918.9236 | V109: 691553.2777 | W109: 706799.3397 | X109: 722009.0242 | Y109: 737182.9268 | Z109: 752322.046
B111: Delivery points (excluding customers receiving prudent discounts)
B112: (Average for period)
B114: Tariff class A1 | J114: 41.5 | K114: 42 | L114: 42.25 | M114: 46.08333333 | N114: 48.16666667 | O114: 50.33333333 | P114: 53.16666667 | Q114: 55.91666667 | R114: 62.66666667 | S114: 64 | T114: 64.90673853 | U114: 64.87867533 | V114: 64.85061213 | W114: 66.73853943 | X114: 67.62664655 | Y114: 67.5149332 | Z114: 67.40339909
B115: Tariff class A2 | J115: 81 | K115: 84.5 | L115: 85.75 | M115: 90.91666667 | N115: 94.66666667 | O115: 97.16666667 | P115: 101 | Q115: 109.5 | R115: 106.5833333 | S115: 110.25 | T115: 112.3797774 | U115: 115.3659675 | V115: 118.3521576 | W115: 124.2912292 | X115: 130.3058406 | Y115: 136.3979333 | Z115: 142.5694988
B116: Tariff class B1 | J116: 1070 | K116: 1080.5 | L116: 1105.666667 | M116: 1131 | N116: 1183.75 | O116: 1222.166667 | P116: 1256.333333 | Q116: 1297.416667 | R116: 1334.416667 | S116: 1384.333333 | T116: 1404.996907 | U116: 1436.009417 | V116: 1467.021927 | W116: 1526.699101 | X116: 1588.085267 | Y116: 1651.239218 | Z116: 1716.221768
B117: Tariff class B2 | J117: 5983 | K117: 5805 | L117: 6206.75 | M117: 6655.833333 | N117: 7245.160987 | O117: 7697.5 | P117: 8105.083333 | Q117: 8708.75 | R117: 9262.25 | S117: 9895.166667 | T117: 9926.572442 | U117: 10133.70552 | V117: 10340.8386 | W117: 10786.65188 | X117: 11264.80993 | Y117: 11776.00786 | Z117: 12320.84063
B118: Tariff class B3 | J118: 515676.5 | K118: 536106.5 | L118: 556832.0833 | M118: 574249.25 | N118: 589878.8333 | O118: 601246 | P118: 614524 | Q118: 629899.5833 | R118: 642709.8333 | S118: 658384.6667 | T118: 664761.7136 | U118: 672154.964 | V118: 679548.2144 | W118: 694282.9589 | X118: 708947.1965 | Y118: 723540.7669 | Z118: 738064.0108
J120: 522852 | K120: 543118.5 | L120: 563559.5 | M120: =SUM(M114:M118) -> 582173.0833 | N120: =SUM(N114:N119) -> 598450.5777 | O120: 610313.1667 | P120: 624039.5833 | Q120: 640071.1667 | R120: 653475.75 | S120: 669838.4167 | T120: 676270.5695 | U120: 683904.9236 | V120: 691539.2777 | W120: 706787.3397 | X120: 721998.0242 | Y120: 737171.9268 | Z120: 752311.046
B122: Customers receiving prudent discounts
B123: (Average for period)
B125: Tariff class A1 | J125: 29 | K125: 30.5 | L125: 29.5 | M125: 28 | N125: 27 | O125: 25 | P125: 22 | Q125: 17 | R125: 13 | S125: 10.25 | T125: 5 | U125: 5 | V125: 5 | W125: 3 | X125: 2 | Y125: 2 | Z125: 2
B126: Tariff class A2 | J126: 12 | K126: 11.5 | L126: 10 | M126: 7.5 | N126: 5 | O126: 5 | P126: 4 | Q126: 3 | R126: 2.5 | S126: 2 | T126: 2 | U126: 2 | V126: 2 | W126: 2 | X126: 2 | Y126: 2 | Z126: 2
B127: Tariff class B1 | J127: 4 | K127: 4 | L127: 4 | M127: 4 | N127: 3.5 | O127: 3 | P127: 2.5 | Q127: 1.5 | R127: 1 | S127: 1 | T127: 1 | U127: 1 | V127: 1 | W127: 1 | X127: 1 | Y127: 1 | Z127: 1
B128: Tariff class B2 | J128: 5 | K128: 5 | L128: 5 | M128: 5 | N128: 5.005679466 | O128: 5 | P128: 5 | Q128: 5 | R128: 5 | S128: 5 | T128: 5 | U128: 5 | V128: 5 | W128: 5 | X128: 5 | Y128: 5 | Z128: 5
B129: Tariff class B3 | J129: 1 | K129: 1 | L129: 1 | M129: 1 | N129: 1 | O129: 1 | P129: 1 | Q129: 1 | R129: 1 | S129: 1 | T129: 1 | U129: 1 | V129: 1 | W129: 1 | X129: 1 | Y129: 1 | Z129: 1
J131: =SUM(J125:J130) -> 51 | K131: 52 | L131: 49.5 | M131: 45.5 | N131: 41.50567947 | O131: 39 | P131: 34.5 | Q131: 27.5 | R131: 22.5 | S131: 19.25 | T131: 14 | U131: 14 | V131: 14 | W131: 12 | X131: 11 | Y131: 11 | Z131: 11
B133: Gas volumes
B135: Gas volumes (including customers receiving prudent discounts)
B136: Tariff class A1 | C136: TJ | J136: 16191.68504 | K136: 15869.0038 | L136: 15598.22976 | M136: 12346.21771 | N136: 12468.62562 | O136: 6031.337349 | P136: 12506.98168 | Q136: 12071.65486 | R136: 11296.60722 | S136: 12086.80738 | T136: 6038.462514 | U136: 5936.649734 | V136: 6092.90568 | W136: 12143.68812 | X136: 12370.90802 | Y136: 12673.84138 | Z136: 13008.60169
B137: Tariff class A2 | C137: TJ | J137: 2239.295585 | K137: 2067.887482 | L137: 2102.575494 | M137: 1952.50204 | N137: 1895.69783 | O137: 936.9033746 | P137: 1923.253069 | Q137: 2092.299763 | R137: 2040.058109 | S137: 2052.440285 | T137: 1093.677265 | U137: 1060.45487 | V137: 1148.188926 | W137: 2315.018067 | X137: 2445.26831 | Y137: 2593.941287 | Z137: 2752.930224
B138: Tariff class B1 | C138: TJ | J138: 1890.602 | K138: 1703.088083 | L138: 1694.774471 | M138: 1606.85742 | N138: 1607.679236 | O138: 745.5632319 | P138: 1594.631345 | Q138: 1553.663922 | R138: 1640.269951 | S138: 1628.749725 | T138: 901.8155727 | U138: 757.3338653 | V138: 909.9501682 | W138: 1691.685144 | X138: 1729.880898 | Y138: 1775.516354 | Z138: 1823.895135
B139: Tariff class B2 | C139: TJ | J139: 1068.909 | K139: 1109.032828 | L139: 1137.421684 | M139: 1161.745532 | N139: 1168.14537 | O139: 552.7825543 | P139: 1168.679282 | Q139: 1189.664699 | R139: 1232.063588 | S139: 1201.653566 | T139: 638.656007 | U139: 547.9766621 | V139: 629.6351163 | W139: 1169.788025 | X139: 1173.33362 | Y139: 1183.113795 | Z139: 1195.512354
B140: Tariff class B3 | C140: TJ | J140: 10302.854 | K140: 9974.977966 | L140: 10179.50593 | M140: 10455.39623 | N140: 10539.64858 | O140: 4589.274683 | P140: 9769.765074 | Q140: 9645.962254 | R140: 9905.950696 | S140: 9773.932886 | T140: 5643.642061 | U140: 4378.481614 | V140: 5710.892901 | W140: 10274.98984 | X140: 10501.75915 | Y140: 10747.24358 | Z140: 10999.19531
C142: TJ | J142: =SUM(J136:J141) -> 31693.34562 | K142: 30723.99016 | L142: 30712.50734 | M142: 27522.71894 | N142: 27679.79664 | O142: 12855.86119 | P142: 26963.31045 | Q142: 26553.2455 | R142: 26114.94957 | S142: 26743.58384 | T142: 14316.25342 | U142: 12680.89674 | V142: 14491.57279 | W142: 27595.16919 | X142: 28221.15 | Y142: 28973.6564 | Z142: 29780.13471
D143: check | J143: =J152+J162-J142 -> 0 | K143: 0 | L143: 0 | M143: 0 | N143: 0 | O143: 0 | P143: 0 | Q143: 0 | R143: 0 | S143: 0 | T143: 0 | U143: 0 | V143: 0 | W143: 0 | X143: 0 | Y143: 0 | Z143: 0
B145: Volumes delivered to customers receiving prudent discounts
B146: Tariff class A1 | C146: TJ | J146: 11296.79104 | K146: 10770.79694 | L146: 10046.80686 | M146: 6706.363037 | N146: 6698.016096 | O146: 3042.31029 | P146: 5445.208718 | Q146: 3509.122373 | R146: 2818.078397 | S146: 2678.649142 | T146: 1348.151781 | U146: 1352.012016 | V146: 1355.822765 | W146: 2177.909126 | X146: 2068.685834 | Y146: 2119.341744 | Z146: 2175.322037
B147: Tariff class A2 | C147: TJ | J147: 365.01537 | K147: 329.50928 | L147: 350.3708742 | M147: 243.118209 | N147: 152.90018 | O147: 49.906037 | P147: 107.037905 | Q147: 72.247343 | R147: 56.564383 | S147: 42.42684957 | T147: 21.66956339 | U147: 21.24545396 | V147: 22.1601623 | W147: 44.31748145 | X147: 45.6627386 | Y147: 47.31906311 | Z147: 48.94295872
B148: Tariff class B1 | C148: TJ | J148: 10.517 | K148: 10.376937 | L148: 9.848621 | M148: 8.315272 | N148: 6.231327 | O148: 1.809206 | P148: 2.437706 | Q148: 7.6e-05 | R148: 0 | S148: 0.03928482949 | T148: 0.0390459 | U148: 0.0369734 | V148: 0.0390459 | W148: 0.07607456667 | X148: 0.0760193 | Y148: 0.0760193 | Z148: 0.0760193
B149: Tariff class B2 | C149: TJ | J149: 4.309 | K149: 2.181383 | L149: 1.49993363 | M149: 1.762489236 | N149: 1.362318657 | O149: 0.6762485319 | P149: 1.552011171 | Q149: 1.196401906 | R149: 0.4597468801 | S149: 0.9416928884 | T149: 0.5820199509 | U149: 0.5645650627 | V149: 0.5829357354 | W149: 1.150584011 | X149: 1.147504084 | Y149: 1.147524933 | Z149: 1.147514554
B150: Tariff class B3 | C150: TJ | J150: 0.5 | K150: 0 | L150: 8.302330608 | M150: 0.1301428462 | N150: 0.000747 | O150: 0.003496266667 | P150: -0.001665266667 | Q150: 0.001401 | R150: 0.000307 | S150: 0.009399623945 | T150: 0.007139263979 | U150: 0.007027491679 | V150: 0.007138701246 | W150: 0.01420504217 | X150: 0.01416619293 | Y150: 0.01416619293 | Z150: 0.01416619293
C152: TJ | J152: =SUM(J146:J151) -> 11677.13241 | K152: 11112.86454 | L152: 10416.82861 | M152: 6959.68915 | N152: 6858.510668 | O152: 3094.705278 | P152: 5556.234675 | Q152: 3582.567595 | R152: 2875.102834 | S152: 2722.066369 | T152: 1370.44955 | U152: 1373.866036 | V152: 1378.612048 | W152: 2223.467471 | X152: 2115.586262 | Y152: 2167.898518 | Z152: 2225.502696
B154: Gas volumes (excluding customers receiving prudent discounts)
B156: Tariff class A1 | C156: TJ | J156: =J136-J146 -> 4894.893999 | K156: 5098.206856 | L156: 5551.422909 | M156: 5639.854677 | N156: 5770.609523 | O156: 2989.027059 | P156: 7061.772958 | Q156: 8562.532485 | R156: 8478.528824 | S156: 9408.158234 | T156: 4690.310733 | U156: 4584.637718 | V156: 4737.082915 | W156: 9965.778991 | X156: 10302.22219 | Y156: 10554.49964 | Z156: 10833.27966
B157: Tariff class A2 | C157: TJ | J157: =J137-J147 -> 1874.280215 | K157: 1738.378202 | L157: 1752.20462 | M157: 1709.383831 | N157: 1742.79765 | O157: 886.9973376 | P157: 1816.215164 | Q157: 2020.05242 | R157: 1983.493726 | S157: 2010.013435 | T157: 1072.007702 | U157: 1039.209416 | V157: 1126.028763 | W157: 2270.700585 | X157: 2399.605571 | Y157: 2546.622224 | Z157: 2703.987265
B158: Tariff class B1 | C158: TJ | J158: =J138-J148 -> 1880.085 | K158: 1692.711146 | L158: 1684.92585 | M158: 1598.542148 | N158: 1601.447909 | O158: 743.7540259 | P158: 1592.193639 | Q158: 1553.663846 | R158: 1640.269951 | S158: 1628.71044 | T158: 901.7765268 | U158: 757.2968919 | V158: 909.9111223 | W158: 1691.609069 | X158: 1729.804879 | Y158: 1775.440335 | Z158: 1823.819116
B159: Tariff class B2 | C159: TJ | J159: =J139-J149 -> 1064.6 | K159: 1106.851445 | L159: 1135.92175 | M159: 1159.983043 | N159: 1166.783051 | O159: 552.1063057 | P159: 1167.127271 | Q159: 1188.468297 | R159: 1231.603841 | S159: 1200.711873 | T159: 638.073987 | U159: 547.412097 | V159: 629.0521806 | W159: 1168.637441 | X159: 1172.186116 | Y159: 1181.96627 | Z159: 1194.364839
B160: Tariff class B3 | C160: TJ | J160: =J140-J150 -> 10302.354 | K160: 9974.977966 | L160: 10171.2036 | M160: 10455.26609 | N160: 10539.64783 | O160: 4589.271187 | P160: 9769.766739 | Q160: 9645.960853 | R160: 9905.950389 | S160: 9773.923487 | T160: 5643.634922 | U160: 4378.474586 | V160: 5710.885762 | W160: 10274.97563 | X160: 10501.74498 | Y160: 10747.22941 | Z160: 10999.18114
C162: TJ | J162: =SUM(J156:J161) -> 20016.21321 | K162: 19611.12562 | L162: 20295.67873 | M162: 20563.02979 | N162: 20821.28597 | O162: 9761.155915 | P162: 21407.07577 | Q162: 22970.6779 | R162: 23239.84673 | S162: 24021.51747 | T162: 12945.80387 | U162: 11307.03071 | V162: 13112.96074 | W162: 25371.70172 | X162: 26105.56374 | Y162: 26805.75788 | Z162: 27554.63202
B164: Average consumption (excl customers receiving prudent discounts)
B165: (Terajoules per reference tariff customer per annum)
B166: Tariff class A1 | C166: TJ | J166: N/A | K166: N/A | L166: N/A | M166: N/A | N166: N/A | O166: N/A | P166: N/A | Q166: N/A | R166: N/A | S166: N/A | T166: N/A | U166: N/A | V166: N/A | W166: N/A | X166: N/A | Y166: N/A | Z166: N/A
B167: Tariff class A2 | C167: TJ | J167: =J157/J115 -> 23.13926191 | K167: 20.5725231 | L167: 20.43387312 | M167: 18.80165534 | N167: 18.40983433 | O167: 9.12861754 | P167: 17.98232836 | Q167: 18.44796731 | R167: 18.60979258 | S167: 18.23141438 | T167: 9.539151321 | U167: 9.007937419 | V167: 9.514222517 | W167: 18.26919405 | X167: 18.41518048 | Y167: 18.6705338 | Z167: 18.96609926
B168: Tariff class B1 | C168: TJ | J168: =J158/J116 -> 1.757088785 | K168: 1.566599857 | L168: 1.523900376 | M168: 1.413388283 | N168: 1.352859902 | O168: 0.6085536827 | P168: 1.267333753 | Q168: 1.197505694 | R168: 1.229203735 | S168: 1.176530537 | T168: 0.64183524 | U168: 0.5273620654 | V168: 0.62024371 | W168: 1.108017335 | X168: 1.089239296 | Y168: 1.075216913 | Z168: 1.062694315
B169: Tariff class B2 | C169: TJ | J169: =J159/J117 -> 0.1779374896 | K169: 0.1906720836 | L169: 0.1830139365 | M169: 0.1742806625 | N169: 0.1610430815 | O169: 0.0717254051 | P169: 0.1439994165 | Q169: 0.1364682988 | R169: 0.1329702655 | S169: 0.1213432693 | T169: 0.06427938654 | U169: 0.05401894656 | V169: 0.06083183434 | W169: 0.1083410732 | X169: 0.1040573364 | Y169: 0.1003707101 | Z169: 0.09693858362
B170: Tariff class B3 | C170: TJ | J170: =J160/J118 -> 0.0199783275 | K170: 0.01860633655 | L170: 0.01826619533 | M170: 0.01820684326 | N170: 0.01786747928 | O170: 0.007632934251 | P170: 0.01589810445 | Q170: 0.01531348981 | R170: 0.01541278797 | S170: 0.0148453085 | T170: 0.008489711134 | U170: 0.006514085026 | V170: 0.008403944916 | W170: 0.01479940636 | X170: 0.01481315539 | Y170: 0.0148536612 | Z170: 0.01490274689
B172: Reference tariff
S173: As at 1 Jul 2013 | T173: As at 1 Jan 2014
B174: Reference tariff A1 | S174: excl carbon tax | T174: incl carbon tax
B175: Standing charge | C175: $/year | J175: 44263.05 | K175: 44734.3 | L175: 44286.96 | M175: 44286.96 | N175: 44286.96 | O175: 44286.96 | P175: 44286.96 | Q175: 41283.45 | R175: 45308.99444 | S175: 46738.99 | T175: 46742.54
B176: Demand charge
B177: First 10 km | C177: $/GJ km | J177: 182.73 | K177: 184.71 | L177: 182.86 | M177: 182.86 | N177: 182.86 | O177: 182.86 | P177: 182.86 | Q177: 174.02 | R177: 190.9826186 | S177: 197.0028843 | T177: 197.0028843
B178: Distance > 10 km | C178: $/GJ km | J178: 91.36 | K178: 92.35 | L178: 91.43 | M178: 91.43 | N178: 91.43 | O178: 91.43 | P178: 91.43 | Q178: 91.59 | R178: 100.5221915 | S178: 103.6909149 | T178: 103.6909149
B179: Usage charge
B180: First 10 km | C180: $/GJ km | J180: 0.04454 | K180: 0.04502 | L180: 0.0446 | M180: 0.0446 | N180: 0.0446 | O180: 0.0446 | P180: 0.0446 | Q180: 0.03691 | R180: 0.04051864027 | S180: 0.0417958996 | T180: 0.0417958996
B181: Distance > 10 km | C181: $/GJ km | J181: 0.02225 | K181: 0.02249 | L181: 0.0223 | M181: 0.0223 | N181: 0.0223 | O181: 0.0223 | P181: 0.0223 | Q181: 0.01845 | R181: 0.02024331861 | S181: 0.02088143965 | T181: 0.02088143965
B182: Carbon Tax | C182: $/GJ | T182: 0.02098
B184: Reference tariff A2
B185: Standing charge | C185: $/Year | J185: 502.98 | K185: 508.18 | L185: 526.04 | M185: 526.04 | N185: 556.13 | O185: 556.13 | P185: 556.13 | Q185: 22854.58 | R185: 25083.20134 | S185: 25875.63257 | T185: 25879.18
B186: First 10 TJ | C186: $/GJ | J186: 4.64 | K186: 4.69 | L186: 4.85 | M186: 4.85 | N186: 4.89 | O186: 4.89 | P186: 4.89 | Q186: 2.2 | R186: 2.441348541 | S186: 2.498241459 | T186: 2.52
B187: Volume > 10 TJ | C187: $/GJ | J187: 1.16 | K187: 1.17 | L187: 1.21 | M187: 1.21 | N187: 1.21 | O187: 1.21 | P187: 1.21 | Q187: 1.19 | R187: 1.31534932 | S187: 1.336739347 | T187: 1.36
B189: Reference tariff B1
B190: Standing charge | C190: $/Year | J190: 502.98 | K190: 508.18 | L190: 526.04 | M190: 526.04 | N190: 556.13 | O190: 556.13 | P190: 556.13 | Q190: 1146.76 | R190: 1258.749874 | S190: 1300.172191 | T190: 1303.72
B191: First 5 TJ | C191: $/GJ | J191: 4.64 | K191: 4.69 | L191: 4.85 | M191: 4.85 | N191: 4.89 | O191: 4.89 | P191: 4.89 | Q191: 4.41 | R191: 4.948251373 | S191: 4.983678433 | T191: 5.1
B192: Volume > 5 TJ | C192: $/GJ | J192: 1.16 | K192: 4.45 | L192: 4.6 | M192: 4.6 | N192: 4.6 | O192: 4.6 | P192: 4.6 | Q192: 3.78 | R192: 4.262628522 | S192: 4.276447971 | T192: 4.39
B194: Reference tariff B2
B195: Standing charge | C195: $/Year | P195: 223.02 | Q195: 283.78 | R195: 311.6321006 | S195: 323.1987957 | T195: 326.74 | U195: 332.77 | V195: new standing charge based on connection cost
B196: First 100 GJ | C196: $/GJ | P196: 5.66 | Q196: 7.33 | R196: 8.1775679 | S196: 8.31470743 | T196: 8.42
B197: Volume > 100 GJ | C197: $/GJ | P197: 4.84 | Q197: 4.36 | R197: 4.913136703 | S197: 4.947367672 | T197: 5.06
B199: Reference tariff B3
B200: Standing charge | C200: $/Year | J200: 25.15 | K200: 25.91 | L200: 26.82 | M200: 27.05 | N200: 28.59 | O200: 28.59 | P200: 28.59 | Q200: 57.93 | R200: 63.74723504 | S200: 67.49994326 | T200: 71.05 | U200: 128.3 | V200: new standing charge based on connection cost
B201: First 2 GJ | C201: $/GJ | J201: 6.01 | K201: 6.07 | L201: 5.69 | M201: 5.69 | N201: 5.69 | O201: 5.69 | P201: 9.5 | Q201: 12.32 | R201: 13.73754879 | S201: 13.95964359 | T201: 14.15 | U201: 0 | V201: first 2 GJ now included in standing charge
B202: Volume 2 to 10 GJ | C202: $/GJ | J202: 6.01 | K202: 6.07 | L202: 5.69 | M202: 5.69 | N202: 5.69 | O202: 5.69 | P202: 9.5 | Q202: 12.32 | R202: 13.73754879 | S202: 13.95964359 | T202: 14.15
B203: Volume > 10 GJ | C203: $/GJ | J203: 3.95 | K203: 3.73 | L203: 3.86 | M203: 3.86 | N203: 3.86 | O203: 3.86 | P203: 3.86 | Q203: 5.32 | R203: 6.047572501 | S203: 6.027250697 | T203: 6.22
B206: Volume forecast by tariff class
B207: (Non Discounted Customers only)
B208: Reference tariff A1
B209: Demand
B210: First 10 km | C210: GJ km | T210: 7224.767108 | U210: 7224.767108 | V210: 7106.971992 | W210: 14932.32802 | X210: 16232.32802 | Y210: 16232.32802 | Z210: 16232.32802
B211: Distance > 10 km | C211: GJ km | T211: 3748.630488 | U211: 3748.630488 | V211: 3687.511512 | W211: 6481.142 | X211: 6936.142 | Y211: 6936.142 | Z211: 6936.142
B212: Usage
B213: First 10 km | C213: TJ km | T213: 16686.2636 | U213: 15798.46672 | V213: 16838.75748 | W213: 38721.68935 | X213: 40867.27032 | Y213: 41867.98716 | Z213: 42973.88818
B214: Distance > 10 km | C214: TJ km | P214: Band Splits: | T214: 4782.166476 | U214: 3075.650733 | V214: 4809.377003 | W214: 12509.40422 | X214: 13239.48396 | Y214: 13563.67921 | Z214: 13921.95023
M215: =T1 -> Jul - Dec | N215: Jan - Jun | O215: Jul - Dec
B216: Reference tariff A2 | M216: 2014 | N216: 2015 | O216: 2015 | P216: =W2 -> 2016 | Q216: =X2 -> 2017 | R216: =Y2 -> 2018 | S216: =Z2 -> 2019
B217: Usage | M217: Forecast | N217: Forecast | O217: Forecast | P217: Forecast | Q217: Forecast | R217: Forecast | S217: Forecast
B218: First 10 TJ | C218: GJ | M218: 0.4905823209 | N218: 0.5008813929 | O218: 0.4908640268 | P218: 0.50020843 | Q218: 0.4999224837 | R218: 0.4963111477 | S218: 0.4946707695 | T218: =T$157*M218*1000 -> 525908.0265 | U218: 520520.6597 | V218: 552727.013 | W218: 1135823.575 | X218: 1199616.777 | Y218: 1263916.999 | Z218: 1337583.461
B219: Volume > 10 TJ | C219: GJ | M219: 0.5094176791 | N219: 0.4991186071 | O219: 0.5091359732 | P219: 0.49979157 | Q219: 0.5000775163 | R219: 0.5036888523 | S219: 0.5053292305 | T219: 546099.6756 | U219: 518688.7561 | V219: 573301.7502 | W219: 1134877.011 | X219: 1199988.794 | Y219: 1282705.225 | Z219: 1366403.804
T220: =SUM(T218:T219) -> 1072007.702 | U220: 1039209.416 | V220: 1126028.763 | W220: 2270700.585 | X220: 2399605.571 | Y220: 2546622.224 | Z220: 2703987.265
B221: Reference tariff B1 | S221: Check to volumes delivered to customers | T221: =T157*1000-T220 -> 0 | U221: 0 | V221: 0 | W221: 0 | X221: 0 | Y221: 0 | Z221: 0
B222: Usage
B223: First 5 TJ | C223: GJ | E223: =Z223/Z$225 -> 0.8994145642 | M223: 0.8789577649 | N223: 0.8974268506 | O223: 0.8791273411 | P223: 0.8907453181 | Q223: 0.893699114 | R223: 0.8966712641 | S223: 0.8994145642 | T223: =T$158*M223*1000 -> 792623.4804 | U223: 679618.5646 | V223: 799927.7456 | W223: 1506792.859 | X223: 1545925.088 | Y223: 1591986.33 | Z223: 1640369.475
B224: Volume > 5 TJ | C224: GJ | E224: =Z224/Z$225 -> 0.1005854358 | M224: 0.1210422351 | N224: 0.1025731494 | O224: 0.1208726589 | P224: 0.1092546819 | Q224: 0.106300886 | R224: 0.1033287359 | S224: 0.1005854358 | T224: 109153.0464 | U224: 77678.32725 | V224: 109983.3767 | W224: 184816.2108 | X224: 183879.7911 | Y224: 183454.0054 | Z224: 183449.6406
E225: =E223+E224 -> 1 | T225: =SUM(T223:T224) -> 901776.5268 | U225: 757296.8919 | V225: 909911.1223 | W225: 1691609.069 | X225: 1729804.879 | Y225: 1775440.335 | Z225: 1823819.116
B226: Reference tariff B2 | S226: Check to volumes delivered to customers | T226: =T158*1000-T225 -> 0 | U226: 0 | V226: 0 | W226: 0 | X226: 0 | Y226: 0 | Z226: 0
B227: Usage
B228: First 100 GJ | C228: GJ | E228: =Z228/Z$230 -> 0.4141279213 | M228: 0.3611227355 | N228: 0.3758157621 | O228: 0.3706497208 | P228: 0.3848032719 | Q228: 0.3955248129 | R228: 0.4052662301 | S228: 0.4141279213 | T228: =T$159*M228*1000 -> 230423.0237 | U228: 205726.0944 | V228: 233158.0151 | W228: 449695.5109 | X228: 463628.6943 | Y228: 479011.0144 | Z228: 494619.8282
B229: Volume > 100 GJ | C229: GJ | E229: =Z229/Z$230 -> 0.5858720787 | M229: 0.6388772645 | N229: 0.6241842379 | O229: 0.6293502792 | P229: 0.6151967281 | Q229: 0.6044751871 | R229: 0.5947337699 | S229: 0.5858720787 | T229: 407650.9634 | U229: 341686.0026 | V229: 395894.1655 | W229: 718941.9299 | X229: 708557.422 | Y229: 702955.2559 | Z229: 699745.0111
E230: =E228+E229 -> 1 | T230: =SUM(T228:T229) -> 638073.987 | U230: 547412.097 | V230: 629052.1806 | W230: 1168637.441 | X230: 1172186.116 | Y230: 1181966.27 | Z230: 1194364.839
B231: Reference tariff B3 | S231: Check to volumes delivered to customers | T231: =T159*1000-T230 -> 0 | U231: 0 | V231: 0 | W231: 0 | X231: 0 | Y231: 0 | Z231: 0
B232: Usage
B233: First 2GJ in standing charge | E233: =S233 -> 0.1330481572 | M233: 0 | N233: 0.1455605769 | O233: 0.1182650674 | P233: 0.1318807802 | Q233: 0.1322684992 | R233: 0.1326833284 | S233: 0.1330481572 | T233: =T$160*M233*1000 -> 0 | U233: 637333.2867 | V233: 675398.2897 | W233: 1355071.803 | X233: 1389050.048 | Y233: 1425978.17 | Z233: 1463420.781
B234: 2 to 10 GJ | C234: GJ | E234: =S234 -> 0.3793490012 | M234: 0.4670152202 | N234: 0.4149542071 | O234: 0.3433341329 | P234: 0.3752803846 | Q234: 0.3765279269 | R234: 0.3780020067 | S234: 0.3793490012 | T234: 2635663.405 | U234: 1816866.45 | V234: 1960742.011 | W234: 3855996.808 | X234: 3954200.268 | Y234: 4062474.285 | Z234: 4172528.38
B235: Volume > 10 GJ | C235: GJ | E235: =S235 -> 0.4876028416 | M235: 0.5329847798 | N235: 0.439485216 | O235: 0.5384007996 | P235: 0.4928388352 | Q235: 0.4912035738 | R235: 0.4893146648 | S235: 0.4876028416 | T235: 3007971.516 | U235: 1924274.849 | V235: 3074745.461 | W235: 5063907.024 | X235: 5158494.667 | Y235: 5258776.958 | Z235: 5363231.98
E236: =SUM(E233:E235) -> 1 | T236: =SUM(T233:T235) -> 5643634.922 | U236: 4378474.586 | V236: 5710885.762 | W236: 10274975.63 | X236: 10501744.98 | Y236: 10747229.41 | Z236: 10999181.14
S237: Check to volumes delivered to customers | T237: =(T160*1000)-T236 -> 0 | U237: 0 | V237: 0 | W237: 0 | X237: 0 | Y237: 0 | Z237: 0
B239: Forecast revenue from customers receiving prudent discounts
B241: $ Nominal | C241: $m | T241: 0.7070806705 | U241: 0.6684425325 | V241: 0.7426469214 | W241: 0.8867131798 | X241: 0.6022652962 | Y241: 0.6615126664 | Z241: 0.7244488699
B243: $, June-2014 | C243: $m | T243: =T241*T$97 -> 0.6984045055 | U243: 0.6441370468 | V243: 0.7156432626 | W243: 0.8336303166 | X243: 0.5524008143 | Y243: 0.5919442006 | Z243: 0.6324504117
B245: Operating expenditure
B247: Operating expenditure
B248: $ Nominal
B249: Network | C249: $m | O249: 20.48541362 | P249: 21.20503805 | Q249: 25.18809809 | R249: 24.11720901 | S249: 28.59523631 | T249: 15.47422796 | U249: 16.28194506 | V249: 16.28194506 | W249: 35.10489832 | X249: 36.61983194 | Y249: 38.5311384 | Z249: 40.46600598
B250: Marketing | C250: $m | O250: 0 | P250: 0 | Q250: 0 | R250: 0 | S250: 0 | T250: 0 | U250: 0 | V250: 0 | W250: 0 | X250: 0 | Y250: 0 | Z250: 0
B251: Corporate | C251: $m | O251: 4.009924122 | P251: 12.02482405 | Q251: 12.07196972 | R251: 12.41244581 | S251: 16.79890609 | T251: 10.35832122 | U251: 10.99630384 | V251: 10.99630384 | W251: 21.2457067 | X251: 22.5587381 | Y251: 24.30475457 | Z251: 25.4894162
B252: Information technology | C252: $m | O252: 2.204110256 | P252: 6.828992142 | Q252: 6.95709973 | R252: 8.605838593 | S252: 9.307801667 | T252: 5.343702894 | U252: 5.775719265 | V252: 5.775719265 | W252: 12.85078347 | X252: 13.73876953 | Y252: 14.6373991 | Z252: 14.7953878
B253: Licence Fees | C253: $m | O253: 1.14154245 | P253: 2.39695988 | Q253: 2.1485658 | R253: 2.1260509 | S253: 2.43897501 | T253: 1.302899604 | U253: 1.406693359 | V253: 1.406693359 | W253: 3.003269394 | X253: 3.213026266 | Y253: 3.444194849 | Z253: 3.686967313
B254: Full retail contestability | C254: $m | O254: 0 | P254: 0 | Q254: 0 | R254: 0 | S254: 0 | T254: 0 | U254: 0 | V254: 0 | W254: 0 | X254: 0 | Y254: 0 | Z254: 0
... 1182 more rows

Sheet Output
B1: Revenue Model Summary
B3: Output Summary
Q4: Tariffs - real Jun 2014 $
T5: 2014 | V5: 2015 | W5: 2016 | X5: 2017 | Y5: 2018 | Z5: 2019
Q6: Desecalation to 30 Jun 2014$ | T6: =Inputs!T97 -> 0.9877295966 | V6: =Inputs!V97 -> 0.9636386309 | W6: =Inputs!W97 -> 0.9401352496 | X6: =Inputs!X97 -> 0.9172051216 | Y6: =Inputs!Y97 -> 0.894834265 | Z6: =Inputs!Z97 -> 0.873009039
B8: Key Metrics | Q8: Reference tariff A1
Q9: Standing charge | S9: Real Jun 14$ | T9: =S173*T$6 -> 46168.99018 | U9: 0 | V9: 47555.04088 | W9: 48982.70256 | X9: 50453.22442 | Y9: 51967.89318 | Z9: 53528.03418
B10: WACC | C10: =Inputs!T80 -> 0.08534 | D10: Post-tax | G10: 2014 | H10: =G10+1 -> 2015 | I10: =H10+1 -> 2016 | J10: =I10+1 -> 2017 | K10: =J10+1 -> 2018 | L10: =K10+1 -> 2019 | M10: Average | Q10: Demand charge
G11: (Jul-Dec) | Q11: First 10 km | S11: Real Jun 14$ | T11: =S175*T$6 -> 194.5855795 | U11: 0 | V11: 200.4272814 | W11: 206.4443585 | X11: 212.6420758 | Y11: 219.0258563 | Z11: 225.6012858
Q12: Distance > 10 km | S12: Real Jun 14$ | T12: 102.4185856 | U12: 0 | V12: 105.4933194 | W12: 108.6603605 | X12: 111.9224801 | Y12: 115.2825326 | Z12: 118.7434581
B13: Expenditures | C13: Real $m 30 Jun 2014 | D13: Nominal $m | F13: Price Path (annual change in average price in Real $, forecast CPI of 2.5%) | Q13: Usage charge
B14: Return on Capital | C14: =SUM(T109:Y109) -> 531.0765356 | D14: =SUM(T100:Y100) -> 577.4709296 | F14: A1 | G14: =T163 -> -0.03432715528 | H14: =U163 -> 0.01544288475 | I14: 0.01761512951 | J14: 0.04840903295 | K14: 0.01021316855 | L14: 0.008858803247 | M14: 0.0200058081 | Q14: First 10 km | S14: Real Jun 14$ | T14: =S178*T$6 -> 0.04128304706 | U14: 0 | V14: 0.04252241565 | W14: 0.04379899163 | X14: 0.04511389202 | Y14: 0.04646826736 | Z14: 0.04786330274
B15: Return on Working Capital | C15: =SUM(T110:Y110) -> 1.130414328 | D15: =SUM(T101:Y101) -> 1.231689443 | F15: A2 | G15: =T164 -> 0.04418065478 | H15: 0.03080757659 | I15: 0.03225101475 | J15: 0.0264736702 | K15: 0.02281331082 | L15: =Y164 -> 0.02273330381 | M15: =Z164 -> 0.02700817547 | Q15: Distance > 10 km | S15: Real Jun 14$ | T15: 0.02062521596 | U15: 0 | V15: 0.02124441068 | W15: 0.0218821944 | X15: 0.02253912519 | Y15: 0.02321577785 | Z15: 0.02391274448
B16: Depreciation | C16: =SUM(T111:Y111) -> 113.0366364 | D16: =SUM(T102:Y102) -> 123.8566785 | F16: B1 | G16: -0.004501429644 | H16: 0.03490726213 | I16: 0.03533103786 | J16: 0.03374014495 | K16: 0.0329549139 | L16: 0.03270162047 | M16: 0.03392647232 | Q16: Carbon tax | S16: Real Jun 14$ | T16: 0.02072256694 | U16: 0 | V16: 0 | W16: 0 | X16: 0 | Y16: 0 | Z16: 0
B17: Opex | C17: 453.8048177 | D17: =SUM(T103:Y103) -> 492.5671177 | F17: B2 | G17: 0.02725469301 | H17: 0.04599943096 | I17: 0.05084027501 | J17: 0.04784342582 | K17: 0.04621696115 | L17: 0.04564609998 | M17: 0.04730748119
B18: Tax | C18: 40.30988218 | D18: =SUM(T104:Y104) -> 44.15913182 | F18: B3 | G18: 0.01498048311 | H18: -0.01630357537 | I18: 0.03181094993 | J18: 0.02981417633 | K18: 0.02878225754 | L18: 0.02840119015 | M18: 0.02033133788 | Q18: Reference tariff A2
B19: Total Revenue | C19: =SUM(C14:C18) -> 1139.358286 | D19: =SUM(D14:D18) -> 1239.285547 | F19: All customers | G19: -0.002240625817 | H19: -0.008314335522 | I19: 0.01378423276 | J19: 0.02580613057 | K19: 0.02636745066 | L19: 0.02523861172 | M19: 0.01648865652 | Q19: Standing charge | S19: Real Jun 14$ | T19: =S183*T$6 -> 25561.63202 | U19: 0 | V19: 26329.02412 | W19: 27119.45428 | X19: 27933.61414 | Y19: 28772.2161 | Z19: 29635.99393
Q20: First 10 TJ | S20: Real Jun 14$ | T20: 2.489078584 | U20: 0 | V20: 2.563803829 | W20: 2.640772419 | X20: 2.720051703 | Y20: 2.80171105 | Z20: 2.885821912
F21: Customers | G21: =Inputs!T120 -> 676270.5695 | H21: =Inputs!U120 -> 683904.9236 | I21: =Inputs!V120 -> 691539.2777 | J21: =Inputs!W120 -> 706787.3397 | K21: =Inputs!X120 -> 721998.0242 | L21: =Inputs!Y120 -> 737171.9268 | Q21: Volume > 10 TJ | S21: Real Jun 14$ | T21: 1.343312251 | U21: 0 | V21: 1.383640162 | W21: 1.425178766 | X21: 1.467964411 | Y21: 1.512034535 | Z21: 1.557427698
B22: Capex | C22: =SUM(Inputs!T536:Z536) -> 605.7057751 | D22: =SUM(Inputs!T502:Z502) -> 658.2643781 | F22: Volume (TJ) | G22: =Inputs!T162 -> 12945.80387 | H22: =Inputs!U162+Inputs!V162 -> 24419.99145 | I22: =Inputs!W162 -> 25371.70172 | J22: =Inputs!X162 -> 26105.56374 | K22: =Inputs!Y162 -> 26805.75788 | L22: =Inputs!Z162 -> 27554.63202
Q23: Reference tariff B1
Q24: Standing charge | S24: Real Jun 14$ | T24: =S188*T$6 -> 1287.72283 | U24: 0 | V24: 1326.381876 | W24: 1366.201515 | X24: 1407.21659 | Y24: 1449.462988 | Z24: 1492.977676
B25: Charts | Q25: First 5 TJ | S25: Real Jun 14$ | T25: 5.037420943 | U25: 0 | V25: 5.188650606 | W25: 5.344420373 | X25: 5.504866542 | Y25: 5.670129505 | Z25: 5.840353869
Q26: Volume > 5 TJ | S26: Real Jun 14$ | T26: 4.336132929 | U26: 0 | V26: 4.466309051 | W26: 4.600393223 | X26: 4.738502768 | Y26: 4.880758535 | Z26: 5.027284997
Q28: Reference tariff B2
Q29: Standing charge | S29: Real Jun 14$ | T29: =S193*T$6 -> 322.7307684 | U29: 0 | V29: 338.5543651 | W29: 348.7181897 | X29: 359.1871449 | Y29: 369.9703913 | Z29: 381.0773641
Q30: First 100 GJ | S30: Real Jun 14$ | T30: 8.316683204 | U30: 0 | V30: 8.496883172 | W30: 8.751970209 | X30: 9.014715276 | Y30: 9.285348279 | Z30: 9.564106022
Q31: Volume > 100 GJ | S31: Real Jun 14$ | T31: 4.997911759 | U31: 0 | V31: 5.106202951 | W31: 5.259497536 | X31: 5.417394216 | Y31: 5.580031151 | Z31: 5.74755065
Q33: Reference tariff B3
Q34: Standing charge | S34: Real Jun 14$ | T34: =S198*T$6 -> 70.17818784 | U34: 0 | V34: 130.5301711 | W34: 134.4488498 | X34: 138.485172 | Y34: 142.6426697 | Z34: 146.9249807
Q35: First 2 GJ | S35: Real Jun 14$ | T35: 13.97637379 | U35: 0 | V35: 0 | W35: 0 | X35: 0 | Y35: 0 | Z35: 0
Q36: Volume > 2 <10 GJ | S36: Real Jun 14$ | T36: 13.97637379 | U36: 0 | V36: 9.901273007 | W36: 10.19852158 | X36: 10.50469392 | Y36: 10.82005795 | Z36: 11.14488959
Q37: Volume > 10 GJ | S37: Real Jun 14$ | T37: 6.143678091 | U37: 0 | V37: 4.352361703 | W37: 4.483025033 | X37: 4.61761104 | Y37: 4.756237486 | Z37: 4.89902567
Q39: Real annual tariff increase | V39: =(1-Tariff!V170)/(1+Tariff!V7)-1 -> 0.03002124796 | W39: =(1-Tariff!W170)/(1+Tariff!W7)-1 -> 0.03002124796 | X39: =(1-Tariff!X170)/(1+Tariff!X7)-1 -> 0.03002124796 | Y39: =(1-Tariff!Y170)/(1+Tariff!Y7)-1 -> 0.03002124796 | Z39: =(1-Tariff!Z170)/(1+Tariff!Z7)-1 -> 0.03002124796
B87: Data for charts | F87: =Inputs!E2 -> 2000 | G87: =F87+1 -> 2001 | H87: =G87+1 -> 2002 | I87: 2003 | J87: 2004 | K87: 2005 | L87: 2006 | M87: 2007 | N87: 2008 | O87: 2009 | P87: 2010 | Q87: 2011 | R87: 2012 | S87: 2013 | T87: 2014 | U87: 2015 | V87: 2016 | W87: 2017 | X87: 2018 | Y87: 2019
B89: Escalation/de-escalation factor to 30 June 2014 | F89: =Inputs!E97 -> 1.451462562 | G89: =Inputs!F97 -> 1.407187179 | H89: =Inputs!G97 -> 1.367292697 | I89: =Inputs!H97 -> 1.334615261 | J89: =Inputs!I97 -> 1.301863967 | K89: =Inputs!J97 -> 1.266132617 | L89: =Inputs!K97 -> 1.225195303 | M89: =Inputs!L97 -> 1.190818331 | N89: =Inputs!M97 -> 1.148289105 | O89: =Inputs!N97 -> 1.125152845 | P89: =Inputs!O97 -> 1.094962985 | Q89: =Inputs!P97 -> 1.063145424 | R89: =Inputs!Q97 -> 1.040214836 | S89: =Inputs!R97 -> 1.012422837 | T89: =Inputs!T97 -> 0.9877295966 | U89: =Inputs!U97 -> 0.9636386309 | V89: =Inputs!W97 -> 0.9401352496 | W89: =Inputs!X97 -> 0.9172051216 | X89: =Inputs!Y97 -> 0.894834265 | Y89: =Inputs!Z97 -> 0.873009039
B91: RAB Closing Value | C91: $m | D91: Real Jun 14$ | F91: =RAB_Summary!E36 -> 833.5656356 | G91: =RAB_Summary!F36 -> 830.9030886 | H91: =RAB_Summary!G36 -> 836.1319478 | I91: =RAB_Summary!H36 -> 844.2094918 | J91: =RAB_Summary!I36 -> 857.3963954 | K91: =RAB_Summary!J36 -> 856.1219565 | L91: =RAB_Summary!K36 -> 859.1390047 | M91: =RAB_Summary!L36 -> 862.163231 | N91: =RAB_Summary!M36 -> 864.3768724 | O91: =RAB_Summary!N36 -> 879.7113762 | P91: =RAB_Summary!P36 -> 913.5174774 | Q91: =RAB_Summary!Q36 -> 923.3150533 | R91: =RAB_Summary!R36 -> 971.5978653 | S91: =RAB_Summary!S36 -> 1020.049174 | T91: =RAB_Summary!T68*T89 -> 1045.292354 | U91: =RAB_Summary!V68*U89 -> 1109.035055 | V91: =RAB_Summary!W68*V89 -> 1175.511244 | W91: =RAB_Summary!X68*W89 -> 1239.569146 | X91: =RAB_Summary!Y68*X89 -> 1299.619053 | Y91: =RAB_Summary!Z68*Y89 -> 1357.054901
B93: Net Capex | C93: $m | D93: Real Jun 14$ | F93: =RAB_Summary!E29 -> 36.48099078 | G93: =RAB_Summary!F29 -> 25.02715769 | H93: =RAB_Summary!G29 -> 33.87707807 | I93: =RAB_Summary!H29 -> 37.65350023 | J93: =RAB_Summary!I29 -> 43.63609552 | K93: =RAB_Summary!J29 -> 30.97353797 | L93: =RAB_Summary!K29 -> 37.31871672 | M93: =RAB_Summary!L29 -> 39.22144501 | N93: =RAB_Summary!M29 -> 39.95168856 | O93: =RAB_Summary!N29 -> 47.74435296 | P93: =RAB_Summary!O29+RAB_Summary!P29/2 -> 48.65305636 | Q93: =RAB_Summary!P29/2+RAB_Summary!Q29/2 -> 40.30679468 | R93: =RAB_Summary!Q29/2+RAB_Summary!R29/2 -> 59.32138687 | S93: =RAB_Summary!R29/2+RAB_Summary!S29/2 -> 81.06559759 | T93: =RAB_Summary!T29/2+RAB_Summary!T29 -> 63.79791697 | U93: =RAB_Summary!V29 -> 103.6545485 | V93: =RAB_Summary!W29 -> 112.0684605 | W93: =RAB_Summary!X29 -> 114.7552529 | X93: =RAB_Summary!Y29 -> 115.4220216 | Y93: =RAB_Summary!Z29 -> 117.2735469
B97: Opex | C97: $m | D97: Real Jun 14$ | F97: =Inputs!E273 -> 60.77006641 | G97: =Inputs!F273 -> 56.36037992 | H97: =Inputs!G273 -> 50.55573885 | I97: =Inputs!H273 -> 52.86378134 | J97: =Inputs!I273 -> 52.934533 | K97: =Inputs!J273 -> 47.49462772 | L97: =Inputs!K273 -> 49.26615071 | M97: =Inputs!L273 -> 49.39768569 | N97: =Inputs!M273 -> 48.08281642 | O97: =Inputs!N273 -> 53.41692618 | P97: =Inputs!O273+Inputs!P273/2 -> 65.75622849 | Q97: =Inputs!P273/2+Inputs!Q273/2 -> 59.02380633 | R97: =Inputs!Q273/2+Inputs!R273/2 -> 60.57221328 | S97: =Inputs!R273/2+Inputs!S273/2 -> 64.73193135 | T97: =Inputs!S273/2+Inputs!T273 -> 73.66672922 | U97: =Inputs!U273+Inputs!V273 -> 78.77884748 | V97: =Inputs!W273 -> 80.52084507 | W97: =Inputs!X273 -> 82.69883679 | X97: =Inputs!Y273 -> 85.48649191 | Y97: =Inputs!Z273 -> 87.05010539
B99: Revenue Building Blocks | T99: Jul-Dec 2014 | U99: =U87 -> 2015 | V99: =V87 -> 2016 | W99: 2017 | X99: 2018 | Y99: 2019
B100: Return on Assets | C100: $m | D100: Nominal | T100: =Tariff!T92 -> 42.95704904 | U100: =Tariff!U92+Tariff!V92 -> 90.31343173 | V100: =Tariff!W92 -> 98.21633186 | W100: =Tariff!X92 -> 106.7060613 | X100: =Tariff!Y92 -> 115.333886 | Y100: =Tariff!Z92 -> 123.9441697
B101: Return on Working Capital | C101: $m | D101: Nominal | T101: =Tariff!T93 -> 0.09690477712 | U101: =Tariff!U93+Tariff!V93 -> 0.1876409939 | V101: =Tariff!W93 -> 0.1800297745 | W101: =Tariff!X93 -> 0.2122884561 | X101: =Tariff!Y93 -> 0.2542232412 | Y101: =Tariff!Z93 -> 0.3006022005
B102: Depreciation | C102: $m | D102: Nominal | T102: =Tariff!T94 -> 4.831635532 | U102: =Tariff!U94+Tariff!V94 -> 14.96091167 | V102: =Tariff!W94 -> 19.72337001 | W102: =Tariff!X94 -> 24.01463406 | X102: =Tariff!Y94 -> 28.09315781 | Y102: =Tariff!Z94 -> 32.23296939
B103: Opex | C103: $m | D103: Nominal | T103: =Tariff!T95 -> 39.75753202 | U103: =Tariff!U95+Tariff!V95 -> 81.75144183 | V103: =Tariff!W95 -> 85.6481502 | W103: =Tariff!X95 -> 90.16395007 | X103: =Tariff!Y95 -> 95.53332416 | Y103: =Tariff!Z95 -> 99.71271946
B104: Tax | C104: $m | D104: Nominal | T104: =Tariff!T96 -> 2.028671748 | U104: =Tariff!U96+Tariff!V96 -> 5.610205532 | V104: =Tariff!W96 -> 6.232636866 | W104: =Tariff!X96 -> 8.347219962 | X104: =Tariff!Y96 -> 10.5424904 | Y104: =Tariff!Z96 -> 11.39790731
B105: Total Revenue | C105: $m | D105: Nominal | F105: =SUM(F100:F104) -> 0 | G105: 0 | H105: 0 | I105: 0 | J105: 0 | K105: 0 | L105: 0 | M105: 0 | N105: 0 | O105: 0 | P105: 0 | Q105: 0 | R105: 0 | S105: 0 | T105: 89.67179313 | U105: =SUM(U100:U104) -> 192.8236318 | V105: 210.0005187 | W105: 229.4441538 | X105: 249.7570816 | Y105: 267.5883681
B106: Access Arrangement period total | Y106: =SUM(T105:Y105) -> 1239.285547
B108: Revenue Building Blocks
B109: Return on Assets | C109: $m | D109: Real Jun 14$ | F109: =F100*F$89 -> 0 | G109: 0 | H109: 0 | I109: 0 | J109: 0 | K109: 0 | L109: 0 | M109: 0 | N109: 0 | O109: 0 | P109: 0 | Q109: 0 | R109: 0 | S109: 0 | T109: =T100*T$89 -> 42.42994873 | U109: =U100*U$89 -> 87.0295117 | V109: 92.33663567 | W109: 97.87134593 | X109: 103.2047131 | Y109: 108.2043805
B110: Return on Working Capital | C110: $m | D110: Real Jun 14$ | F110: 0 | G110: 0 | H110: 0 | I110: 0 | J110: 0 | K110: 0 | L110: 0 | M110: 0 | N110: 0 | O110: 0 | P110: 0 | Q110: 0 | R110: 0 | S110: 0 | T110: 0.09571571642 | U110: 0.1808181105 | V110: 0.169252337 | W110: 0.1947120592 | X110: 0.2274876671 | Y110: 0.2624284382
B111: Depreciation | C111: $m | D111: Real Jun 14$ | F111: 0 | G111: 0 | H111: 0 | I111: 0 | J111: 0 | K111: 0 | L111: 0 | M111: 0 | N111: 0 | O111: 0 | P111: 0 | Q111: 0 | R111: 0 | S111: 0 | T111: 4.772349415 | U111: 14.41691244 | V111: 18.54263539 | W111: 22.02634535 | X111: 25.13872022 | Y111: 28.13967363
B112: Opex | C112: $m | D112: Real Jun 14$ | F112: 0 | G112: 0 | H112: 0 | I112: 0 | J112: 0 | K112: 0 | L112: 0 | M112: 0 | N112: 0 | O112: 0 | P112: 0 | Q112: 0 | R112: 0 | S112: 0 | T112: 39.26969107 | U112: 78.77884748 | V112: 80.52084507 | W112: 82.69883679 | X112: 85.48649191 | Y112: 87.05010539
B113: Tax | C113: $m | D113: Real Jun 14$ | F113: 0 | G113: 0 | H113: 0 | I113: 0 | J113: 0 | K113: 0 | L113: 0 | M113: 0 | N113: 0 | O113: 0 | P113: 0 | Q113: 0 | R113: 0 | S113: 0 | T113: 2.003779127 | U113: 5.406210778 | V113: 5.859521616 | W113: 7.6561129 | X113: 9.433781652 | Y113: 9.950476107
B114: Total Revenue | C114: $m | D114: Real Jun 14$ | F114: =SUM(F109:F113) -> 0 | G114: 0 | H114: 0 | I114: 0 | J114: 0 | K114: 0 | L114: 0 | M114: 0 | N114: 0 | O114: 0 | P114: 0 | Q114: 0 | R114: 0 | S114: 0 | T114: 88.57148405 | U114: 185.8123005 | V114: 197.4288901 | W114: 210.447353 | X114: 223.4911945 | Y114: 233.6070641
B115: Access Arrangement period total | Y115: =SUM(T114:Y114) -> 1139.358286
B117: Reference Tariff Revenue (exclg User Specific Charges) | F117: =F$87 -> 2000 | G117: =G$87 -> 2001 | H117: 2002 | I117: 2003 | J117: 2004 | K117: 2005 | L117: 2006 | M117: 2007 | N117: 2008 | O117: 2009 | P117: 2010 | Q117: 2011 | R117: 2012 | S117: 2013 | T117: 2014 | U117: 2015 | V117: 2016 | W117: 2017 | X117: 2018 | Y117: 2019
B118: A1 | C118: $m | D118: Nominal | K118: 4.80142968 | L118: 4.292408864 | M118: 4.3136383 | N118: 4.726754073 | O118: 5.038741071 | P118: 5.573911714 | Q118: 6.45270911 | R118: 6.9940496 | S118: 7.484435744 | T118: 8.085775241 | U118: =Tariff!U148+Tariff!V148 -> 8.609279904 | V118: =Tariff!W148 -> 9.600401961 | W118: =Tariff!X148 -> 10.66506967 | X118: =Tariff!Y148 -> 11.31376946 | Y118: =Tariff!Z148 -> 12.00836509
B119: A2 | C119: $m | D119: Nominal | K119: 4.41873129 | L119: 4.726781285 | M119: 4.93738968 | N119: 5.227111115 | O119: 5.439970881 | P119: 5.643105871 | Q119: 5.72330387 | R119: 6.15698318 | S119: 6.391263539 | T119: 6.814616417 | U119: =Tariff!U149+Tariff!V149 -> 7.657035521 | V119: =Tariff!W149 -> 8.496186583 | W119: =Tariff!X149 -> 9.446604001 | X119: =Tariff!Y149 -> 10.51043305 | Y119: =Tariff!Z149 -> 11.69895286
B120: B1 | C120: $m | D120: Nominal | K120: 8.656686977 | L120: 8.425829963 | M120: 8.727163855 | N120: 9.208361162 | O120: 9.818683439 | P120: 9.795087413 | Q120: 8.669806924 | R120: 9.000832861 | S120: 9.77401291 | T120: 10.01762737 | U120: =Tariff!U150+Tariff!V150 -> 10.85555828 | V120: =Tariff!W150 -> 11.68868024 | W120: =Tariff!X150 -> 12.6647855 | X120: =Tariff!Y150 -> 13.76296592 | Y120: =Tariff!Z150 -> 14.96533488
B121: B2 | C121: $m | D121: Nominal | K121: 6.29254134 | L121: 6.533871031 | M121: 6.994511709 | N121: 7.376581794 | O121: 7.612794088 | P121: 7.87804173 | Q121: 8.271784364 | R121: 9.623982515 | S121: 10.65712193 | T121: 10.66351523 | U121: =Tariff!U151+Tariff!V151 -> 11.4112456 | V121: =Tariff!W151 -> 12.20941002 | W121: =Tariff!X151 -> 13.15320879 | X121: =Tariff!Y151 -> 14.22282433 | Y121: =Tariff!Z151 -> 15.4037464
B122: B3 | C122: $m | D122: Nominal | K122: 87.53329374 | L122: 87.35106368 | M122: 90.78818208 | N122: 94.39556917 | O122: 99.17016218 | P122: 99.7058519 | Q122: 105.9293609 | R122: 131.1778591 | S122: 142.3895865 | T122: 148.542789 | U122: =Tariff!U152+Tariff!V152 -> 153.4415674 | V122: =Tariff!W152 -> 165.2662571 | W122: =Tariff!X152 -> 178.2984592 | X122: =Tariff!Y152 -> 192.4110337 | Y122: =Tariff!Z152 -> 207.5774839
F123: =SUM(F118:F122) -> 0 | G123: 0 | H123: 0 | I123: 0 | J123: 0 | K123: 111.702683 | L123: 111.3299548 | M123: 115.7608856 | N123: 120.9343773 | O123: 127.0803517 | P123: 128.5959986 | Q123: 135.0469652 | R123: 162.9537073 | S123: 176.6964206 | T123: 184.1243232 | U123: 191.9746867 | V123: 207.2609359 | W123: 224.2281271 | X123: 242.2210264 | Y123: =SUM(Y118:Y122) -> 261.6538831
B124: Check to real tariff revenue excl User Spec Charges | F124: =(F123*F$89)-F132 -> 0 | G124: 0 | H124: 0 | I124: 0 | J124: 0 | K124: =(K123*K$89)-K132 -> 0 | L124: =(L123*L$89)-L132 -> 0 | M124: 0 | N124: 0 | O124: 0 | P124: 0 | Q124: 0 | R124: 0 | S124: 0 | T124: 0 | U124: 0 | V124: 0 | W124: 0 | X124: 0 | Y124: 0
B126: Reference Tariff Revenue (exclg User Specific Charges) | F126: =F$87 -> 2000 | G126: =G$87 -> 2001 | H126: 2002 | I126: 2003 | J126: 2004 | K126: 2005 | L126: 2006 | M126: 2007 | N126: 2008 | O126: 2009 | P126: 2010 | Q126: 2011 | R126: 2012 | S126: 2013 | T126: 2014 | U126: 2015 | V126: 2016 | W126: 2017 | X126: 2018 | Y126: 2019
B127: A1 | C127: $m | D127: Real Jun 14$ | F127: =F118*F$89 -> 0 | G127: 0 | H127: 0 | I127: 0 | J127: 0 | K127: =K118*K$89 -> 6.079246724 | L127: =L118*L$89 -> 5.25903918 | M127: 5.13675956 | N127: 5.427680203 | O127: 5.66935385 | P127: 6.10322701 | Q127: 6.86016816 | R127: 7.275314158 | S127: 7.577413666 | T127: 7.986559517 | U127: 8.2962347 | V127: 9.025676294 | W127: 9.782056521 | X127: 10.12394858 | Y127: 10.48341127
B128: A2 | C128: $m | D128: Real Jun 14$ | F128: 0 | G128: 0 | H128: 0 | I128: 0 | J128: 0 | K128: 5.59469981 | L128: 5.79123023 | M128: 5.879534137 | N128: 6.002234742 | O128: 6.120798713 | P128: 6.178992051 | Q128: 6.084704317 | R128: 6.404585249 | S128: 6.470661161 | T128: 6.730998325 | U128: 7.378615226 | V128: 7.987564495 | W128: 8.664473572 | X128: 9.405095631 | Y128: 10.21329159
B129: B1 | C129: $m | D129: Real Jun 14$ | F129: 0 | G129: 0 | H129: 0 | I129: 0 | J129: 0 | K129: 10.96051373 | L129: 10.3232873 | M129: 10.39246669 | N129: 10.57386079 | O129: 11.0475196 | P129: 10.72525815 | Q129: 9.217265555 | R129: 9.362799879 | S129: 9.895433875 | T129: 9.894707043 | U129: 10.46083532 | V129: 10.98894032 | W129: 11.61620612 | X129: 12.31557349 | Y129: 13.06487262
B130: B2 | C130: $m | D130: Real Jun 14$ | F130: 0 | G130: 0 | H130: 0 | I130: 0 | J130: 0 | K130: 7.967191832 | L130: 8.0052681 | M130: 8.329192758 | N130: 8.470448504 | O130: 8.565556925 | P130: 8.626164091 | Q130: 8.794109691 | R130: 10.01100939 | S130: 10.78951361 | T130: 10.5326696 | U130: 10.99631708 | V130: 11.47849674 | W130: 12.06419047 | X130: 12.72707056 | Y130: 13.44760984
B131: B3 | C131: $m | D131: Real Jun 14$ | F131: 0 | G131: 0 | H131: 0 | I131: 0 | J131: 0 | K131: 110.8287582 | L131: 107.022113 | M131: 108.1122314 | N131: 108.3934036 | O131: 111.5815901 | P131: 109.1742172 | Q131: 112.6183153 | R131: 136.4531552 | S131: 144.1584691 | T131: 146.720109 | U131: 147.862222 | V131: 155.3726338 | W131: 163.5362599 | X131: 172.1759859 | Y131: 181.2170198
F132: =SUM(F127:F131) -> 0 | G132: 0 | H132: 0 | I132: 0 | J132: 0 | K132: 141.4304103 | L132: 136.4009378 | M132: 137.8501846 | N132: 138.8676278 | O132: 142.9848192 | P132: 140.8078586 | Q132: 143.574563 | R132: 169.5068639 | S132: 178.8914914 | T132: 181.8650435 | U132: 184.9942243 | V132: 194.8533117 | W132: 205.6631866 | X132: 216.7476742 | Y132: =SUM(Y127:Y131) -> 228.4262051
B134: Gas volumes (excluding customers receiving prudent discounts) | F134: =F$87 -> 2000 | G134: =G$87 -> 2001 | H134: 2002 | I134: 2003 | J134: 2004 | K134: 2005 | L134: 2006 | M134: 2007 | N134: 2008 | O134: 2009 | P134: 2010 | Q134: 2011 | R134: 2012 | S134: 2013 | T134: 2014 | U134: 2015 | V134: 2016 | W134: 2017 | X134: 2018 | Y134: 2019
B135: A1 | C135: TJ | K135: =Inputs!J156 -> 4894.893999 | L135: =Inputs!K156 -> 5098.206856 | M135: =Inputs!L156 -> 5551.422909 | N135: =Inputs!M156 -> 5639.854677 | O135: =Inputs!N156 -> 5770.609523 | P135: 6416.12153 | Q135: 7747.53166 | R135: 8960.318571 | S135: 8348.752186 | T135: 9225.548991 | U135: =Inputs!U156+Inputs!V156 -> 9321.720633 | V135: =Inputs!W156 -> 9965.778991 | W135: =Inputs!X156 -> 10302.22219 | X135: =Inputs!Y156 -> 10554.49964 | Y135: =Inputs!Z156 -> 10833.27966
B136: A2 | C136: TJ | K136: =Inputs!J157 -> 1874.280215 | L136: =Inputs!K157 -> 1738.378202 | M136: =Inputs!L157 -> 1752.20462 | N136: =Inputs!M157 -> 1709.383831 | O136: =Inputs!N157 -> 1742.79765 | P136: 1827.677751 | Q136: 1923.431907 | R136: 2046.753775 | S136: 2043.773275 | T136: 2061.340945 | U136: =Inputs!U157+Inputs!V157 -> 2165.238179 | V136: =Inputs!W157 -> 2270.700585 | W136: =Inputs!X157 -> 2399.605571 | X136: =Inputs!Y157 -> 2546.622224 | Y136: =Inputs!Z157 -> 2703.987265
B137: B1 | C137: TJ | K137: =Inputs!J158 -> 1880.085 | L137: =Inputs!K158 -> 1692.711146 | M137: =Inputs!L158 -> 1684.92585 | N137: =Inputs!M158 -> 1598.542148 | O137: =Inputs!N158 -> 1601.447909 | P137: 1628.953671 | Q137: 1512.515894 | R137: 1598.179821 | S137: 1624.801608 | T137: 1652.303153 | U137: =Inputs!U158+Inputs!V158 -> 1667.208014 | V137: =Inputs!W158 -> 1691.609069 | W137: =Inputs!X158 -> 1729.804879 | X137: =Inputs!Y158 -> 1775.440335 | Y137: =Inputs!Z158 -> 1823.819116
B138: B2 | C138: TJ | K138: =Inputs!J159 -> 1064.6 | L138: =Inputs!K159 -> 1106.851445 | M138: =Inputs!L159 -> 1135.92175 | N138: =Inputs!M159 -> 1159.983043 | O138: =Inputs!N159 -> 1166.783051 | P138: 1201.957568 | Q138: 1169.314918 | R138: 1213.374861 | S138: 1240.346256 | T138: 1193.337621 | U138: =Inputs!U159+Inputs!V159 -> 1176.464278 | V138: =Inputs!W159 -> 1168.637441 | W138: =Inputs!X159 -> 1172.186116 | X138: =Inputs!Y159 -> 1181.96627 | Y138: =Inputs!Z159 -> 1194.364839
B139: B3 | C139: TJ | K139: =Inputs!J160 -> 10302.354 | L139: =Inputs!K160 -> 9974.977966 | M139: =Inputs!L160 -> 10171.2036 | N139: =Inputs!M160 -> 10455.26609 | O139: =Inputs!N160 -> 10539.64783 | P139: 10467.01407 | Q139: 9145.218208 | R139: 9765.50324 | S139: 9821.217998 | T139: 9970.548995 | U139: =Inputs!U160+Inputs!V160 -> 10089.36035 | V139: =Inputs!W160 -> 10274.97563 | W139: =Inputs!X160 -> 10501.74498 | X139: =Inputs!Y160 -> 10747.22941 | Y139: =Inputs!Z160 -> 10999.18114
F140: =SUM(F135:F139) -> 0 | G140: 0 | H140: 0 | I140: 0 | J140: 0 | K140: =SUM(K135:K139) -> 20016.21321 | L140: =SUM(L135:L139) -> 19611.12562 | M140: 20295.67873 | N140: 20563.02979 | O140: 20821.28597 | P140: 21541.72459 | Q140: 21498.01259 | R140: 23584.13027 | S140: 23078.89132 | T140: 24103.0797 | U140: 24419.99145 | V140: 25371.70172 | W140: 26105.56374 | X140: 26805.75788 | Y140: 27554.63202
B142: Average Price | F142: =F$87 -> 2000 | G142: =G$87 -> 2001 | H142: 2002 | I142: 2003 | J142: 2004 | K142: 2005 | L142: 2006 | M142: 2007 | N142: 2008 | O142: 2009 | P142: 2010 | Q142: 2011 | R142: 2012 | S142: 2013 | T142: 2014 | U142: 2015 | V142: 2016 | W142: 2017 | X142: 2018 | Y142: 2019
B143: A1 | C143: $/GJ | D143: Nominal | F143: =IF(F135=0,"",F117*1000000/(F135*1000)) ->  | G143: =IF(G135=0,"",G117*1000000/(G135*1000)) ->  | H143: =IF(H135=0,"",H117*1000000/(H135*1000)) ->  | I143: =IF(I135=0,"",I117*1000000/(I135*1000)) ->  | J143: =IF(J135=0,"",J117*1000000/(J135*1000)) ->  | K143: =K118*1000000/(K135*1000) -> 0.9809057522 | L143: 0.841944822 | M143: 0.7770329105 | N143: 0.8380985581 | O143: 0.8731731112 | P143: 0.8687353704 | Q143: 0.8328728933 | R143: 0.7805581403 | S143: 0.896473578 | T143: 0.8764546423 | U143: 0.9235719717 | V143: 0.9633368319 | W143: 1.035220312 | X143: 1.071938022 | Y143: 1.108469962
B144: A2 | C144: $/GJ | D144: Nominal | K144: 2.357561721 | L144: 2.719075331 | M144: 2.817815696 | N144: 3.057891984 | O144: 3.121401318 | P144: 3.087582517 | Q144: 2.975568747 | R144: 3.00816994 | S144: 3.127188136 | T144: 3.305914257 | U144: 3.536347916 | V144: 3.741658692 | W144: 3.936731984 | X144: 4.127205421 | Y144: 4.326556197
B145: B1 | C145: $/GJ | D145: Nominal | K145: 4.604412554 | L145: 4.977712815 | M145: 5.179553662 | N145: 5.760474426 | O145: 6.131128826 | P145: 6.01311602 | Q145: 5.732043518 | R145: 5.631927485 | S145: 6.015511595 | T145: 6.062826519 | U145: 6.51122007 | V145: 6.909799939 | W145: 7.32151103 | X145: 7.751860566 | Y145: 8.205492942
B146: B2 | C146: $/GJ | D146: Nominal | K146: 5.910709506 | L146: 5.903114695 | M146: 6.157564733 | N146: 6.359215197 | O146: 6.524601191 | P146: 6.554342635 | Q146: 7.074043304 | R146: 7.931582258 | S146: 8.592053938 | T146: 8.935874514 | U146: =U121*1000000/(U138*1000) -> 9.699610785 | V146: 10.44756021 | W146: 11.22109246 | X146: 12.03318969 | Y146: 12.89701931
B147: B3 | C147: $/GJ | D147: Nominal | K147: 8.496436226 | L147: 8.757018209 | M147: 8.926001844 | N147: 9.028519061 | O147: 9.409248178 | P147: 9.525720633 | Q147: 11.58303263 | R147: 13.43278025 | S147: 14.49815965 | T147: 14.89815546 | U147: 15.20825525 | V147: 16.0843454 | W147: 16.97798408 | X147: 17.90331501 | Y147: 18.87208523
B148: All customer average | C148: $/GJ | D148: Nominal | K148: 5.58061017 | L148: 5.676877351 | M148: 5.703720835 | N148: 5.881155577 | O148: 6.103386307 | P148: 5.969624117 | Q148: 6.281834875 | R148: 6.909464347 | S148: 7.656191892 | T148: 7.639037231 | U148: 7.861374035 | V148: 8.168980471 | W148: 8.589285004 | X148: 9.036156616 | Y148: 9.495822081
B149: A1 | D149: Real Jun 14$ | K149: =K143*K$89 -> 1.241956767 | L149: 1.031546842 | M149: 0.9253050334 | N149: 0.9623794429 | O149: 0.9824532101 | P149: 0.9512330745 | Q149: 0.8854650049 | R149: 0.8119481579 | S149: 0.9076103228 | T149: =T143 -> 0.8764546423 | U149: =U143*U$89 -> 0.8899896303 | V149: 0.9056669129 | W149: 0.9495093723 | X149: 0.9592068716 | Y149: 0.9677042965
B150: A2 | D150: Real Jun 14$ | K150: 2.984985791 | L150: 3.331398325 | M150: 3.355506583 | N150: 3.511344048 | O150: 3.512053572 | P150: 3.380788571 | Q150: 3.163462295 | R150: 3.129143001 | S150: 3.166036683 | T150: 3.305914257 | U150: 3.407761464 | V150: 3.517665229 | W150: 3.610790738 | X150: 3.693164829 | Y150: 3.777122668
B151: B1 | D151: Real Jun 14$ | K151: 5.829796915 | L151: 6.098670362 | M151: 6.167907446 | N151: 6.614690021 | O151: 6.898457041 | P151: 6.584139468 | Q151: 6.093995834 | R151: 5.858414525 | S151: 6.090241312 | T151: 6.062826519 | U151: 6.274463194 | V151: 6.49614649 | W151: 6.715327415 | X151: 6.936630451 | Y151: 7.163469508
B152: B2 | D152: Real Jun 14$ | K152: 7.483742093 | L152: 7.2324684 | M152: 7.332540957 | N152: 7.302217524 | O152: 7.341173592 | P152: 7.176762578 | Q152: 7.520736765 | R152: 8.250549537 | S152: 8.698791619 | T152: 8.935874514 | U152: 9.346919657 | V152: 9.822119623 | W152: 10.29204347 | X152: 10.76771045 | Y152: 11.25921444
B153: Average B3 price | D153: Real Jun 14$ | K153: =K147*K$89 -> 10.75761503 | L153: 10.72905758 | M153: 10.62924662 | N153: 10.36735007 | O153: 10.58684236 | P153: 10.4303115 | Q153: 12.31444814 | R153: 13.97297731 | S153: 14.67826792 | T153: =T147 -> 14.89815546 | U153: =U147*U$89 -> 14.65526226 | V153: 15.12146008 | W153: 15.57229395 | X153: 16.02049973 | Y153: 16.47550099
B154: All customer average | D154: Real Jun 14$ | K154: =K148 -> 5.58061017 | L154: 5.676877351 | M154: 5.703720835 | N154: 5.881155577 | O154: 6.103386307 | P154: 5.969624117 | Q154: 6.281834875 | R154: 6.909464347 | S154: 7.656191892 | T154: =T148 -> 7.639037231 | U154: =U148*U$89 -> 7.575523712 | V154: 7.679946494 | W154: 7.878136196 | X154: 8.085862564 | Y154: 8.28993851
B156: Annual change in average price | F156: =F$87 -> 2000 | G156: =G$87 -> 2001 | H156: 2002 | I156: 2003 | J156: 2004 | K156: 2005 | L156: 2006 | M156: 2007 | N156: 2008 | O156: 2009 | P156: 2010 | Q156: 2011 | R156: 2012 | S156: 2013 | T156: 2014 | U156: 2015 | V156: 2016 | W156: 2017 | X156: 2018 | Y156: 2019 | Z156: Average (2014 to 2019)
B157: A1 | D157: Nominal | L157: =(L143/K143)-1 -> -0.1416659346 | M157: =(M143/L143)-1 -> -0.07709758389 | N157: 0.07858823839 | O157: 0.04185015324 | P157: -0.005082315033 | Q157: -0.04128124429 | R157: -0.06281240927 | S157: 0.1485032719 | T157: -0.02233075935 | U157: 0.0537590049 | V157: 0.04305550775 | W157: 0.07461925877 | X157: 0.03546849777 | Y157: 0.03408027333 | Z157: =((Y143/T143)^(1/5))-1 -> 0.04809077064
B158: A2 | D158: Nominal | L158: =(L144/K144)-1 -> 0.1533421612 | M158: 0.03631394977 | N158: 0.08519942886 | O158: 0.02076899189 | P158: -0.01083449281 | Q158: -0.03627879427 | R158: 0.0109562897 | S158: 0.03956498428 | T158: 0.0571523404 | U158: 0.06970345891 | V158: 0.05805729012 | W158: 0.05213551196 | X158: 0.04838364359 | Y158: 0.04830163641 | Z158: =((Y144/T144)^(1/5))-1 -> 0.05528594202
B159: B1 | D159: Nominal | L159: =(L145/K145)-1 -> 0.08107445978 | M159: 0.0405489137 | N159: 0.1121565296 | O159: 0.06434442245 | P159: -0.01924813668 | Q159: -0.04674323612 | R159: -0.0174660281 | S159: 0.06810885095 | T159: 0.007865486398 | U159: 0.07395783955 | V159: 0.06121431381 | W159: 0.05958364858 | X159: 0.05877878675 | Y159: 0.05851916099 | Z159: 0.06239472809
B160: B2 | D160: Nominal | L160: =(L146/K146)-1 -> -0.001284923736 | M160: 0.04310436968 | N160: 0.03274841147 | O160: 0.02600729645 | P160: 0.004558354199 | Q160: 0.07929104385 | R160: 0.1212233113 | S160: 0.08327111268 | T160: 0.04001611017 | U160: 0.08546855371 | V160: 0.07711128189 | W160: 0.07403951147 | X160: 0.07237238518 | Y160: 0.07178725248 | Z160: 0.07614417126
B161: B3 | D161: Nominal | L161: =(L147/K147)-1 -> 0.03066956263 | M161: 0.0192969377 | N161: 0.01148523373 | O161: 0.04216960882 | P161: 0.01237850806 | Q161: 0.2159744213 | R161: 0.1596945877 | S161: 0.07931190538 | T161: 0.02758941977 | U161: 0.02081464265 | V161: 0.05760622368 | W161: 0.05555953074 | X161: 0.05450181398 | Y161: 0.0541112199 | Z161: 0.04842526359
B162: All customer average | C162: $/GJ | D162: Nominal | L162: =(L148/K148)-1 -> 0.01725029661 | M162: 0.00472856519 | N162: 0.031108595 | O162: 0.03778691565 | P162: -0.02191606154 | Q162: 0.05229990233 | R162: 0.09991180684 | S162: 0.1080731453 | T162: =(T148/S148)-1 -> -0.002240625817 | U162: =(U148/T148)-1 -> 0.02910534375 | V162: =(V148/U148)-1 -> 0.03912883858 | W162: =(W148/V148)-1 -> 0.05145128384 | X162: =(X148/W148)-1 -> 0.05202663693 | Y162: =(Y148/X148)-1 -> 0.05086957701 | Z162: 0.04447677737
B163: A1 | D163: Real Jun 14$ | L163: =(L149/K149)-1 -> -0.1694180753 | M163: =(M149/L149)-1 -> -0.1029927134 | N163: 0.04006722988 | O163: 0.02085847465 | P163: -0.03177773279 | Q163: -0.06913980533 | R163: -0.08302625927 | S163: 0.11781807 | T163: -0.03432715528 | U163: 0.01544288475 | V163: 0.01761512951 | W163: 0.04840903295 | X163: 0.01021316855 | Y163: 0.008858803247 | Z163: =((Y149/T149)^(1/5))-1 -> 0.0200058081
B164: A2 | D164: Real Jun 14$ | L164: =(L150/K150)-1 -> 0.1160516525 | M164: 0.007236678452 | N164: 0.0464423064 | O164: 0.0002020662825 | P164: -0.03737556937 | Q164: -0.06428271708 | R164: -0.01084864988 | S164: 0.01179034729 | T164: 0.04418065478 | U164: 0.03080757659 | V164: 0.03225101475 | W164: 0.0264736702 | X164: 0.02281331082 | Y164: 0.02273330381 | Z164: =((Y150/T150)^(1/5))-1 -> 0.02700817547
B165: B1 | D165: Real Jun 14$ | L165: =(L151/K151)-1 -> 0.04612055115 | M165: 0.01135281624 | N165: 0.07243665355 | O165: 0.04289951892 | P165: -0.04556346015 | Q165: -0.07444308196 | R165: -0.0386579373 | S165: 0.03957159158 | T165: -0.004501429644 | U165: 0.03490726213 | V165: 0.03533103786 | W165: 0.03374014495 | X165: 0.0329549139 | Y165: 0.03270162047 | Z165: 0.03392647232
B166: B2 | D166: Real Jun 14$ | L166: =(L152/K152)-1 -> -0.03357594237 | M166: 0.0138365703 | N166: -0.004135460371 | O166: 0.005334827059 | P166: -0.02239573993 | Q166: 0.04792887925 | R166: 0.09704006344 | S166: 0.05432875471 | T166: 0.02725469301 | U166: 0.04599943096 | V166: 0.05084027501 | W166: 0.04784342582 | X166: 0.04621696115 | Y166: =(Y152/X152)-1 -> 0.04564609998 | Z166: 0.04730748119
B167: B3 | D167: Real Jun 14$ | L167: =(L153/K153)-1 -> -0.002654626465 | M167: -0.00930286414 | N167: -0.02463923891 | O167: 0.02117149369 | P167: -0.01478541475 | Q167: 0.1806404952 | R167: 0.1346815672 | S167: 0.05047532775 | T167: 0.01498048311 | U167: -0.01630357537 | V167: 0.03181094993 | W167: 0.02981417633 | X167: 0.02878225754 | Y167: 0.02840119015 | Z167: 0.02033133788
B168: All customer average | D168: Real Jun 14$ | L168: =(L154/K154)-1 -> 0.01725029661 | M168: 0.00472856519 | N168: 0.031108595 | O168: 0.03778691565 | P168: -0.02191606154 | Q168: 0.05229990233 | R168: 0.09991180684 | S168: 0.1080731453 | T168: =(T154/S154)-1 -> -0.002240625817 | U168: =(U154/T154)-1 -> -0.008314335522 | V168: =(V154/U154)-1 -> 0.01378423276 | W168: =(W154/V154)-1 -> 0.02580613057 | X168: =(X154/W154)-1 -> 0.02636745066 | Y168: =(Y154/X154)-1 -> 0.02523861172 | Z168: 0.01648865652
B170: Tariffs - nominal $
S171: 2014 | U171: 2015 | V171: 2016 | W171: 2017 | X171: 2018 | Y171: 2019
B172: Reference tariff A1
B173: Standing charge | D173: Nominal $ | S173: =Tariff!T116 -> 46742.54 | T173: =Tariff!U116 -> 0 | U173: =Tariff!V116 -> 49349.45462 | V173: =Tariff!W116 -> 52101.7615 | W173: =Tariff!X116 -> 55007.56944 | X173: =Tariff!Y116 -> 58075.43945 | Y173: =Tariff!Z116 -> 61314.41004
B174: Demand charge
B175: First 10 km | D175: Nominal $ | S175: =Tariff!T118 -> 197.0028843 | T175: =Tariff!U118 -> 0 | U175: =Tariff!V118 -> 207.9900857 | V175: =Tariff!W118 -> 219.5900628 | W175: =Tariff!X118 -> 231.8369913 | X175: =Tariff!Y118 -> 244.7669528 | Y175: =Tariff!Z118 -> 258.4180412
B176: Distance > 10 km | D176: Nominal $ | S176: =Tariff!T119 -> 103.6909149 | T176: =Tariff!U119 -> 0 | U176: =Tariff!V119 -> 109.4739418 | V176: =Tariff!W119 -> 115.5794983 | W176: =Tariff!X119 -> 122.0255725 | X176: =Tariff!Y119 -> 128.8311558 | Y176: =Tariff!Z119 -> 136.0162986
B177: Usage charge
B178: First 10 km | D178: Nominal $ | S178: =Tariff!T121 -> 0.0417958996 | T178: =Tariff!U121 -> 0 | U178: =Tariff!V121 -> 0.04412693129 | V178: =Tariff!W121 -> 0.04658796875 | W178: =Tariff!X121 -> 0.04918626266 | X178: =Tariff!Y121 -> 0.05192946804 | Y178: =Tariff!Z121 -> 0.05482566686
B179: Distance > 10 km | D179: Nominal $ | S179: =Tariff!T122 -> 0.02088143965 | T179: =Tariff!U122 -> 0 | U179: =Tariff!V122 -> 0.02204603469 | V179: =Tariff!W122 -> 0.02327558126 | W179: =Tariff!X122 -> 0.02457370184 | X179: =Tariff!Y122 -> 0.02594422091 | Y179: =Tariff!Z122 -> 0.02739117627
B180: Carbon tax | D180: Nominal $ | S180: =Tariff!T123 -> 0.02098 | T180: =Tariff!U123 -> 0 | U180: =Tariff!V123 -> 0 | V180: =Tariff!W123 -> 0 | W180: =Tariff!X123 -> 0 | X180: =Tariff!Y123 -> 0 | Y180: =Tariff!Z123 -> 0
B182: Reference tariff A2
B183: Standing charge | D183: Nominal $ | S183: =Tariff!T126 -> 25879.18 | T183: =Tariff!U126 -> 0 | U183: =Tariff!V126 -> 27322.50791 | V183: =Tariff!W126 -> 28846.33279 | W183: =Tariff!X126 -> 30455.14409 | X183: =Tariff!Y126 -> 32153.68166 | Y183: =Tariff!Z126 -> 33946.94969
B184: First 10 TJ | D184: Nominal $ | S184: =Tariff!T127 -> 2.52 | T184: =Tariff!U127 -> 0 | U184: =Tariff!V127 -> 2.660544883 | V184: =Tariff!W127 -> 2.808928205 | W184: =Tariff!X127 -> 2.965587129 | X184: =Tariff!Y127 -> 3.130983199 | Y184: =Tariff!Z127 -> 3.305603703
B185: Volume > 10 TJ | D185: Nominal $ | S185: =Tariff!T128 -> 1.36 | T185: =Tariff!U128 -> 0 | U185: =Tariff!V128 -> 1.43584962 | V185: =Tariff!W128 -> 1.515929508 | W185: =Tariff!X128 -> 1.600475593 | X185: =Tariff!Y128 -> 1.689736965 | Y185: =Tariff!Z128 -> 1.783976601
B187: Reference tariff B1
B188: Standing charge | D188: Nominal $ | S188: =Tariff!T131 -> 1303.72 | T188: =Tariff!U131 -> 0 | U188: =Tariff!V131 -> 1376.430784 | V188: =Tariff!W131 -> 1453.196778 | W188: =Tariff!X131 -> 1534.244147 | X188: =Tariff!Y131 -> 1619.811673 | Y188: =Tariff!Z131 -> 1710.151452
B189: First 5 TJ | D189: Nominal $ | S189: =Tariff!T132 -> 5.1 | T189: =Tariff!U132 -> 0 | U189: =Tariff!V132 -> 5.384436074 | V189: =Tariff!W132 -> 5.684735653 | W189: =Tariff!X132 -> 6.001783475 | X189: =Tariff!Y132 -> 6.336513617 | Y189: =Tariff!Z132 -> 6.689912255
B190: Volume > 5 TJ | D190: Nominal $ | S190: =Tariff!T133 -> 4.39 | T190: =Tariff!U133 -> 0 | U190: =Tariff!V133 -> 4.634838111 | V190: =Tariff!W133 -> 4.893331278 | W190: =Tariff!X133 -> 5.166241069 | X190: =Tariff!Y133 -> 5.454371525 | Y190: =Tariff!Z133 -> 5.75857153
B192: Reference tariff B2
B193: Standing charge | D193: Nominal $ | S193: =Tariff!T136 -> 326.74 | T193: =Tariff!U136 -> 0 | U193: =Tariff!V136 -> 351.329175 | V193: =Tariff!W136 -> 370.9234281 | W193: =Tariff!X136 -> 391.6104876 | X193: =Tariff!Y136 -> 413.4513013 | Y193: =Tariff!Z136 -> 436.5102159
B194: First 100 GJ | D194: Nominal $ | S194: =Tariff!T137 -> 8.42 | T194: =Tariff!U137 -> 0 | U194: =Tariff!V137 -> 8.817499527 | V194: =Tariff!W137 -> 9.309267163 | W194: =Tariff!X137 -> 9.828461556 | X194: =Tariff!Y137 -> 10.37661234 | Y194: =Tariff!Z137 -> 10.95533448
B195: Volume > 100 GJ | D195: Nominal $ | S195: =Tariff!T138 -> 5.06 | T195: =Tariff!U138 -> 0 | U195: =Tariff!V138 -> 5.298877388 | V195: =Tariff!W138 -> 5.594405207 | W195: =Tariff!X138 -> 5.906415139 | X195: =Tariff!Y138 -> 6.23582642 | Y195: =Tariff!Z138 -> 6.583609554
B197: Reference tariff B3
B198: Standing charge | D198: Nominal $ | S198: =Tariff!T141 -> 71.05 | T198: =Tariff!U141 -> 0 | U198: =Tariff!V141 -> 135.4555193 | V198: =Tariff!W141 -> 143.0101146 | W198: =Tariff!X141 -> 150.9860431 | X198: =Tariff!Y141 -> 159.4068034 | Y198: =Tariff!Z141 -> 168.2972044
B199: First 2 GJ | D199: Nominal $ | S199: =Tariff!T142 -> 14.15 | T199: =Tariff!U142 -> 0 | U199: =Tariff!V142 -> 0 | V199: =Tariff!W142 -> 0 | W199: =Tariff!X142 -> 0 | X199: =Tariff!Y142 -> 0 | Y199: =Tariff!Z142 -> 0
B200: Volume > 2 <10 GJ | D200: Nominal $ | S200: =Tariff!T143 -> 14.15 | T200: =Tariff!U143 -> 0 | U200: =Tariff!V143 -> 10.27488178 | V200: =Tariff!W143 -> 10.84793021 | W200: =Tariff!X143 -> 11.45293858 | X200: =Tariff!Y143 -> 12.09168934 | Y200: =Tariff!Z143 -> 12.76606437
B201: Volume > 10 GJ | D201: Nominal $ | S201: =Tariff!T144 -> 6.22 | T201: =Tariff!U144 -> 0 | U201: =Tariff!V144 -> 4.516591141 | V201: =Tariff!W144 -> 4.768489465 | W201: =Tariff!X144 -> 5.034436606 | X201: =Tariff!Y144 -> 5.315216093 | Y201: =Tariff!Z144 -> 5.611655151

Sheet Tariff
T1: =IF(Inputs!T1="","",Inputs!T1) -> Jul - Dec | U1: =IF(Inputs!U1="","",Inputs!U1) -> Jan - Jun | V1: =IF(Inputs!V1="","",Inputs!V1) -> Jul - Dec | W1: =IF(Inputs!W1="","",Inputs!W1) ->  | X1: =IF(Inputs!X1="","",Inputs!X1) ->  | Y1: =IF(Inputs!Y1="","",Inputs!Y1) ->  | Z1: =IF(Inputs!Z1="","",Inputs!Z1) -> 
B2: =Inputs!B2 -> Mid West and South West Gas Distribution Systems | S2: =T2 -> 2014 | T2: =Inputs!T2 -> 2014 | U2: =Inputs!U2 -> 2015 | V2: =Inputs!V2 -> 2015 | W2: =Inputs!W2 -> 2016 | X2: =Inputs!X2 -> 2017 | Y2: =Inputs!Y2 -> 2018 | Z2: =Inputs!Z2 -> 2019
B3: =Inputs!B3 -> Access Arrangement Revisions 2014
B5: WACC | T5: =(1+Inputs!$T$80)^(T9/Inputs!$C$37)-1 -> 0.04214719859 | V5: =Inputs!$T$80 -> 0.08534 | W5: =Inputs!$T$80 -> 0.08534 | X5: =Inputs!$T$80 -> 0.08534 | Y5: =Inputs!$T$80 -> 0.08534 | Z5: =Inputs!$T$80 -> 0.08534
B6: Inflators | T6: =1/Inputs!T97 -> 1.012422837 | V6: =1/Inputs!V97 -> 1.037733407 | W6: =1/Inputs!W97 -> 1.063676743 | X6: =1/Inputs!X97 -> 1.090268661 | Y6: =1/Inputs!Y97 -> 1.117525378 | Z6: =1/Inputs!Z97 -> 1.145463512
B7: Annaul Inflation | T7: =T6/1-1 -> 0.01242283657 | V7: =V6/T6-1 -> 0.025 | W7: =W6/V6-1 -> 0.025 | X7: 0.025 | Y7: 0.025 | Z7: 0.025
B8: PV factors | T8: =1/(1+T5) -> 0.959557346 | V8: =(1/(1+V5))*T8 -> 0.8841076031 | W8: =(1/(1+W5))*V8 -> 0.8145904538 | X8: =(1/(1+X5))*W8 -> 0.7505394197 | Y8: =(1/(1+Y5))*X8 -> 0.6915247017 | Z8: =(1/(1+Z5))*Y8 -> 0.6371502955
B9: Days | S9: =Inputs!$C$37-T9 -> 181 | T9: =Inputs!T5 -> 184 | U9: =Inputs!U5 -> 181 | V9: =Inputs!V5 -> 184 | W9: =Inputs!W5 -> 366 | X9: =Inputs!X5 -> 365 | Y9: =Inputs!Y5 -> 365 | Z9: =Inputs!Z5 -> 365
B11: Delivery points (excluding customers receiving
B12: prudent discounts)
B14: Tariff class A1 | S14: =Inputs!S114 -> 64 | T14: =Inputs!T114 -> 64.90673853 | V14: =Inputs!V114 -> 64.85061213 | W14: =Inputs!W114 -> 66.73853943 | X14: =Inputs!X114 -> 67.62664655 | Y14: =Inputs!Y114 -> 67.5149332 | Z14: =Inputs!Z114 -> 67.40339909
B15: Tariff class A2 | S15: =Inputs!S115 -> 110.25 | T15: =Inputs!T115 -> 112.3797774 | V15: =Inputs!V115 -> 118.3521576 | W15: =Inputs!W115 -> 124.2912292 | X15: =Inputs!X115 -> 130.3058406 | Y15: =Inputs!Y115 -> 136.3979333 | Z15: =Inputs!Z115 -> 142.5694988
B16: Tariff class B1 | S16: =Inputs!S116 -> 1384.333333 | T16: =Inputs!T116 -> 1404.996907 | V16: =Inputs!V116 -> 1467.021927 | W16: =Inputs!W116 -> 1526.699101 | X16: =Inputs!X116 -> 1588.085267 | Y16: =Inputs!Y116 -> 1651.239218 | Z16: =Inputs!Z116 -> 1716.221768
B17: Tariff class B2 | S17: =Inputs!S117 -> 9895.166667 | T17: =Inputs!T117 -> 9926.572442 | V17: =Inputs!V117 -> 10340.8386 | W17: =Inputs!W117 -> 10786.65188 | X17: =Inputs!X117 -> 11264.80993 | Y17: =Inputs!Y117 -> 11776.00786 | Z17: =Inputs!Z117 -> 12320.84063
B18: Tariff class B3 | S18: =Inputs!S118 -> 658384.6667 | T18: =Inputs!T118 -> 664761.7136 | V18: =Inputs!V118 -> 679548.2144 | W18: =Inputs!W118 -> 694282.9589 | X18: =Inputs!X118 -> 708947.1965 | Y18: =Inputs!Y118 -> 723540.7669 | Z18: =Inputs!Z118 -> 738064.0108
B20: Gas volumes
B21: (Excluding volumes delivered to customers receiving prudent discounts)
B23: Reference tariff A1
B24: Demand
B25: First 10 km | C25: GJ km | T25: =Inputs!T210 -> 7224.767108 | V25: =Inputs!U210+Inputs!V210 -> 14331.7391 | W25: =Inputs!W210 -> 14932.32802 | X25: =Inputs!X210 -> 16232.32802 | Y25: =Inputs!Y210 -> 16232.32802 | Z25: =Inputs!Z210 -> 16232.32802
B26: Distance > 10 km | C26: GJ km | T26: =Inputs!T211 -> 3748.630488 | V26: =Inputs!U211+Inputs!V211 -> 7436.142 | W26: =Inputs!W211 -> 6481.142 | X26: =Inputs!X211 -> 6936.142 | Y26: =Inputs!Y211 -> 6936.142 | Z26: =Inputs!Z211 -> 6936.142
B27: Usage
B28: First 10 km | C28: GJ km | T28: =Inputs!T213*1000 -> 16686263.6 | V28: =(Inputs!U213+Inputs!V213)*1000 -> 32637224.2 | W28: =Inputs!W213*1000 -> 38721689.35 | X28: =Inputs!X213*1000 -> 40867270.32 | Y28: =Inputs!Y213*1000 -> 41867987.16 | Z28: =Inputs!Z213*1000 -> 42973888.18
B29: Distance > 10 km | C29: GJ km | T29: =Inputs!T214*1000 -> 4782166.476 | V29: =(Inputs!U214+Inputs!V214)*1000 -> 7885027.736 | W29: =Inputs!W214*1000 -> 12509404.22 | X29: =Inputs!X214*1000 -> 13239483.96 | Y29: =Inputs!Y214*1000 -> 13563679.21 | Z29: =Inputs!Z214*1000 -> 13921950.23
B30: Total Volume | C30: GJ | T30: =Inputs!T156*1000 -> 4690310.733 | V30: =(Inputs!U156+Inputs!V156)*1000 -> 9321720.633 | W30: =Inputs!W156*1000 -> 9965778.991 | X30: =Inputs!X156*1000 -> 10302222.19 | Y30: =Inputs!Y156*1000 -> 10554499.64 | Z30: =Inputs!Z156*1000 -> 10833279.66
B32: Reference tariff A2
B33: Usage
B34: First 10 TJ | C34: GJ | T34: =Inputs!T218 -> 525908.0265 | V34: =Inputs!U218+Inputs!V218 -> 1073247.673 | W34: =Inputs!W218 -> 1135823.575 | X34: =Inputs!X218 -> 1199616.777 | Y34: =Inputs!Y218 -> 1263916.999 | Z34: =Inputs!Z218 -> 1337583.461
B35: Volume > 10 TJ | C35: GJ | T35: =Inputs!T219 -> 546099.6756 | V35: =Inputs!U219+Inputs!V219 -> 1091990.506 | W35: =Inputs!W219 -> 1134877.011 | X35: =Inputs!X219 -> 1199988.794 | Y35: =Inputs!Y219 -> 1282705.225 | Z35: =Inputs!Z219 -> 1366403.804
B37: Reference tariff B1
B38: Usage
B39: First 5 TJ | C39: GJ | T39: =Inputs!T223 -> 792623.4804 | V39: =Inputs!U223+Inputs!V223 -> 1479546.31 | W39: =Inputs!W223 -> 1506792.859 | X39: =Inputs!X223 -> 1545925.088 | Y39: =Inputs!Y223 -> 1591986.33 | Z39: =Inputs!Z223 -> 1640369.475
B40: Volume > 5 TJ | C40: GJ | T40: =Inputs!T224 -> 109153.0464 | V40: =Inputs!U224+Inputs!V224 -> 187661.704 | W40: =Inputs!W224 -> 184816.2108 | X40: =Inputs!X224 -> 183879.7911 | Y40: =Inputs!Y224 -> 183454.0054 | Z40: =Inputs!Z224 -> 183449.6406
B42: Reference tariff B2
B43: Usage
B44: First 100 GJ | C44: GJ | T44: =Inputs!T228 -> 230423.0237 | V44: =Inputs!U228+Inputs!V228 -> 438884.1095 | W44: =Inputs!W228 -> 449695.5109 | X44: =Inputs!X228 -> 463628.6943 | Y44: =Inputs!Y228 -> 479011.0144 | Z44: =Inputs!Z228 -> 494619.8282
B45: Volume > 100 GJ | C45: GJ | T45: =Inputs!T229 -> 407650.9634 | V45: =Inputs!U229+Inputs!V229 -> 737580.1681 | W45: =Inputs!W229 -> 718941.9299 | X45: =Inputs!X229 -> 708557.422 | Y45: =Inputs!Y229 -> 702955.2559 | Z45: =Inputs!Z229 -> 699745.0111
B47: Reference tariff B3
B48: Usage
B49: First 2 GJ | C49: GJ | T49: =Inputs!T233 -> 0 | V49: =Inputs!U233+Inputs!V233 -> 1312731.576 | W49: =Inputs!W233 -> 1355071.803 | X49: =Inputs!X233 -> 1389050.048 | Y49: =Inputs!Y233 -> 1425978.17 | Z49: =Inputs!Z233 -> 1463420.781
B50: Volume 2 to 10 GJ | C50: GJ | T50: =Inputs!T234 -> 2635663.405 | V50: =Inputs!U234+Inputs!V234 -> 3777608.462 | W50: =Inputs!W234 -> 3855996.808 | X50: =Inputs!X234 -> 3954200.268 | Y50: =Inputs!Y234 -> 4062474.285 | Z50: =Inputs!Z234 -> 4172528.38
B51: Volume > 10 GJ | C51: GJ | T51: =Inputs!T235 -> 3007971.516 | V51: =Inputs!U235+Inputs!V235 -> 4999020.31 | W51: =Inputs!W235 -> 5063907.024 | X51: =Inputs!X235 -> 5158494.667 | Y51: =Inputs!Y235 -> 5258776.958 | Z51: =Inputs!Z235 -> 5363231.98
B55: RAB | T55: =T293 -> 1020.049174 | V55: =V293 -> 1058.27785 | W55: =W293 -> 1150.882726 | X55: =X293 -> 1250.363971 | Y55: =Y293 -> 1351.463393 | Z55: =Z293 -> 1452.357274
B56: - Equity | S56: =Inputs!$T$57 -> 0.4 | T56: =T$55*$S56 -> 408.0196694 | V56: =V$55*$S56*(U$9+V$9)/365 -> 423.31114 | W56: =W$55*$S56 -> 460.3530905 | X56: 500.1455885 | Y56: 540.5853572 | Z56: 580.9429094
B57: - Debt | S57: =Inputs!$T$56 -> 0.6 | T57: =T$55*$S57 -> 612.0295041 | V57: =V$55*$S57*(U$9+V$9)/365 -> 634.9667101 | W57: 690.5296357 | X57: 750.2183827 | Y57: 810.8780359 | Z57: 871.4143642
B59: Revenue Building Blocks
B60: Nominal Vanilla WACC | S60: =Inputs!$T$80 -> 0.08534
B61: Return on Asset
B62: - Return on Equity | S62: =Inputs!$T$73 -> 0.107 | T62: =T56*(($S62+1)^(T$9/365)-1) -> 21.45379809 | V62: =$S62*V56 -> 45.29429198 | W62: 49.25778068 | X62: 53.51557797 | Y62: 57.84263323 | Z62: 62.16089131
B63: - Return on Debt | S63: =Inputs!$T$69 -> 0.0709 | T63: =T57*(($S63+1)^(T$9/365)-1) -> 21.50325096 | V63: =$S63*V57 -> 45.01913974 | W63: 48.95855117 | X63: 53.19048334 | Y63: 57.49125274 | Z63: 61.78327842
T64: =T62+T63 -> 42.95704904 | V64: 90.31343173 | W64: 98.21633186 | X64: 106.7060613 | Y64: 115.333886 | Z64: 123.9441697
B65: Return on working capital | T65: =Inputs!T281 -> 0.09690477712 | V65: =Inputs!V281 -> 0.1876409939 | W65: =Inputs!W281 -> 0.1800297745 | X65: =Inputs!X281 -> 0.2122884561 | Y65: =Inputs!Y281 -> 0.2542232412 | Z65: =Inputs!Z281 -> 0.3006022005
B66: Return of Asset (regulatory depreciation) | T66: =RAB_Summary!T63 -> 4.831635532 | V66: =RAB_Summary!U63+RAB_Summary!V63 -> 14.96091167 | W66: =RAB_Summary!W63 -> 19.72337001 | X66: =RAB_Summary!X63 -> 24.01463406 | Y66: =RAB_Summary!Y63 -> 28.09315781 | Z66: =RAB_Summary!Z63 -> 32.23296939
B67: Opex | T67: =Inputs!T259 -> 39.75753202 | V67: =Inputs!U259+Inputs!V259 -> 81.75144183 | W67: =Inputs!W259 -> 85.6481502 | X67: =Inputs!X259 -> 90.16395007 | Y67: =Inputs!Y259 -> 95.53332416 | Z67: =Inputs!Z259 -> 99.71271946
B69: Tax Payable | T69: =T89 -> 2.704895664 | V69: 7.480274042 | W69: 8.310182488 | X69: 11.12962662 | Y69: 14.05665387 | Z69: 15.19720975
B70: Less Value of Imputation Credits | T70: =-T69*$S$88 -> -0.6762239159 | V70: -1.870068511 | W70: -2.077545622 | X70: -2.782406654 | Y70: -3.514163468 | Z70: -3.799302437
T71: =T69+T70 -> 2.028671748 | V71: 5.610205532 | W71: 6.232636866 | X71: 8.347219962 | Y71: 10.5424904 | Z71: 11.39790731
B72: Annual Revenue Requirement | T72: =SUM(T64:T70) -> 89.67179313 | V72: 192.8236318 | W72: 210.0005187 | X72: 229.4441538 | Y72: 249.7570816 | Z72: 267.5883681
B74: Additional Taxable Income
B75: - Capital contributions | T75: =Inputs!T286 -> 0.6441493034 | V75: =Inputs!V286 -> 1.3306275 | W75: =Inputs!W286 -> 1.423253203 | X75: =Inputs!X286 -> 1.533414479 | Y75: =Inputs!Y286 -> 1.665923624 | Z75: =Inputs!Z286 -> 1.801639994
B77: Tax Expenses
B78: - Opex | T78: =T67 -> 39.75753202 | V78: 81.75144183 | W78: 85.6481502 | X78: 90.16395007 | Y78: 95.53332416 | Z78: 99.71271946
B79: - Tax Depreciation | T79: =Tax_Depn!T13 -> 25.00677596 | V79: =Tax_Depn!U13+Tax_Depn!V13 -> 53.84611615 | W79: =Tax_Depn!W13 -> 60.30647365 | X79: =Tax_Depn!X13 -> 62.38455526 | Y79: =Tax_Depn!Y13 -> 64.01470168 | Z79: =Tax_Depn!Z13 -> 70.27730902
B80: - Interest | C80: =Inputs!$T$69 -> 0.0709 | T80: =RAB_Summary!T80 -> 16.53531556 | V80: =RAB_Summary!U80+RAB_Summary!V80 -> 33.62245447 | W80: =RAB_Summary!W80 -> 37.76853977 | X80: =RAB_Summary!X80 -> 41.33030761 | Y80: =RAB_Summary!Y80 -> 45.01946645 | Z80: =RAB_Summary!Z80 -> 48.74261378
B81: Total Tax Expenses | T81: =T78+T79+T80 -> 81.29962355 | V81: 169.2200124 | W81: 183.7231636 | X81: 193.8788129 | Y81: 204.5674923 | Z81: 218.7326423
B83: Tax Calculation
B84: Taxable Income | T84: =S86+T85 -> 9.016318879 | V84: =T86+V85 -> 24.93424681 | W84: 27.70060829 | X84: 37.09875539 | Y84: 46.85551291 | Z84: 50.65736582
B85: - Pre-tax Income | T85: =T72-T81+T75 -> 9.016318879 | V85: 24.93424681 | W85: 27.70060829 | X85: 37.09875539 | Y85: 46.85551291 | Z85: 50.65736582
B86: - Tax Loss Carried Forward | S86: =Inputs!$T$338 -> 0 | T86: =IF(T84<0,T84,0) -> 0 | V86: 0 | W86: 0 | X86: 0 | Y86: 0 | Z86: 0
B87: Tax Payable | S87: =Inputs!$T$64 -> 0.3 | T87: =IF(T$84>0,$S$87*T84,0) -> 2.704895664 | V87: 7.480274042 | W87: 8.310182488 | X87: 11.12962662 | Y87: 14.05665387 | Z87: 15.19720975
B88: Value of Imputation Credits | S88: =Inputs!$T$65 -> 0.25 | T88: =T87*$S$88 -> 0.6762239159 | V88: 1.870068511 | W88: 2.077545622 | X88: 2.782406654 | Y88: 3.514163468 | Z88: 3.799302437
B89: Intermediate tax calculation | T89: =IF((SUM(T64:T67)-T81+T75+S86)>0,(SUM(T64:T67)-T81+T75+S86)*$S$87/(1-(1-$S$88)*$S$87),0) -> 2.704895664 | V89: =IF((SUM(V64:V67)-V81+V75+T86)>0,(SUM(V64:V67)-V81+V75+T86)*$S$87/(1-(1-$S$88)*$S$87),0) -> 7.480274042 | W89: =IF((SUM(W64:W67)-W81+W75+V86)>0,(SUM(W64:W67)-W81+W75+V86)*$S$87/(1-(1-$S$88)*$S$87),0) -> 8.310182488 | X89: 11.12962662 | Y89: 14.05665387 | Z89: 15.19720975
B91: Total Revenue
B92: Return On Asset Base | C92: $m | T92: =T64 -> 42.95704904 | V92: =V64 -> 90.31343173 | W92: 98.21633186 | X92: 106.7060613 | Y92: 115.333886 | Z92: 123.9441697
B93: Return on Working Capital | C93: $m | T93: =T65 -> 0.09690477712 | V93: 0.1876409939 | W93: 0.1800297745 | X93: 0.2122884561 | Y93: 0.2542232412 | Z93: 0.3006022005
B94: Depreciation (Regulatory) | C94: $m | T94: =T66 -> 4.831635532 | V94: 14.96091167 | W94: 19.72337001 | X94: 24.01463406 | Y94: 28.09315781 | Z94: 32.23296939
B95: OPEX (Including UAFG) | C95: $m | T95: =T67 -> 39.75753202 | V95: 81.75144183 | W95: 85.6481502 | X95: 90.16395007 | Y95: 95.53332416 | Z95: 99.71271946
B96: Tax expense net of imputation credits | C96: $m | T96: =T71 -> 2.028671748 | V96: =V71 -> 5.610205532 | W96: =W71 -> 6.232636866 | X96: =X71 -> 8.347219962 | Y96: =Y71 -> 10.5424904 | Z96: =Z71 -> 11.39790731
B97: Total Revenue | C97: $m | T97: =SUM(T92:T96) -> 89.67179313 | V97: 192.8236318 | W97: 210.0005187 | X97: 229.4441538 | Y97: 249.7570816 | Z97: =SUM(Z92:Z96) -> 267.5883681
B99: PV(Total revenue) | C99: $m | T99: =SUMPRODUCT(T8:Z8,T97:Z97) -> 943.0005658
B101: Forecast revenue from Ancillary Services
B102: $, nominal | C102: $m | T102: =Inputs!T311/1000000 -> 0.4315988269 | V102: =(Inputs!U311+Inputs!V311)/1000000 -> 0.6504880324 | W102: =Inputs!W311/1000000 -> 0.7180582067 | X102: =Inputs!X311/1000000 -> 0.7587521268 | Y102: =Inputs!Y311/1000000 -> 0.8017668745 | Z102: =Inputs!Z311/1000000 -> 0.8472084653
B104: Forecast revenue from customers receiving prudent discounts
B105: $, nominal | C105: $m | T105: =Inputs!T241 -> 0.7070806705 | V105: =Inputs!U241+Inputs!V241 -> 1.411089454 | W105: =Inputs!W241 -> 0.8867131798 | X105: =Inputs!X241 -> 0.6022652962 | Y105: =Inputs!Y241 -> 0.6615126664 | Z105: =Inputs!Z241 -> 0.7244488699
B107: (PV) Revenue from Ancillary Services | C107: $m | T107: =SUMPRODUCT(T$8:Z$8,T102:Z102) -> 3.237882704
B108: (PV) Revenue from customers receiving prudent discounts | C108: $m | T108: =SUMPRODUCT(T$8:Z$8,T105:Z105) -> 4.019406465
B110: Nett Required Reference Tariff Revenue | C110: $m | T110: =T99-T108-T107 -> 935.7432766
B113: Reference tariff
B115: Reference tariff A1 | T115: 2014-01-01 | V115: 2015-01-01
B116: Standing charge | C116: $/year | T116: =Inputs!T175 -> 46742.54 | V116: =T116*(1-V$212)^V$209 -> 49349.45462 | W116: =V116*(1-W$212)^W$209 -> 52101.7615 | X116: =W116*(1-X$212)^X$209 -> 55007.56944 | Y116: =X116*(1-Y$212)^Y$209 -> 58075.43945 | Z116: =Y116*(1-Z$212)^Z$209 -> 61314.41004
B117: Demand charge
B118: First 10 km | C118: $/GJ km | T118: =Inputs!T177 -> 197.0028843 | V118: =T118*(1-V$212)^V$209 -> 207.9900857 | W118: =V118*(1-W$212)^W$209 -> 219.5900628 | X118: 231.8369913 | Y118: 244.7669528 | Z118: 258.4180412
B119: Distance > 10 km | C119: $/GJ km | T119: =Inputs!T178 -> 103.6909149 | V119: =T119*(1-V$212)^V$209 -> 109.4739418 | W119: 115.5794983 | X119: 122.0255725 | Y119: 128.8311558 | Z119: 136.0162986
B120: Usage charge
B121: First 10 km | C121: $/GJ km | T121: =Inputs!T180 -> 0.0417958996 | V121: =T121*(1-V$212)^V$209 -> 0.04412693129 | W121: =V121*(1-W$212)^W$209 -> 0.04658796875 | X121: 0.04918626266 | Y121: 0.05192946804 | Z121: 0.05482566686
B122: Distance > 10 km | C122: $/GJ km | T122: =Inputs!T181 -> 0.02088143965 | V122: =T122*(1-V$212)^V$209 -> 0.02204603469 | W122: 0.02327558126 | X122: 0.02457370184 | Y122: 0.02594422091 | Z122: 0.02739117627
B123: Carbon tax | C123: $/GJ | T123: =Inputs!T182 -> 0.02098
B125: Reference tariff A2
B126: Standing charge | C126: $/Year | T126: =Inputs!T185 -> 25879.18 | V126: =T126*(1-V$213)^V$209 -> 27322.50791 | W126: =V126*(1-W$213)^W$209 -> 28846.33279 | X126: 30455.14409 | Y126: 32153.68166 | Z126: 33946.94969
B127: First 10 TJ | C127: $/GJ | T127: =Inputs!T186 -> 2.52 | V127: =T127*(1-V$213)^V$209 -> 2.660544883 | W127: 2.808928205 | X127: 2.965587129 | Y127: 3.130983199 | Z127: 3.305603703
B128: Volume > 10 TJ | C128: $/GJ | T128: =Inputs!T187 -> 1.36 | V128: =T128*(1-V$213)^V$209 -> 1.43584962 | W128: 1.515929508 | X128: 1.600475593 | Y128: 1.689736965 | Z128: 1.783976601
B130: Reference tariff B1
B131: Standing charge | C131: $/Year | T131: =Inputs!T190 -> 1303.72 | V131: =T131*(1-V$214)^V$209 -> 1376.430784 | W131: =V131*(1-W$214)^W$209 -> 1453.196778 | X131: 1534.244147 | Y131: 1619.811673 | Z131: 1710.151452
B132: First 5 TJ | C132: $/GJ | T132: =Inputs!T191 -> 5.1 | V132: =T132*(1-V$214)^V$209 -> 5.384436074 | W132: 5.684735653 | X132: 6.001783475 | Y132: 6.336513617 | Z132: 6.689912255
B133: Volume > 5 TJ | C133: $/GJ | T133: =Inputs!T192 -> 4.39 | V133: =T133*(1-V$214)^V$209 -> 4.634838111 | W133: 4.893331278 | X133: 5.166241069 | Y133: 5.454371525 | Z133: 5.75857153
B135: Reference tariff B2
B136: Standing charge | C136: $/Year | T136: =Inputs!T195 -> 326.74 | V136: =T259*(1-V$215)^V$209 -> 351.329175 | W136: =V136*(1-W$215)^W$209 -> 370.9234281 | X136: 391.6104876 | Y136: 413.4513013 | Z136: 436.5102159
B137: First 100 GJ | C137: $/GJ | T137: =Inputs!T196 -> 8.42 | V137: =T272*(1-V$215)^V$209 -> 8.817499527 | W137: 9.309267163 | X137: 9.828461556 | Y137: 10.37661234 | Z137: 10.95533448
B138: Volume > 100 GJ | C138: $/GJ | T138: =Inputs!T197 -> 5.06 | V138: =T273*(1-V$215)^V$209 -> 5.298877388 | W138: 5.594405207 | X138: 5.906415139 | Y138: 6.23582642 | Z138: 6.583609554
B140: Reference tariff B3
B141: Standing charge | C141: $/Year | T141: =Inputs!T200 -> 71.05 | V141: =U259*(1-V$216)^V$209 -> 135.4555193 | W141: =V141*(1-W$216)^W$209 -> 143.0101146 | X141: 150.9860431 | Y141: 159.4068034 | Z141: 168.2972044
B142: First 2 GJ | C142: $/GJ | T142: =Inputs!T201 -> 14.15 | V142: =U272*(1-V$216)^V$209 -> 0 | W142: 0 | X142: 0 | Y142: 0 | Z142: 0
B143: Volume > 2 <10 GJ | C143: $/GJ | T143: =Inputs!T202 -> 14.15 | V143: =U273*(1-V$216)^V$209 -> 10.27488178 | W143: 10.84793021 | X143: 11.45293858 | Y143: 12.09168934 | Z143: 12.76606437
B144: Volume > 10 GJ | C144: $/GJ | T144: =Inputs!T203 -> 6.22 | V144: =U274*(1-V$216)^V$209 -> 4.516591141 | W144: 4.768489465 | X144: 5.034436606 | Y144: 5.315216093 | Z144: 5.611655151
B146: Expected revenue at reference tariffs
V147: Full year
B148: Tariff class A1 | C148: $m | T148: =(T14*T116/SUMIF($S$2:$Z$2,T$2,$S$9:$Z$9)*T$9+SUMPRODUCT(T118:T123,T25:T30))/1000000 -> 4.237098539 | V148: =(V14*V116/SUMIF($S$2:$Z$2,V$2,$S$9:$Z$9)*(U$9+V$9)+SUMPRODUCT(V118:V123,V25:V30))/1000000 -> 8.609279904 | W148: =(W14*W116/SUMIF($S$2:$Z$2,W$2,$S$9:$Z$9)*W$9+SUMPRODUCT(W118:W123,W25:W30))/1000000 -> 9.600401961 | X148: =(X14*X116/SUMIF($S$2:$Z$2,X$2,$S$9:$Z$9)*X$9+SUMPRODUCT(X118:X123,X25:X30))/1000000 -> 10.66506967 | Y148: 11.31376946 | Z148: 12.00836509
B149: Tariff class A2 | C149: $m | T149: =(T15*T126/SUMIF($S$2:$Z$2,T$2,$S$9:$Z$9)*T$9+SUMPRODUCT(T127:T128,T34:T35))/1000000 -> 3.534083933 | V149: =(V15*V126/SUMIF($S$2:$Z$2,V$2,$S$9:$Z$9)*(U$9+V$9)+SUMPRODUCT(V127:V128,V34:V35))/1000000 -> 7.657035521 | W149: =(W15*W126/SUMIF($S$2:$Z$2,W$2,$S$9:$Z$9)*W$9+SUMPRODUCT(W127:W128,W34:W35))/1000000 -> 8.496186583 | X149: =(X15*X126/SUMIF($S$2:$Z$2,X$2,$S$9:$Z$9)*X$9+SUMPRODUCT(X127:X128,X34:X35))/1000000 -> 9.446604001 | Y149: 10.51043305 | Z149: 11.69895286
B150: Tariff class B1 | C150: $m | T150: =(T16*T131/SUMIF($S$2:$Z$2,T$2,$S$9:$Z$9)*T$9+SUMPRODUCT(T132:T133,T39:T40))/1000000 -> 5.444950534 | V150: =(V16*V131/SUMIF($S$2:$Z$2,V$2,$S$9:$Z$9)*(U$9+V$9)+SUMPRODUCT(V132:V133,V39:V40))/1000000 -> 10.85555828 | W150: =(W16*W131/SUMIF($S$2:$Z$2,W$2,$S$9:$Z$9)*W$9+SUMPRODUCT(W132:W133,W39:W40))/1000000 -> 11.68868024 | X150: =(X16*X131/SUMIF($S$2:$Z$2,X$2,$S$9:$Z$9)*X$9+SUMPRODUCT(X132:X133,X39:X40))/1000000 -> 12.6647855 | Y150: 13.76296592 | Z150: 14.96533488
B151: Tariff class B2 | C151: $m | T151: =(T17*T136/SUMIF($S$2:$Z$2,T$2,$S$9:$Z$9)*T$9+SUMPRODUCT(T137:T138,T44:T45))/1000000 -> 5.637908949 | V151: =(V17*V136/SUMIF($S$2:$Z$2,V$2,$S$9:$Z$9)*(U$9+V$9)+SUMPRODUCT(V137:V138,V44:V45))/1000000 -> 11.4112456 | W151: =(W17*W136/SUMIF($S$2:$Z$2,W$2,$S$9:$Z$9)*W$9+SUMPRODUCT(W137:W138,W44:W45))/1000000 -> 12.20941002 | X151: =(X17*X136/SUMIF($S$2:$Z$2,X$2,$S$9:$Z$9)*X$9+SUMPRODUCT(X137:X138,X44:X45))/1000000 -> 13.15320879 | Y151: 14.22282433 | Z151: 15.4037464
B152: Tariff class B3 | C152: $m | T152: =(T18*T141/SUMIF($S$2:$Z$2,T$2,$S$9:$Z$9)*T$9+SUMPRODUCT(T142:T144,T49:T51))/1000000 -> 79.81398121 | V152: =(V18*V141/SUMIF($S$2:$Z$2,V$2,$S$9:$Z$9)*(U$9+V$9)+SUMPRODUCT(V142:V144,V49:V51))/1000000 -> 153.4415674 | W152: =(W18*W141/SUMIF($S$2:$Z$2,W$2,$S$9:$Z$9)*W$9+SUMPRODUCT(W142:W144,W49:W51))/1000000 -> 165.2662571 | X152: =(X18*X141/SUMIF($S$2:$Z$2,X$2,$S$9:$Z$9)*X$9+SUMPRODUCT(X142:X144,X49:X51))/1000000 -> 178.2984592 | Y152: 192.4110337 | Z152: 207.5774839
C154: $m | T154: =SUM(T148:T153) -> 98.66802316 | V154: 191.9746867 | W154: 207.2609359 | X154: 224.2281271 | Y154: 242.2210264 | Z154: 261.6538831
B156: PV Expected revenue at reference tariffs
B158: Tariff class A1 | C158: $m | T158: =SUMPRODUCT(T$8:Z$8,T148:Z148) -> 42.97710426
B159: Tariff class A2 | C159: $m | T159: =SUMPRODUCT(T$8:Z$8,T149:Z149) -> 38.89397604
B160: Tariff class B1 | C160: $m | T160: =SUMPRODUCT(T$8:Z$8,T150:Z150) -> 52.90173045
B161: Tariff class B2 | C161: $m | T161: =SUMPRODUCT(T$8:Z$8,T151:Z151) -> 54.96627241
B162: Tariff class B3 | C162: $m | T162: =SUMPRODUCT(T$8:Z$8,T152:Z152) -> 746.0043237
C164: $m | T164: =SUM(T158:T162) -> 935.7434068
B166: Nett Required Reference Tariff Revenue | C166: $m | T166: =T110 -> 935.7432766
B168: Over /(Under) recovery of Total Revenue | T168: =T164-T166 -> 0.0001302423818
B170: Price (increase)/decrease per annum % | S170: -0.05577177916 | V170: =S170 -> -0.05577177916 | W170: =V170 -> -0.05577177916 | X170: =W170 -> -0.05577177916 | Y170: =X170 -> -0.05577177916 | Z170: =Y170 -> -0.05577177916
B173: Total tariff revenue | T173: =T154+T105+T102 -> 99.80670266 | V173: =V154+V105+V102 -> 194.0362642 | W173: =W154+W105+W102 -> 208.8657073 | X173: =X154+X105+X102 -> 225.5891445 | Y173: =Y154+Y105+Y102 -> 243.684306 | Z173: =Z154+Z105+Z102 -> 263.2255405
B175: Total tariff revenue NPV | T175: =SUMPRODUCT(T173:Z173,T$8:Z$8) -> 943.000696
B177: Total Revenue NPV | T177: =T99 -> 943.0005658
B178: Check line | T178: =T175-T177 -> 0.0001302423817
B181: Revenue Yield | T181: Jul - Dec 2014 | V181: Jan - Dec 2015
B182: Tariff class B2 | C182: $/customer | T182: =T151*1000000/T17 -> 567.961296 | V182: =(U151+V151)*1000000/V17 -> 1103.512591 | W182: =W151*1000000/W17 -> 1131.899885 | X182: =X151*1000000/X17 -> 1167.636993 | Y182: =Y151*1000000/Y17 -> 1207.779793 | Z182: =Z151*1000000/Z17 -> 1250.218785
B183: Percentage movement from previous year | W183: =(W182/V182)-1 -> 0.02572448582 | X183: 0.03157267558 | Y183: 0.03437952078 | Z183: =(Z182/Y182)-1 -> 0.03513802114
B185: Tariff class B3 | C185: $/customer | T185: =T152*1000000/T18 -> 120.0640464 | V185: =(U152+V152)*1000000/V18 -> 225.7993829 | W185: =W152*1000000/W18 -> 238.0387635 | X185: =X152*1000000/X18 -> 251.4975164 | Y185: =Y152*1000000/Y18 -> 265.9297755 | Z185: =Z152*1000000/Z18 -> 281.2459094
B186: Percentage movement from previous year | W186: =(W185/V185)-1 -> 0.05420466837 | X186: =(X185/W185)-1 -> 0.05654017294 | Y186: =(Y185/X185)-1 -> 0.05738529467 | Z186: =(Z185/Y185)-1 -> 0.05759465608
B189: PV(Avoidable costs)
V190: Lower Bound Check per Rule 94 (3)(b)
B191: Tariff class A1 | C191: $m | T191: 6.243813408 | V191: =IF(T191<T158,"Complies","Breach - Reset Tariffs") -> Complies
B192: Tariff class A2 | C192: $m | T192: 5.047209502 | V192: =IF(T192<T159,"Complies","Breach - Reset Tariffs") -> Complies
B193: Tariff class B1 | C193: $m | T193: 8.48616035 | V193: =IF(T193<T160,"Complies","Breach - Reset Tariffs") -> Complies
B194: Tariff class B2 | C194: $m | T194: 8.273965871 | V194: =IF(T194<T161,"Complies","Breach - Reset Tariffs") -> Complies
B195: Tariff class B3 | C195: $m | T195: 89.03468775 | V195: =IF(T195<T162,"Complies","Breach - Reset Tariffs") -> Complies
B198: PV(Stand alone costs)
V199: Upper Bound Check per Rule 94 (3)(a)
B200: Tariff class A1 | C200: $m | T200: 408.9326039 | V200: =IF(T200>T158,"Complies","Breach - Reset Tariffs") -> Complies
B201: Tariff class A2 | C201: $m | T201: 531.9924667 | V201: =IF(T201>T159,"Complies","Breach - Reset Tariffs") -> Complies
B202: Tariff class B1 | C202: $m | T202: 637.4801956 | V202: =IF(T202>T160,"Complies","Breach - Reset Tariffs") -> Complies
B203: Tariff class B2 | C203: $m | T203: 654.0765008 | V203: =IF(T203>T161,"Complies","Breach - Reset Tariffs") -> Complies
B204: Tariff class B3 | C204: $m | T204: 841.2450112 | V204: =IF(T204>T162,"Complies","Breach - Reset Tariffs") -> Complies
B208: Inflation
B209: Period | V209: =IF(YEAR(Inputs!T4+1)=YEAR(Inputs!C40),1,0) -> 1 | W209: =ROUND((Inputs!V4+1-Inputs!$C$40)/Inputs!$C$37,1) -> 1 | X209: =ROUND((Inputs!W4+1-Inputs!$C$40)/Inputs!$C$37,1)-SUM($W$209:W209) -> 1 | Y209: =ROUND((Inputs!X4+1-Inputs!$C$40)/Inputs!$C$37,1)-SUM($W$209:X209) -> 1 | Z209: =ROUND((Inputs!Y4+1-Inputs!$C$40)/Inputs!$C$37,1)-SUM($W$209:Y209) -> 1
B211: Tariff change per year | V211: CY2015 (Smoothed) | W211: CY2016 (Smoothed) | X211: CY2017 (Smoothed) | Y211: CY2018 (Smoothed) | Z211: CY2019 (Smoothed)
B212: A1 | S212: % | V212: =S170 -> -0.05577177916 | W212: =V212 -> -0.05577177916 | X212: -0.05577177916 | Y212: -0.05577177916 | Z212: -0.05577177916
B213: A2 | S213: % | V213: =S170 -> -0.05577177916 | W213: -0.05577177916 | X213: -0.05577177916 | Y213: -0.05577177916 | Z213: -0.05577177916
B214: B1 | S214: % | V214: =S170 -> -0.05577177916 | W214: -0.05577177916 | X214: -0.05577177916 | Y214: -0.05577177916 | Z214: -0.05577177916
B215: B2 | S215: % | V215: =S170 -> -0.05577177916 | W215: -0.05577177916 | X215: -0.05577177916 | Y215: -0.05577177916 | Z215: -0.05577177916
B216: B3 | S216: % | V216: =S170 -> -0.05577177916 | W216: -0.05577177916 | X216: -0.05577177916 | Y216: -0.05577177916 | Z216: -0.05577177916
B218: Usage
B219: B2 | U219: Jan-Jun 2015
B220: Number of connections | T220: =T17 -> 9926.572442 | U220: =Inputs!U117 -> 10133.70552
B221: Usage Charge (GJ-km) | U221: =Inputs!U227 -> 0
C222: First 100GJ | T222: =T44 -> 230423.0237 | U222: =Inputs!U228 -> 205726.0944
C223: > 100GJ | T223: =T45 -> 407650.9634 | U223: =Inputs!U229 -> 341686.0026
B224: B3
B225: Number of connections | T225: =T18 -> 664761.7136 | U225: =Inputs!U118 -> 672154.964
B226: Standing Charge (GJ-km/year)
C227: 0 to 2GJ | T227: =T49 -> 0 | U227: =Inputs!U233 -> 637333.2867
B228: Usage Charge (GJ-km)
C230: 2 to 10GJ | T230: =T50 -> 2635663.405 | U230: =Inputs!U234 -> 1816866.45
C231: > 10GJ | T231: =T51 -> 3007971.516 | U231: =Inputs!U235 -> 1924274.849
B233: Price
B234: B2 | U234: Jan-Jun 2015
B235: Calculated Revenue | C235: $m | T235: =SUM(T236:T237) -> 5.637908949 | U235: =(U220*U239*U$9/SUMIF($S$2:$Z$2,U$2,$S$9:$Z$9)+U222*U241+U223*U242)/1000000 -> 5.103081152
B236: Standing charge | C236: $m | T236: =(T220*T239*T$9/SUMIF($S$2:$Z$2,T$2,$S$9:$Z$9))/1000000 -> 1.635033215 | U236: =(U220*U239*U$9/SUMIF($S$2:$Z$2,U$2,$S$9:$Z$9))/1000000 -> 1.641936264
B237: Usage Charges | C237: $m | T237: =(T222*T241+T223*T242)/1000000 -> 4.002875734 | U237: =(U222*U241+U223*U242)/1000000 -> 3.461144888
B238: Usage charge as percentage of annual revenue | T238: =T237/SUM(T237:U237) -> 0.5362894794 | U238: =U237/SUM(T237:U237) -> 0.4637105206
B239: Standing charge | C239: per year | T239: =Inputs!T195 -> 326.74 | U239: =T239 -> 326.74
B241: First 100GJ | C241: $/GJ | T241: =Inputs!T196 -> 8.42 | U241: =T241 -> 8.42
B242: > 100GJ | C242: $/GJ | T242: =Inputs!T197 -> 5.06 | U242: =T242 -> 5.06
B243: B3
B244: Calculated Revenue | C244: $m | T244: =SUM(T245:T246) -> 79.81398121 | U244: =(U225*U248*U$9/SUMIF($S$2:$Z$2,U$2,$S$9:$Z$9)+U227*U250+U230*U251+U231*U252)/1000000 -> 70.3779609
B245: Standing charge | C245: $m | T245: =(T225*T248*T$9/SUMIF($S$2:$Z$2,T$2,$S$9:$Z$9))/1000000 -> 23.80976119 | U245: =(U225*U248*U$9/SUMIF($S$2:$Z$2,U$2,$S$9:$Z$9))/1000000 -> 23.68204506
B246: Usage Charges | C246: $m | T246: =(T227*T250+T230*T251+T231*T252)/1000000 -> 56.00422002 | U246: =(U227*U250+U230*U251+U231*U252)/1000000 -> 46.69591584
B247: Usage charge as percentage of annual revenue | T247: =T246/SUM(T246:U246) -> 0.5453178766 | U247: =U246/SUM(T246:U246) -> 0.4546821234
B248: Standing charge | C248: per year | T248: =Inputs!T200 -> 71.05 | U248: =T248 -> 71.05
B249: Usage Charges
B250: 0 to 2GJ | C250: $/GJ | T250: =Inputs!T201 -> 14.15 | U250: =T250 -> 14.15
B251: 2 to 10GJ | C251: $/GJ | T251: =Inputs!T202 -> 14.15 | U251: =T251 -> 14.15
B252: > 10GJ | C252: $/GJ | T252: =Inputs!T203 -> 6.22 | U252: =T252 -> 6.22
B254: B2 and B3 Usage rate adjustment | T254: B2 | U254: B3
B255: Revenue for 12 months ending Jun 2015 | T255: =T235+U235 -> 10.7409901 | U255: =T244+U244 -> 150.1919421
B256: Less Standing charge revenue | T256: =((T220*T239*S$9/SUMIF($S$2:$Z$2,T$2,$S$9:$Z$9))+(U220*U239*T$9/SUMIF($S$2:$Z$2,U$2,$S$9:$Z$9)))/1000000 -> 3.277525742 | U256: =((T225*T248*T$9/SUMIF($S$2:$Z$2,T$2,$S$9:$Z$9))+(U225*U248*U$9/SUMIF($S$2:$Z$2,U$2,$S$9:$Z$9)))/1000000 -> 47.49180625
B257: Usage charge revenue at current tariffs | T257: =T255-T256 -> 7.463464359 | U257: =U255-U256 -> 102.7001359
B259: New Standing charge | C259: per cust | S259: $ | T259: =Inputs!U195 -> 332.77 | U259: =Inputs!U200 -> 128.3
... 33 more rows

Sheet Tax_Depn
E1: =IF(Inputs!E1="","",Inputs!E1) ->  | F1: =IF(Inputs!F1="","",Inputs!F1) ->  | G1: =IF(Inputs!G1="","",Inputs!G1) ->  | H1: =IF(Inputs!H1="","",Inputs!H1) ->  | I1: =IF(Inputs!I1="","",Inputs!I1) ->  | J1: =IF(Inputs!J1="","",Inputs!J1) ->  | K1: =IF(Inputs!K1="","",Inputs!K1) ->  | L1: =IF(Inputs!L1="","",Inputs!L1) ->  | M1: =IF(Inputs!M1="","",Inputs!M1) ->  | N1: =IF(Inputs!N1="","",Inputs!N1) ->  | O1: =IF(Inputs!O1="","",Inputs!O1) -> Jan - Jun | P1: =IF(Inputs!P1="","",Inputs!P1) ->  | Q1: =IF(Inputs!Q1="","",Inputs!Q1) ->  | R1: =IF(Inputs!R1="","",Inputs!R1) ->  | S1: =IF(Inputs!S1="","",Inputs!S1) ->  | T1: =IF(Inputs!T1="","",Inputs!T1) -> Jul - Dec | U1: =IF(Inputs!U1="","",Inputs!U1) -> Jan - Jun | V1: =IF(Inputs!V1="","",Inputs!V1) -> Jul - Dec | W1: =IF(Inputs!W1="","",Inputs!W1) ->  | X1: =IF(Inputs!X1="","",Inputs!X1) ->  | Y1: =IF(Inputs!Y1="","",Inputs!Y1) ->  | Z1: =IF(Inputs!Z1="","",Inputs!Z1) -> 
B2: =Inputs!$B$2 -> Mid West and South West Gas Distribution Systems | E2: =Inputs!E2 -> 2000 | F2: =Inputs!F2 -> 2001 | G2: =Inputs!G2 -> 2002 | H2: =Inputs!H2 -> 2003 | I2: =Inputs!I2 -> 2004 | J2: =Inputs!J2 -> 2005 | K2: =Inputs!K2 -> 2006 | L2: =Inputs!L2 -> 2007 | M2: =Inputs!M2 -> 2008 | N2: =Inputs!N2 -> 2009 | O2: =Inputs!O2 -> 2010 | P2: =Inputs!P2 -> 2010/11 | Q2: =Inputs!Q2 -> 2011/12 | R2: =Inputs!R2 -> 2012/13 | S2: =Inputs!S2 -> 2013/14 | T2: =Inputs!T2 -> 2014 | U2: =Inputs!U2 -> 2015 | V2: =Inputs!V2 -> 2015 | W2: =Inputs!W2 -> 2016 | X2: =Inputs!X2 -> 2017 | Y2: =Inputs!Y2 -> 2018 | Z2: =Inputs!Z2 -> 2019
B3: =Inputs!$B$3 -> Access Arrangement Revisions 2014 | E3: =Inputs!E3 -> Actual | F3: =Inputs!F3 -> Actual | G3: =Inputs!G3 -> Actual | H3: =Inputs!H3 -> Actual | I3: =Inputs!I3 -> Actual | J3: =Inputs!J3 -> Actual | K3: =Inputs!K3 -> Actual | L3: =Inputs!L3 -> Actual | M3: =Inputs!M3 -> Actual | N3: =Inputs!N3 -> Actual | O3: =Inputs!O3 -> Actual | P3: =Inputs!P3 -> Actual | Q3: =Inputs!Q3 -> Actual | R3: =Inputs!R3 -> Actual | S3: =Inputs!S3 -> Forecast | T3: =Inputs!T3 -> Forecast | U3: =Inputs!U3 -> Forecast | V3: =Inputs!V3 -> Forecast | W3: =Inputs!W3 -> Forecast | X3: =Inputs!X3 -> Forecast | Y3: =Inputs!Y3 -> Forecast | Z3: =Inputs!Z3 -> Forecast
B6: =Inputs!B6 -> Year fraction for depreciation | E6: =Inputs!E6 -> 1 | F6: =Inputs!F6 -> 1 | G6: =Inputs!G6 -> 1 | H6: =Inputs!H6 -> 1 | I6: =Inputs!I6 -> 1 | J6: =Inputs!J6 -> 1 | K6: =Inputs!K6 -> 1 | L6: =Inputs!L6 -> 1 | M6: =Inputs!M6 -> 1 | N6: =Inputs!N6 -> 1 | O6: =Inputs!O6 -> 0.5 | P6: =Inputs!P6 -> 1 | Q6: =Inputs!Q6 -> 1 | R6: =Inputs!R6 -> 1 | S6: =Inputs!S6 -> 1 | T6: =Inputs!T6 -> 0.5 | U6: =Inputs!U6 -> 0.5 | V6: =Inputs!V6 -> 0.5 | W6: =Inputs!W6 -> 1 | X6: =Inputs!X6 -> 1 | Y6: =Inputs!Y6 -> 1 | Z6: =Inputs!Z6 -> 1
B7: =Inputs!$B$7 -> Access Arrangement | E7: =IF(Inputs!E7="","",Inputs!E7) -> AA1 | F7: =IF(Inputs!F7="","",Inputs!F7) -> AA1 | G7: =IF(Inputs!G7="","",Inputs!G7) -> AA1 | H7: =IF(Inputs!H7="","",Inputs!H7) -> AA1 | I7: =IF(Inputs!I7="","",Inputs!I7) -> AA1 | J7: =IF(Inputs!J7="","",Inputs!J7) -> AA2 | K7: =IF(Inputs!K7="","",Inputs!K7) -> AA2 | L7: =IF(Inputs!L7="","",Inputs!L7) -> AA2 | M7: =IF(Inputs!M7="","",Inputs!M7) -> AA2 | N7: =IF(Inputs!N7="","",Inputs!N7) -> AA2 | O7: =IF(Inputs!O7="","",Inputs!O7) -> AA3 | P7: =IF(Inputs!P7="","",Inputs!P7) -> AA3 | Q7: =IF(Inputs!Q7="","",Inputs!Q7) -> AA3 | R7: =IF(Inputs!R7="","",Inputs!R7) -> AA3 | S7: =IF(Inputs!S7="","",Inputs!S7) -> AA3 | T7: =IF(Inputs!T7="","",Inputs!T7) -> AA4 | U7: =IF(Inputs!U7="","",Inputs!U7) -> AA4 | V7: =IF(Inputs!V7="","",Inputs!V7) -> AA4 | W7: =IF(Inputs!W7="","",Inputs!W7) -> AA4 | X7: =IF(Inputs!X7="","",Inputs!X7) -> AA4 | Y7: =IF(Inputs!Y7="","",Inputs!Y7) -> AA4 | Z7: =IF(Inputs!Z7="","",Inputs!Z7) -> AA4
B9: Tax Depreciation
B11: Opening Tax Asset Base | T11: =Inputs!S334 -> 497.4917769 | U11: =T14 -> 516.1894623 | V11: =U14 -> 490.9415386 | W11: 571.2397615 | X11: 631.561156 | Y11: 695.8240712 | Z11: 762.4623314
B12: Capex | T12: =Inputs!T502+Inputs!T286 -> 43.70446135 | U12: =Inputs!U502+Inputs!U286 -> 0 | V12: =Inputs!V502+Inputs!V286 -> 108.8964153 | W12: =Inputs!W502+Inputs!W286 -> 120.6278682 | X12: =Inputs!X502+Inputs!X286 -> 126.6474704 | Y12: =Inputs!Y502+Inputs!Y286 -> 130.6529619 | Z12: =Inputs!Z502+Inputs!Z286 -> 136.134209
B13: Tax Depreciation | T13: =Inputs!T335 -> 25.00677596 | U13: =Inputs!U335 -> 25.24792372 | V13: =Inputs!V335 -> 28.59819243 | W13: =Inputs!W335 -> 60.30647365 | X13: =Inputs!X335 -> 62.38455526 | Y13: =Inputs!Y335 -> 64.01470168 | Z13: =Inputs!Z335 -> 70.27730902
B14: Closing Tax Asset Base | T14: =T11+T12-T13 -> 516.1894623 | U14: =U11+U12-U13 -> 490.9415386 | V14: 571.2397615 | W14: 631.561156 | X14: 695.8240712 | Y14: 762.4623314 | Z14: 828.3192313

Sheet RAB_Summary
E1: =IF(Inputs!E1="","",Inputs!E1) ->  | F1: =IF(Inputs!F1="","",Inputs!F1) ->  | G1: =IF(Inputs!G1="","",Inputs!G1) ->  | H1: =IF(Inputs!H1="","",Inputs!H1) ->  | I1: =IF(Inputs!I1="","",Inputs!I1) ->  | J1: =IF(Inputs!J1="","",Inputs!J1) ->  | K1: =IF(Inputs!K1="","",Inputs!K1) ->  | L1: =IF(Inputs!L1="","",Inputs!L1) ->  | M1: =IF(Inputs!M1="","",Inputs!M1) ->  | N1: =IF(Inputs!N1="","",Inputs!N1) ->  | O1: =IF(Inputs!O1="","",Inputs!O1) -> Jan - Jun | P1: =IF(Inputs!P1="","",Inputs!P1) ->  | Q1: =IF(Inputs!Q1="","",Inputs!Q1) ->  | R1: =IF(Inputs!R1="","",Inputs!R1) ->  | S1: =IF(Inputs!S1="","",Inputs!S1) ->  | T1: =IF(Inputs!T1="","",Inputs!T1) -> Jul - Dec | U1: =IF(Inputs!U1="","",Inputs!U1) -> Jan - Jun | V1: =IF(Inputs!V1="","",Inputs!V1) -> Jul - Dec | W1: =IF(Inputs!W1="","",Inputs!W1) ->  | X1: =IF(Inputs!X1="","",Inputs!X1) ->  | Y1: =IF(Inputs!Y1="","",Inputs!Y1) ->  | Z1: =IF(Inputs!Z1="","",Inputs!Z1) -> 
B2: =Inputs!$B$2 -> Mid West and South West Gas Distribution Systems | E2: =Inputs!E2 -> 2000 | F2: =Inputs!F2 -> 2001 | G2: =Inputs!G2 -> 2002 | H2: =Inputs!H2 -> 2003 | I2: =Inputs!I2 -> 2004 | J2: =Inputs!J2 -> 2005 | K2: =Inputs!K2 -> 2006 | L2: =Inputs!L2 -> 2007 | M2: =Inputs!M2 -> 2008 | N2: =Inputs!N2 -> 2009 | O2: =Inputs!O2 -> 2010 | P2: =Inputs!P2 -> 2010/11 | Q2: =Inputs!Q2 -> 2011/12 | R2: =Inputs!R2 -> 2012/13 | S2: =Inputs!S2 -> 2013/14 | T2: =Inputs!T2 -> 2014 | U2: =Inputs!U2 -> 2015 | V2: =Inputs!V2 -> 2015 | W2: =Inputs!W2 -> 2016 | X2: =Inputs!X2 -> 2017 | Y2: =Inputs!Y2 -> 2018 | Z2: =Inputs!Z2 -> 2019
B3: =Inputs!$B$3 -> Access Arrangement Revisions 2014 | E3: =Inputs!E3 -> Actual | F3: =Inputs!F3 -> Actual | G3: =Inputs!G3 -> Actual | H3: =Inputs!H3 -> Actual | I3: =Inputs!I3 -> Actual | J3: =Inputs!J3 -> Actual | K3: =Inputs!K3 -> Actual | L3: =Inputs!L3 -> Actual | M3: =Inputs!M3 -> Actual | N3: =Inputs!N3 -> Actual | O3: =Inputs!O3 -> Actual | P3: =Inputs!P3 -> Actual | Q3: =Inputs!Q3 -> Actual | R3: =Inputs!R3 -> Actual | S3: =Inputs!S3 -> Forecast | T3: =Inputs!T3 -> Forecast | U3: =Inputs!U3 -> Forecast | V3: =Inputs!V3 -> Forecast | W3: =Inputs!W3 -> Forecast | X3: =Inputs!X3 -> Forecast | Y3: =Inputs!Y3 -> Forecast | Z3: =Inputs!Z3 -> Forecast
B6: =Inputs!B6 -> Year fraction for depreciation | E6: =Inputs!E6 -> 1 | F6: =Inputs!F6 -> 1 | G6: =Inputs!G6 -> 1 | H6: =Inputs!H6 -> 1 | I6: =Inputs!I6 -> 1 | J6: =Inputs!J6 -> 1 | K6: =Inputs!K6 -> 1 | L6: =Inputs!L6 -> 1 | M6: =Inputs!M6 -> 1 | N6: =Inputs!N6 -> 1 | O6: =Inputs!O6 -> 0.5 | P6: =Inputs!P6 -> 1 | Q6: =Inputs!Q6 -> 1 | R6: =Inputs!R6 -> 1 | S6: =Inputs!S6 -> 1 | T6: =Inputs!T6 -> 0.5 | U6: =Inputs!U6 -> 0.5 | V6: =Inputs!V6 -> 0.5 | W6: =Inputs!W6 -> 1 | X6: =Inputs!X6 -> 1 | Y6: =Inputs!Y6 -> 1 | Z6: =Inputs!Z6 -> 1
B7: =Inputs!$B$7 -> Access Arrangement | E7: =IF(Inputs!E7="","",Inputs!E7) -> AA1 | F7: =IF(Inputs!F7="","",Inputs!F7) -> AA1 | G7: =IF(Inputs!G7="","",Inputs!G7) -> AA1 | H7: =IF(Inputs!H7="","",Inputs!H7) -> AA1 | I7: =IF(Inputs!I7="","",Inputs!I7) -> AA1 | J7: =IF(Inputs!J7="","",Inputs!J7) -> AA2 | K7: =IF(Inputs!K7="","",Inputs!K7) -> AA2 | L7: =IF(Inputs!L7="","",Inputs!L7) -> AA2 | M7: =IF(Inputs!M7="","",Inputs!M7) -> AA2 | N7: =IF(Inputs!N7="","",Inputs!N7) -> AA2 | O7: =IF(Inputs!O7="","",Inputs!O7) -> AA3 | P7: =IF(Inputs!P7="","",Inputs!P7) -> AA3 | Q7: =IF(Inputs!Q7="","",Inputs!Q7) -> AA3 | R7: =IF(Inputs!R7="","",Inputs!R7) -> AA3 | S7: =IF(Inputs!S7="","",Inputs!S7) -> AA3 | T7: =IF(Inputs!T7="","",Inputs!T7) -> AA4 | U7: =IF(Inputs!U7="","",Inputs!U7) -> AA4 | V7: =IF(Inputs!V7="","",Inputs!V7) -> AA4 | W7: =IF(Inputs!W7="","",Inputs!W7) -> AA4 | X7: =IF(Inputs!X7="","",Inputs!X7) -> AA4 | Y7: =IF(Inputs!Y7="","",Inputs!Y7) -> AA4 | Z7: =IF(Inputs!Z7="","",Inputs!Z7) -> AA4
B10: ='RAB Scenarios'!B24 -> Nominal | E10: ='RAB Scenarios'!E24 -> $, Jun 2014 | F10: ='RAB Scenarios'!F24 -> $, Jun 2014 | G10: ='RAB Scenarios'!G24 -> $, Jun 2014 | H10: ='RAB Scenarios'!H24 -> $, Jun 2014 | I10: ='RAB Scenarios'!I24 -> $, Jun 2014 | J10: ='RAB Scenarios'!J24 -> $, Jun 2014 | K10: ='RAB Scenarios'!K24 -> $, Jun 2014 | L10: ='RAB Scenarios'!L24 -> $, Jun 2014 | M10: ='RAB Scenarios'!M24 -> $, Jun 2014 | N10: ='RAB Scenarios'!N24 -> $, Jun 2014 | O10: ='RAB Scenarios'!O24 -> $, Jun 2014 | P10: ='RAB Scenarios'!P24 -> $, Jun 2014 | Q10: ='RAB Scenarios'!Q24 -> $, Jun 2014 | R10: ='RAB Scenarios'!R24 -> $, Jun 2014 | S10: ='RAB Scenarios'!S24 -> $, Jun 2014 | T10: ='RAB Scenarios'!T24 -> $, nominal | U10: ='RAB Scenarios'!U24 -> $, nominal | V10: ='RAB Scenarios'!V24 -> $, nominal | W10: ='RAB Scenarios'!W24 -> $, nominal | X10: ='RAB Scenarios'!X24 -> $, nominal | Y10: ='RAB Scenarios'!Y24 -> $, nominal | Z10: ='RAB Scenarios'!Z24 -> $, nominal
B12: Opening Capital Base | E12: ='RAB Scenarios'!E42 -> 823.3366414 | F12: ='RAB Scenarios'!F42 -> 833.5656356 | G12: ='RAB Scenarios'!G42 -> 830.9030886 | H12: ='RAB Scenarios'!H42 -> 836.1319478 | I12: ='RAB Scenarios'!I42 -> 844.2094918 | J12: ='RAB Scenarios'!J42 -> 857.3963954 | K12: ='RAB Scenarios'!K42 -> 856.1219565 | L12: ='RAB Scenarios'!L42 -> 859.1390047 | M12: ='RAB Scenarios'!M42 -> 862.163231 | N12: ='RAB Scenarios'!N42 -> 864.3768724 | O12: ='RAB Scenarios'!O42 -> 879.7113762 | P12: ='RAB Scenarios'!P42 -> 898.5206849 | Q12: ='RAB Scenarios'!Q42 -> 913.5174774 | R12: ='RAB Scenarios'!R42 -> 923.3150533 | S12: ='RAB Scenarios'!S42 -> 971.5978653 | T12: ='RAB Scenarios'!T42 -> 1020.049174 | U12: ='RAB Scenarios'!U42 -> 1045.820721 | V12: ='RAB Scenarios'!V42 -> 1026.420192 | W12: ='RAB Scenarios'!W42 -> 1114.585451 | X12: ='RAB Scenarios'!X42 -> 1191.312651 | Y12: ='RAB Scenarios'!Y42 -> 1270.858117 | Z12: ='RAB Scenarios'!Z42 -> 1351.332917
B13: Vines/Westnet | N13: =Vines!$N$186 -> 0.652389498 | O13: =WestNet!$O$186 -> 3.324552027
B14: Capex | E14: ='RAB Scenarios'!E60 -> 36.48099078 | F14: ='RAB Scenarios'!F60 -> 25.02715769 | G14: ='RAB Scenarios'!G60 -> 33.87707807 | H14: ='RAB Scenarios'!H60 -> 37.65350023 | I14: ='RAB Scenarios'!I60 -> 43.63609552 | J14: ='RAB Scenarios'!J60 -> 30.97353797 | K14: ='RAB Scenarios'!K60 -> 37.31871672 | L14: ='RAB Scenarios'!L60 -> 39.22144501 | M14: ='RAB Scenarios'!M60 -> 39.95168856 | N14: ='RAB Scenarios'!N60 -> 47.74435296 | O14: ='RAB Scenarios'!O60 -> 27.80256835 | P14: ='RAB Scenarios'!P60 -> 41.70097602 | Q14: ='RAB Scenarios'!Q60 -> 38.91261334 | R14: ='RAB Scenarios'!R60 -> 79.73016039 | S14: ='RAB Scenarios'!S60 -> 82.40103478 | T14: ='RAB Scenarios'!T60 -> 43.06031204 | U14: ='RAB Scenarios'!U60 -> 0 | V14: ='RAB Scenarios'!V60 -> 107.5657878 | W14: ='RAB Scenarios'!W60 -> 119.204615 | X14: ='RAB Scenarios'!X60 -> 125.1140559 | Y14: ='RAB Scenarios'!Y60 -> 128.9870383 | Z14: ='RAB Scenarios'!Z60 -> 134.332569
B15: Amounts added to Capital Base under NGR 82,84,86 | E15: ='RAB Scenarios'!E150 -> 0 | F15: ='RAB Scenarios'!F150 -> 0 | G15: ='RAB Scenarios'!G150 -> 0 | H15: ='RAB Scenarios'!H150 -> 0 | I15: ='RAB Scenarios'!I150 -> 0 | J15: ='RAB Scenarios'!J150 -> 0 | K15: ='RAB Scenarios'!K150 -> 0 | L15: ='RAB Scenarios'!L150 -> 0 | M15: ='RAB Scenarios'!M150 -> 0 | N15: ='RAB Scenarios'!N150 -> 0 | O15: ='RAB Scenarios'!O150 -> 0 | P15: ='RAB Scenarios'!P150 -> 0 | Q15: ='RAB Scenarios'!Q150 -> 0 | R15: ='RAB Scenarios'!R150 -> 0 | S15: ='RAB Scenarios'!S150 -> 0 | T15: ='RAB Scenarios'!T150 -> 0 | U15: ='RAB Scenarios'!U150 -> 0 | V15: ='RAB Scenarios'!V150 -> 0 | W15: ='RAB Scenarios'!W150 -> 0 | X15: ='RAB Scenarios'!X150 -> 0 | Y15: ='RAB Scenarios'!Y150 -> 0 | Z15: ='RAB Scenarios'!Z150 -> 0
B16: Depreciation | E16: ='RAB Scenarios'!E78 -> 26.25199654 | F16: ='RAB Scenarios'!F78 -> 27.68970464 | G16: ='RAB Scenarios'!G78 -> 28.64821893 | H16: ='RAB Scenarios'!H78 -> 29.57595621 | I16: ='RAB Scenarios'!I78 -> 30.44919188 | J16: ='RAB Scenarios'!J78 -> 32.24797694 | K16: ='RAB Scenarios'!K78 -> 34.30166846 | L16: ='RAB Scenarios'!L78 -> 36.19721875 | M16: ='RAB Scenarios'!M78 -> 37.73804719 | N16: ='RAB Scenarios'!N78 -> 39.70746268 | O16: ='RAB Scenarios'!O78 -> 12.31781168 | P16: ='RAB Scenarios'!P78 -> 26.70418351 | Q16: ='RAB Scenarios'!Q78 -> 29.11503747 | R16: ='RAB Scenarios'!R78 -> 31.44734837 | S16: ='RAB Scenarios'!S78 -> 33.92305033 | T16: ='RAB Scenarios'!T78 -> 17.28876421 | U16: ='RAB Scenarios'!U78 -> 19.40052909 | V16: ='RAB Scenarios'!V78 -> 19.40052909 | W16: ='RAB Scenarios'!W78 -> 42.47741464 | X16: ='RAB Scenarios'!X78 -> 45.56858995 | Y16: ='RAB Scenarios'!Y78 -> 48.51223879 | Z16: ='RAB Scenarios'!Z78 -> 51.6805909
B17: Redundant Assets | E17: ='RAB Scenarios'!E96 -> 0 | F17: ='RAB Scenarios'!F96 -> 0 | G17: ='RAB Scenarios'!G96 -> 0 | H17: ='RAB Scenarios'!H96 -> 0 | I17: ='RAB Scenarios'!I96 -> 0 | J17: ='RAB Scenarios'!J96 -> 0 | K17: ='RAB Scenarios'!K96 -> 0 | L17: ='RAB Scenarios'!L96 -> 0 | M17: ='RAB Scenarios'!M96 -> 0 | N17: ='RAB Scenarios'!N96 -> 0 | O17: ='RAB Scenarios'!O96 -> 0 | P17: ='RAB Scenarios'!P96 -> 0 | Q17: ='RAB Scenarios'!Q96 -> 0 | R17: ='RAB Scenarios'!R96 -> 0 | S17: ='RAB Scenarios'!S96 -> 0 | T17: ='RAB Scenarios'!T96 -> 0 | U17: ='RAB Scenarios'!U96 -> 0 | V17: ='RAB Scenarios'!V96 -> 0 | W17: ='RAB Scenarios'!W96 -> 0 | X17: ='RAB Scenarios'!X96 -> 0 | Y17: ='RAB Scenarios'!Y96 -> 0 | Z17: ='RAB Scenarios'!Z96 -> 0
B18: Asset Disposals | E18: ='RAB Scenarios'!E114 -> 0 | F18: ='RAB Scenarios'!F114 -> 0 | G18: ='RAB Scenarios'!G114 -> 0 | H18: ='RAB Scenarios'!H114 -> 0 | I18: ='RAB Scenarios'!I114 -> 0 | J18: ='RAB Scenarios'!J114 -> 0 | K18: ='RAB Scenarios'!K114 -> 0 | L18: ='RAB Scenarios'!L114 -> 0 | M18: ='RAB Scenarios'!M114 -> 0 | N18: ='RAB Scenarios'!N114 -> 4.961267652 | O18: ='RAB Scenarios'!O114 -> 0 | P18: ='RAB Scenarios'!P114 -> 0 | Q18: ='RAB Scenarios'!Q114 -> 0 | R18: ='RAB Scenarios'!R114 -> 0 | S18: ='RAB Scenarios'!S114 -> 0 | T18: ='RAB Scenarios'!T114 -> 0 | U18: ='RAB Scenarios'!U114 -> 0 | V18: ='RAB Scenarios'!V114 -> 0 | W18: ='RAB Scenarios'!W114 -> 0 | X18: ='RAB Scenarios'!X114 -> 0 | Y18: ='RAB Scenarios'!Y114 -> 0 | Z18: ='RAB Scenarios'!Z114 -> 0
B19: Over Depreciation | E19: ='RAB Scenarios'!E132 -> 0 | F19: ='RAB Scenarios'!F132 -> 0 | G19: ='RAB Scenarios'!G132 -> 0 | H19: ='RAB Scenarios'!H132 -> 0 | I19: ='RAB Scenarios'!I132 -> 1.006139616e-15 | J19: ='RAB Scenarios'!J132 -> 0 | K19: ='RAB Scenarios'!K132 -> 0 | L19: ='RAB Scenarios'!L132 -> 0 | M19: ='RAB Scenarios'!M132 -> 0 | N19: ='RAB Scenarios'!N132 -> -11.6064917 | O19: ='RAB Scenarios'!O132 -> 0 | P19: ='RAB Scenarios'!P132 -> 0 | Q19: ='RAB Scenarios'!Q132 -> 0 | R19: ='RAB Scenarios'!R132 -> 0 | S19: ='RAB Scenarios'!S132 -> 0.01229977415 | T19: ='RAB Scenarios'!T132 -> 0 | U19: ='RAB Scenarios'!U132 -> 0 | V19: ='RAB Scenarios'!V132 -> 0 | W19: ='RAB Scenarios'!W132 -> 0 | X19: ='RAB Scenarios'!X132 -> 0 | Y19: ='RAB Scenarios'!Y132 -> 0 | Z19: ='RAB Scenarios'!Z132 -> 0
B20: Deprecation per Tariff Variation | E20: ='RAB Scenarios'!E168 -> 0 | F20: ='RAB Scenarios'!F168 -> 0 | G20: ='RAB Scenarios'!G168 -> 0 | H20: ='RAB Scenarios'!H168 -> 0 | I20: ='RAB Scenarios'!I168 -> 0 | J20: ='RAB Scenarios'!J168 -> 0 | K20: ='RAB Scenarios'!K168 -> 0 | L20: ='RAB Scenarios'!L168 -> 0 | M20: ='RAB Scenarios'!M168 -> 0 | N20: ='RAB Scenarios'!N168 -> 0 | O20: ='RAB Scenarios'!O168 -> 0 | P20: ='RAB Scenarios'!P168 -> 0 | Q20: ='RAB Scenarios'!Q168 -> 0 | R20: ='RAB Scenarios'!R168 -> 0 | S20: ='RAB Scenarios'!S168 -> 0.01437640428 | T20: ='RAB Scenarios'!T168 -> 0 | U20: ='RAB Scenarios'!U168 -> 0 | V20: ='RAB Scenarios'!V168 -> 0 | W20: ='RAB Scenarios'!W168 -> 0 | X20: ='RAB Scenarios'!X168 -> 0 | Y20: ='RAB Scenarios'!Y168 -> 0 | Z20: ='RAB Scenarios'!Z168 -> 0
B21: Closing Capital Base | E21: =SUM(E12:E15)-SUM(E16:E20) -> 833.5656356 | F21: =SUM(F12:F15)-SUM(F16:F20) -> 830.9030886 | G21: 836.1319478 | H21: 844.2094918 | I21: 857.3963954 | J21: 856.1219565 | K21: 859.1390047 | L21: 862.163231 | M21: 864.3768724 | N21: 879.7113762 | O21: 898.5206849 | P21: 913.5174774 | Q21: 923.3150533 | R21: 971.5978653 | S21: 1020.049174 | T21: 1045.820721 | U21: 1026.420192 | V21: 1114.585451 | W21: 1191.312651 | X21: 1270.858117 | Y21: 1351.332917 | Z21: 1433.984895
B22: Check | C22: =SUM(E22:Z22) -> 0 | E22: ='RAB Scenarios'!E186-E21 -> 0 | F22: ='RAB Scenarios'!F186-F21 -> 0 | G22: ='RAB Scenarios'!G186-G21 -> 0 | H22: ='RAB Scenarios'!H186-H21 -> 0 | I22: ='RAB Scenarios'!I186-I21 -> 0 | J22: ='RAB Scenarios'!J186-J21 -> 0 | K22: ='RAB Scenarios'!K186-K21 -> 0 | L22: ='RAB Scenarios'!L186-L21 -> 0 | M22: ='RAB Scenarios'!M186-M21 -> 0 | N22: ='RAB Scenarios'!N186-N21 -> 0 | O22: ='RAB Scenarios'!O186-O21 -> 0 | P22: ='RAB Scenarios'!P186-P21 -> 0 | Q22: ='RAB Scenarios'!Q186-Q21 -> 0 | R22: ='RAB Scenarios'!R186-R21 -> 0 | S22: ='RAB Scenarios'!S186-S21 -> 0 | T22: ='RAB Scenarios'!T186-T21 -> 0 | U22: ='RAB Scenarios'!U186-U21 -> 0 | V22: ='RAB Scenarios'!V186-V21 -> 0 | W22: ='RAB Scenarios'!W186-W21 -> 0 | X22: ='RAB Scenarios'!X186-X21 -> 0 | Y22: ='RAB Scenarios'!Y186-Y21 -> 0 | Z22: ='RAB Scenarios'!Z186-Z21 -> 0
B25: ='RAB Scenarios'!B190 -> Real | E25: ='RAB Scenarios'!E190 -> $, Jun 2014 | F25: ='RAB Scenarios'!F190 -> $, Jun 2014 | G25: ='RAB Scenarios'!G190 -> $, Jun 2014 | H25: ='RAB Scenarios'!H190 -> $, Jun 2014 | I25: ='RAB Scenarios'!I190 -> $, Jun 2014 | J25: ='RAB Scenarios'!J190 -> $, Jun 2014 | K25: ='RAB Scenarios'!K190 -> $, Jun 2014 | L25: ='RAB Scenarios'!L190 -> $, Jun 2014 | M25: ='RAB Scenarios'!M190 -> $, Jun 2014 | N25: ='RAB Scenarios'!N190 -> $, Jun 2014 | O25: ='RAB Scenarios'!O190 -> $, Jun 2014 | P25: ='RAB Scenarios'!P190 -> $, Jun 2014 | Q25: ='RAB Scenarios'!Q190 -> $, Jun 2014 | R25: ='RAB Scenarios'!R190 -> $, Jun 2014 | S25: ='RAB Scenarios'!S190 -> $, Jun 2014 | T25: ='RAB Scenarios'!T190 -> $, Jun 2014 | U25: ='RAB Scenarios'!U190 -> $, Jun 2014 | V25: ='RAB Scenarios'!V190 -> $, Jun 2014 | W25: ='RAB Scenarios'!W190 -> $, Jun 2014 | X25: ='RAB Scenarios'!X190 -> $, Jun 2014 | Y25: ='RAB Scenarios'!Y190 -> $, Jun 2014 | Z25: ='RAB Scenarios'!Z190 -> $, Jun 2014
B27: =$B$12 -> Opening Capital Base | E27: ='RAB Scenarios'!E208 -> 823.3366414 | F27: ='RAB Scenarios'!F208 -> 833.5656356 | G27: ='RAB Scenarios'!G208 -> 830.9030886 | H27: ='RAB Scenarios'!H208 -> 836.1319478 | I27: ='RAB Scenarios'!I208 -> 844.2094918 | J27: ='RAB Scenarios'!J208 -> 857.3963954 | K27: ='RAB Scenarios'!K208 -> 856.1219565 | L27: ='RAB Scenarios'!L208 -> 859.1390047 | M27: ='RAB Scenarios'!M208 -> 862.163231 | N27: ='RAB Scenarios'!N208 -> 864.3768724 | O27: ='RAB Scenarios'!O208 -> 879.7113762 | P27: ='RAB Scenarios'!P208 -> 898.5206849 | Q27: ='RAB Scenarios'!Q208 -> 913.5174774 | R27: ='RAB Scenarios'!R208 -> 923.3150533 | S27: ='RAB Scenarios'!S208 -> 971.5978653 | T27: ='RAB Scenarios'!T208 -> 1020.049174 | U27: ='RAB Scenarios'!U208 -> 1045.292354 | V27: ='RAB Scenarios'!V208 -> 1025.90491 | W27: ='RAB Scenarios'!W208 -> 1110.172015 | X27: ='RAB Scenarios'!X208 -> 1179.939595 | Y27: ='RAB Scenarios'!Y208 -> 1249.553611 | Z27: ='RAB Scenarios'!Z208 -> 1317.247923
B28: =$B$13 -> Vines/Westnet | N28: =Vines!$N$186 -> 0.652389498 | O28: =WestNet!$O$186 -> 3.324552027
B29: =$B$14 -> Capex | E29: ='RAB Scenarios'!E226 -> 36.48099078 | F29: ='RAB Scenarios'!F226 -> 25.02715769 | G29: ='RAB Scenarios'!G226 -> 33.87707807 | H29: ='RAB Scenarios'!H226 -> 37.65350023 | I29: ='RAB Scenarios'!I226 -> 43.63609552 | J29: ='RAB Scenarios'!J226 -> 30.97353797 | K29: ='RAB Scenarios'!K226 -> 37.31871672 | L29: ='RAB Scenarios'!L226 -> 39.22144501 | M29: ='RAB Scenarios'!M226 -> 39.95168856 | N29: ='RAB Scenarios'!N226 -> 47.74435296 | O29: ='RAB Scenarios'!O226 -> 27.80256835 | P29: ='RAB Scenarios'!P226 -> 41.70097602 | Q29: ='RAB Scenarios'!Q226 -> 38.91261334 | R29: ='RAB Scenarios'!R226 -> 79.73016039 | S29: ='RAB Scenarios'!S226 -> 82.40103478 | T29: ='RAB Scenarios'!T226 -> 42.53194465 | U29: ='RAB Scenarios'!U226 -> 0 | V29: ='RAB Scenarios'!V226 -> 103.6545485 | W29: ='RAB Scenarios'!W226 -> 112.0684605 | X29: ='RAB Scenarios'!X226 -> 114.7552529 | Y29: ='RAB Scenarios'!Y226 -> 115.4220216 | Z29: ='RAB Scenarios'!Z226 -> 117.2735469
B30: =$B$15 -> Amounts added to Capital Base under NGR 82,84,86 | E30: ='RAB Scenarios'!E316 -> 0 | F30: ='RAB Scenarios'!F316 -> 0 | G30: ='RAB Scenarios'!G316 -> 0 | H30: ='RAB Scenarios'!H316 -> 0 | I30: ='RAB Scenarios'!I316 -> 0 | J30: ='RAB Scenarios'!J316 -> 0 | K30: ='RAB Scenarios'!K316 -> 0 | L30: ='RAB Scenarios'!L316 -> 0 | M30: ='RAB Scenarios'!M316 -> 0 | N30: ='RAB Scenarios'!N316 -> 0 | O30: ='RAB Scenarios'!O316 -> 0 | P30: ='RAB Scenarios'!P316 -> 0 | Q30: ='RAB Scenarios'!Q316 -> 0 | R30: ='RAB Scenarios'!R316 -> 0 | S30: ='RAB Scenarios'!S316 -> 0 | T30: ='RAB Scenarios'!T316 -> 0 | U30: ='RAB Scenarios'!U316 -> 0 | V30: ='RAB Scenarios'!V316 -> 0 | W30: ='RAB Scenarios'!W316 -> 0 | X30: ='RAB Scenarios'!X316 -> 0 | Y30: ='RAB Scenarios'!Y316 -> 0 | Z30: ='RAB Scenarios'!Z316 -> 0
B31: =$B$16 -> Depreciation | E31: ='RAB Scenarios'!E244 -> 26.25199654 | F31: ='RAB Scenarios'!F244 -> 27.68970464 | G31: ='RAB Scenarios'!G244 -> 28.64821893 | H31: ='RAB Scenarios'!H244 -> 29.57595621 | I31: ='RAB Scenarios'!I244 -> 30.44919188 | J31: ='RAB Scenarios'!J244 -> 32.24797694 | K31: ='RAB Scenarios'!K244 -> 34.30166846 | L31: ='RAB Scenarios'!L244 -> 36.19721875 | M31: ='RAB Scenarios'!M244 -> 37.73804719 | N31: ='RAB Scenarios'!N244 -> 39.70746268 | O31: ='RAB Scenarios'!O244 -> 12.31781168 | P31: ='RAB Scenarios'!P244 -> 26.70418351 | Q31: ='RAB Scenarios'!Q244 -> 29.11503747 | R31: ='RAB Scenarios'!R244 -> 31.44734837 | S31: ='RAB Scenarios'!S244 -> 33.92305033 | T31: ='RAB Scenarios'!T244 -> 17.28876421 | U31: ='RAB Scenarios'!U244 -> 19.38744365 | V31: ='RAB Scenarios'!V244 -> 19.38744365 | W31: ='RAB Scenarios'!W244 -> 42.3008808 | X31: ='RAB Scenarios'!X244 -> 45.1412364 | Y31: ='RAB Scenarios'!Y244 -> 47.72771044 | Z31: ='RAB Scenarios'!Z244 -> 50.34292017
B32: =$B$17 -> Redundant Assets | E32: ='RAB Scenarios'!E262 -> 0 | F32: ='RAB Scenarios'!F262 -> 0 | G32: ='RAB Scenarios'!G262 -> 0 | H32: ='RAB Scenarios'!H262 -> 0 | I32: ='RAB Scenarios'!I262 -> 0 | J32: ='RAB Scenarios'!J262 -> 0 | K32: ='RAB Scenarios'!K262 -> 0 | L32: ='RAB Scenarios'!L262 -> 0 | M32: ='RAB Scenarios'!M262 -> 0 | N32: ='RAB Scenarios'!N262 -> 0 | O32: ='RAB Scenarios'!O262 -> 0 | P32: ='RAB Scenarios'!P262 -> 0 | Q32: ='RAB Scenarios'!Q262 -> 0 | R32: ='RAB Scenarios'!R262 -> 0 | S32: ='RAB Scenarios'!S262 -> 0 | T32: ='RAB Scenarios'!T262 -> 0 | U32: ='RAB Scenarios'!U262 -> 0 | V32: ='RAB Scenarios'!V262 -> 0 | W32: ='RAB Scenarios'!W262 -> 0 | X32: ='RAB Scenarios'!X262 -> 0 | Y32: ='RAB Scenarios'!Y262 -> 0 | Z32: ='RAB Scenarios'!Z262 -> 0
B33: =$B$18 -> Asset Disposals | E33: ='RAB Scenarios'!E280 -> 0 | F33: ='RAB Scenarios'!F280 -> 0 | G33: ='RAB Scenarios'!G280 -> 0 | H33: ='RAB Scenarios'!H280 -> 0 | I33: ='RAB Scenarios'!I280 -> 0 | J33: ='RAB Scenarios'!J280 -> 0 | K33: ='RAB Scenarios'!K280 -> 0 | L33: ='RAB Scenarios'!L280 -> 0 | M33: ='RAB Scenarios'!M280 -> 0 | N33: ='RAB Scenarios'!N280 -> 4.961267652 | O33: ='RAB Scenarios'!O280 -> 0 | P33: ='RAB Scenarios'!P280 -> 0 | Q33: ='RAB Scenarios'!Q280 -> 0 | R33: ='RAB Scenarios'!R280 -> 0 | S33: ='RAB Scenarios'!S280 -> 0 | T33: ='RAB Scenarios'!T280 -> 0 | U33: ='RAB Scenarios'!U280 -> 0 | V33: ='RAB Scenarios'!V280 -> 0 | W33: ='RAB Scenarios'!W280 -> 0 | X33: ='RAB Scenarios'!X280 -> 0 | Y33: ='RAB Scenarios'!Y280 -> 0 | Z33: ='RAB Scenarios'!Z280 -> 0
B34: =$B$19 -> Over Depreciation | E34: ='RAB Scenarios'!E298 -> 0 | F34: ='RAB Scenarios'!F298 -> 0 | G34: ='RAB Scenarios'!G298 -> 0 | H34: ='RAB Scenarios'!H298 -> 0 | I34: ='RAB Scenarios'!I298 -> 1.006139616e-15 | J34: ='RAB Scenarios'!J298 -> 0 | K34: ='RAB Scenarios'!K298 -> 0 | L34: ='RAB Scenarios'!L298 -> 0 | M34: ='RAB Scenarios'!M298 -> 0 | N34: ='RAB Scenarios'!N298 -> -11.6064917 | O34: ='RAB Scenarios'!O298 -> 0 | P34: ='RAB Scenarios'!P298 -> 0 | Q34: ='RAB Scenarios'!Q298 -> 0 | R34: ='RAB Scenarios'!R298 -> 0 | S34: ='RAB Scenarios'!S298 -> 0.01229977415 | T34: ='RAB Scenarios'!T298 -> 0 | U34: ='RAB Scenarios'!U298 -> 0 | V34: ='RAB Scenarios'!V298 -> 0 | W34: ='RAB Scenarios'!W298 -> 0 | X34: ='RAB Scenarios'!X298 -> 0 | Y34: ='RAB Scenarios'!Y298 -> 0 | Z34: ='RAB Scenarios'!Z298 -> 0
B35: =$B$20 -> Deprecation per Tariff Variation | E35: ='RAB Scenarios'!E334 -> 0 | F35: ='RAB Scenarios'!F334 -> 0 | G35: ='RAB Scenarios'!G334 -> 0 | H35: ='RAB Scenarios'!H334 -> 0 | I35: ='RAB Scenarios'!I334 -> 0 | J35: ='RAB Scenarios'!J334 -> 0 | K35: ='RAB Scenarios'!K334 -> 0 | L35: ='RAB Scenarios'!L334 -> 0 | M35: ='RAB Scenarios'!M334 -> 0 | N35: ='RAB Scenarios'!N334 -> 0 | O35: ='RAB Scenarios'!O334 -> 0 | P35: ='RAB Scenarios'!P334 -> 0 | Q35: ='RAB Scenarios'!Q334 -> 0 | R35: ='RAB Scenarios'!R334 -> 0 | S35: ='RAB Scenarios'!S334 -> 0.01437640428 | T35: ='RAB Scenarios'!T334 -> 0 | U35: ='RAB Scenarios'!U334 -> 0 | V35: ='RAB Scenarios'!V334 -> 0 | W35: ='RAB Scenarios'!W334 -> 0 | X35: ='RAB Scenarios'!X334 -> 0 | Y35: ='RAB Scenarios'!Y334 -> 0 | Z35: ='RAB Scenarios'!Z334 -> 0
B36: =$B$21 -> Closing Capital Base | E36: =SUM(E27:E30)-SUM(E31:E35) -> 833.5656356 | F36: 830.9030886 | G36: 836.1319478 | H36: 844.2094918 | I36: 857.3963954 | J36: 856.1219565 | K36: 859.1390047 | L36: 862.163231 | M36: 864.3768724 | N36: 879.7113762 | O36: 898.5206849 | P36: 913.5174774 | Q36: =SUM(Q27:Q30)-SUM(Q31:Q35) -> 923.3150533 | R36: 971.5978653 | S36: 1020.049174 | T36: 1045.292354 | U36: 1025.90491 | V36: 1110.172015 | W36: 1179.939595 | X36: 1249.553611 | Y36: 1317.247923 | Z36: 1384.178549
B37: Check | C37: =SUM(E37:Z37) -> 0 | E37: ='RAB Scenarios'!E352-E36 -> 0 | F37: ='RAB Scenarios'!F352-F36 -> 0 | G37: ='RAB Scenarios'!G352-G36 -> 0 | H37: ='RAB Scenarios'!H352-H36 -> 0 | I37: ='RAB Scenarios'!I352-I36 -> 0 | J37: ='RAB Scenarios'!J352-J36 -> 0 | K37: ='RAB Scenarios'!K352-K36 -> 0 | L37: ='RAB Scenarios'!L352-L36 -> 0 | M37: ='RAB Scenarios'!M352-M36 -> 0 | N37: ='RAB Scenarios'!N352-N36 -> 0 | O37: ='RAB Scenarios'!O352-O36 -> 0 | P37: ='RAB Scenarios'!P352-P36 -> 0 | Q37: ='RAB Scenarios'!Q352-Q36 -> 0 | R37: ='RAB Scenarios'!R352-R36 -> 0 | S37: ='RAB Scenarios'!S352-S36 -> 0 | T37: ='RAB Scenarios'!T352-T36 -> 0 | U37: ='RAB Scenarios'!U352-U36 -> 0 | V37: ='RAB Scenarios'!V352-V36 -> 0 | W37: ='RAB Scenarios'!W352-W36 -> 0 | X37: ='RAB Scenarios'!X352-X36 -> 0 | Y37: ='RAB Scenarios'!Y352-Y36 -> 0 | Z37: ='RAB Scenarios'!Z352-Z36 -> 0
B40: ='RAB Scenarios'!B356 -> CCA | E40: ='RAB Scenarios'!E356 -> $, Jun 2014 | F40: ='RAB Scenarios'!F356 -> $, Jun 2014 | G40: ='RAB Scenarios'!G356 -> $, Jun 2014 | H40: ='RAB Scenarios'!H356 -> $, Jun 2014 | I40: ='RAB Scenarios'!I356 -> $, Jun 2014 | J40: ='RAB Scenarios'!J356 -> $, Jun 2014 | K40: ='RAB Scenarios'!K356 -> $, Jun 2014 | L40: ='RAB Scenarios'!L356 -> $, Jun 2014 | M40: ='RAB Scenarios'!M356 -> $, Jun 2014 | N40: ='RAB Scenarios'!N356 -> $, Jun 2014 | O40: ='RAB Scenarios'!O356 -> $, Jun 2014 | P40: ='RAB Scenarios'!P356 -> $, Jun 2014 | Q40: ='RAB Scenarios'!Q356 -> $, Jun 2014 | R40: ='RAB Scenarios'!R356 -> $, Jun 2014 | S40: ='RAB Scenarios'!S356 -> $, Jun 2014 | T40: ='RAB Scenarios'!T356 -> CCA | U40: ='RAB Scenarios'!U356 -> CCA | V40: ='RAB Scenarios'!V356 -> CCA | W40: ='RAB Scenarios'!W356 -> CCA | X40: ='RAB Scenarios'!X356 -> CCA | Y40: ='RAB Scenarios'!Y356 -> CCA | Z40: ='RAB Scenarios'!Z356 -> CCA
B42: =$B$12 -> Opening Capital Base | E42: ='RAB Scenarios'!E432 -> 823.3366414 | F42: ='RAB Scenarios'!F432 -> 833.5656356 | G42: ='RAB Scenarios'!G432 -> 830.9030886 | H42: ='RAB Scenarios'!H432 -> 836.1319478 | I42: ='RAB Scenarios'!I432 -> 844.2094918 | J42: ='RAB Scenarios'!J432 -> 857.3963954 | K42: ='RAB Scenarios'!K432 -> 856.1219565 | L42: ='RAB Scenarios'!L432 -> 859.1390047 | M42: ='RAB Scenarios'!M432 -> 862.163231 | N42: ='RAB Scenarios'!N432 -> 864.3768724 | O42: ='RAB Scenarios'!O432 -> 879.7113762 | P42: ='RAB Scenarios'!P432 -> 898.5206849 | Q42: ='RAB Scenarios'!Q432 -> 913.5174774 | R42: ='RAB Scenarios'!R432 -> 923.3150533 | S42: ='RAB Scenarios'!S432 -> 971.5978653 | T42: ='RAB Scenarios'!T432 -> 1020.049174 | U42: ='RAB Scenarios'!U432 -> 1058.27785 | V42: ='RAB Scenarios'!V432 -> 1051.305665 | W42: ='RAB Scenarios'!W432 -> 1151.899268 | X42: ='RAB Scenarios'!X432 -> 1254.906901 | Y42: ='RAB Scenarios'!Y432 -> 1362.177554 | Z42: ='RAB Scenarios'!Z432 -> 1471.882104
B43: =$B$13 -> Vines/Westnet | N43: =Vines!$N$186 -> 0.652389498 | O43: =WestNet!$O$186 -> 3.324552027
B44: =$B$14 -> Capex | E44: ='RAB Scenarios'!E450 -> 36.48099078 | F44: ='RAB Scenarios'!F450 -> 25.02715769 | G44: ='RAB Scenarios'!G450 -> 33.87707807 | H44: ='RAB Scenarios'!H450 -> 37.65350023 | I44: ='RAB Scenarios'!I450 -> 43.63609552 | J44: ='RAB Scenarios'!J450 -> 30.97353797 | K44: ='RAB Scenarios'!K450 -> 37.31871672 | L44: ='RAB Scenarios'!L450 -> 39.22144501 | M44: ='RAB Scenarios'!M450 -> 39.95168856 | N44: ='RAB Scenarios'!N450 -> 47.74435296 | O44: ='RAB Scenarios'!O450 -> 27.80256835 | P44: ='RAB Scenarios'!P450 -> 41.70097602 | Q44: ='RAB Scenarios'!Q450 -> 38.91261334 | R44: ='RAB Scenarios'!R450 -> 79.73016039 | S44: ='RAB Scenarios'!S450 -> 82.40103478 | T44: ='RAB Scenarios'!T450 -> 43.06031204 | U44: ='RAB Scenarios'!U450 -> 0 | V44: ='RAB Scenarios'!V450 -> 107.5657878 | W44: ='RAB Scenarios'!W450 -> 119.204615 | X44: ='RAB Scenarios'!X450 -> 125.1140559 | Y44: ='RAB Scenarios'!Y450 -> 128.9870383 | Z44: ='RAB Scenarios'!Z450 -> 134.332569
B45: =$B$15 -> Amounts added to Capital Base under NGR 82,84,86 | E45: ='RAB Scenarios'!E540 -> 0 | F45: ='RAB Scenarios'!F540 -> 0 | G45: ='RAB Scenarios'!G540 -> 0 | H45: ='RAB Scenarios'!H540 -> 0 | I45: ='RAB Scenarios'!I540 -> 0 | J45: ='RAB Scenarios'!J540 -> 0 | K45: ='RAB Scenarios'!K540 -> 0 | L45: ='RAB Scenarios'!L540 -> 0 | M45: ='RAB Scenarios'!M540 -> 0 | N45: ='RAB Scenarios'!N540 -> 0 | O45: ='RAB Scenarios'!O540 -> 0 | P45: ='RAB Scenarios'!P540 -> 0 | Q45: ='RAB Scenarios'!Q540 -> 0 | R45: ='RAB Scenarios'!R540 -> 0 | S45: ='RAB Scenarios'!S540 -> 0 | T45: ='RAB Scenarios'!T540 -> 0 | U45: ='RAB Scenarios'!U540 -> 0 | V45: ='RAB Scenarios'!V540 -> 0 | W45: ='RAB Scenarios'!W540 -> 0 | X45: ='RAB Scenarios'!X540 -> 0 | Y45: ='RAB Scenarios'!Y540 -> 0 | Z45: ='RAB Scenarios'!Z540 -> 0
B46: Inflation on asset base | E46: =-'RAB Scenarios'!E378 -> 0 | F46: =-'RAB Scenarios'!F378 -> 0 | G46: =-'RAB Scenarios'!G378 -> 0 | H46: =-'RAB Scenarios'!H378 -> 0 | I46: =-'RAB Scenarios'!I378 -> 0 | J46: =-'RAB Scenarios'!J378 -> 0 | K46: =-'RAB Scenarios'!K378 -> 0 | L46: =-'RAB Scenarios'!L378 -> 0 | M46: =-'RAB Scenarios'!M378 -> 0 | N46: =-'RAB Scenarios'!N378 -> 0 | O46: =-'RAB Scenarios'!O378 -> 0 | P46: =-'RAB Scenarios'!P378 -> 0 | Q46: =-'RAB Scenarios'!Q378 -> 0 | R46: =-'RAB Scenarios'!R378 -> 0 | S46: =-'RAB Scenarios'!S378 -> 0 | T46: =-'RAB Scenarios'!T378 -> -12.67190417 | U46: =-'RAB Scenarios'!U378 -> -13.14681277 | V46: =-'RAB Scenarios'!V378 -> -13.14681277 | W46: =-'RAB Scenarios'!W378 -> -28.79748169 | X46: =-'RAB Scenarios'!X378 -> -31.37267253 | Y46: =-'RAB Scenarios'!Y378 -> -34.05443886 | Z46: =-'RAB Scenarios'!Z378 -> -36.79705259
B47: Nominal depreciaiton | E47: ='RAB Scenarios'!E396-'RAB Scenarios'!E414 -> 0 | F47: ='RAB Scenarios'!F396-'RAB Scenarios'!F414 -> 0 | G47: ='RAB Scenarios'!G396-'RAB Scenarios'!G414 -> 0 | H47: ='RAB Scenarios'!H396-'RAB Scenarios'!H414 -> 0 | I47: ='RAB Scenarios'!I396-'RAB Scenarios'!I414 -> 0 | J47: ='RAB Scenarios'!J396-'RAB Scenarios'!J414 -> 0 | K47: ='RAB Scenarios'!K396-'RAB Scenarios'!K414 -> 0 | L47: ='RAB Scenarios'!L396-'RAB Scenarios'!L414 -> 0 | M47: ='RAB Scenarios'!M396-'RAB Scenarios'!M414 -> 0 | N47: ='RAB Scenarios'!N396-'RAB Scenarios'!N414 -> 0 | O47: ='RAB Scenarios'!O396-'RAB Scenarios'!O414 -> 0 | P47: ='RAB Scenarios'!P396-'RAB Scenarios'!P414 -> 0 | Q47: ='RAB Scenarios'!Q396-'RAB Scenarios'!Q414 -> 0 | R47: ='RAB Scenarios'!R396-'RAB Scenarios'!R414 -> 0 | S47: ='RAB Scenarios'!S396-'RAB Scenarios'!S414 -> 0 | T47: ='RAB Scenarios'!T396-'RAB Scenarios'!T414 -> 17.5035397 | U47: ='RAB Scenarios'!U396-'RAB Scenarios'!U414 -> 20.11899796 | V47: ='RAB Scenarios'!V396-'RAB Scenarios'!V414 -> 20.11899796 | W47: ='RAB Scenarios'!W396-'RAB Scenarios'!W414 -> 44.9944631 | X47: ='RAB Scenarios'!X396-'RAB Scenarios'!X414 -> 49.21607537 | Y47: ='RAB Scenarios'!Y396-'RAB Scenarios'!Y414 -> 53.33692763 | Z47: ='RAB Scenarios'!Z396-'RAB Scenarios'!Z414 -> 57.66597815
B48: =$B$16 -> Depreciation | E48: ='RAB Scenarios'!E468 -> 26.25199654 | F48: ='RAB Scenarios'!F468 -> 27.68970464 | G48: ='RAB Scenarios'!G468 -> 28.64821893 | H48: ='RAB Scenarios'!H468 -> 29.57595621 | I48: ='RAB Scenarios'!I468 -> 30.44919188 | J48: ='RAB Scenarios'!J468 -> 32.24797694 | K48: ='RAB Scenarios'!K468 -> 34.30166846 | L48: ='RAB Scenarios'!L468 -> 36.19721875 | M48: ='RAB Scenarios'!M468 -> 37.73804719 | N48: ='RAB Scenarios'!N468 -> 39.70746268 | O48: ='RAB Scenarios'!O468 -> 12.31781168 | P48: ='RAB Scenarios'!P468 -> 26.70418351 | Q48: ='RAB Scenarios'!Q468 -> 29.11503747 | R48: ='RAB Scenarios'!R468 -> 31.44734837 | S48: ='RAB Scenarios'!S468 -> 33.92305033 | T48: ='RAB Scenarios'!T468 -> 4.831635532 | U48: ='RAB Scenarios'!U468 -> 6.972185187 | V48: ='RAB Scenarios'!V468 -> 6.972185187 | W48: ='RAB Scenarios'!W468 -> 16.19698141 | X48: ='RAB Scenarios'!X468 -> 17.84340285 | Y48: ='RAB Scenarios'!Y468 -> 19.28248878 | Z48: ='RAB Scenarios'!Z468 -> 20.86892556
B49: =$B$17 -> Redundant Assets | E49: ='RAB Scenarios'!E486 -> 0 | F49: ='RAB Scenarios'!F486 -> 0 | G49: ='RAB Scenarios'!G486 -> 0 | H49: ='RAB Scenarios'!H486 -> 0 | I49: ='RAB Scenarios'!I486 -> 0 | J49: ='RAB Scenarios'!J486 -> 0 | K49: ='RAB Scenarios'!K486 -> 0 | L49: ='RAB Scenarios'!L486 -> 0 | M49: ='RAB Scenarios'!M486 -> 0 | N49: ='RAB Scenarios'!N486 -> 0 | O49: ='RAB Scenarios'!O486 -> 0 | P49: ='RAB Scenarios'!P486 -> 0 | Q49: ='RAB Scenarios'!Q486 -> 0 | R49: ='RAB Scenarios'!R486 -> 0 | S49: ='RAB Scenarios'!S486 -> 0 | T49: ='RAB Scenarios'!T486 -> 0 | U49: ='RAB Scenarios'!U486 -> 0 | V49: ='RAB Scenarios'!V486 -> 0 | W49: ='RAB Scenarios'!W486 -> 0 | X49: ='RAB Scenarios'!X486 -> 0 | Y49: ='RAB Scenarios'!Y486 -> 0 | Z49: ='RAB Scenarios'!Z486 -> 0
B50: =$B$18 -> Asset Disposals | E50: ='RAB Scenarios'!E504 -> 0 | F50: ='RAB Scenarios'!F504 -> 0 | G50: ='RAB Scenarios'!G504 -> 0 | H50: ='RAB Scenarios'!H504 -> 0 | I50: ='RAB Scenarios'!I504 -> 0 | J50: ='RAB Scenarios'!J504 -> 0 | K50: ='RAB Scenarios'!K504 -> 0 | L50: ='RAB Scenarios'!L504 -> 0 | M50: ='RAB Scenarios'!M504 -> 0 | N50: ='RAB Scenarios'!N504 -> 4.961267652 | O50: ='RAB Scenarios'!O504 -> 0 | P50: ='RAB Scenarios'!P504 -> 0 | Q50: ='RAB Scenarios'!Q504 -> 0 | R50: ='RAB Scenarios'!R504 -> 0 | S50: ='RAB Scenarios'!S504 -> 0 | T50: ='RAB Scenarios'!T504 -> 0 | U50: ='RAB Scenarios'!U504 -> 0 | V50: ='RAB Scenarios'!V504 -> 0 | W50: ='RAB Scenarios'!W504 -> 0 | X50: ='RAB Scenarios'!X504 -> 0 | Y50: ='RAB Scenarios'!Y504 -> 0 | Z50: ='RAB Scenarios'!Z504 -> 0
B51: =$B$19 -> Over Depreciation | E51: ='RAB Scenarios'!E522 -> 0 | F51: ='RAB Scenarios'!F522 -> 0 | G51: ='RAB Scenarios'!G522 -> 0 | H51: ='RAB Scenarios'!H522 -> 0 | I51: ='RAB Scenarios'!I522 -> 1.006139616e-15 | J51: ='RAB Scenarios'!J522 -> 0 | K51: ='RAB Scenarios'!K522 -> 0 | L51: ='RAB Scenarios'!L522 -> 0 | M51: ='RAB Scenarios'!M522 -> 0 | N51: ='RAB Scenarios'!N522 -> -11.6064917 | O51: ='RAB Scenarios'!O522 -> 0 | P51: ='RAB Scenarios'!P522 -> 0 | Q51: ='RAB Scenarios'!Q522 -> 0 | R51: ='RAB Scenarios'!R522 -> 0 | S51: ='RAB Scenarios'!S522 -> 0.01229977415 | T51: ='RAB Scenarios'!T522 -> 0 | U51: ='RAB Scenarios'!U522 -> 0 | V51: ='RAB Scenarios'!V522 -> 0 | W51: ='RAB Scenarios'!W522 -> 0 | X51: ='RAB Scenarios'!X522 -> 0 | Y51: ='RAB Scenarios'!Y522 -> 0 | Z51: ='RAB Scenarios'!Z522 -> 0
B52: =$B$20 -> Deprecation per Tariff Variation | E52: ='RAB Scenarios'!E558 -> 0 | F52: ='RAB Scenarios'!F558 -> 0 | G52: ='RAB Scenarios'!G558 -> 0 | H52: ='RAB Scenarios'!H558 -> 0 | I52: ='RAB Scenarios'!I558 -> 0 | J52: ='RAB Scenarios'!J558 -> 0 | K52: ='RAB Scenarios'!K558 -> 0 | L52: ='RAB Scenarios'!L558 -> 0 | M52: ='RAB Scenarios'!M558 -> 0 | N52: ='RAB Scenarios'!N558 -> 0 | O52: ='RAB Scenarios'!O558 -> 0 | P52: ='RAB Scenarios'!P558 -> 0 | Q52: ='RAB Scenarios'!Q558 -> 0 | R52: ='RAB Scenarios'!R558 -> 0 | S52: ='RAB Scenarios'!S558 -> 0.01437640428 | T52: ='RAB Scenarios'!T558 -> 0 | U52: ='RAB Scenarios'!U558 -> 0 | V52: ='RAB Scenarios'!V558 -> 0 | W52: ='RAB Scenarios'!W558 -> 0 | X52: ='RAB Scenarios'!X558 -> 0 | Y52: ='RAB Scenarios'!Y558 -> 0 | Z52: ='RAB Scenarios'!Z558 -> 0
B53: =$B$21 -> Closing Capital Base | E53: =SUM(E42:E45)-SUM(E48:E52) -> 833.5656356 | F53: =SUM(F42:F45)-SUM(F48:F52) -> 830.9030886 | G53: 836.1319478 | H53: 844.2094918 | I53: 857.3963954 | J53: 856.1219565 | K53: 859.1390047 | L53: 862.163231 | M53: 864.3768724 | N53: =SUM(N42:N45)-SUM(N48:N52) -> 879.7113762 | O53: 898.5206849 | P53: 913.5174774 | Q53: 923.3150533 | R53: 971.5978653 | S53: 1020.049174 | T53: 1058.27785 | U53: 1051.305665 | V53: 1151.899268 | W53: 1254.906901 | X53: 1362.177554 | Y53: 1471.882104 | Z53: 1585.345747
B54: Check | C54: =SUM(E54:Z54) -> 0 | E54: ='RAB Scenarios'!E576-E53 -> 0 | F54: ='RAB Scenarios'!F576-F53 -> 0 | G54: ='RAB Scenarios'!G576-G53 -> 0 | H54: ='RAB Scenarios'!H576-H53 -> 0 | I54: ='RAB Scenarios'!I576-I53 -> 0 | J54: ='RAB Scenarios'!J576-J53 -> 0 | K54: ='RAB Scenarios'!K576-K53 -> 0 | L54: ='RAB Scenarios'!L576-L53 -> 0 | M54: ='RAB Scenarios'!M576-M53 -> 0 | N54: ='RAB Scenarios'!N576-N53 -> 0 | O54: ='RAB Scenarios'!O576-O53 -> 0 | P54: ='RAB Scenarios'!P576-P53 -> 0 | Q54: ='RAB Scenarios'!Q576-Q53 -> 0 | R54: ='RAB Scenarios'!R576-R53 -> 0 | S54: ='RAB Scenarios'!S576-S53 -> 0 | T54: ='RAB Scenarios'!T576-T53 -> 0 | U54: ='RAB Scenarios'!U576-U53 -> 0 | V54: ='RAB Scenarios'!V576-V53 -> 0 | W54: ='RAB Scenarios'!W576-W53 -> 0 | X54: ='RAB Scenarios'!X576-X53 -> 0 | Y54: ='RAB Scenarios'!Y576-Y53 -> 0 | Z54: ='RAB Scenarios'!Z576-Z53 -> 0
B57: ='RAB Scenarios'!B580 -> Transition method | E57: ='RAB Scenarios'!E580 -> $, Jun 2014 | F57: ='RAB Scenarios'!F580 -> $, Jun 2014 | G57: ='RAB Scenarios'!G580 -> $, Jun 2014 | H57: ='RAB Scenarios'!H580 -> $, Jun 2014 | I57: ='RAB Scenarios'!I580 -> $, Jun 2014 | J57: ='RAB Scenarios'!J580 -> $, Jun 2014 | K57: ='RAB Scenarios'!K580 -> $, Jun 2014 | L57: ='RAB Scenarios'!L580 -> $, Jun 2014 | M57: ='RAB Scenarios'!M580 -> $, Jun 2014 | N57: ='RAB Scenarios'!N580 -> $, Jun 2014 | O57: ='RAB Scenarios'!O580 -> $, Jun 2014 | P57: ='RAB Scenarios'!P580 -> $, Jun 2014 | Q57: ='RAB Scenarios'!Q580 -> $, Jun 2014 | R57: ='RAB Scenarios'!R580 -> $, Jun 2014 | S57: ='RAB Scenarios'!S580 -> $, Jun 2014 | T57: ='RAB Scenarios'!T580 -> CCA/$, nominal | U57: ='RAB Scenarios'!U580 -> CCA/$, nominal | V57: ='RAB Scenarios'!V580 -> CCA/$, nominal | W57: ='RAB Scenarios'!W580 -> CCA/$, nominal | X57: ='RAB Scenarios'!X580 -> CCA/$, nominal | Y57: ='RAB Scenarios'!Y580 -> CCA/$, nominal | Z57: ='RAB Scenarios'!Z580 -> CCA/$, nominal
B59: =$B$12 -> Opening Capital Base | E59: ='RAB Scenarios'!E598 -> 823.3366414 | F59: ='RAB Scenarios'!F598 -> 833.5656356 | G59: ='RAB Scenarios'!G598 -> 830.9030886 | H59: ='RAB Scenarios'!H598 -> 836.1319478 | I59: ='RAB Scenarios'!I598 -> 844.2094918 | J59: ='RAB Scenarios'!J598 -> 857.3963954 | K59: ='RAB Scenarios'!K598 -> 856.1219565 | L59: ='RAB Scenarios'!L598 -> 859.1390047 | M59: ='RAB Scenarios'!M598 -> 862.163231 | N59: ='RAB Scenarios'!N598 -> 864.3768724 | O59: ='RAB Scenarios'!O598 -> 879.7113762 | P59: ='RAB Scenarios'!P598 -> 898.5206849 | Q59: ='RAB Scenarios'!Q598 -> 913.5174774 | R59: ='RAB Scenarios'!R598 -> 923.3150533 | S59: ='RAB Scenarios'!S598 -> 971.5978653 | T59: ='RAB Scenarios'!T598 -> 1020.049174 | U59: ='RAB Scenarios'!U598 -> 1058.27785 | V59: ='RAB Scenarios'!V598 -> 1050.797394 | W59: ='RAB Scenarios'!W598 -> 1150.882726 | X59: ='RAB Scenarios'!X598 -> 1250.363971 | Y59: ='RAB Scenarios'!Y598 -> 1351.463393 | Z59: ='RAB Scenarios'!Z598 -> 1452.357274
B60: =$B$13 -> Vines/Westnet | N60: =Vines!$N$186 -> 0.652389498 | O60: =WestNet!$O$186 -> 3.324552027
B61: =$B$14 -> Capex | E61: ='RAB Scenarios'!E616 -> 36.48099078 | F61: ='RAB Scenarios'!F616 -> 25.02715769 | G61: ='RAB Scenarios'!G616 -> 33.87707807 | H61: ='RAB Scenarios'!H616 -> 37.65350023 | I61: ='RAB Scenarios'!I616 -> 43.63609552 | J61: ='RAB Scenarios'!J616 -> 30.97353797 | K61: ='RAB Scenarios'!K616 -> 37.31871672 | L61: ='RAB Scenarios'!L616 -> 39.22144501 | M61: ='RAB Scenarios'!M616 -> 39.95168856 | N61: ='RAB Scenarios'!N616 -> 47.74435296 | O61: ='RAB Scenarios'!O616 -> 27.80256835 | P61: ='RAB Scenarios'!P616 -> 41.70097602 | Q61: ='RAB Scenarios'!Q616 -> 38.91261334 | R61: ='RAB Scenarios'!R616 -> 79.73016039 | S61: ='RAB Scenarios'!S616 -> 82.40103478 | T61: ='RAB Scenarios'!T616 -> 43.06031204 | U61: ='RAB Scenarios'!U616 -> 0 | V61: ='RAB Scenarios'!V616 -> 107.5657878 | W61: ='RAB Scenarios'!W616 -> 119.204615 | X61: ='RAB Scenarios'!X616 -> 125.1140559 | Y61: ='RAB Scenarios'!Y616 -> 128.9870383 | Z61: ='RAB Scenarios'!Z616 -> 134.332569
B62: =$B$15 -> Amounts added to Capital Base under NGR 82,84,86 | E62: ='RAB Scenarios'!E706 -> 0 | F62: ='RAB Scenarios'!F706 -> 0 | G62: ='RAB Scenarios'!G706 -> 0 | H62: ='RAB Scenarios'!H706 -> 0 | I62: ='RAB Scenarios'!I706 -> 0 | J62: ='RAB Scenarios'!J706 -> 0 | K62: ='RAB Scenarios'!K706 -> 0 | L62: ='RAB Scenarios'!L706 -> 0 | M62: ='RAB Scenarios'!M706 -> 0 | N62: ='RAB Scenarios'!N706 -> 0 | O62: ='RAB Scenarios'!O706 -> 0 | P62: ='RAB Scenarios'!P706 -> 0 | Q62: ='RAB Scenarios'!Q706 -> 0 | R62: ='RAB Scenarios'!R706 -> 0 | S62: ='RAB Scenarios'!S706 -> 0 | T62: ='RAB Scenarios'!T706 -> 0 | U62: ='RAB Scenarios'!U706 -> 0 | V62: ='RAB Scenarios'!V706 -> 0 | W62: ='RAB Scenarios'!W706 -> 0 | X62: ='RAB Scenarios'!X706 -> 0 | Y62: ='RAB Scenarios'!Y706 -> 0 | Z62: ='RAB Scenarios'!Z706 -> 0
B63: =$B$16 -> Depreciation | E63: ='RAB Scenarios'!E634 -> 26.25199654 | F63: ='RAB Scenarios'!F634 -> 27.68970464 | G63: ='RAB Scenarios'!G634 -> 28.64821893 | H63: ='RAB Scenarios'!H634 -> 29.57595621 | I63: ='RAB Scenarios'!I634 -> 30.44919188 | J63: ='RAB Scenarios'!J634 -> 32.24797694 | K63: ='RAB Scenarios'!K634 -> 34.30166846 | L63: ='RAB Scenarios'!L634 -> 36.19721875 | M63: ='RAB Scenarios'!M634 -> 37.73804719 | N63: ='RAB Scenarios'!N634 -> 39.70746268 | O63: ='RAB Scenarios'!O634 -> 12.31781168 | P63: ='RAB Scenarios'!P634 -> 26.70418351 | Q63: ='RAB Scenarios'!Q634 -> 29.11503747 | R63: ='RAB Scenarios'!R634 -> 31.44734837 | S63: ='RAB Scenarios'!S634 -> 33.92305033 | T63: ='RAB Scenarios'!T634 -> 4.831635532 | U63: ='RAB Scenarios'!U634 -> 7.480455837 | V63: ='RAB Scenarios'!V634 -> 7.480455837 | W63: ='RAB Scenarios'!W634 -> 19.72337001 | X63: ='RAB Scenarios'!X634 -> 24.01463406 | Y63: ='RAB Scenarios'!Y634 -> 28.09315781 | Z63: ='RAB Scenarios'!Z634 -> 32.23296939
B64: =$B$17 -> Redundant Assets | E64: ='RAB Scenarios'!E652 -> 0 | F64: ='RAB Scenarios'!F652 -> 0 | G64: ='RAB Scenarios'!G652 -> 0 | H64: ='RAB Scenarios'!H652 -> 0 | I64: ='RAB Scenarios'!I652 -> 0 | J64: ='RAB Scenarios'!J652 -> 0 | K64: ='RAB Scenarios'!K652 -> 0 | L64: ='RAB Scenarios'!L652 -> 0 | M64: ='RAB Scenarios'!M652 -> 0 | N64: ='RAB Scenarios'!N652 -> 0 | O64: ='RAB Scenarios'!O652 -> 0 | P64: ='RAB Scenarios'!P652 -> 0 | Q64: ='RAB Scenarios'!Q652 -> 0 | R64: ='RAB Scenarios'!R652 -> 0 | S64: ='RAB Scenarios'!S652 -> 0 | T64: ='RAB Scenarios'!T652 -> 0 | U64: ='RAB Scenarios'!U652 -> 0 | V64: ='RAB Scenarios'!V652 -> 0 | W64: ='RAB Scenarios'!W652 -> 0 | X64: ='RAB Scenarios'!X652 -> 0 | Y64: ='RAB Scenarios'!Y652 -> 0 | Z64: ='RAB Scenarios'!Z652 -> 0
B65: =$B$18 -> Asset Disposals | E65: ='RAB Scenarios'!E670 -> 0 | F65: ='RAB Scenarios'!F670 -> 0 | G65: ='RAB Scenarios'!G670 -> 0 | H65: ='RAB Scenarios'!H670 -> 0 | I65: ='RAB Scenarios'!I670 -> 0 | J65: ='RAB Scenarios'!J670 -> 0 | K65: ='RAB Scenarios'!K670 -> 0 | L65: ='RAB Scenarios'!L670 -> 0 | M65: ='RAB Scenarios'!M670 -> 0 | N65: ='RAB Scenarios'!N670 -> 4.961267652 | O65: ='RAB Scenarios'!O670 -> 0 | P65: ='RAB Scenarios'!P670 -> 0 | Q65: ='RAB Scenarios'!Q670 -> 0 | R65: ='RAB Scenarios'!R670 -> 0 | S65: ='RAB Scenarios'!S670 -> 0 | T65: ='RAB Scenarios'!T670 -> 0 | U65: ='RAB Scenarios'!U670 -> 0 | V65: ='RAB Scenarios'!V670 -> 0 | W65: ='RAB Scenarios'!W670 -> 0 | X65: ='RAB Scenarios'!X670 -> 0 | Y65: ='RAB Scenarios'!Y670 -> 0 | Z65: ='RAB Scenarios'!Z670 -> 0
B66: =$B$19 -> Over Depreciation | E66: ='RAB Scenarios'!E688 -> 0 | F66: ='RAB Scenarios'!F688 -> 0 | G66: ='RAB Scenarios'!G688 -> 0 | H66: ='RAB Scenarios'!H688 -> 0 | I66: ='RAB Scenarios'!I688 -> 1.006139616e-15 | J66: ='RAB Scenarios'!J688 -> 0 | K66: ='RAB Scenarios'!K688 -> 0 | L66: ='RAB Scenarios'!L688 -> 0 | M66: ='RAB Scenarios'!M688 -> 0 | N66: ='RAB Scenarios'!N688 -> -11.6064917 | O66: ='RAB Scenarios'!O688 -> 0 | P66: ='RAB Scenarios'!P688 -> 0 | Q66: ='RAB Scenarios'!Q688 -> 0 | R66: ='RAB Scenarios'!R688 -> 0 | S66: ='RAB Scenarios'!S688 -> 0.01229977415 | T66: ='RAB Scenarios'!T688 -> 0 | U66: ='RAB Scenarios'!U688 -> 0 | V66: ='RAB Scenarios'!V688 -> 0 | W66: ='RAB Scenarios'!W688 -> 0 | X66: ='RAB Scenarios'!X688 -> 0 | Y66: ='RAB Scenarios'!Y688 -> 0 | Z66: ='RAB Scenarios'!Z688 -> 0
B67: =$B$20 -> Deprecation per Tariff Variation | E67: ='RAB Scenarios'!E724 -> 0 | F67: ='RAB Scenarios'!F724 -> 0 | G67: ='RAB Scenarios'!G724 -> 0 | H67: ='RAB Scenarios'!H724 -> 0 | I67: ='RAB Scenarios'!I724 -> 0 | J67: ='RAB Scenarios'!J724 -> 0 | K67: ='RAB Scenarios'!K724 -> 0 | L67: ='RAB Scenarios'!L724 -> 0 | M67: ='RAB Scenarios'!M724 -> 0 | N67: ='RAB Scenarios'!N724 -> 0 | O67: ='RAB Scenarios'!O724 -> 0 | P67: ='RAB Scenarios'!P724 -> 0 | Q67: ='RAB Scenarios'!Q724 -> 0 | R67: ='RAB Scenarios'!R724 -> 0 | S67: ='RAB Scenarios'!S724 -> 0.01437640428 | T67: ='RAB Scenarios'!T724 -> 0 | U67: ='RAB Scenarios'!U724 -> 0 | V67: ='RAB Scenarios'!V724 -> 0 | W67: ='RAB Scenarios'!W724 -> 0 | X67: ='RAB Scenarios'!X724 -> 0 | Y67: ='RAB Scenarios'!Y724 -> 0 | Z67: ='RAB Scenarios'!Z724 -> 0
B68: =$B$21 -> Closing Capital Base | E68: =SUM(E59:E62)-SUM(E63:E67) -> 833.5656356 | F68: =SUM(F59:F62)-SUM(F63:F67) -> 830.9030886 | G68: 836.1319478 | H68: 844.2094918 | I68: 857.3963954 | J68: 856.1219565 | K68: 859.1390047 | L68: 862.163231 | M68: 864.3768724 | N68: 879.7113762 | O68: 898.5206849 | P68: 913.5174774 | Q68: 923.3150533 | R68: 971.5978653 | S68: 1020.049174 | T68: 1058.27785 | U68: 1050.797394 | V68: 1150.882726 | W68: 1250.363971 | X68: 1351.463393 | Y68: 1452.357274 | Z68: 1554.456873
B69: Check | C69: =SUM(E69:Z69) -> 0 | E69: ='RAB Scenarios'!E742-E68 -> 0 | F69: ='RAB Scenarios'!F742-F68 -> 0 | G69: ='RAB Scenarios'!G742-G68 -> 0 | H69: ='RAB Scenarios'!H742-H68 -> 0 | I69: ='RAB Scenarios'!I742-I68 -> 0 | J69: ='RAB Scenarios'!J742-J68 -> 0 | K69: ='RAB Scenarios'!K742-K68 -> 0 | L69: ='RAB Scenarios'!L742-L68 -> 0 | M69: ='RAB Scenarios'!M742-M68 -> 0 | N69: ='RAB Scenarios'!N742-N68 -> 0 | O69: ='RAB Scenarios'!O742-O68 -> 0 | P69: ='RAB Scenarios'!P742-P68 -> 0 | Q69: ='RAB Scenarios'!Q742-Q68 -> 0 | R69: ='RAB Scenarios'!R742-R68 -> 0 | S69: ='RAB Scenarios'!S742-S68 -> 0 | T69: ='RAB Scenarios'!T742-T68 -> 0 | U69: ='RAB Scenarios'!U742-U68 -> 0 | V69: ='RAB Scenarios'!V742-V68 -> 0 | W69: ='RAB Scenarios'!W742-W68 -> 0 | X69: ='RAB Scenarios'!X742-X68 -> 0 | Y69: ='RAB Scenarios'!Y742-Y68 -> 0 | Z69: ='RAB Scenarios'!Z742-Z68 -> 0
B72: Historic Cost (for calculation of interest tax deduction)
B75: Interest for cacluation of taxable income
B76: Nominal cost of debt | C76: =Inputs!T$69 -> 0.0709
B77: Debt funding Portion | C77: =Inputs!T$56 -> 0.6
B79: Nominal Cost of Debt for period | T79: =IF(T$6<1,(1+$C$76)^(Inputs!T$5/Inputs!$C$37)-1,$C$76) -> 0.03513433717 | U79: =IF(U$6<1,(1+$C$76)^(Inputs!U$5/Inputs!$C$37)-1,$C$76) -> 0.03455171135 | V79: =IF(V$6<1,(1+$C$76)^(Inputs!V$5/Inputs!$C$37)-1,$C$76) -> 0.03513433717 | W79: =IF(W$6<1,(1+$C$76)^(Inputs!W$5/Inputs!$C$37)-1,$C$76) -> 0.0709 | X79: =IF(X$6<1,(1+$C$76)^(Inputs!X$5/Inputs!$C$37)-1,$C$76) -> 0.0709 | Y79: =IF(Y$6<1,(1+$C$76)^(Inputs!Y$5/Inputs!$C$37)-1,$C$76) -> 0.0709 | Z79: =IF(Z$6<1,(1+$C$76)^(Inputs!Z$5/Inputs!$C$37)-1,$C$76) -> 0.0709
B80: Interest Costs for tax purposes | T80: =T79*T84*$C$77 -> 16.53531556 | U80: =U79*U84*$C$77 -> 16.83868081 | V80: =V79*V84*$C$77 -> 16.78377365 | W80: =W79*W84*$C$77 -> 37.76853977 | X80: =X79*X84*$C$77 -> 41.33030761 | Y80: =Y79*Y84*$C$77 -> 45.01946645 | Z80: 48.74261378
B84: =$B$12 -> Opening Capital Base | E84: ='RAB Scenarios'!E764 -> 535.7571798 | F84: ='RAB Scenarios'!F764 -> 543.84922 | G84: ='RAB Scenarios'!G764 -> 543.2175699 | H84: ='RAB Scenarios'!H764 -> 548.9203858 | I84: ='RAB Scenarios'!I764 -> 556.8381549 | J84: ='RAB Scenarios'!J764 -> 568.5376925 | K84: ='RAB Scenarios'!K764 -> 571.784908 | L84: ='RAB Scenarios'!L764 -> 580.8072387 | M84: ='RAB Scenarios'!M764 -> 591.4532881 | N84: ='RAB Scenarios'!N764 -> 603.3922297 | O84: ='RAB Scenarios'!O764 -> 619.5856653 | P84: ='RAB Scenarios'!P764 -> 638.6008854 | Q84: ='RAB Scenarios'!Q764 -> 658.1124191 | R84: ='RAB Scenarios'!R764 -> 673.5913697 | S84: ='RAB Scenarios'!S764 -> 728.1754239 | T84: ='RAB Scenarios'!T764 -> 784.3853474 | U84: ='RAB Scenarios'!U764 -> 812.2453831 | V84: ='RAB Scenarios'!V764 -> 796.1714477 | W84: ='RAB Scenarios'!W764 -> 887.8359137 | X84: ='RAB Scenarios'!X764 -> 971.5634136 | Y84: ='RAB Scenarios'!Y764 -> 1058.28553 | Z84: ='RAB Scenarios'!Z764 -> 1145.806624
B85: =$B$13 -> Vines/Westnet | N85: =Vines!O746 -> 0 | O85: =WestNet!P746 -> 0
B86: =$B$14 -> Capex | E86: ='RAB Scenarios'!E782 -> 25.13395229 | F86: ='RAB Scenarios'!F782 -> 17.78523716 | G86: ='RAB Scenarios'!G782 -> 24.7767564 | H86: ='RAB Scenarios'!H782 -> 28.2129999 | I86: ='RAB Scenarios'!I782 -> 33.51816829 | J86: ='RAB Scenarios'!J782 -> 24.46310723 | K86: ='RAB Scenarios'!K782 -> 30.45940236 | L86: ='RAB Scenarios'!L782 -> 32.93654791 | M86: ='RAB Scenarios'!M782 -> 34.79236056 | N86: ='RAB Scenarios'!N782 -> 42.43365973 | O86: ='RAB Scenarios'!O782 -> 25.1030916 | P86: ='RAB Scenarios'!P782 -> 38.98833389 | Q86: ='RAB Scenarios'!Q782 -> 36.8214508 | R86: ='RAB Scenarios'!R782 -> 77.24894147 | S86: ='RAB Scenarios'!S782 -> 82.40103478 | T86: ='RAB Scenarios'!T782 -> 43.06031204 | U86: ='RAB Scenarios'!U782 -> 0 | V86: ='RAB Scenarios'!V782 -> 107.5657878 | W86: ='RAB Scenarios'!W782 -> 119.204615 | X86: ='RAB Scenarios'!X782 -> 125.1140559 | Y86: ='RAB Scenarios'!Y782 -> 128.9870383 | Z86: ='RAB Scenarios'!Z782 -> 134.332569
B87: =$B$15 -> Amounts added to Capital Base under NGR 82,84,86 | E87: ='RAB Scenarios'!E872 -> 0 | F87: ='RAB Scenarios'!F872 -> 0 | G87: ='RAB Scenarios'!G872 -> 0 | H87: ='RAB Scenarios'!H872 -> 0 | I87: ='RAB Scenarios'!I872 -> 0 | J87: ='RAB Scenarios'!J872 -> 0 | K87: ='RAB Scenarios'!K872 -> 0 | L87: ='RAB Scenarios'!L872 -> 0 | M87: ='RAB Scenarios'!M872 -> 0 | N87: ='RAB Scenarios'!N872 -> 0 | O87: ='RAB Scenarios'!O872 -> 0 | P87: ='RAB Scenarios'!P872 -> 0 | Q87: ='RAB Scenarios'!Q872 -> 0 | R87: ='RAB Scenarios'!R872 -> 0 | S87: ='RAB Scenarios'!S872 -> 0 | T87: ='RAB Scenarios'!T872 -> 0 | U87: ='RAB Scenarios'!U872 -> 0 | V87: ='RAB Scenarios'!V872 -> 0 | W87: ='RAB Scenarios'!W872 -> 0 | X87: ='RAB Scenarios'!X872 -> 0 | Y87: ='RAB Scenarios'!Y872 -> 0 | Z87: ='RAB Scenarios'!Z872 -> 0
B88: =$B$16 -> Depreciation | E88: ='RAB Scenarios'!E800 -> 17.04191211 | F88: ='RAB Scenarios'!F800 -> 18.41688719 | G88: ='RAB Scenarios'!G800 -> 19.0739405 | H88: ='RAB Scenarios'!H800 -> 20.2952308 | I88: ='RAB Scenarios'!I800 -> 21.81863069 | J88: ='RAB Scenarios'!J800 -> 21.21589172 | K88: ='RAB Scenarios'!K800 -> 21.43707166 | L88: ='RAB Scenarios'!L800 -> 22.29049852 | M88: ='RAB Scenarios'!M800 -> 22.853419 | N88: ='RAB Scenarios'!N800 -> 23.6164596 | O88: ='RAB Scenarios'!O800 -> 9.089627772 | P88: ='RAB Scenarios'!P800 -> 19.47680022 | Q88: ='RAB Scenarios'!Q800 -> 21.34250018 | R88: ='RAB Scenarios'!R800 -> 22.66488729 | S88: ='RAB Scenarios'!S800 -> 26.19111125 | T88: ='RAB Scenarios'!T800 -> 15.2002764 | U88: ='RAB Scenarios'!U800 -> 16.07393538 | V88: ='RAB Scenarios'!V800 -> 15.90132186 | W88: ='RAB Scenarios'!W800 -> 35.47711509 | X88: ='RAB Scenarios'!X800 -> 38.39193939 | Y88: ='RAB Scenarios'!Y800 -> 41.46594457 | Z88: ='RAB Scenarios'!Z800 -> 44.73577003
B89: =$B$17 -> Redundant Assets | E89: ='RAB Scenarios'!E818 -> 0 | F89: ='RAB Scenarios'!F818 -> 0 | G89: ='RAB Scenarios'!G818 -> 0 | H89: ='RAB Scenarios'!H818 -> 0 | I89: ='RAB Scenarios'!I818 -> 0 | J89: ='RAB Scenarios'!J818 -> 0 | K89: ='RAB Scenarios'!K818 -> 0 | L89: ='RAB Scenarios'!L818 -> 0 | M89: ='RAB Scenarios'!M818 -> 0 | N89: ='RAB Scenarios'!N818 -> 0 | O89: ='RAB Scenarios'!O818 -> 0 | P89: ='RAB Scenarios'!P818 -> 0 | Q89: ='RAB Scenarios'!Q818 -> 0 | R89: ='RAB Scenarios'!R818 -> 0 | S89: ='RAB Scenarios'!S818 -> 0 | T89: ='RAB Scenarios'!T818 -> 0 | U89: ='RAB Scenarios'!U818 -> 0 | V89: ='RAB Scenarios'!V818 -> 0 | W89: ='RAB Scenarios'!W818 -> 0 | X89: ='RAB Scenarios'!X818 -> 0 | Y89: ='RAB Scenarios'!Y818 -> 0 | Z89: ='RAB Scenarios'!Z818 -> 0
B90: =$B$18 -> Asset Disposals | E90: ='RAB Scenarios'!E836 -> 0 | F90: ='RAB Scenarios'!F836 -> 0 | G90: ='RAB Scenarios'!G836 -> 0 | H90: ='RAB Scenarios'!H836 -> 0 | I90: ='RAB Scenarios'!I836 -> 0 | J90: ='RAB Scenarios'!J836 -> 0 | K90: ='RAB Scenarios'!K836 -> 0 | L90: ='RAB Scenarios'!L836 -> 0 | M90: ='RAB Scenarios'!M836 -> 0 | N90: ='RAB Scenarios'!N836 -> 3.2035875 | O90: ='RAB Scenarios'!O836 -> 0 | P90: ='RAB Scenarios'!P836 -> 0 | Q90: ='RAB Scenarios'!Q836 -> 0 | R90: ='RAB Scenarios'!R836 -> 0 | S90: ='RAB Scenarios'!S836 -> 0 | T90: ='RAB Scenarios'!T836 -> 0 | U90: ='RAB Scenarios'!U836 -> 0 | V90: ='RAB Scenarios'!V836 -> 0 | W90: ='RAB Scenarios'!W836 -> 0 | X90: ='RAB Scenarios'!X836 -> 0 | Y90: ='RAB Scenarios'!Y836 -> 0 | Z90: ='RAB Scenarios'!Z836 -> 0
B91: =$B$19 -> Over Depreciation | E91: ='RAB Scenarios'!E854 -> 0 | F91: ='RAB Scenarios'!F854 -> 0 | G91: ='RAB Scenarios'!G854 -> 0 | H91: ='RAB Scenarios'!H854 -> 0 | I91: ='RAB Scenarios'!I854 -> 0 | J91: ='RAB Scenarios'!J854 -> 0 | K91: ='RAB Scenarios'!K854 -> 0 | L91: ='RAB Scenarios'!L854 -> 0 | M91: ='RAB Scenarios'!M854 -> 0 | N91: ='RAB Scenarios'!N854 -> 0 | O91: ='RAB Scenarios'!O854 -> 0 | P91: ='RAB Scenarios'!P854 -> 0 | Q91: ='RAB Scenarios'!Q854 -> 0 | R91: ='RAB Scenarios'!R854 -> 0 | S91: ='RAB Scenarios'!S854 -> 0 | T91: ='RAB Scenarios'!T854 -> 0 | U91: ='RAB Scenarios'!U854 -> 0 | V91: ='RAB Scenarios'!V854 -> 0 | W91: ='RAB Scenarios'!W854 -> 0 | X91: ='RAB Scenarios'!X854 -> 0 | Y91: ='RAB Scenarios'!Y854 -> 0 | Z91: ='RAB Scenarios'!Z854 -> 0
B92: =$B$20 -> Deprecation per Tariff Variation | E92: ='RAB Scenarios'!E890 -> 0 | F92: ='RAB Scenarios'!F890 -> 0 | G92: ='RAB Scenarios'!G890 -> 0 | H92: ='RAB Scenarios'!H890 -> 0 | I92: ='RAB Scenarios'!I890 -> 0 | J92: ='RAB Scenarios'!J890 -> 0 | K92: ='RAB Scenarios'!K890 -> 0 | L92: ='RAB Scenarios'!L890 -> 0 | M92: ='RAB Scenarios'!M890 -> 0 | N92: ='RAB Scenarios'!N890 -> 0 | O92: ='RAB Scenarios'!O890 -> 0 | P92: ='RAB Scenarios'!P890 -> 0 | Q92: ='RAB Scenarios'!Q890 -> 0 | R92: ='RAB Scenarios'!R890 -> 0 | S92: ='RAB Scenarios'!S890 -> 0 | T92: ='RAB Scenarios'!T890 -> 0 | U92: ='RAB Scenarios'!U890 -> 0 | V92: ='RAB Scenarios'!V890 -> 0 | W92: ='RAB Scenarios'!W890 -> 0 | X92: ='RAB Scenarios'!X890 -> 0 | Y92: ='RAB Scenarios'!Y890 -> 0 | Z92: ='RAB Scenarios'!Z890 -> 0
B93: =$B$21 -> Closing Capital Base | E93: =SUM(E84:E87)-SUM(E88:E92) -> 543.84922 | F93: 543.2175699 | G93: 548.9203858 | H93: 556.8381549 | I93: 568.5376925 | J93: 571.784908 | K93: 580.8072387 | L93: 591.4532881 | M93: 603.3922297 | N93: 619.0058423 | O93: 635.5991292 | P93: 658.1124191 | Q93: 673.5913697 | R93: 728.1754239 | S93: 784.3853474 | T93: 812.2453831 | U93: 796.1714477 | V93: 887.8359137 | W93: =SUM(W84:W87)-SUM(W88:W92) -> 971.5634136 | X93: 1058.28553 | Y93: 1145.806624 | Z93: 1235.403423
B94: Check | C94: =SUM(E94:Z94) -> 3.581579277 | E94: ='RAB Scenarios'!E908-E93 -> 0 | F94: ='RAB Scenarios'!F908-F93 -> 0 | G94: ='RAB Scenarios'!G908-G93 -> 0 | H94: ='RAB Scenarios'!H908-H93 -> 0 | I94: ='RAB Scenarios'!I908-I93 -> 0 | J94: ='RAB Scenarios'!J908-J93 -> 0 | K94: ='RAB Scenarios'!K908-K93 -> 0 | L94: ='RAB Scenarios'!L908-L93 -> 0 | M94: ='RAB Scenarios'!M908-M93 -> 0 | N94: ='RAB Scenarios'!N908-N93 -> 0.579823 | O94: ='RAB Scenarios'!O908-O93 -> 3.001756277 | P94: ='RAB Scenarios'!P908-P93 -> 0 | Q94: ='RAB Scenarios'!Q908-Q93 -> 0 | R94: ='RAB Scenarios'!R908-R93 -> 0 | S94: ='RAB Scenarios'!S908-S93 -> 0 | T94: ='RAB Scenarios'!T908-T93 -> 0 | U94: ='RAB Scenarios'!U908-U93 -> 0 | V94: ='RAB Scenarios'!V908-V93 -> 0 | W94: ='RAB Scenarios'!W908-W93 -> 0 | X94: ='RAB Scenarios'!X908-X93 -> 0 | Y94: ='RAB Scenarios'!Y908-Y93 -> 0 | Z94: ='RAB Scenarios'!Z908-Z93 -> 0
B97: RAB Opening Balance
B98: =B10 -> Nominal | E98: =E12 -> 823.3366414 | F98: 833.5656356 | G98: 830.9030886 | H98: 836.1319478 | I98: 844.2094918 | J98: 857.3963954 | K98: 856.1219565 | L98: 859.1390047 | M98: 862.163231 | N98: 864.3768724 | O98: 879.7113762 | P98: 898.5206849 | Q98: 913.5174774 | R98: 923.3150533 | S98: 971.5978653 | T98: 1020.049174 | U98: 1045.820721 | V98: 1026.420192 | W98: 1114.585451 | X98: 1191.312651 | Y98: 1270.858117 | Z98: 1351.332917
B99: =B25 -> Real | E99: =E27 -> 823.3366414 | F99: 833.5656356 | G99: 830.9030886 | H99: 836.1319478 | I99: 844.2094918 | J99: 857.3963954 | K99: 856.1219565 | L99: 859.1390047 | M99: 862.163231 | N99: 864.3768724 | O99: 879.7113762 | P99: 898.5206849 | Q99: 913.5174774 | R99: 923.3150533 | S99: 971.5978653 | T99: 1020.049174 | U99: 1045.292354 | V99: 1025.90491 | W99: 1110.172015 | X99: 1179.939595 | Y99: 1249.553611 | Z99: 1317.247923
B100: =B40 -> CCA | E100: =E42 -> 823.3366414 | F100: 833.5656356 | G100: 830.9030886 | H100: 836.1319478 | I100: 844.2094918 | J100: 857.3963954 | K100: 856.1219565 | L100: 859.1390047 | M100: 862.163231 | N100: 864.3768724 | O100: 879.7113762 | P100: 898.5206849 | Q100: 913.5174774 | R100: 923.3150533 | S100: 971.5978653 | T100: 1020.049174 | U100: 1058.27785 | V100: 1051.305665 | W100: 1151.899268 | X100: 1254.906901 | Y100: 1362.177554 | Z100: 1471.882104
B101: =B57 -> Transition method | E101: =E59 -> 823.3366414 | F101: =F59 -> 833.5656356 | G101: 830.9030886 | H101: 836.1319478 | I101: 844.2094918 | J101: 857.3963954 | K101: 856.1219565 | L101: 859.1390047 | M101: 862.163231 | N101: 864.3768724 | O101: 879.7113762 | P101: 898.5206849 | Q101: 913.5174774 | R101: 923.3150533 | S101: 971.5978653 | T101: 1020.049174 | U101: 1058.27785 | V101: 1050.797394 | W101: 1150.882726 | X101: 1250.363971 | Y101: 1351.463393 | Z101: 1452.357274

Sheet RAB Scenarios
E1: =IF(Inputs!E1="","",Inputs!E1) ->  | F1: =IF(Inputs!F1="","",Inputs!F1) ->  | G1: =IF(Inputs!G1="","",Inputs!G1) ->  | H1: =IF(Inputs!H1="","",Inputs!H1) ->  | I1: =IF(Inputs!I1="","",Inputs!I1) ->  | J1: =IF(Inputs!J1="","",Inputs!J1) ->  | K1: =IF(Inputs!K1="","",Inputs!K1) ->  | L1: =IF(Inputs!L1="","",Inputs!L1) ->  | M1: =IF(Inputs!M1="","",Inputs!M1) ->  | N1: =IF(Inputs!N1="","",Inputs!N1) ->  | O1: =IF(Inputs!O1="","",Inputs!O1) -> Jan - Jun | P1: =IF(Inputs!P1="","",Inputs!P1) ->  | Q1: =IF(Inputs!Q1="","",Inputs!Q1) ->  | R1: =IF(Inputs!R1="","",Inputs!R1) ->  | S1: =IF(Inputs!S1="","",Inputs!S1) ->  | T1: =IF(Inputs!T1="","",Inputs!T1) -> Jul - Dec | U1: =IF(Inputs!U1="","",Inputs!U1) -> Jan - Jun | V1: =IF(Inputs!V1="","",Inputs!V1) -> Jul - Dec | W1: =IF(Inputs!W1="","",Inputs!W1) ->  | X1: =IF(Inputs!X1="","",Inputs!X1) ->  | Y1: =IF(Inputs!Y1="","",Inputs!Y1) ->  | Z1: =IF(Inputs!Z1="","",Inputs!Z1) -> 
B2: =Inputs!$B$2 -> Mid West and South West Gas Distribution Systems | E2: =Inputs!E2 -> 2000 | F2: =Inputs!F2 -> 2001 | G2: =Inputs!G2 -> 2002 | H2: =Inputs!H2 -> 2003 | I2: =Inputs!I2 -> 2004 | J2: =Inputs!J2 -> 2005 | K2: =Inputs!K2 -> 2006 | L2: =Inputs!L2 -> 2007 | M2: =Inputs!M2 -> 2008 | N2: =Inputs!N2 -> 2009 | O2: =Inputs!O2 -> 2010 | P2: =Inputs!P2 -> 2010/11 | Q2: =Inputs!Q2 -> 2011/12 | R2: =Inputs!R2 -> 2012/13 | S2: =Inputs!S2 -> 2013/14 | T2: =Inputs!T2 -> 2014 | U2: =Inputs!U2 -> 2015 | V2: =Inputs!V2 -> 2015 | W2: =Inputs!W2 -> 2016 | X2: =Inputs!X2 -> 2017 | Y2: =Inputs!Y2 -> 2018 | Z2: =Inputs!Z2 -> 2019
B3: =Inputs!$B$3 -> Access Arrangement Revisions 2014 | E3: =Inputs!E3 -> Actual | F3: =Inputs!F3 -> Actual | G3: =Inputs!G3 -> Actual | H3: =Inputs!H3 -> Actual | I3: =Inputs!I3 -> Actual | J3: =Inputs!J3 -> Actual | K3: =Inputs!K3 -> Actual | L3: =Inputs!L3 -> Actual | M3: =Inputs!M3 -> Actual | N3: =Inputs!N3 -> Actual | O3: =Inputs!O3 -> Actual | P3: =Inputs!P3 -> Actual | Q3: =Inputs!Q3 -> Actual | R3: =Inputs!R3 -> Actual | S3: =Inputs!S3 -> Forecast | T3: =Inputs!T3 -> Forecast | U3: =Inputs!U3 -> Forecast | V3: =Inputs!V3 -> Forecast | W3: =Inputs!W3 -> Forecast | X3: =Inputs!X3 -> Forecast | Y3: =Inputs!Y3 -> Forecast | Z3: =Inputs!Z3 -> Forecast
B6: =Inputs!B6 -> Year fraction for depreciation | E6: =Inputs!E6 -> 1 | F6: =Inputs!F6 -> 1 | G6: =Inputs!G6 -> 1 | H6: =Inputs!H6 -> 1 | I6: =Inputs!I6 -> 1 | J6: =Inputs!J6 -> 1 | K6: =Inputs!K6 -> 1 | L6: =Inputs!L6 -> 1 | M6: =Inputs!M6 -> 1 | N6: =Inputs!N6 -> 1 | O6: =Inputs!O6 -> 0.5 | P6: =Inputs!P6 -> 1 | Q6: =Inputs!Q6 -> 1 | R6: =Inputs!R6 -> 1 | S6: =Inputs!S6 -> 1 | T6: =Inputs!T6 -> 0.5 | U6: =Inputs!U6 -> 0.5 | V6: =Inputs!V6 -> 0.5 | W6: =Inputs!W6 -> 1 | X6: =Inputs!X6 -> 1 | Y6: =Inputs!Y6 -> 1 | Z6: =Inputs!Z6 -> 1
B7: =Inputs!$B$7 -> Access Arrangement | E7: =IF(Inputs!E7="","",Inputs!E7) -> AA1 | F7: =IF(Inputs!F7="","",Inputs!F7) -> AA1 | G7: =IF(Inputs!G7="","",Inputs!G7) -> AA1 | H7: =IF(Inputs!H7="","",Inputs!H7) -> AA1 | I7: =IF(Inputs!I7="","",Inputs!I7) -> AA1 | J7: =IF(Inputs!J7="","",Inputs!J7) -> AA2 | K7: =IF(Inputs!K7="","",Inputs!K7) -> AA2 | L7: =IF(Inputs!L7="","",Inputs!L7) -> AA2 | M7: =IF(Inputs!M7="","",Inputs!M7) -> AA2 | N7: =IF(Inputs!N7="","",Inputs!N7) -> AA2 | O7: =IF(Inputs!O7="","",Inputs!O7) -> AA3 | P7: =IF(Inputs!P7="","",Inputs!P7) -> AA3 | Q7: =IF(Inputs!Q7="","",Inputs!Q7) -> AA3 | R7: =IF(Inputs!R7="","",Inputs!R7) -> AA3 | S7: =IF(Inputs!S7="","",Inputs!S7) -> AA3 | T7: =IF(Inputs!T7="","",Inputs!T7) -> AA4 | U7: =IF(Inputs!U7="","",Inputs!U7) -> AA4 | V7: =IF(Inputs!V7="","",Inputs!V7) -> AA4 | W7: =IF(Inputs!W7="","",Inputs!W7) -> AA4 | X7: =IF(Inputs!X7="","",Inputs!X7) -> AA4 | Y7: =IF(Inputs!Y7="","",Inputs!Y7) -> AA4 | Z7: =IF(Inputs!Z7="","",Inputs!Z7) -> AA4
B24: Nominal | E24: $, Jun 2014 | F24: =E24 -> $, Jun 2014 | G24: $, Jun 2014 | H24: $, Jun 2014 | I24: $, Jun 2014 | J24: $, Jun 2014 | K24: $, Jun 2014 | L24: $, Jun 2014 | M24: $, Jun 2014 | N24: $, Jun 2014 | O24: $, Jun 2014 | P24: $, Jun 2014 | Q24: $, Jun 2014 | R24: $, Jun 2014 | S24: $, Jun 2014 | T24: $, nominal | U24: =T24 -> $, nominal | V24: =U24 -> $, nominal | W24: $, nominal | X24: $, nominal | Y24: $, nominal | Z24: $, nominal
B26: ="Opening Capital Base: "&$B$4 -> Opening Capital Base:
B27: =Inputs!$B$344 -> High pressure mains - steel | C27: $m | E27: =SUM(ICB_at_2000:Capex_from_Jul_2014!E27) -> 229.0597111 | F27: =E171 -> 228.2609538 | G27: =F171 -> 227.9535158 | H27: 225.6552288 | I27: 223.3239317 | J27: 220.9653346 | K27: 219.2138867 | L27: 218.3804553 | M27: 217.5925741 | N27: 218.3278703 | O27: 225.6160293 | P27: 232.7960469 | Q27: 233.3344934 | R27: 234.2172512 | S27: 246.5396606 | T27: 245.4706853 | U27: 246.7239912 | V27: 245.3016336 | W27: =V171 -> 261.4331817 | X27: 298.4743337 | Y27: 335.0095734 | Z27: 364.9371793
B28: =Inputs!$B$345 -> High pressure mains - PE | C28: $m | E28: =SUM(ICB_at_2000:Capex_from_Jul_2014!E28) -> 0 | F28: =E172 -> 0.3550841478 | G28: 0.8431981302 | H28: 0.8431981302 | I28: 0.8431981302 | J28: 0.8431981302 | K28: 0.960119632 | L28: 1.308325765 | M28: 1.670168927 | N28: 2.415055967 | O28: 4.748052851 | P28: 5.256372216 | Q28: 5.852083616 | R28: 5.367529935 | S28: 11.24861293 | T28: 15.62882636 | U28: 16.1792464 | V28: 16.03663416 | W28: 16.41507689 | X28: 16.12116816 | Y28: 17.10633626 | Z28: 21.52002266
B29: =Inputs!$B$346 -> Medium pressure mains | C29: $m | E29: =SUM(ICB_at_2000:Capex_from_Jul_2014!E29) -> 272.0041144 | F29: 273.803412 | G29: 273.2669493 | H29: 273.3751539 | I29: 276.7596278 | J29: 282.8484739 | K29: 276.7360848 | L29: 270.5029163 | M29: 264.1569873 | N29: 257.7159922 | O29: 0 | P29: 0 | Q29: 0 | R29: 0 | S29: 0 | T29: 0 | U29: 0 | V29: 0 | W29: 0 | X29: 0 | Y29: 0 | Z29: 0
B30: =Inputs!$B$347 -> Medium/low pressure mains | C30: $m | E30: =SUM(ICB_at_2000:Capex_from_Jul_2014!E30) -> 147.7740496 | F30: 146.8408075 | G30: 144.7582191 | H30: 141.1247258 | I30: 137.3810346 | J30: 133.6834129 | K30: 138.7966191 | L30: 145.043489 | M30: 156.012042 | N30: 165.1949488 | O30: 452.4305714 | P30: 451.5324895 | Q30: 449.6739558 | R30: 448.522219 | S30: 458.6363 | T30: 465.433684 | U30: 473.1161366 | V30: 466.3472893 | W30: 487.6011057 | X30: 502.9266881 | Y30: 517.3478941 | Z30: 534.2811446
B31: =Inputs!$B$348 -> Low pressure mains | C31: $m | E31: =SUM(ICB_at_2000:Capex_from_Jul_2014!E31) -> 42.70958722 | F31: 41.33253209 | G31: 39.89593641 | H31: 38.39829289 | I31: 36.8383481 | J31: 35.21419373 | K31: 33.90996433 | L31: 32.60573493 | M31: 31.30150554 | N31: 29.99727614 | O31: 0 | P31: 0 | Q31: 0 | R31: 0 | S31: 0 | T31: 0 | U31: 0 | V31: 0 | W31: 0 | X31: 0 | Y31: 0 | Z31: 0
B32: =Inputs!$B$349 -> Regulators | C32: $m | E32: =SUM(ICB_at_2000:Capex_from_Jul_2014!E32) -> 14.93131546 | F32: 14.62229656 | G32: 14.2846007 | H32: 13.73684451 | I32: 13.16002722 | J32: 12.58671244 | K32: 12.13671874 | L32: 12.45529006 | M32: 12.60917521 | N32: 12.23391271 | O32: 12.50593491 | P32: 12.46139952 | Q32: 12.04623956 | R32: 11.84094328 | S32: 12.41037989 | T32: 13.14517904 | U32: 14.58342908 | V32: 14.19499679 | W32: 16.75811661 | X32: 17.52307749 | Y32: 18.24472076 | Z32: 18.9902341
B33: =Inputs!$B$350 -> Secondary gate stations | C33: $m | E33: =SUM(ICB_at_2000:Capex_from_Jul_2014!E33) -> 3.030757346 | F33: 2.923192497 | G33: 2.78942566 | H33: 2.638521991 | I33: 2.487618319 | J33: 2.336714642 | K33: 2.213729661 | L33: 2.090496615 | M33: 1.967020073 | N33: 1.85745029 | O33: 3.600578185 | P33: 5.386074558 | Q33: 5.351855425 | R33: 5.35947781 | S33: 5.125202007 | T33: 4.886901436 | U33: 4.773674132 | V33: 4.660446828 | W33: 4.547219524 | X33: 8.495045698 | Y33: 16.40274058 | Z33: 19.64023833
B34: =Inputs!$B$351 -> Buildings | C34: $m | E34: =SUM(ICB_at_2000:Capex_from_Jul_2014!E34) -> 2.67343428 | F34: 2.553794492 | G34: 2.513073197 | H34: 2.385633462 | I34: 2.254322267 | J34: 2.119158498 | K34: 2.00125263 | L34: 1.882927003 | M34: 1.8111869 | N34: 1.823481607 | O34: 0.7526339272 | P34: 0.8657977745 | Q34: 1.995768866 | R34: 2.669901471 | S34: 6.819623595 | T34: 17.71420686 | U34: 18.50815576 | V34: 18.25960872 | W34: 27.81618955 | X34: 27.74365816 | Y34: 27.44980223 | Z34: 26.70111347
B35: =Inputs!$B$352 -> Meter and services pipes | C35: $m | E35: =SUM(ICB_at_2000:Capex_from_Jul_2014!E35) -> 81.13410929 | F35: 91.15105997 | G35: 97.00657394 | H35: 113.4594651 | I35: 128.1122377 | J35: 139.7983054 | K35: 147.3409285 | L35: 157.5709867 | M35: 164.0024013 | N35: 167.7242397 | O35: 172.2389177 | P35: 177.6473737 | Q35: 189.8113606 | R35: 198.7540844 | S35: 208.927772 | T35: 226.8097334 | U35: 237.8840661 | V35: 231.4070067 | W35: 259.2324745 | X35: 278.3594623 | Y35: 297.8973217 | Z35: 320.6649294
B36: =Inputs!$B$353 -> Equipment and vehicles | C36: $m | E36: =SUM(ICB_at_2000:Capex_from_Jul_2014!E36) -> 23.14982001 | F36: 19.86545339 | G36: 14.59768119 | H36: 8.691009646 | I36: 2.68732162 | J36: -3.762438318 | K36: -3.762438318 | L36: -3.762438318 | M36: -3.762438318 | N36: -3.762438318 | O36: 6.933903447e-16 | P36: 3.194822463 | Q36: 2.774424166 | R36: 2.456982873 | S36: 2.588255238 | T36: 4.418497739 | U36: 4.760170361 | V36: 4.413309399 | W36: 5.327657733 | X36: 6.050188702 | Y36: 6.693763079 | Z36: 6.947731357
B37: =Inputs!$B$354 -> Vehicles | C37: $m | E37: =SUM(ICB_at_2000:Capex_from_Jul_2014!E37) -> 0 | F37: 0 | G37: 0 | H37: 0 | I37: 0 | J37: 0 | K37: 0 | L37: 0 | M37: 0 | N37: 0 | O37: 0 | P37: 0 | Q37: 0.5633561196 | R37: 1.373082294 | S37: 4.717675555 | T37: 11.65078522 | U37: 12.38741063 | V37: 10.78785172 | W37: 10.40565787 | X37: 7.980269342 | Y37: 6.308249104 | Z37: 8.465318465
B38: =Inputs!$B$355 -> Information technology | C38: $m | E38: =SUM(ICB_at_2000:Capex_from_Jul_2014!E38) -> 0 | F38: 4.638729382 | G38: 5.511279538 | H38: 6.002991786 | I38: 6.456492882 | J38: 7.741090186 | K38: 6.661970844 | L38: 4.256821018 | M38: 1.107727136 | N38: 0.2633216347 | O38: 4.146764527 | P38: 5.708414864 | Q38: 8.442046438 | R38: 9.081687553 | S38: 10.91249006 | T38: 11.21878075 | U38: 13.23254776 | V38: 11.33952156 | W38: 16.34387045 | X38: 18.34883709 | Y38: 18.7261995 | Z38: 19.51348854
B39: =Inputs!$B$356 -> Full retail contestability | C39: $m | E39: =SUM(ICB_at_2000:Capex_from_Jul_2014!E39) -> 0 | F39: 0.0001583226305 | G39: 0.005993814847 | H39: 2.344239987 | I39: 6.428689465 | J39: 15.54559744 | K39: 12.43647796 | L39: 9.327358466 | M39: 6.218238978 | N39: 3.109119489 | O39: 1.45572113e-15 | P39: 1.455698257e-15 | Q39: 1.455698257e-15 | R39: 1.455698257e-15 | S39: 1.455698257e-15 | T39: 1.455698257e-15 | U39: 0 | V39: 0 | W39: 0 | X39: 0 | Y39: 0 | Z39: 0
B40: =Inputs!$B$357 -> Land | C40: $m | E40: =SUM(ICB_at_2000:Capex_from_Jul_2014!E40) -> 6.86974266 | F40: 7.218161406 | G40: 7.476641894 | H40: 7.476641894 | I40: 7.476641894 | J40: 7.476641894 | K40: 7.476641894 | L40: 7.476641894 | M40: 7.476641894 | N40: 7.476641894 | O40: 3.671893458 | P40: 3.671893458 | Q40: 3.671893458 | R40: 3.671893458 | S40: 3.671893458 | T40: 3.671893458 | U40: 3.671893458 | V40: 3.671893458 | W40: 8.704900484 | X40: 9.289922693 | Y40: 9.671516724 | Z40: 9.671516724
B42: Total Opening Capital Base | C42: $m | E42: =SUM(E27:E41) -> 823.3366414 | F42: 833.5656356 | G42: 830.9030886 | H42: 836.1319478 | I42: 844.2094918 | J42: 857.3963954 | K42: 856.1219565 | L42: 859.1390047 | M42: 862.163231 | N42: 864.3768724 | O42: 879.7113762 | P42: 898.5206849 | Q42: 913.5174774 | R42: 923.3150533 | S42: 971.5978653 | T42: 1020.049174 | U42: =SUM(U27:U41) -> 1045.820721 | V42: =SUM(V27:V41) -> 1026.420192 | W42: =SUM(W27:W41) -> 1114.585451 | X42: 1191.312651 | Y42: 1270.858117 | Z42: 1351.332917
B44: ="CAPEX: "&$B$4 -> CAPEX:
B45: =Inputs!$B$344 -> High pressure mains - steel | C45: $m | E45: =SUM(ICB_at_2000:Capex_from_Jul_2014!E45) -> 1.420336591 | F45: =SUM(ICB_at_2000:Capex_from_Jul_2014!F45) -> 1.95245593 | G45: =SUM(ICB_at_2000:Capex_from_Jul_2014!G45) -> 0 | H45: =SUM(ICB_at_2000:Capex_from_Jul_2014!H45) -> 0 | I45: =SUM(ICB_at_2000:Capex_from_Jul_2014!I45) -> 0 | J45: =SUM(ICB_at_2000:Capex_from_Jul_2014!J45) -> 0.4676860073 | K45: =SUM(ICB_at_2000:Capex_from_Jul_2014!K45) -> 1.392824533 | L45: =SUM(ICB_at_2000:Capex_from_Jul_2014!L45) -> 1.447372648 | M45: =SUM(ICB_at_2000:Capex_from_Jul_2014!M45) -> 2.97954816 | N45: =SUM(ICB_at_2000:Capex_from_Jul_2014!N45) -> 9.331987533 | O45: =SUM(ICB_at_2000:Capex_from_Jul_2014!O45) -> 8.368962752 | P45: =SUM(ICB_at_2000:Capex_from_Jul_2014!P45) -> 3.010791599 | Q45: =SUM(ICB_at_2000:Capex_from_Jul_2014!Q45) -> 3.390289621 | R45: =SUM(ICB_at_2000:Capex_from_Jul_2014!R45) -> 14.87004244 | S45: =SUM(ICB_at_2000:Capex_from_Jul_2014!S45) -> 1.668588663 | T45: =SUM(ICB_at_2000:Capex_from_Jul_2014!T45) -> 2.65904434 | U45: =SUM(ICB_at_2000:Capex_from_Jul_2014!U45) -> 0 | V45: =SUM(ICB_at_2000:Capex_from_Jul_2014!V45) -> 17.55390564 | W45: =SUM(ICB_at_2000:Capex_from_Jul_2014!W45) -> 40.10529089 | X45: =SUM(ICB_at_2000:Capex_from_Jul_2014!X45) -> 40.10069473 | Y45: =SUM(ICB_at_2000:Capex_from_Jul_2014!Y45) -> 33.99431961 | Z45: =SUM(ICB_at_2000:Capex_from_Jul_2014!Z45) -> 33.76273301
B46: =Inputs!$B$345 -> High pressure mains - PE | C46: $m | E46: =SUM(ICB_at_2000:Capex_from_Jul_2014!E46) -> 0.3550841478 | F46: =SUM(ICB_at_2000:Capex_from_Jul_2014!F46) -> 0.4881139824 | G46: =SUM(ICB_at_2000:Capex_from_Jul_2014!G46) -> 0 | H46: =SUM(ICB_at_2000:Capex_from_Jul_2014!H46) -> 0 | I46: =SUM(ICB_at_2000:Capex_from_Jul_2014!I46) -> 0 | J46: =SUM(ICB_at_2000:Capex_from_Jul_2014!J46) -> 0.1169215018 | K46: =SUM(ICB_at_2000:Capex_from_Jul_2014!K46) -> 0.3482061333 | L46: =SUM(ICB_at_2000:Capex_from_Jul_2014!L46) -> 0.3618431619 | M46: =SUM(ICB_at_2000:Capex_from_Jul_2014!M46) -> 0.7448870401 | N46: =SUM(ICB_at_2000:Capex_from_Jul_2014!N46) -> 2.332996883 | O46: =SUM(ICB_at_2000:Capex_from_Jul_2014!O46) -> 0.5083193652 | P46: =SUM(ICB_at_2000:Capex_from_Jul_2014!P46) -> 0.603360806 | Q46: =SUM(ICB_at_2000:Capex_from_Jul_2014!Q46) -> -0.4675024035 | R46: =SUM(ICB_at_2000:Capex_from_Jul_2014!R46) -> 5.890761288 | S46: =SUM(ICB_at_2000:Capex_from_Jul_2014!S46) -> 4.487475676 | T46: =SUM(ICB_at_2000:Capex_from_Jul_2014!T46) -> 0.2263963212 | U46: =SUM(ICB_at_2000:Capex_from_Jul_2014!U46) -> 0 | V46: =SUM(ICB_at_2000:Capex_from_Jul_2014!V46) -> 0.5210549728 | W46: =SUM(ICB_at_2000:Capex_from_Jul_2014!W46) -> 0 | X46: =SUM(ICB_at_2000:Capex_from_Jul_2014!X46) -> 1.27907683 | Y46: =SUM(ICB_at_2000:Capex_from_Jul_2014!Y46) -> 4.728913077 | Z46: =SUM(ICB_at_2000:Capex_from_Jul_2014!Z46) -> 7.743812604
B47: =Inputs!$B$346 -> Medium pressure mains | C47: $m | E47: =SUM(ICB_at_2000:Capex_from_Jul_2014!E47) -> 7.320606034 | F47: =SUM(ICB_at_2000:Capex_from_Jul_2014!F47) -> 5.084751847 | G47: =SUM(ICB_at_2000:Capex_from_Jul_2014!G47) -> 5.810265094 | H47: =SUM(ICB_at_2000:Capex_from_Jul_2014!H47) -> 9.135011942 | I47: =SUM(ICB_at_2000:Capex_from_Jul_2014!I47) -> 11.87239777 | J47: =SUM(ICB_at_2000:Capex_from_Jul_2014!J47) -> 0 | K47: =SUM(ICB_at_2000:Capex_from_Jul_2014!K47) -> 0 | L47: =SUM(ICB_at_2000:Capex_from_Jul_2014!L47) -> 0 | M47: =SUM(ICB_at_2000:Capex_from_Jul_2014!M47) -> 0 | N47: =SUM(ICB_at_2000:Capex_from_Jul_2014!N47) -> 0 | O47: =SUM(ICB_at_2000:Capex_from_Jul_2014!O47) -> 0 | P47: =SUM(ICB_at_2000:Capex_from_Jul_2014!P47) -> 0 | Q47: =SUM(ICB_at_2000:Capex_from_Jul_2014!Q47) -> 0 | R47: =SUM(ICB_at_2000:Capex_from_Jul_2014!R47) -> 0 | S47: =SUM(ICB_at_2000:Capex_from_Jul_2014!S47) -> 0 | T47: =SUM(ICB_at_2000:Capex_from_Jul_2014!T47) -> 0 | U47: =SUM(ICB_at_2000:Capex_from_Jul_2014!U47) -> 0 | V47: =SUM(ICB_at_2000:Capex_from_Jul_2014!V47) -> 0 | W47: =SUM(ICB_at_2000:Capex_from_Jul_2014!W47) -> 0 | X47: =SUM(ICB_at_2000:Capex_from_Jul_2014!X47) -> 0 | Y47: =SUM(ICB_at_2000:Capex_from_Jul_2014!Y47) -> 0 | Z47: =SUM(ICB_at_2000:Capex_from_Jul_2014!Z47) -> 0
B48: =Inputs!$B$347 -> Medium/low pressure mains | C48: $m | E48: =SUM(ICB_at_2000:Capex_from_Jul_2014!E48) -> 2.808558063 | F48: =SUM(ICB_at_2000:Capex_from_Jul_2014!F48) -> 1.660844241 | G48: =SUM(ICB_at_2000:Capex_from_Jul_2014!G48) -> 0.110043251 | H48: =SUM(ICB_at_2000:Capex_from_Jul_2014!H48) -> 0 | I48: =SUM(ICB_at_2000:Capex_from_Jul_2014!I48) -> 0.04619819502 | J48: =SUM(ICB_at_2000:Capex_from_Jul_2014!J48) -> 8.878095156 | K48: =SUM(ICB_at_2000:Capex_from_Jul_2014!K48) -> 10.04988191 | L48: =SUM(ICB_at_2000:Capex_from_Jul_2014!L48) -> 14.81164982 | M48: =SUM(ICB_at_2000:Capex_from_Jul_2014!M48) -> 13.06512964 | N48: =SUM(ICB_at_2000:Capex_from_Jul_2014!N48) -> 9.702246081 | O48: =SUM(ICB_at_2000:Capex_from_Jul_2014!O48) -> 5.174139795 | P48: =SUM(ICB_at_2000:Capex_from_Jul_2014!P48) -> 10.38766242 | Q48: =SUM(ICB_at_2000:Capex_from_Jul_2014!Q48) -> 11.31093189 | R48: =SUM(ICB_at_2000:Capex_from_Jul_2014!R48) -> 22.80391007 | S48: =SUM(ICB_at_2000:Capex_from_Jul_2014!S48) -> 19.71332531 | T48: =SUM(ICB_at_2000:Capex_from_Jul_2014!T48) -> 14.33186754 | U48: =SUM(ICB_at_2000:Capex_from_Jul_2014!U48) -> 0 | V48: =SUM(ICB_at_2000:Capex_from_Jul_2014!V48) -> 28.02266355 | W48: =SUM(ICB_at_2000:Capex_from_Jul_2014!W48) -> 29.33032128 | X48: =SUM(ICB_at_2000:Capex_from_Jul_2014!X48) -> 28.91478347 | Y48: =SUM(ICB_at_2000:Capex_from_Jul_2014!Y48) -> 31.90874113 | Z48: =SUM(ICB_at_2000:Capex_from_Jul_2014!Z48) -> 33.13721157
B49: =Inputs!$B$348 -> Low pressure mains | C49: $m | E49: =SUM(ICB_at_2000:Capex_from_Jul_2014!E49) -> 0 | F49: =SUM(ICB_at_2000:Capex_from_Jul_2014!F49) -> 0 | G49: =SUM(ICB_at_2000:Capex_from_Jul_2014!G49) -> 0 | H49: =SUM(ICB_at_2000:Capex_from_Jul_2014!H49) -> 0 | I49: =SUM(ICB_at_2000:Capex_from_Jul_2014!I49) -> 0 | J49: =SUM(ICB_at_2000:Capex_from_Jul_2014!J49) -> 0 | K49: =SUM(ICB_at_2000:Capex_from_Jul_2014!K49) -> 0 | L49: =SUM(ICB_at_2000:Capex_from_Jul_2014!L49) -> 0 | M49: =SUM(ICB_at_2000:Capex_from_Jul_2014!M49) -> 0 | N49: =SUM(ICB_at_2000:Capex_from_Jul_2014!N49) -> 0 | O49: =SUM(ICB_at_2000:Capex_from_Jul_2014!O49) -> 0 | P49: =SUM(ICB_at_2000:Capex_from_Jul_2014!P49) -> 0 | Q49: =SUM(ICB_at_2000:Capex_from_Jul_2014!Q49) -> 0 | R49: =SUM(ICB_at_2000:Capex_from_Jul_2014!R49) -> 0 | S49: =SUM(ICB_at_2000:Capex_from_Jul_2014!S49) -> 0 | T49: =SUM(ICB_at_2000:Capex_from_Jul_2014!T49) -> 0 | U49: =SUM(ICB_at_2000:Capex_from_Jul_2014!U49) -> 0 | V49: =SUM(ICB_at_2000:Capex_from_Jul_2014!V49) -> 0 | W49: =SUM(ICB_at_2000:Capex_from_Jul_2014!W49) -> 0 | X49: =SUM(ICB_at_2000:Capex_from_Jul_2014!X49) -> 0 | Y49: =SUM(ICB_at_2000:Capex_from_Jul_2014!Y49) -> 0 | Z49: =SUM(ICB_at_2000:Capex_from_Jul_2014!Z49) -> 0
B50: =Inputs!$B$349 -> Regulators | C50: $m | E50: =SUM(ICB_at_2000:Capex_from_Jul_2014!E50) -> 0.2378336656 | F50: =SUM(ICB_at_2000:Capex_from_Jul_2014!F50) -> 0.2184945562 | G50: =SUM(ICB_at_2000:Capex_from_Jul_2014!G50) -> 0.01950133562 | H50: =SUM(ICB_at_2000:Capex_from_Jul_2014!H50) -> 0 | I50: =SUM(ICB_at_2000:Capex_from_Jul_2014!I50) -> 0.008187021903 | J50: =SUM(ICB_at_2000:Capex_from_Jul_2014!J50) -> 0.1263191392 | K50: =SUM(ICB_at_2000:Capex_from_Jul_2014!K50) -> 0.8973370705 | L50: =SUM(ICB_at_2000:Capex_from_Jul_2014!L50) -> 0.73505864 | M50: =SUM(ICB_at_2000:Capex_from_Jul_2014!M50) -> 0.2081682353 | N50: =SUM(ICB_at_2000:Capex_from_Jul_2014!N50) -> 0.8173768163 | O50: =SUM(ICB_at_2000:Capex_from_Jul_2014!O50) -> 0.2760880681 | P50: =SUM(ICB_at_2000:Capex_from_Jul_2014!P50) -> 0.2448806376 | Q50: =SUM(ICB_at_2000:Capex_from_Jul_2014!Q50) -> 0.4620863447 | R50: =SUM(ICB_at_2000:Capex_from_Jul_2014!R50) -> 1.243266622 | S50: =SUM(ICB_at_2000:Capex_from_Jul_2014!S50) -> 1.430512533 | T50: =SUM(ICB_at_2000:Capex_from_Jul_2014!T50) -> 1.8041307 | U50: =SUM(ICB_at_2000:Capex_from_Jul_2014!U50) -> 0 | V50: =SUM(ICB_at_2000:Capex_from_Jul_2014!V50) -> 2.951552113 | W50: =SUM(ICB_at_2000:Capex_from_Jul_2014!W50) -> 1.615614268 | X50: =SUM(ICB_at_2000:Capex_from_Jul_2014!X50) -> 1.612687019 | Y50: =SUM(ICB_at_2000:Capex_from_Jul_2014!Y50) -> 1.67687426 | Z50: =SUM(ICB_at_2000:Capex_from_Jul_2014!Z50) -> 2.237897707
B51: =Inputs!$B$350 -> Secondary gate stations | C51: $m | E51: =SUM(ICB_at_2000:Capex_from_Jul_2014!E51) -> 0.03181214635 | F51: =SUM(ICB_at_2000:Capex_from_Jul_2014!F51) -> 0.01713682794 | G51: =SUM(ICB_at_2000:Capex_from_Jul_2014!G51) -> 0 | H51: =SUM(ICB_at_2000:Capex_from_Jul_2014!H51) -> 0 | I51: =SUM(ICB_at_2000:Capex_from_Jul_2014!I51) -> 0 | J51: =SUM(ICB_at_2000:Capex_from_Jul_2014!J51) -> 0 | K51: =SUM(ICB_at_2000:Capex_from_Jul_2014!K51) -> 0 | L51: =SUM(ICB_at_2000:Capex_from_Jul_2014!L51) -> 0 | M51: =SUM(ICB_at_2000:Capex_from_Jul_2014!M51) -> 0.01413503801 | N51: =SUM(ICB_at_2000:Capex_from_Jul_2014!N51) -> 1.864934701 | O51: =SUM(ICB_at_2000:Capex_from_Jul_2014!O51) -> 1.87047816 | P51: =SUM(ICB_at_2000:Capex_from_Jul_2014!P51) -> 0.1921663947 | Q51: =SUM(ICB_at_2000:Capex_from_Jul_2014!Q51) -> 0.2459334557 | R51: =SUM(ICB_at_2000:Capex_from_Jul_2014!R51) -> 0.004035268378 | S51: =SUM(ICB_at_2000:Capex_from_Jul_2014!S51) -> 1.05e-05 | T51: =SUM(ICB_at_2000:Capex_from_Jul_2014!T51) -> 0 | U51: =SUM(ICB_at_2000:Capex_from_Jul_2014!U51) -> 0 | V51: =SUM(ICB_at_2000:Capex_from_Jul_2014!V51) -> 0 | W51: =SUM(ICB_at_2000:Capex_from_Jul_2014!W51) -> 4.174280782 | X51: =SUM(ICB_at_2000:Capex_from_Jul_2014!X51) -> 8.238506514 | Y51: =SUM(ICB_at_2000:Capex_from_Jul_2014!Y51) -> 3.774272039 | Z51: =SUM(ICB_at_2000:Capex_from_Jul_2014!Z51) -> 4.699578296
B52: =Inputs!$B$351 -> Buildings | C52: $m | E52: =SUM(ICB_at_2000:Capex_from_Jul_2014!E52) -> 0 | F52: =SUM(ICB_at_2000:Capex_from_Jul_2014!F52) -> 0.08282800169 | G52: =SUM(ICB_at_2000:Capex_from_Jul_2014!G52) -> 0 | H52: =SUM(ICB_at_2000:Capex_from_Jul_2014!H52) -> 0 | I52: =SUM(ICB_at_2000:Capex_from_Jul_2014!I52) -> 0 | J52: =SUM(ICB_at_2000:Capex_from_Jul_2014!J52) -> 0 | K52: =SUM(ICB_at_2000:Capex_from_Jul_2014!K52) -> 0 | L52: =SUM(ICB_at_2000:Capex_from_Jul_2014!L52) -> 0.04699755009 | M52: =SUM(ICB_at_2000:Capex_from_Jul_2014!M52) -> 0.1314186368 | N52: =SUM(ICB_at_2000:Capex_from_Jul_2014!N52) -> 0.1692918338 | O52: =SUM(ICB_at_2000:Capex_from_Jul_2014!O52) -> 0.1174353254 | P52: =SUM(ICB_at_2000:Capex_from_Jul_2014!P52) -> 1.188154092 | Q52: =SUM(ICB_at_2000:Capex_from_Jul_2014!Q52) -> 0.7901739856 | R52: =SUM(ICB_at_2000:Capex_from_Jul_2014!R52) -> 4.453960132 | S52: =SUM(ICB_at_2000:Capex_from_Jul_2014!S52) -> 11.19882127 | T52: =SUM(ICB_at_2000:Capex_from_Jul_2014!T52) -> 1.012422837 | U52: =SUM(ICB_at_2000:Capex_from_Jul_2014!U52) -> 0 | V52: =SUM(ICB_at_2000:Capex_from_Jul_2014!V52) -> 9.805127874 | W52: =SUM(ICB_at_2000:Capex_from_Jul_2014!W52) -> 0.6696908772 | X52: =SUM(ICB_at_2000:Capex_from_Jul_2014!X52) -> 0.4651086109 | Y52: =SUM(ICB_at_2000:Capex_from_Jul_2014!Y52) -> 0.0219034974 | Z52: =SUM(ICB_at_2000:Capex_from_Jul_2014!Z52) -> 0.02245108484
B53: =Inputs!$B$352 -> Meter and services pipes | C53: $m | E53: =SUM(ICB_at_2000:Capex_from_Jul_2014!E53) -> 17.72051461 | F53: =SUM(ICB_at_2000:Capex_from_Jul_2014!F53) -> 14.04292961 | G53: =SUM(ICB_at_2000:Capex_from_Jul_2014!G53) -> 25.10034521 | H53: =SUM(ICB_at_2000:Capex_from_Jul_2014!H53) -> 23.74568894 | I53: =SUM(ICB_at_2000:Capex_from_Jul_2014!I53) -> 21.20628944 | J53: =SUM(ICB_at_2000:Capex_from_Jul_2014!J53) -> 20.91541747 | K53: =SUM(ICB_at_2000:Capex_from_Jul_2014!K53) -> 24.62917048 | L53: =SUM(ICB_at_2000:Capex_from_Jul_2014!L53) -> 21.81852319 | M53: =SUM(ICB_at_2000:Capex_from_Jul_2014!M53) -> 19.88039003 | N53: =SUM(ICB_at_2000:Capex_from_Jul_2014!N53) -> 21.40688367 | O53: =SUM(ICB_at_2000:Capex_from_Jul_2014!O53) -> 9.575388641 | P53: =SUM(ICB_at_2000:Capex_from_Jul_2014!P53) -> 20.90808467 | Q53: =SUM(ICB_at_2000:Capex_from_Jul_2014!Q53) -> 18.65555555 | R53: =SUM(ICB_at_2000:Capex_from_Jul_2014!R53) -> 20.98648406 | S53: =SUM(ICB_at_2000:Capex_from_Jul_2014!S53) -> 29.78935886 | T53: =SUM(ICB_at_2000:Capex_from_Jul_2014!T53) -> 17.20724716 | U53: =SUM(ICB_at_2000:Capex_from_Jul_2014!U53) -> 0 | V53: =SUM(ICB_at_2000:Capex_from_Jul_2014!V53) -> 34.3025272 | W53: =SUM(ICB_at_2000:Capex_from_Jul_2014!W53) -> 33.45320756 | X53: =SUM(ICB_at_2000:Capex_from_Jul_2014!X53) -> 35.20220759 | Y53: =SUM(ICB_at_2000:Capex_from_Jul_2014!Y53) -> 39.84004411 | Z53: =SUM(ICB_at_2000:Capex_from_Jul_2014!Z53) -> 40.94649685
B54: =Inputs!$B$353 -> Equipment and vehicles | C54: $m | E54: =SUM(ICB_at_2000:Capex_from_Jul_2014!E54) -> 1.59893907 | F54: =SUM(ICB_at_2000:Capex_from_Jul_2014!F54) -> 0.3427365587 | G54: =SUM(ICB_at_2000:Capex_from_Jul_2014!G54) -> 0.00696476272 | H54: =SUM(ICB_at_2000:Capex_from_Jul_2014!H54) -> 0.2348487817 | I54: =SUM(ICB_at_2000:Capex_from_Jul_2014!I54) -> 0.1015178049 | J54: =SUM(ICB_at_2000:Capex_from_Jul_2014!J54) -> 0 | K54: =SUM(ICB_at_2000:Capex_from_Jul_2014!K54) -> 0 | L54: =SUM(ICB_at_2000:Capex_from_Jul_2014!L54) -> 0 | M54: =SUM(ICB_at_2000:Capex_from_Jul_2014!M54) -> 0 | N54: =SUM(ICB_at_2000:Capex_from_Jul_2014!N54) -> 0 | O54: =SUM(ICB_at_2000:Capex_from_Jul_2014!O54) -> 0 | P54: =SUM(ICB_at_2000:Capex_from_Jul_2014!P54) -> 0.2376112117 | Q54: =SUM(ICB_at_2000:Capex_from_Jul_2014!Q54) -> 0.4135904328 | R54: =SUM(ICB_at_2000:Capex_from_Jul_2014!R54) -> 0.8623040911 | S54: =SUM(ICB_at_2000:Capex_from_Jul_2014!S54) -> 2.561274226 | T54: =SUM(ICB_at_2000:Capex_from_Jul_2014!T54) -> 0.6557462712 | U54: =SUM(ICB_at_2000:Capex_from_Jul_2014!U54) -> 0 | V54: =SUM(ICB_at_2000:Capex_from_Jul_2014!V54) -> 1.261209297 | W54: =SUM(ICB_at_2000:Capex_from_Jul_2014!W54) -> 1.542373824 | X54: =SUM(ICB_at_2000:Capex_from_Jul_2014!X54) -> 1.403928052 | Y54: =SUM(ICB_at_2000:Capex_from_Jul_2014!Y54) -> 1.146581038 | Z54: =SUM(ICB_at_2000:Capex_from_Jul_2014!Z54) -> 1.175245564
B55: =Inputs!$B$354 -> Vehicles | C55: $m | E55: =SUM(ICB_at_2000:Capex_from_Jul_2014!E55) -> 0 | F55: =SUM(ICB_at_2000:Capex_from_Jul_2014!F55) -> 0 | G55: =SUM(ICB_at_2000:Capex_from_Jul_2014!G55) -> 0 | H55: =SUM(ICB_at_2000:Capex_from_Jul_2014!H55) -> 0 | I55: =SUM(ICB_at_2000:Capex_from_Jul_2014!I55) -> 0 | J55: =SUM(ICB_at_2000:Capex_from_Jul_2014!J55) -> 0 | K55: =SUM(ICB_at_2000:Capex_from_Jul_2014!K55) -> 0 | L55: =SUM(ICB_at_2000:Capex_from_Jul_2014!L55) -> 0 | M55: =SUM(ICB_at_2000:Capex_from_Jul_2014!M55) -> 0 | N55: =SUM(ICB_at_2000:Capex_from_Jul_2014!N55) -> 0 | O55: =SUM(ICB_at_2000:Capex_from_Jul_2014!O55) -> 0 | P55: =SUM(ICB_at_2000:Capex_from_Jul_2014!P55) -> 0.5633561196 | Q55: =SUM(ICB_at_2000:Capex_from_Jul_2014!Q55) -> 0.8097261739 | R55: =SUM(ICB_at_2000:Capex_from_Jul_2014!R55) -> 3.344593262 | S55: =SUM(ICB_at_2000:Capex_from_Jul_2014!S55) -> 6.933109662 | T55: =SUM(ICB_at_2000:Capex_from_Jul_2014!T55) -> 2.123803931 | U55: =SUM(ICB_at_2000:Capex_from_Jul_2014!U55) -> 0 | V55: =SUM(ICB_at_2000:Capex_from_Jul_2014!V55) -> 1.21736506 | W55: =SUM(ICB_at_2000:Capex_from_Jul_2014!W55) -> 0.8763632683 | X55: =SUM(ICB_at_2000:Capex_from_Jul_2014!X55) -> 1.529210824 | Y55: =SUM(ICB_at_2000:Capex_from_Jul_2014!Y55) -> 5.111114068 | Z55: =SUM(ICB_at_2000:Capex_from_Jul_2014!Z55) -> 5.071997886
B56: =Inputs!$B$355 -> Information technology | C56: $m | E56: =SUM(ICB_at_2000:Capex_from_Jul_2014!E56) -> 4.638729382 | F56: =SUM(ICB_at_2000:Capex_from_Jul_2014!F56) -> 0.8725501558 | G56: =SUM(ICB_at_2000:Capex_from_Jul_2014!G56) -> 0.491712248 | H56: =SUM(ICB_at_2000:Capex_from_Jul_2014!H56) -> 0.4535010957 | I56: =SUM(ICB_at_2000:Capex_from_Jul_2014!I56) -> 1.284597305 | J56: =SUM(ICB_at_2000:Capex_from_Jul_2014!J56) -> 0.4690986952 | K56: =SUM(ICB_at_2000:Capex_from_Jul_2014!K56) -> 0.001296599256 | L56: =SUM(ICB_at_2000:Capex_from_Jul_2014!L56) -> 0 | M56: =SUM(ICB_at_2000:Capex_from_Jul_2014!M56) -> 2.928011779 | N56: =SUM(ICB_at_2000:Capex_from_Jul_2014!N56) -> 2.118635445 | O56: =SUM(ICB_at_2000:Capex_from_Jul_2014!O56) -> 1.911756244 | P56: =SUM(ICB_at_2000:Capex_from_Jul_2014!P56) -> 4.364908068 | Q56: =SUM(ICB_at_2000:Capex_from_Jul_2014!Q56) -> 3.301828287 | R56: =SUM(ICB_at_2000:Capex_from_Jul_2014!R56) -> 5.270803159 | S56: =SUM(ICB_at_2000:Capex_from_Jul_2014!S56) -> 4.618558085 | T56: =SUM(ICB_at_2000:Capex_from_Jul_2014!T56) -> 3.03965294 | U56: =SUM(ICB_at_2000:Capex_from_Jul_2014!U56) -> 0 | V56: =SUM(ICB_at_2000:Capex_from_Jul_2014!V56) -> 6.897375086 | W56: =SUM(ICB_at_2000:Capex_from_Jul_2014!W56) -> 6.852450056 | X56: =SUM(ICB_at_2000:Capex_from_Jul_2014!X56) -> 5.986258266 | Y56: =SUM(ICB_at_2000:Capex_from_Jul_2014!Y56) -> 6.784275463 | Z56: =SUM(ICB_at_2000:Capex_from_Jul_2014!Z56) -> 5.535144398
B57: =Inputs!$B$356 -> Full retail contestability | C57: $m | E57: =SUM(ICB_at_2000:Capex_from_Jul_2014!E57) -> 0.0001583226305 | F57: =SUM(ICB_at_2000:Capex_from_Jul_2014!F57) -> 0.005835492216 | G57: =SUM(ICB_at_2000:Capex_from_Jul_2014!G57) -> 2.338246172 | H57: =SUM(ICB_at_2000:Capex_from_Jul_2014!H57) -> 4.084449478 | I57: =SUM(ICB_at_2000:Capex_from_Jul_2014!I57) -> 9.116907979 | J57: =SUM(ICB_at_2000:Capex_from_Jul_2014!J57) -> 0 | K57: =SUM(ICB_at_2000:Capex_from_Jul_2014!K57) -> 0 | L57: =SUM(ICB_at_2000:Capex_from_Jul_2014!L57) -> 0 | M57: =SUM(ICB_at_2000:Capex_from_Jul_2014!M57) -> 0 | N57: =SUM(ICB_at_2000:Capex_from_Jul_2014!N57) -> 0 | O57: =SUM(ICB_at_2000:Capex_from_Jul_2014!O57) -> 0 | P57: =SUM(ICB_at_2000:Capex_from_Jul_2014!P57) -> 0 | Q57: =SUM(ICB_at_2000:Capex_from_Jul_2014!Q57) -> 0 | R57: =SUM(ICB_at_2000:Capex_from_Jul_2014!R57) -> 0 | S57: =SUM(ICB_at_2000:Capex_from_Jul_2014!S57) -> 0 | T57: =SUM(ICB_at_2000:Capex_from_Jul_2014!T57) -> 0 | U57: =SUM(ICB_at_2000:Capex_from_Jul_2014!U57) -> 0 | V57: =SUM(ICB_at_2000:Capex_from_Jul_2014!V57) -> 0 | W57: =SUM(ICB_at_2000:Capex_from_Jul_2014!W57) -> 0 | X57: =SUM(ICB_at_2000:Capex_from_Jul_2014!X57) -> 0 | Y57: =SUM(ICB_at_2000:Capex_from_Jul_2014!Y57) -> 0 | Z57: =SUM(ICB_at_2000:Capex_from_Jul_2014!Z57) -> 0
B58: =Inputs!$B$357 -> Land | C58: $m | E58: =SUM(ICB_at_2000:Capex_from_Jul_2014!E58) -> 0.3484187457 | F58: =SUM(ICB_at_2000:Capex_from_Jul_2014!F58) -> 0.258480488 | G58: =SUM(ICB_at_2000:Capex_from_Jul_2014!G58) -> 0 | H58: =SUM(ICB_at_2000:Capex_from_Jul_2014!H58) -> 0 | I58: =SUM(ICB_at_2000:Capex_from_Jul_2014!I58) -> 0 | J58: =SUM(ICB_at_2000:Capex_from_Jul_2014!J58) -> 0 | K58: =SUM(ICB_at_2000:Capex_from_Jul_2014!K58) -> 0 | L58: =SUM(ICB_at_2000:Capex_from_Jul_2014!L58) -> 0 | M58: =SUM(ICB_at_2000:Capex_from_Jul_2014!M58) -> 0 | N58: =SUM(ICB_at_2000:Capex_from_Jul_2014!N58) -> 0 | O58: =SUM(ICB_at_2000:Capex_from_Jul_2014!O58) -> 0 | P58: =SUM(ICB_at_2000:Capex_from_Jul_2014!P58) -> 0 | Q58: =SUM(ICB_at_2000:Capex_from_Jul_2014!Q58) -> 0 | R58: =SUM(ICB_at_2000:Capex_from_Jul_2014!R58) -> 0 | S58: =SUM(ICB_at_2000:Capex_from_Jul_2014!S58) -> 0 | T58: =SUM(ICB_at_2000:Capex_from_Jul_2014!T58) -> 0 | U58: =SUM(ICB_at_2000:Capex_from_Jul_2014!U58) -> 0 | V58: =SUM(ICB_at_2000:Capex_from_Jul_2014!V58) -> 5.033007026 | W58: =SUM(ICB_at_2000:Capex_from_Jul_2014!W58) -> 0.5850222085 | X58: =SUM(ICB_at_2000:Capex_from_Jul_2014!X58) -> 0.3815940314 | Y58: =SUM(ICB_at_2000:Capex_from_Jul_2014!Y58) -> 0 | Z58: =SUM(ICB_at_2000:Capex_from_Jul_2014!Z58) -> 0
B60: Total Capex | C60: $m | E60: =SUM(E44:E58) -> 36.48099078 | F60: 25.02715769 | G60: 33.87707807 | H60: 37.65350023 | I60: 43.63609552 | J60: 30.97353797 | K60: 37.31871672 | L60: 39.22144501 | M60: 39.95168856 | N60: 47.74435296 | O60: 27.80256835 | P60: 41.70097602 | Q60: 38.91261334 | R60: 79.73016039 | S60: 82.40103478 | T60: 43.06031204 | U60: 0 | V60: 107.5657878 | W60: 119.204615 | X60: 125.1140559 | Y60: 128.9870383 | Z60: 134.332569
B62: ="Depreciation: "&$B$4 -> Depreciation:
B63: =Inputs!$B$344 -> High pressure mains - steel | C63: $m | E63: =SUM(ICB_at_2000:Capex_from_Jul_2014!E63) -> 2.219093885 | F63: =SUM(ICB_at_2000:Capex_from_Jul_2014!F63) -> 2.259893985 | G63: =SUM(ICB_at_2000:Capex_from_Jul_2014!G63) -> 2.298287 | H63: =SUM(ICB_at_2000:Capex_from_Jul_2014!H63) -> 2.331297048 | I63: =SUM(ICB_at_2000:Capex_from_Jul_2014!I63) -> 2.358597176 | J63: =SUM(ICB_at_2000:Capex_from_Jul_2014!J63) -> 2.219133892 | K63: =SUM(ICB_at_2000:Capex_from_Jul_2014!K63) -> 2.226255861 | L63: =SUM(ICB_at_2000:Capex_from_Jul_2014!L63) -> 2.235253899 | M63: =SUM(ICB_at_2000:Capex_from_Jul_2014!M63) -> 2.244251937 | N63: =SUM(ICB_at_2000:Capex_from_Jul_2014!N63) -> 2.252327818 | O63: =SUM(ICB_at_2000:Capex_from_Jul_2014!O63) -> 1.188945156 | P63: =SUM(ICB_at_2000:Capex_from_Jul_2014!P63) -> 2.472345093 | Q63: =SUM(ICB_at_2000:Capex_from_Jul_2014!Q63) -> 2.507531844 | R63: =SUM(ICB_at_2000:Capex_from_Jul_2014!R63) -> 2.547633039 | S63: =SUM(ICB_at_2000:Capex_from_Jul_2014!S63) -> 2.727724084 | T63: =SUM(ICB_at_2000:Capex_from_Jul_2014!T63) -> 1.405738516 | U63: =SUM(ICB_at_2000:Capex_from_Jul_2014!U63) -> 1.422357543 | V63: =SUM(ICB_at_2000:Capex_from_Jul_2014!V63) -> 1.422357543 | W63: =SUM(ICB_at_2000:Capex_from_Jul_2014!W63) -> 3.064138906 | X63: =SUM(ICB_at_2000:Capex_from_Jul_2014!X63) -> 3.565455042 | Y63: =SUM(ICB_at_2000:Capex_from_Jul_2014!Y63) -> 4.066713726 | Z63: =SUM(ICB_at_2000:Capex_from_Jul_2014!Z63) -> 4.491642722
B64: =Inputs!$B$345 -> High pressure mains - PE | C64: $m | E64: =SUM(ICB_at_2000:Capex_from_Jul_2014!E64) -> 0 | F64: =SUM(ICB_at_2000:Capex_from_Jul_2014!F64) -> 0 | G64: =SUM(ICB_at_2000:Capex_from_Jul_2014!G64) -> 0 | H64: =SUM(ICB_at_2000:Capex_from_Jul_2014!H64) -> 0 | I64: =SUM(ICB_at_2000:Capex_from_Jul_2014!I64) -> 0 | J64: =SUM(ICB_at_2000:Capex_from_Jul_2014!J64) -> 0 | K64: =SUM(ICB_at_2000:Capex_from_Jul_2014!K64) -> 0 | L64: =SUM(ICB_at_2000:Capex_from_Jul_2014!L64) -> 0 | M64: =SUM(ICB_at_2000:Capex_from_Jul_2014!M64) -> 0 | N64: =SUM(ICB_at_2000:Capex_from_Jul_2014!N64) -> 0 | O64: =SUM(ICB_at_2000:Capex_from_Jul_2014!O64) -> 0 | P64: =SUM(ICB_at_2000:Capex_from_Jul_2014!P64) -> 0.007649405759 | Q64: =SUM(ICB_at_2000:Capex_from_Jul_2014!Q64) -> 0.01705127705 | R64: =SUM(ICB_at_2000:Capex_from_Jul_2014!R64) -> 0.009678296386 | S64: =SUM(ICB_at_2000:Capex_from_Jul_2014!S64) -> 0.1048022896 | T64: =SUM(ICB_at_2000:Capex_from_Jul_2014!T64) -> -0.3240237204 | U64: =SUM(ICB_at_2000:Capex_from_Jul_2014!U64) -> 0.142612241 | V64: =SUM(ICB_at_2000:Capex_from_Jul_2014!V64) -> 0.142612241 | W64: =SUM(ICB_at_2000:Capex_from_Jul_2014!W64) -> 0.2939087316 | X64: =SUM(ICB_at_2000:Capex_from_Jul_2014!X64) -> 0.2939087316 | Y64: =SUM(ICB_at_2000:Capex_from_Jul_2014!Y64) -> 0.3152266788 | Z64: =SUM(ICB_at_2000:Capex_from_Jul_2014!Z64) -> 0.3940418967
B65: =Inputs!$B$346 -> Medium pressure mains | C65: $m | E65: =SUM(ICB_at_2000:Capex_from_Jul_2014!E65) -> 5.521308437 | F65: =SUM(ICB_at_2000:Capex_from_Jul_2014!F65) -> 5.621214507 | G65: =SUM(ICB_at_2000:Capex_from_Jul_2014!G65) -> 5.702060543 | H65: =SUM(ICB_at_2000:Capex_from_Jul_2014!H65) -> 5.750537964 | I65: =SUM(ICB_at_2000:Capex_from_Jul_2014!I65) -> 5.783551724 | J65: =SUM(ICB_at_2000:Capex_from_Jul_2014!J65) -> 6.112389084 | K65: =SUM(ICB_at_2000:Capex_from_Jul_2014!K65) -> 6.233168502 | L65: =SUM(ICB_at_2000:Capex_from_Jul_2014!L65) -> 6.345928991 | M65: =SUM(ICB_at_2000:Capex_from_Jul_2014!M65) -> 6.440995156 | N65: =SUM(ICB_at_2000:Capex_from_Jul_2014!N65) -> 6.548584669 | O65: =SUM(ICB_at_2000:Capex_from_Jul_2014!O65) -> 2.729335936 | P65: =SUM(ICB_at_2000:Capex_from_Jul_2014!P65) -> 5.458671872 | Q65: =SUM(ICB_at_2000:Capex_from_Jul_2014!Q65) -> 5.458671872 | R65: =SUM(ICB_at_2000:Capex_from_Jul_2014!R65) -> 5.458671872 | S65: =SUM(ICB_at_2000:Capex_from_Jul_2014!S65) -> 5.458671872 | T65: =SUM(ICB_at_2000:Capex_from_Jul_2014!T65) -> 2.729335936 | U65: =SUM(ICB_at_2000:Capex_from_Jul_2014!U65) -> 2.729335936 | V65: =SUM(ICB_at_2000:Capex_from_Jul_2014!V65) -> 2.729335936 | W65: =SUM(ICB_at_2000:Capex_from_Jul_2014!W65) -> 5.458671872 | X65: =SUM(ICB_at_2000:Capex_from_Jul_2014!X65) -> 5.458671872 | Y65: =SUM(ICB_at_2000:Capex_from_Jul_2014!Y65) -> 5.458671872 | Z65: =SUM(ICB_at_2000:Capex_from_Jul_2014!Z65) -> 5.458671872
B66: =Inputs!$B$347 -> Medium/low pressure mains | C66: $m | E66: =SUM(ICB_at_2000:Capex_from_Jul_2014!E66) -> 3.741800123 | F66: =SUM(ICB_at_2000:Capex_from_Jul_2014!F66) -> 3.743432686 | G66: =SUM(ICB_at_2000:Capex_from_Jul_2014!G66) -> 3.743536558 | H66: =SUM(ICB_at_2000:Capex_from_Jul_2014!H66) -> 3.743691164 | I66: =SUM(ICB_at_2000:Capex_from_Jul_2014!I66) -> 3.743819898 | J66: =SUM(ICB_at_2000:Capex_from_Jul_2014!J66) -> 3.764888971 | K66: =SUM(ICB_at_2000:Capex_from_Jul_2014!K66) -> 3.803012038 | L66: =SUM(ICB_at_2000:Capex_from_Jul_2014!L66) -> 3.843096806 | M66: =SUM(ICB_at_2000:Capex_from_Jul_2014!M66) -> 3.882222809 | N66: =SUM(ICB_at_2000:Capex_from_Jul_2014!N66) -> 3.926938094 | O66: =SUM(ICB_at_2000:Capex_from_Jul_2014!O66) -> 2.690771046 | P66: =SUM(ICB_at_2000:Capex_from_Jul_2014!P66) -> 5.483294822 | Q66: =SUM(ICB_at_2000:Capex_from_Jul_2014!Q66) -> 5.699767394 | R66: =SUM(ICB_at_2000:Capex_from_Jul_2014!R66) -> 5.926927795 | S66: =SUM(ICB_at_2000:Capex_from_Jul_2014!S66) -> 6.15304007 | T66: =SUM(ICB_at_2000:Capex_from_Jul_2014!T66) -> 3.267964352 | U66: =SUM(ICB_at_2000:Capex_from_Jul_2014!U66) -> 3.387396581 | V66: =SUM(ICB_at_2000:Capex_from_Jul_2014!V66) -> 3.387396581 | W66: =SUM(ICB_at_2000:Capex_from_Jul_2014!W66) -> 7.241837555 | X66: =SUM(ICB_at_2000:Capex_from_Jul_2014!X66) -> 7.730676243 | Y66: =SUM(ICB_at_2000:Capex_from_Jul_2014!Y66) -> 8.2125893 | Z66: =SUM(ICB_at_2000:Capex_from_Jul_2014!Z66) -> 8.744401653
B67: =Inputs!$B$348 -> Low pressure mains | C67: $m | E67: =SUM(ICB_at_2000:Capex_from_Jul_2014!E67) -> 1.37705512 | F67: =SUM(ICB_at_2000:Capex_from_Jul_2014!F67) -> 1.436595681 | G67: =SUM(ICB_at_2000:Capex_from_Jul_2014!G67) -> 1.49764352 | H67: =SUM(ICB_at_2000:Capex_from_Jul_2014!H67) -> 1.559944793 | I67: =SUM(ICB_at_2000:Capex_from_Jul_2014!I67) -> 1.624154375 | J67: =SUM(ICB_at_2000:Capex_from_Jul_2014!J67) -> 1.304229397 | K67: =SUM(ICB_at_2000:Capex_from_Jul_2014!K67) -> 1.304229397 | L67: =SUM(ICB_at_2000:Capex_from_Jul_2014!L67) -> 1.304229397 | M67: =SUM(ICB_at_2000:Capex_from_Jul_2014!M67) -> 1.304229397 | N67: =SUM(ICB_at_2000:Capex_from_Jul_2014!N67) -> 1.304229397 | O67: =SUM(ICB_at_2000:Capex_from_Jul_2014!O67) -> 0.6521146986 | P67: =SUM(ICB_at_2000:Capex_from_Jul_2014!P67) -> 1.304229397 | Q67: =SUM(ICB_at_2000:Capex_from_Jul_2014!Q67) -> 1.304229397 | R67: =SUM(ICB_at_2000:Capex_from_Jul_2014!R67) -> 1.304229397 | S67: =SUM(ICB_at_2000:Capex_from_Jul_2014!S67) -> 1.304229397 | T67: =SUM(ICB_at_2000:Capex_from_Jul_2014!T67) -> 0.6521146986 | U67: =SUM(ICB_at_2000:Capex_from_Jul_2014!U67) -> 0.6521146986 | V67: =SUM(ICB_at_2000:Capex_from_Jul_2014!V67) -> 0.6521146986 | W67: =SUM(ICB_at_2000:Capex_from_Jul_2014!W67) -> 1.304229397 | X67: =SUM(ICB_at_2000:Capex_from_Jul_2014!X67) -> 1.304229397 | Y67: =SUM(ICB_at_2000:Capex_from_Jul_2014!Y67) -> 1.304229397 | Z67: =SUM(ICB_at_2000:Capex_from_Jul_2014!Z67) -> 1.304229397
B68: =Inputs!$B$349 -> Regulators | C68: $m | E68: =SUM(ICB_at_2000:Capex_from_Jul_2014!E68) -> 0.546852567 | F68: =SUM(ICB_at_2000:Capex_from_Jul_2014!F68) -> 0.5561904186 | G68: =SUM(ICB_at_2000:Capex_from_Jul_2014!G68) -> 0.567257524 | H68: =SUM(ICB_at_2000:Capex_from_Jul_2014!H68) -> 0.576817292 | I68: =SUM(ICB_at_2000:Capex_from_Jul_2014!I68) -> 0.581501797 | J68: =SUM(ICB_at_2000:Capex_from_Jul_2014!J68) -> 0.5763128381 | K68: =SUM(ICB_at_2000:Capex_from_Jul_2014!K68) -> 0.57876575 | L68: =SUM(ICB_at_2000:Capex_from_Jul_2014!L68) -> 0.5811734887 | M68: =SUM(ICB_at_2000:Capex_from_Jul_2014!M68) -> 0.5834307428 | N68: =SUM(ICB_at_2000:Capex_from_Jul_2014!N68) -> 0.586212196 | O68: =SUM(ICB_at_2000:Capex_from_Jul_2014!O68) -> 0.3206234591 | P68: =SUM(ICB_at_2000:Capex_from_Jul_2014!P68) -> 0.6600405892 | Q68: =SUM(ICB_at_2000:Capex_from_Jul_2014!Q68) -> 0.6673826316 | R68: =SUM(ICB_at_2000:Capex_from_Jul_2014!R68) -> 0.6738300066 | S68: =SUM(ICB_at_2000:Capex_from_Jul_2014!S68) -> 0.6813369781 | T68: =SUM(ICB_at_2000:Capex_from_Jul_2014!T68) -> 0.36588066 | U68: =SUM(ICB_at_2000:Capex_from_Jul_2014!U68) -> 0.3884322937 | V68: =SUM(ICB_at_2000:Capex_from_Jul_2014!V68) -> 0.3884322937 | W68: =SUM(ICB_at_2000:Capex_from_Jul_2014!W68) -> 0.8506533903 | X68: =SUM(ICB_at_2000:Capex_from_Jul_2014!X68) -> 0.891043747 | Y68: =SUM(ICB_at_2000:Capex_from_Jul_2014!Y68) -> 0.9313609224 | Z68: =SUM(ICB_at_2000:Capex_from_Jul_2014!Z68) -> 0.9732827789
B69: =Inputs!$B$350 -> Secondary gate stations | C69: $m | E69: =SUM(ICB_at_2000:Capex_from_Jul_2014!E69) -> 0.1393769948 | F69: =SUM(ICB_at_2000:Capex_from_Jul_2014!F69) -> 0.1509036653 | G69: =SUM(ICB_at_2000:Capex_from_Jul_2014!G69) -> 0.150903669 | H69: =SUM(ICB_at_2000:Capex_from_Jul_2014!H69) -> 0.1509036726 | I69: =SUM(ICB_at_2000:Capex_from_Jul_2014!I69) -> 0.1509036761 | J69: =SUM(ICB_at_2000:Capex_from_Jul_2014!J69) -> 0.1229849812 | K69: =SUM(ICB_at_2000:Capex_from_Jul_2014!K69) -> 0.1232330461 | L69: =SUM(ICB_at_2000:Capex_from_Jul_2014!L69) -> 0.1234765426 | M69: =SUM(ICB_at_2000:Capex_from_Jul_2014!M69) -> 0.1237048204 | N69: =SUM(ICB_at_2000:Capex_from_Jul_2014!N69) -> 0.123986111 | O69: =SUM(ICB_at_2000:Capex_from_Jul_2014!O69) -> 0.08498178649 | P69: =SUM(ICB_at_2000:Capex_from_Jul_2014!P69) -> 0.2263855284 | Q69: =SUM(ICB_at_2000:Capex_from_Jul_2014!Q69) -> 0.2383110708 | R69: =SUM(ICB_at_2000:Capex_from_Jul_2014!R69) -> 0.2383110708 | S69: =SUM(ICB_at_2000:Capex_from_Jul_2014!S69) -> 0.2383110708 | T69: =SUM(ICB_at_2000:Capex_from_Jul_2014!T69) -> 0.113227304 | U69: =SUM(ICB_at_2000:Capex_from_Jul_2014!U69) -> 0.113227304 | V69: =SUM(ICB_at_2000:Capex_from_Jul_2014!V69) -> 0.113227304 | W69: =SUM(ICB_at_2000:Capex_from_Jul_2014!W69) -> 0.2264546079 | X69: =SUM(ICB_at_2000:Capex_from_Jul_2014!X69) -> 0.3308116275 | Y69: =SUM(ICB_at_2000:Capex_from_Jul_2014!Y69) -> 0.5367742903 | Z69: =SUM(ICB_at_2000:Capex_from_Jul_2014!Z69) -> 0.6311310913
B70: =Inputs!$B$351 -> Buildings | C70: $m | E70: =SUM(ICB_at_2000:Capex_from_Jul_2014!E70) -> 0.1196397881 | F70: =SUM(ICB_at_2000:Capex_from_Jul_2014!F70) -> 0.1235492967 | G70: =SUM(ICB_at_2000:Capex_from_Jul_2014!G70) -> 0.1274397346 | H70: =SUM(ICB_at_2000:Capex_from_Jul_2014!H70) -> 0.1313111946 | I70: =SUM(ICB_at_2000:Capex_from_Jul_2014!I70) -> 0.1351637696 | J70: =SUM(ICB_at_2000:Capex_from_Jul_2014!J70) -> 0.1179058682 | K70: =SUM(ICB_at_2000:Capex_from_Jul_2014!K70) -> 0.1183256261 | L70: =SUM(ICB_at_2000:Capex_from_Jul_2014!L70) -> 0.1187376537 | M70: =SUM(ICB_at_2000:Capex_from_Jul_2014!M70) -> 0.1191239294 | N70: =SUM(ICB_at_2000:Capex_from_Jul_2014!N70) -> 0.1195999094 | O70: =SUM(ICB_at_2000:Capex_from_Jul_2014!O70) -> 0.0187272692 | P70: =SUM(ICB_at_2000:Capex_from_Jul_2014!P70) -> 0.05818300121 | Q70: =SUM(ICB_at_2000:Capex_from_Jul_2014!Q70) -> 0.1160413802 | R70: =SUM(ICB_at_2000:Capex_from_Jul_2014!R70) -> 0.3042380074 | S70: =SUM(ICB_at_2000:Capex_from_Jul_2014!S70) -> 0.3042380074 | T70: =SUM(ICB_at_2000:Capex_from_Jul_2014!T70) -> 0.2184739373 | U70: =SUM(ICB_at_2000:Capex_from_Jul_2014!U70) -> 0.2485470371 | V70: =SUM(ICB_at_2000:Capex_from_Jul_2014!V70) -> 0.2485470371 | W70: =SUM(ICB_at_2000:Capex_from_Jul_2014!W70) -> 0.742222271 | X70: =SUM(ICB_at_2000:Capex_from_Jul_2014!X70) -> 0.758964543 | Y70: =SUM(ICB_at_2000:Capex_from_Jul_2014!Y70) -> 0.7705922582 | Z70: =SUM(ICB_at_2000:Capex_from_Jul_2014!Z70) -> 0.7711398457
B71: =Inputs!$B$352 -> Meter and services pipes | C71: $m | E71: =SUM(ICB_at_2000:Capex_from_Jul_2014!E71) -> 7.703563929 | F71: =SUM(ICB_at_2000:Capex_from_Jul_2014!F71) -> 8.187415647 | G71: =SUM(ICB_at_2000:Capex_from_Jul_2014!G71) -> 8.647454083 | H71: =SUM(ICB_at_2000:Capex_from_Jul_2014!H71) -> 9.092916277 | I71: =SUM(ICB_at_2000:Capex_from_Jul_2014!I71) -> 9.520221723 | J71: =SUM(ICB_at_2000:Capex_from_Jul_2014!J71) -> 13.37279438 | K71: =SUM(ICB_at_2000:Capex_from_Jul_2014!K71) -> 14.39911232 | L71: =SUM(ICB_at_2000:Capex_from_Jul_2014!L71) -> 15.3871086 | M71: =SUM(ICB_at_2000:Capex_from_Jul_2014!M71) -> 16.15855163 | N71: =SUM(ICB_at_2000:Capex_from_Jul_2014!N71) -> 17.06416502 | O71: =SUM(ICB_at_2000:Capex_from_Jul_2014!O71) -> 4.166932643 | P71: =SUM(ICB_at_2000:Capex_from_Jul_2014!P71) -> 8.744097798 | Q71: =SUM(ICB_at_2000:Capex_from_Jul_2014!Q71) -> 9.712831707 | R71: =SUM(ICB_at_2000:Capex_from_Jul_2014!R71) -> 10.81279651 | S71: =SUM(ICB_at_2000:Capex_from_Jul_2014!S71) -> 11.90739745 | T71: =SUM(ICB_at_2000:Capex_from_Jul_2014!T71) -> 6.132914435 | U71: =SUM(ICB_at_2000:Capex_from_Jul_2014!U71) -> 6.477059378 | V71: =SUM(ICB_at_2000:Capex_from_Jul_2014!V71) -> 6.477059378 | W71: =SUM(ICB_at_2000:Capex_from_Jul_2014!W71) -> 14.32621984 | X71: =SUM(ICB_at_2000:Capex_from_Jul_2014!X71) -> 15.66434815 | Y71: =SUM(ICB_at_2000:Capex_from_Jul_2014!Y71) -> 17.07243645 | Z71: =SUM(ICB_at_2000:Capex_from_Jul_2014!Z71) -> 18.66603821
B72: =Inputs!$B$353 -> Equipment and vehicles | C72: $m | E72: =SUM(ICB_at_2000:Capex_from_Jul_2014!E72) -> 4.883305692 | F72: =SUM(ICB_at_2000:Capex_from_Jul_2014!F72) -> 5.610508758 | G72: =SUM(ICB_at_2000:Capex_from_Jul_2014!G72) -> 5.913636303 | H72: =SUM(ICB_at_2000:Capex_from_Jul_2014!H72) -> 6.238536807 | I72: =SUM(ICB_at_2000:Capex_from_Jul_2014!I72) -> 6.551277743 | J72: =SUM(ICB_at_2000:Capex_from_Jul_2014!J72) -> 0 | K72: =SUM(ICB_at_2000:Capex_from_Jul_2014!K72) -> 4.877840637e-16 | L72: =SUM(ICB_at_2000:Capex_from_Jul_2014!L72) -> 0 | M72: =SUM(ICB_at_2000:Capex_from_Jul_2014!M72) -> 0 | N72: =SUM(ICB_at_2000:Capex_from_Jul_2014!N72) -> 0 | O72: =SUM(ICB_at_2000:Capex_from_Jul_2014!O72) -> 0 | P72: =SUM(ICB_at_2000:Capex_from_Jul_2014!P72) -> 0.6580095094 | Q72: =SUM(ICB_at_2000:Capex_from_Jul_2014!Q72) -> 0.7310317256 | R72: =SUM(ICB_at_2000:Capex_from_Jul_2014!R72) -> 0.7310317256 | S72: =SUM(ICB_at_2000:Capex_from_Jul_2014!S72) -> 0.7310317256 | T72: =SUM(ICB_at_2000:Capex_from_Jul_2014!T72) -> 0.3140736489 | U72: =SUM(ICB_at_2000:Capex_from_Jul_2014!U72) -> 0.3468609624 | V72: =SUM(ICB_at_2000:Capex_from_Jul_2014!V72) -> 0.3468609624 | W72: =SUM(ICB_at_2000:Capex_from_Jul_2014!W72) -> 0.8198428545 | X72: =SUM(ICB_at_2000:Capex_from_Jul_2014!X72) -> 0.7603536754 | Y72: =SUM(ICB_at_2000:Capex_from_Jul_2014!Y72) -> 0.8926127601 | Z72: =SUM(ICB_at_2000:Capex_from_Jul_2014!Z72) -> 1.007270864
B73: =Inputs!$B$354 -> Vehicles | C73: $m | E73: =SUM(ICB_at_2000:Capex_from_Jul_2014!E73) -> 0 | F73: =SUM(ICB_at_2000:Capex_from_Jul_2014!F73) -> 0 | G73: =SUM(ICB_at_2000:Capex_from_Jul_2014!G73) -> 0 | H73: =SUM(ICB_at_2000:Capex_from_Jul_2014!H73) -> 0 | I73: =SUM(ICB_at_2000:Capex_from_Jul_2014!I73) -> 0 | J73: =SUM(ICB_at_2000:Capex_from_Jul_2014!J73) -> 0 | K73: =SUM(ICB_at_2000:Capex_from_Jul_2014!K73) -> 0 | L73: =SUM(ICB_at_2000:Capex_from_Jul_2014!L73) -> 0 | M73: =SUM(ICB_at_2000:Capex_from_Jul_2014!M73) -> 0 | N73: =SUM(ICB_at_2000:Capex_from_Jul_2014!N73) -> 0 | O73: =SUM(ICB_at_2000:Capex_from_Jul_2014!O73) -> 0 | P73: =SUM(ICB_at_2000:Capex_from_Jul_2014!P73) -> 0 | Q73: =SUM(ICB_at_2000:Capex_from_Jul_2014!Q73) -> 0 | R73: =SUM(ICB_at_2000:Capex_from_Jul_2014!R73) -> 0 | S73: =SUM(ICB_at_2000:Capex_from_Jul_2014!S73) -> 0 | T73: =SUM(ICB_at_2000:Capex_from_Jul_2014!T73) -> 1.387178516 | U73: =SUM(ICB_at_2000:Capex_from_Jul_2014!U73) -> 1.599558909 | V73: =SUM(ICB_at_2000:Capex_from_Jul_2014!V73) -> 1.599558909 | W73: =SUM(ICB_at_2000:Capex_from_Jul_2014!W73) -> 3.301751801 | X73: =SUM(ICB_at_2000:Capex_from_Jul_2014!X73) -> 3.201231062 | Y73: =SUM(ICB_at_2000:Capex_from_Jul_2014!Y73) -> 2.954044707 | Z73: =SUM(ICB_at_2000:Capex_from_Jul_2014!Z73) -> 2.864882397
B74: =Inputs!$B$355 -> Information technology | C74: $m | E74: =SUM(ICB_at_2000:Capex_from_Jul_2014!E74) -> 0 | F74: =SUM(ICB_at_2000:Capex_from_Jul_2014!F74) -> 0 | G74: =SUM(ICB_at_2000:Capex_from_Jul_2014!G74) -> 0 | H74: =SUM(ICB_at_2000:Capex_from_Jul_2014!H74) -> 0 | I74: =SUM(ICB_at_2000:Capex_from_Jul_2014!I74) -> 0 | J74: =SUM(ICB_at_2000:Capex_from_Jul_2014!J74) -> 1.548218037 | K74: =SUM(ICB_at_2000:Capex_from_Jul_2014!K74) -> 2.406446426 | L74: =SUM(ICB_at_2000:Capex_from_Jul_2014!L74) -> 3.149093882 | M74: =SUM(ICB_at_2000:Capex_from_Jul_2014!M74) -> 3.77241728 | N74: =SUM(ICB_at_2000:Capex_from_Jul_2014!N74) -> 4.672299977 | O74: =SUM(ICB_at_2000:Capex_from_Jul_2014!O74) -> 0.4653796797 | P74: =SUM(ICB_at_2000:Capex_from_Jul_2014!P74) -> 1.631276494 | Q74: =SUM(ICB_at_2000:Capex_from_Jul_2014!Q74) -> 2.662187171 | R74: =SUM(ICB_at_2000:Capex_from_Jul_2014!R74) -> 3.440000654 | S74: =SUM(ICB_at_2000:Capex_from_Jul_2014!S74) -> 4.312267389 | T74: =SUM(ICB_at_2000:Capex_from_Jul_2014!T74) -> 1.02588593 | U74: =SUM(ICB_at_2000:Capex_from_Jul_2014!U74) -> 1.893026201 | V74: =SUM(ICB_at_2000:Capex_from_Jul_2014!V74) -> 1.893026201 | W74: =SUM(ICB_at_2000:Capex_from_Jul_2014!W74) -> 4.847483411 | X74: =SUM(ICB_at_2000:Capex_from_Jul_2014!X74) -> 5.608895859 | Y74: =SUM(ICB_at_2000:Capex_from_Jul_2014!Y74) -> 5.996986423 | Z74: =SUM(ICB_at_2000:Capex_from_Jul_2014!Z74) -> 6.373858171
B75: =Inputs!$B$356 -> Full retail contestability | C75: $m | E75: =SUM(ICB_at_2000:Capex_from_Jul_2014!E75) -> 0 | F75: =SUM(ICB_at_2000:Capex_from_Jul_2014!F75) -> 0 | G75: =SUM(ICB_at_2000:Capex_from_Jul_2014!G75) -> 0 | H75: =SUM(ICB_at_2000:Capex_from_Jul_2014!H75) -> 0 | I75: =SUM(ICB_at_2000:Capex_from_Jul_2014!I75) -> 0 | J75: =SUM(ICB_at_2000:Capex_from_Jul_2014!J75) -> 3.109119489 | K75: =SUM(ICB_at_2000:Capex_from_Jul_2014!K75) -> 3.109119489 | L75: =SUM(ICB_at_2000:Capex_from_Jul_2014!L75) -> 3.109119489 | M75: =SUM(ICB_at_2000:Capex_from_Jul_2014!M75) -> 3.109119489 | N75: =SUM(ICB_at_2000:Capex_from_Jul_2014!N75) -> 3.109119489 | O75: =SUM(ICB_at_2000:Capex_from_Jul_2014!O75) -> 2.287299673e-20 | P75: =SUM(ICB_at_2000:Capex_from_Jul_2014!P75) -> 0 | Q75: =SUM(ICB_at_2000:Capex_from_Jul_2014!Q75) -> 0 | R75: =SUM(ICB_at_2000:Capex_from_Jul_2014!R75) -> 0 | S75: =SUM(ICB_at_2000:Capex_from_Jul_2014!S75) -> 0 | T75: =SUM(ICB_at_2000:Capex_from_Jul_2014!T75) -> 1.455698257e-15 | U75: =SUM(ICB_at_2000:Capex_from_Jul_2014!U75) -> 0 | V75: =SUM(ICB_at_2000:Capex_from_Jul_2014!V75) -> 0 | W75: =SUM(ICB_at_2000:Capex_from_Jul_2014!W75) -> 0 | X75: =SUM(ICB_at_2000:Capex_from_Jul_2014!X75) -> 0 | Y75: =SUM(ICB_at_2000:Capex_from_Jul_2014!Y75) -> 0 | Z75: =SUM(ICB_at_2000:Capex_from_Jul_2014!Z75) -> 0
B76: =Inputs!$B$357 -> Land | C76: $m | E76: =SUM(ICB_at_2000:Capex_from_Jul_2014!E76) -> 0 | F76: =SUM(ICB_at_2000:Capex_from_Jul_2014!F76) -> 0 | G76: =SUM(ICB_at_2000:Capex_from_Jul_2014!G76) -> 0 | H76: =SUM(ICB_at_2000:Capex_from_Jul_2014!H76) -> 0 | I76: =SUM(ICB_at_2000:Capex_from_Jul_2014!I76) -> 0 | J76: =SUM(ICB_at_2000:Capex_from_Jul_2014!J76) -> 0 | K76: =SUM(ICB_at_2000:Capex_from_Jul_2014!K76) -> 0 | L76: =SUM(ICB_at_2000:Capex_from_Jul_2014!L76) -> 0 | M76: =SUM(ICB_at_2000:Capex_from_Jul_2014!M76) -> 0 | N76: =SUM(ICB_at_2000:Capex_from_Jul_2014!N76) -> 0 | O76: =SUM(ICB_at_2000:Capex_from_Jul_2014!O76) -> 0 | P76: =SUM(ICB_at_2000:Capex_from_Jul_2014!P76) -> 0 | Q76: =SUM(ICB_at_2000:Capex_from_Jul_2014!Q76) -> 0 | R76: =SUM(ICB_at_2000:Capex_from_Jul_2014!R76) -> 0 | S76: =SUM(ICB_at_2000:Capex_from_Jul_2014!S76) -> 0 | T76: =SUM(ICB_at_2000:Capex_from_Jul_2014!T76) -> 0 | U76: =SUM(ICB_at_2000:Capex_from_Jul_2014!U76) -> 0 | V76: =SUM(ICB_at_2000:Capex_from_Jul_2014!V76) -> 0 | W76: =SUM(ICB_at_2000:Capex_from_Jul_2014!W76) -> 0 | X76: =SUM(ICB_at_2000:Capex_from_Jul_2014!X76) -> 0 | Y76: =SUM(ICB_at_2000:Capex_from_Jul_2014!Y76) -> 0 | Z76: =SUM(ICB_at_2000:Capex_from_Jul_2014!Z76) -> 0
B78: Total Depreciation | C78: $m | E78: =SUM(E63:E77) -> 26.25199654 | F78: 27.68970464 | G78: 28.64821893 | H78: 29.57595621 | I78: 30.44919188 | J78: 32.24797694 | K78: 34.30166846 | L78: 36.19721875 | M78: 37.73804719 | N78: 39.70746268 | O78: 12.31781168 | P78: 26.70418351 | Q78: 29.11503747 | R78: 31.44734837 | S78: 33.92305033 | T78: 17.28876421 | U78: 19.40052909 | V78: 19.40052909 | W78: 42.47741464 | X78: 45.56858995 | Y78: 48.51223879 | Z78: 51.6805909
B80: ="Value of redundant assets: "&$B$4 -> Value of redundant assets:
B81: =Inputs!$B$344 -> High pressure mains - steel | C81: $m | E81: =SUM(ICB_at_2000:Capex_from_Jul_2014!E81) -> 0 | F81: =SUM(ICB_at_2000:Capex_from_Jul_2014!F81) -> 0 | G81: =SUM(ICB_at_2000:Capex_from_Jul_2014!G81) -> 0 | H81: =SUM(ICB_at_2000:Capex_from_Jul_2014!H81) -> 0 | I81: =SUM(ICB_at_2000:Capex_from_Jul_2014!I81) -> 0 | J81: =SUM(ICB_at_2000:Capex_from_Jul_2014!J81) -> 0 | K81: =SUM(ICB_at_2000:Capex_from_Jul_2014!K81) -> 0 | L81: =SUM(ICB_at_2000:Capex_from_Jul_2014!L81) -> 0 | M81: =SUM(ICB_at_2000:Capex_from_Jul_2014!M81) -> 0 | N81: =SUM(ICB_at_2000:Capex_from_Jul_2014!N81) -> 0 | O81: =SUM(ICB_at_2000:Capex_from_Jul_2014!O81) -> 0 | P81: =SUM(ICB_at_2000:Capex_from_Jul_2014!P81) -> 0 | Q81: =SUM(ICB_at_2000:Capex_from_Jul_2014!Q81) -> 0 | R81: =SUM(ICB_at_2000:Capex_from_Jul_2014!R81) -> 0 | S81: =SUM(ICB_at_2000:Capex_from_Jul_2014!S81) -> 0 | T81: =SUM(ICB_at_2000:Capex_from_Jul_2014!T81) -> 0 | U81: =SUM(ICB_at_2000:Capex_from_Jul_2014!U81) -> 0 | V81: =SUM(ICB_at_2000:Capex_from_Jul_2014!V81) -> 0 | W81: =SUM(ICB_at_2000:Capex_from_Jul_2014!W81) -> 0 | X81: =SUM(ICB_at_2000:Capex_from_Jul_2014!X81) -> 0 | Y81: =SUM(ICB_at_2000:Capex_from_Jul_2014!Y81) -> 0 | Z81: =SUM(ICB_at_2000:Capex_from_Jul_2014!Z81) -> 0
B82: =Inputs!$B$345 -> High pressure mains - PE | C82: $m | E82: =SUM(ICB_at_2000:Capex_from_Jul_2014!E82) -> 0 | F82: =SUM(ICB_at_2000:Capex_from_Jul_2014!F82) -> 0 | G82: =SUM(ICB_at_2000:Capex_from_Jul_2014!G82) -> 0 | H82: =SUM(ICB_at_2000:Capex_from_Jul_2014!H82) -> 0 | I82: =SUM(ICB_at_2000:Capex_from_Jul_2014!I82) -> 0 | J82: =SUM(ICB_at_2000:Capex_from_Jul_2014!J82) -> 0 | K82: =SUM(ICB_at_2000:Capex_from_Jul_2014!K82) -> 0 | L82: =SUM(ICB_at_2000:Capex_from_Jul_2014!L82) -> 0 | M82: =SUM(ICB_at_2000:Capex_from_Jul_2014!M82) -> 0 | N82: =SUM(ICB_at_2000:Capex_from_Jul_2014!N82) -> 0 | O82: =SUM(ICB_at_2000:Capex_from_Jul_2014!O82) -> 0 | P82: =SUM(ICB_at_2000:Capex_from_Jul_2014!P82) -> 0 | Q82: =SUM(ICB_at_2000:Capex_from_Jul_2014!Q82) -> 0 | R82: =SUM(ICB_at_2000:Capex_from_Jul_2014!R82) -> 0 | S82: =SUM(ICB_at_2000:Capex_from_Jul_2014!S82) -> 0 | T82: =SUM(ICB_at_2000:Capex_from_Jul_2014!T82) -> 0 | U82: =SUM(ICB_at_2000:Capex_from_Jul_2014!U82) -> 0 | V82: =SUM(ICB_at_2000:Capex_from_Jul_2014!V82) -> 0 | W82: =SUM(ICB_at_2000:Capex_from_Jul_2014!W82) -> 0 | X82: =SUM(ICB_at_2000:Capex_from_Jul_2014!X82) -> 0 | Y82: =SUM(ICB_at_2000:Capex_from_Jul_2014!Y82) -> 0 | Z82: =SUM(ICB_at_2000:Capex_from_Jul_2014!Z82) -> 0
B83: =Inputs!$B$346 -> Medium pressure mains | C83: $m | E83: =SUM(ICB_at_2000:Capex_from_Jul_2014!E83) -> 0 | F83: =SUM(ICB_at_2000:Capex_from_Jul_2014!F83) -> 0 | G83: =SUM(ICB_at_2000:Capex_from_Jul_2014!G83) -> 0 | H83: =SUM(ICB_at_2000:Capex_from_Jul_2014!H83) -> 0 | I83: =SUM(ICB_at_2000:Capex_from_Jul_2014!I83) -> 0 | J83: =SUM(ICB_at_2000:Capex_from_Jul_2014!J83) -> 0 | K83: =SUM(ICB_at_2000:Capex_from_Jul_2014!K83) -> 0 | L83: =SUM(ICB_at_2000:Capex_from_Jul_2014!L83) -> 0 | M83: =SUM(ICB_at_2000:Capex_from_Jul_2014!M83) -> 0 | N83: =SUM(ICB_at_2000:Capex_from_Jul_2014!N83) -> 0 | O83: =SUM(ICB_at_2000:Capex_from_Jul_2014!O83) -> 0 | P83: =SUM(ICB_at_2000:Capex_from_Jul_2014!P83) -> 0 | Q83: =SUM(ICB_at_2000:Capex_from_Jul_2014!Q83) -> 0 | R83: =SUM(ICB_at_2000:Capex_from_Jul_2014!R83) -> 0 | S83: =SUM(ICB_at_2000:Capex_from_Jul_2014!S83) -> 0 | T83: =SUM(ICB_at_2000:Capex_from_Jul_2014!T83) -> 0 | U83: =SUM(ICB_at_2000:Capex_from_Jul_2014!U83) -> 0 | V83: =SUM(ICB_at_2000:Capex_from_Jul_2014!V83) -> 0 | W83: =SUM(ICB_at_2000:Capex_from_Jul_2014!W83) -> 0 | X83: =SUM(ICB_at_2000:Capex_from_Jul_2014!X83) -> 0 | Y83: =SUM(ICB_at_2000:Capex_from_Jul_2014!Y83) -> 0 | Z83: =SUM(ICB_at_2000:Capex_from_Jul_2014!Z83) -> 0
B84: =Inputs!$B$347 -> Medium/low pressure mains | C84: $m | E84: =SUM(ICB_at_2000:Capex_from_Jul_2014!E84) -> 0 | F84: =SUM(ICB_at_2000:Capex_from_Jul_2014!F84) -> 0 | G84: =SUM(ICB_at_2000:Capex_from_Jul_2014!G84) -> 0 | H84: =SUM(ICB_at_2000:Capex_from_Jul_2014!H84) -> 0 | I84: =SUM(ICB_at_2000:Capex_from_Jul_2014!I84) -> 0 | J84: =SUM(ICB_at_2000:Capex_from_Jul_2014!J84) -> 0 | K84: =SUM(ICB_at_2000:Capex_from_Jul_2014!K84) -> 0 | L84: =SUM(ICB_at_2000:Capex_from_Jul_2014!L84) -> 0 | M84: =SUM(ICB_at_2000:Capex_from_Jul_2014!M84) -> 0 | N84: =SUM(ICB_at_2000:Capex_from_Jul_2014!N84) -> 0 | O84: =SUM(ICB_at_2000:Capex_from_Jul_2014!O84) -> 0 | P84: =SUM(ICB_at_2000:Capex_from_Jul_2014!P84) -> 0 | Q84: =SUM(ICB_at_2000:Capex_from_Jul_2014!Q84) -> 0 | R84: =SUM(ICB_at_2000:Capex_from_Jul_2014!R84) -> 0 | S84: =SUM(ICB_at_2000:Capex_from_Jul_2014!S84) -> 0 | T84: =SUM(ICB_at_2000:Capex_from_Jul_2014!T84) -> 0 | U84: =SUM(ICB_at_2000:Capex_from_Jul_2014!U84) -> 0 | V84: =SUM(ICB_at_2000:Capex_from_Jul_2014!V84) -> 0 | W84: =SUM(ICB_at_2000:Capex_from_Jul_2014!W84) -> 0 | X84: =SUM(ICB_at_2000:Capex_from_Jul_2014!X84) -> 0 | Y84: =SUM(ICB_at_2000:Capex_from_Jul_2014!Y84) -> 0 | Z84: =SUM(ICB_at_2000:Capex_from_Jul_2014!Z84) -> 0
B85: =Inputs!$B$348 -> Low pressure mains | C85: $m | E85: =SUM(ICB_at_2000:Capex_from_Jul_2014!E85) -> 0 | F85: =SUM(ICB_at_2000:Capex_from_Jul_2014!F85) -> 0 | G85: =SUM(ICB_at_2000:Capex_from_Jul_2014!G85) -> 0 | H85: =SUM(ICB_at_2000:Capex_from_Jul_2014!H85) -> 0 | I85: =SUM(ICB_at_2000:Capex_from_Jul_2014!I85) -> 0 | J85: =SUM(ICB_at_2000:Capex_from_Jul_2014!J85) -> 0 | K85: =SUM(ICB_at_2000:Capex_from_Jul_2014!K85) -> 0 | L85: =SUM(ICB_at_2000:Capex_from_Jul_2014!L85) -> 0 | M85: =SUM(ICB_at_2000:Capex_from_Jul_2014!M85) -> 0 | N85: =SUM(ICB_at_2000:Capex_from_Jul_2014!N85) -> 0 | O85: =SUM(ICB_at_2000:Capex_from_Jul_2014!O85) -> 0 | P85: =SUM(ICB_at_2000:Capex_from_Jul_2014!P85) -> 0 | Q85: =SUM(ICB_at_2000:Capex_from_Jul_2014!Q85) -> 0 | R85: =SUM(ICB_at_2000:Capex_from_Jul_2014!R85) -> 0 | S85: =SUM(ICB_at_2000:Capex_from_Jul_2014!S85) -> 0 | T85: =SUM(ICB_at_2000:Capex_from_Jul_2014!T85) -> 0 | U85: =SUM(ICB_at_2000:Capex_from_Jul_2014!U85) -> 0 | V85: =SUM(ICB_at_2000:Capex_from_Jul_2014!V85) -> 0 | W85: =SUM(ICB_at_2000:Capex_from_Jul_2014!W85) -> 0 | X85: =SUM(ICB_at_2000:Capex_from_Jul_2014!X85) -> 0 | Y85: =SUM(ICB_at_2000:Capex_from_Jul_2014!Y85) -> 0 | Z85: =SUM(ICB_at_2000:Capex_from_Jul_2014!Z85) -> 0
B86: =Inputs!$B$349 -> Regulators | C86: $m | E86: =SUM(ICB_at_2000:Capex_from_Jul_2014!E86) -> 0 | F86: =SUM(ICB_at_2000:Capex_from_Jul_2014!F86) -> 0 | G86: =SUM(ICB_at_2000:Capex_from_Jul_2014!G86) -> 0 | H86: =SUM(ICB_at_2000:Capex_from_Jul_2014!H86) -> 0 | I86: =SUM(ICB_at_2000:Capex_from_Jul_2014!I86) -> 0 | J86: =SUM(ICB_at_2000:Capex_from_Jul_2014!J86) -> 0 | K86: =SUM(ICB_at_2000:Capex_from_Jul_2014!K86) -> 0 | L86: =SUM(ICB_at_2000:Capex_from_Jul_2014!L86) -> 0 | M86: =SUM(ICB_at_2000:Capex_from_Jul_2014!M86) -> 0 | N86: =SUM(ICB_at_2000:Capex_from_Jul_2014!N86) -> 0 | O86: =SUM(ICB_at_2000:Capex_from_Jul_2014!O86) -> 0 | P86: =SUM(ICB_at_2000:Capex_from_Jul_2014!P86) -> 0 | Q86: =SUM(ICB_at_2000:Capex_from_Jul_2014!Q86) -> 0 | R86: =SUM(ICB_at_2000:Capex_from_Jul_2014!R86) -> 0 | S86: =SUM(ICB_at_2000:Capex_from_Jul_2014!S86) -> 0 | T86: =SUM(ICB_at_2000:Capex_from_Jul_2014!T86) -> 0 | U86: =SUM(ICB_at_2000:Capex_from_Jul_2014!U86) -> 0 | V86: =SUM(ICB_at_2000:Capex_from_Jul_2014!V86) -> 0 | W86: =SUM(ICB_at_2000:Capex_from_Jul_2014!W86) -> 0 | X86: =SUM(ICB_at_2000:Capex_from_Jul_2014!X86) -> 0 | Y86: =SUM(ICB_at_2000:Capex_from_Jul_2014!Y86) -> 0 | Z86: =SUM(ICB_at_2000:Capex_from_Jul_2014!Z86) -> 0
B87: =Inputs!$B$350 -> Secondary gate stations | C87: $m | E87: =SUM(ICB_at_2000:Capex_from_Jul_2014!E87) -> 0 | F87: =SUM(ICB_at_2000:Capex_from_Jul_2014!F87) -> 0 | G87: =SUM(ICB_at_2000:Capex_from_Jul_2014!G87) -> 0 | H87: =SUM(ICB_at_2000:Capex_from_Jul_2014!H87) -> 0 | I87: =SUM(ICB_at_2000:Capex_from_Jul_2014!I87) -> 0 | J87: =SUM(ICB_at_2000:Capex_from_Jul_2014!J87) -> 0 | K87: =SUM(ICB_at_2000:Capex_from_Jul_2014!K87) -> 0 | L87: =SUM(ICB_at_2000:Capex_from_Jul_2014!L87) -> 0 | M87: =SUM(ICB_at_2000:Capex_from_Jul_2014!M87) -> 0 | N87: =SUM(ICB_at_2000:Capex_from_Jul_2014!N87) -> 0 | O87: =SUM(ICB_at_2000:Capex_from_Jul_2014!O87) -> 0 | P87: =SUM(ICB_at_2000:Capex_from_Jul_2014!P87) -> 0 | Q87: =SUM(ICB_at_2000:Capex_from_Jul_2014!Q87) -> 0 | R87: =SUM(ICB_at_2000:Capex_from_Jul_2014!R87) -> 0 | S87: =SUM(ICB_at_2000:Capex_from_Jul_2014!S87) -> 0 | T87: =SUM(ICB_at_2000:Capex_from_Jul_2014!T87) -> 0 | U87: =SUM(ICB_at_2000:Capex_from_Jul_2014!U87) -> 0 | V87: =SUM(ICB_at_2000:Capex_from_Jul_2014!V87) -> 0 | W87: =SUM(ICB_at_2000:Capex_from_Jul_2014!W87) -> 0 | X87: =SUM(ICB_at_2000:Capex_from_Jul_2014!X87) -> 0 | Y87: =SUM(ICB_at_2000:Capex_from_Jul_2014!Y87) -> 0 | Z87: =SUM(ICB_at_2000:Capex_from_Jul_2014!Z87) -> 0
B88: =Inputs!$B$351 -> Buildings | C88: $m | E88: =SUM(ICB_at_2000:Capex_from_Jul_2014!E88) -> 0 | F88: =SUM(ICB_at_2000:Capex_from_Jul_2014!F88) -> 0 | G88: =SUM(ICB_at_2000:Capex_from_Jul_2014!G88) -> 0 | H88: =SUM(ICB_at_2000:Capex_from_Jul_2014!H88) -> 0 | I88: =SUM(ICB_at_2000:Capex_from_Jul_2014!I88) -> 0 | J88: =SUM(ICB_at_2000:Capex_from_Jul_2014!J88) -> 0 | K88: =SUM(ICB_at_2000:Capex_from_Jul_2014!K88) -> 0 | L88: =SUM(ICB_at_2000:Capex_from_Jul_2014!L88) -> 0 | M88: =SUM(ICB_at_2000:Capex_from_Jul_2014!M88) -> 0 | N88: =SUM(ICB_at_2000:Capex_from_Jul_2014!N88) -> 0 | O88: =SUM(ICB_at_2000:Capex_from_Jul_2014!O88) -> 0 | P88: =SUM(ICB_at_2000:Capex_from_Jul_2014!P88) -> 0 | Q88: =SUM(ICB_at_2000:Capex_from_Jul_2014!Q88) -> 0 | R88: =SUM(ICB_at_2000:Capex_from_Jul_2014!R88) -> 0 | S88: =SUM(ICB_at_2000:Capex_from_Jul_2014!S88) -> 0 | T88: =SUM(ICB_at_2000:Capex_from_Jul_2014!T88) -> 0 | U88: =SUM(ICB_at_2000:Capex_from_Jul_2014!U88) -> 0 | V88: =SUM(ICB_at_2000:Capex_from_Jul_2014!V88) -> 0 | W88: =SUM(ICB_at_2000:Capex_from_Jul_2014!W88) -> 0 | X88: =SUM(ICB_at_2000:Capex_from_Jul_2014!X88) -> 0 | Y88: =SUM(ICB_at_2000:Capex_from_Jul_2014!Y88) -> 0 | Z88: =SUM(ICB_at_2000:Capex_from_Jul_2014!Z88) -> 0
B89: =Inputs!$B$352 -> Meter and services pipes | C89: $m | E89: =SUM(ICB_at_2000:Capex_from_Jul_2014!E89) -> 0 | F89: =SUM(ICB_at_2000:Capex_from_Jul_2014!F89) -> 0 | G89: =SUM(ICB_at_2000:Capex_from_Jul_2014!G89) -> 0 | H89: =SUM(ICB_at_2000:Capex_from_Jul_2014!H89) -> 0 | I89: =SUM(ICB_at_2000:Capex_from_Jul_2014!I89) -> 0 | J89: =SUM(ICB_at_2000:Capex_from_Jul_2014!J89) -> 0 | K89: =SUM(ICB_at_2000:Capex_from_Jul_2014!K89) -> 0 | L89: =SUM(ICB_at_2000:Capex_from_Jul_2014!L89) -> 0 | M89: =SUM(ICB_at_2000:Capex_from_Jul_2014!M89) -> 0 | N89: =SUM(ICB_at_2000:Capex_from_Jul_2014!N89) -> 0 | O89: =SUM(ICB_at_2000:Capex_from_Jul_2014!O89) -> 0 | P89: =SUM(ICB_at_2000:Capex_from_Jul_2014!P89) -> 0 | Q89: =SUM(ICB_at_2000:Capex_from_Jul_2014!Q89) -> 0 | R89: =SUM(ICB_at_2000:Capex_from_Jul_2014!R89) -> 0 | S89: =SUM(ICB_at_2000:Capex_from_Jul_2014!S89) -> 0 | T89: =SUM(ICB_at_2000:Capex_from_Jul_2014!T89) -> 0 | U89: =SUM(ICB_at_2000:Capex_from_Jul_2014!U89) -> 0 | V89: =SUM(ICB_at_2000:Capex_from_Jul_2014!V89) -> 0 | W89: =SUM(ICB_at_2000:Capex_from_Jul_2014!W89) -> 0 | X89: =SUM(ICB_at_2000:Capex_from_Jul_2014!X89) -> 0 | Y89: =SUM(ICB_at_2000:Capex_from_Jul_2014!Y89) -> 0 | Z89: =SUM(ICB_at_2000:Capex_from_Jul_2014!Z89) -> 0
B90: =Inputs!$B$353 -> Equipment and vehicles | C90: $m | E90: =SUM(ICB_at_2000:Capex_from_Jul_2014!E90) -> 0 | F90: =SUM(ICB_at_2000:Capex_from_Jul_2014!F90) -> 0 | G90: =SUM(ICB_at_2000:Capex_from_Jul_2014!G90) -> 0 | H90: =SUM(ICB_at_2000:Capex_from_Jul_2014!H90) -> 0 | I90: =SUM(ICB_at_2000:Capex_from_Jul_2014!I90) -> 0 | J90: =SUM(ICB_at_2000:Capex_from_Jul_2014!J90) -> 0 | K90: =SUM(ICB_at_2000:Capex_from_Jul_2014!K90) -> 0 | L90: =SUM(ICB_at_2000:Capex_from_Jul_2014!L90) -> 0 | M90: =SUM(ICB_at_2000:Capex_from_Jul_2014!M90) -> 0 | N90: =SUM(ICB_at_2000:Capex_from_Jul_2014!N90) -> 0 | O90: =SUM(ICB_at_2000:Capex_from_Jul_2014!O90) -> 0 | P90: =SUM(ICB_at_2000:Capex_from_Jul_2014!P90) -> 0 | Q90: =SUM(ICB_at_2000:Capex_from_Jul_2014!Q90) -> 0 | R90: =SUM(ICB_at_2000:Capex_from_Jul_2014!R90) -> 0 | S90: =SUM(ICB_at_2000:Capex_from_Jul_2014!S90) -> 0 | T90: =SUM(ICB_at_2000:Capex_from_Jul_2014!T90) -> 0 | U90: =SUM(ICB_at_2000:Capex_from_Jul_2014!U90) -> 0 | V90: =SUM(ICB_at_2000:Capex_from_Jul_2014!V90) -> 0 | W90: =SUM(ICB_at_2000:Capex_from_Jul_2014!W90) -> 0 | X90: =SUM(ICB_at_2000:Capex_from_Jul_2014!X90) -> 0 | Y90: =SUM(ICB_at_2000:Capex_from_Jul_2014!Y90) -> 0 | Z90: =SUM(ICB_at_2000:Capex_from_Jul_2014!Z90) -> 0
B91: =Inputs!$B$354 -> Vehicles | C91: $m | E91: =SUM(ICB_at_2000:Capex_from_Jul_2014!E91) -> 0 | F91: =SUM(ICB_at_2000:Capex_from_Jul_2014!F91) -> 0 | G91: =SUM(ICB_at_2000:Capex_from_Jul_2014!G91) -> 0 | H91: =SUM(ICB_at_2000:Capex_from_Jul_2014!H91) -> 0 | I91: =SUM(ICB_at_2000:Capex_from_Jul_2014!I91) -> 0 | J91: =SUM(ICB_at_2000:Capex_from_Jul_2014!J91) -> 0 | K91: =SUM(ICB_at_2000:Capex_from_Jul_2014!K91) -> 0 | L91: =SUM(ICB_at_2000:Capex_from_Jul_2014!L91) -> 0 | M91: =SUM(ICB_at_2000:Capex_from_Jul_2014!M91) -> 0 | N91: =SUM(ICB_at_2000:Capex_from_Jul_2014!N91) -> 0 | O91: =SUM(ICB_at_2000:Capex_from_Jul_2014!O91) -> 0 | P91: =SUM(ICB_at_2000:Capex_from_Jul_2014!P91) -> 0 | Q91: =SUM(ICB_at_2000:Capex_from_Jul_2014!Q91) -> 0 | R91: =SUM(ICB_at_2000:Capex_from_Jul_2014!R91) -> 0 | S91: =SUM(ICB_at_2000:Capex_from_Jul_2014!S91) -> 0 | T91: =SUM(ICB_at_2000:Capex_from_Jul_2014!T91) -> 0 | U91: =SUM(ICB_at_2000:Capex_from_Jul_2014!U91) -> 0 | V91: =SUM(ICB_at_2000:Capex_from_Jul_2014!V91) -> 0 | W91: =SUM(ICB_at_2000:Capex_from_Jul_2014!W91) -> 0 | X91: =SUM(ICB_at_2000:Capex_from_Jul_2014!X91) -> 0 | Y91: =SUM(ICB_at_2000:Capex_from_Jul_2014!Y91) -> 0 | Z91: =SUM(ICB_at_2000:Capex_from_Jul_2014!Z91) -> 0
B92: =Inputs!$B$355 -> Information technology | C92: $m | E92: =SUM(ICB_at_2000:Capex_from_Jul_2014!E92) -> 0 | F92: =SUM(ICB_at_2000:Capex_from_Jul_2014!F92) -> 0 | G92: =SUM(ICB_at_2000:Capex_from_Jul_2014!G92) -> 0 | H92: =SUM(ICB_at_2000:Capex_from_Jul_2014!H92) -> 0 | I92: =SUM(ICB_at_2000:Capex_from_Jul_2014!I92) -> 0 | J92: =SUM(ICB_at_2000:Capex_from_Jul_2014!J92) -> 0 | K92: =SUM(ICB_at_2000:Capex_from_Jul_2014!K92) -> 0 | L92: =SUM(ICB_at_2000:Capex_from_Jul_2014!L92) -> 0 | M92: =SUM(ICB_at_2000:Capex_from_Jul_2014!M92) -> 0 | N92: =SUM(ICB_at_2000:Capex_from_Jul_2014!N92) -> 0 | O92: =SUM(ICB_at_2000:Capex_from_Jul_2014!O92) -> 0 | P92: =SUM(ICB_at_2000:Capex_from_Jul_2014!P92) -> 0 | Q92: =SUM(ICB_at_2000:Capex_from_Jul_2014!Q92) -> 0 | R92: =SUM(ICB_at_2000:Capex_from_Jul_2014!R92) -> 0 | S92: =SUM(ICB_at_2000:Capex_from_Jul_2014!S92) -> 0 | T92: =SUM(ICB_at_2000:Capex_from_Jul_2014!T92) -> 0 | U92: =SUM(ICB_at_2000:Capex_from_Jul_2014!U92) -> 0 | V92: =SUM(ICB_at_2000:Capex_from_Jul_2014!V92) -> 0 | W92: =SUM(ICB_at_2000:Capex_from_Jul_2014!W92) -> 0 | X92: =SUM(ICB_at_2000:Capex_from_Jul_2014!X92) -> 0 | Y92: =SUM(ICB_at_2000:Capex_from_Jul_2014!Y92) -> 0 | Z92: =SUM(ICB_at_2000:Capex_from_Jul_2014!Z92) -> 0
B93: =Inputs!$B$356 -> Full retail contestability | C93: $m | E93: =SUM(ICB_at_2000:Capex_from_Jul_2014!E93) -> 0 | F93: =SUM(ICB_at_2000:Capex_from_Jul_2014!F93) -> 0 | G93: =SUM(ICB_at_2000:Capex_from_Jul_2014!G93) -> 0 | H93: =SUM(ICB_at_2000:Capex_from_Jul_2014!H93) -> 0 | I93: =SUM(ICB_at_2000:Capex_from_Jul_2014!I93) -> 0 | J93: =SUM(ICB_at_2000:Capex_from_Jul_2014!J93) -> 0 | K93: =SUM(ICB_at_2000:Capex_from_Jul_2014!K93) -> 0 | L93: =SUM(ICB_at_2000:Capex_from_Jul_2014!L93) -> 0 | M93: =SUM(ICB_at_2000:Capex_from_Jul_2014!M93) -> 0 | N93: =SUM(ICB_at_2000:Capex_from_Jul_2014!N93) -> 0 | O93: =SUM(ICB_at_2000:Capex_from_Jul_2014!O93) -> 0 | P93: =SUM(ICB_at_2000:Capex_from_Jul_2014!P93) -> 0 | Q93: =SUM(ICB_at_2000:Capex_from_Jul_2014!Q93) -> 0 | R93: =SUM(ICB_at_2000:Capex_from_Jul_2014!R93) -> 0 | S93: =SUM(ICB_at_2000:Capex_from_Jul_2014!S93) -> 0 | T93: =SUM(ICB_at_2000:Capex_from_Jul_2014!T93) -> 0 | U93: =SUM(ICB_at_2000:Capex_from_Jul_2014!U93) -> 0 | V93: =SUM(ICB_at_2000:Capex_from_Jul_2014!V93) -> 0 | W93: =SUM(ICB_at_2000:Capex_from_Jul_2014!W93) -> 0 | X93: =SUM(ICB_at_2000:Capex_from_Jul_2014!X93) -> 0 | Y93: =SUM(ICB_at_2000:Capex_from_Jul_2014!Y93) -> 0 | Z93: =SUM(ICB_at_2000:Capex_from_Jul_2014!Z93) -> 0
B94: =Inputs!$B$357 -> Land | C94: $m | E94: =SUM(ICB_at_2000:Capex_from_Jul_2014!E94) -> 0 | F94: =SUM(ICB_at_2000:Capex_from_Jul_2014!F94) -> 0 | G94: =SUM(ICB_at_2000:Capex_from_Jul_2014!G94) -> 0 | H94: =SUM(ICB_at_2000:Capex_from_Jul_2014!H94) -> 0 | I94: =SUM(ICB_at_2000:Capex_from_Jul_2014!I94) -> 0 | J94: =SUM(ICB_at_2000:Capex_from_Jul_2014!J94) -> 0 | K94: =SUM(ICB_at_2000:Capex_from_Jul_2014!K94) -> 0 | L94: =SUM(ICB_at_2000:Capex_from_Jul_2014!L94) -> 0 | M94: =SUM(ICB_at_2000:Capex_from_Jul_2014!M94) -> 0 | N94: =SUM(ICB_at_2000:Capex_from_Jul_2014!N94) -> 0 | O94: =SUM(ICB_at_2000:Capex_from_Jul_2014!O94) -> 0 | P94: =SUM(ICB_at_2000:Capex_from_Jul_2014!P94) -> 0 | Q94: =SUM(ICB_at_2000:Capex_from_Jul_2014!Q94) -> 0 | R94: =SUM(ICB_at_2000:Capex_from_Jul_2014!R94) -> 0 | S94: =SUM(ICB_at_2000:Capex_from_Jul_2014!S94) -> 0 | T94: =SUM(ICB_at_2000:Capex_from_Jul_2014!T94) -> 0 | U94: =SUM(ICB_at_2000:Capex_from_Jul_2014!U94) -> 0 | V94: =SUM(ICB_at_2000:Capex_from_Jul_2014!V94) -> 0 | W94: =SUM(ICB_at_2000:Capex_from_Jul_2014!W94) -> 0 | X94: =SUM(ICB_at_2000:Capex_from_Jul_2014!X94) -> 0 | Y94: =SUM(ICB_at_2000:Capex_from_Jul_2014!Y94) -> 0 | Z94: =SUM(ICB_at_2000:Capex_from_Jul_2014!Z94) -> 0
B96: Total redundant assets | C96: $m | E96: =SUM(E81:E95) -> 0 | F96: 0 | G96: 0 | H96: 0 | I96: 0 | J96: 0 | K96: 0 | L96: 0 | M96: 0 | N96: 0 | O96: 0 | P96: 0 | Q96: 0 | R96: 0 | S96: 0 | T96: 0 | U96: 0 | V96: 0 | W96: 0 | X96: 0 | Y96: 0 | Z96: 0
B98: ="Value of asset disposals: "&$B$4 -> Value of asset disposals:
B99: =Inputs!$B$344 -> High pressure mains - steel | C99: $m | E99: =SUM(ICB_at_2000:Capex_from_Jul_2014!E99) -> 0 | F99: =SUM(ICB_at_2000:Capex_from_Jul_2014!F99) -> 0 | G99: =SUM(ICB_at_2000:Capex_from_Jul_2014!G99) -> 0 | H99: =SUM(ICB_at_2000:Capex_from_Jul_2014!H99) -> 0 | I99: =SUM(ICB_at_2000:Capex_from_Jul_2014!I99) -> 0 | J99: =SUM(ICB_at_2000:Capex_from_Jul_2014!J99) -> 0 | K99: =SUM(ICB_at_2000:Capex_from_Jul_2014!K99) -> 0 | L99: =SUM(ICB_at_2000:Capex_from_Jul_2014!L99) -> 0 | M99: =SUM(ICB_at_2000:Capex_from_Jul_2014!M99) -> 0 | N99: =SUM(ICB_at_2000:Capex_from_Jul_2014!N99) -> 0 | O99: =SUM(ICB_at_2000:Capex_from_Jul_2014!O99) -> 0 | P99: =SUM(ICB_at_2000:Capex_from_Jul_2014!P99) -> 0 | Q99: =SUM(ICB_at_2000:Capex_from_Jul_2014!Q99) -> 0 | R99: =SUM(ICB_at_2000:Capex_from_Jul_2014!R99) -> 0 | S99: =SUM(ICB_at_2000:Capex_from_Jul_2014!S99) -> 0 | T99: =SUM(ICB_at_2000:Capex_from_Jul_2014!T99) -> 0 | U99: =SUM(ICB_at_2000:Capex_from_Jul_2014!U99) -> 0 | V99: =SUM(ICB_at_2000:Capex_from_Jul_2014!V99) -> 0 | W99: =SUM(ICB_at_2000:Capex_from_Jul_2014!W99) -> 0 | X99: =SUM(ICB_at_2000:Capex_from_Jul_2014!X99) -> 0 | Y99: =SUM(ICB_at_2000:Capex_from_Jul_2014!Y99) -> 0 | Z99: =SUM(ICB_at_2000:Capex_from_Jul_2014!Z99) -> 0
B100: =Inputs!$B$345 -> High pressure mains - PE | C100: $m | E100: =SUM(ICB_at_2000:Capex_from_Jul_2014!E100) -> 0 | F100: =SUM(ICB_at_2000:Capex_from_Jul_2014!F100) -> 0 | G100: =SUM(ICB_at_2000:Capex_from_Jul_2014!G100) -> 0 | H100: =SUM(ICB_at_2000:Capex_from_Jul_2014!H100) -> 0 | I100: =SUM(ICB_at_2000:Capex_from_Jul_2014!I100) -> 0 | J100: =SUM(ICB_at_2000:Capex_from_Jul_2014!J100) -> 0 | K100: =SUM(ICB_at_2000:Capex_from_Jul_2014!K100) -> 0 | L100: =SUM(ICB_at_2000:Capex_from_Jul_2014!L100) -> 0 | M100: =SUM(ICB_at_2000:Capex_from_Jul_2014!M100) -> 0 | N100: =SUM(ICB_at_2000:Capex_from_Jul_2014!N100) -> 0 | O100: =SUM(ICB_at_2000:Capex_from_Jul_2014!O100) -> 0 | P100: =SUM(ICB_at_2000:Capex_from_Jul_2014!P100) -> 0 | Q100: =SUM(ICB_at_2000:Capex_from_Jul_2014!Q100) -> 0 | R100: =SUM(ICB_at_2000:Capex_from_Jul_2014!R100) -> 0 | S100: =SUM(ICB_at_2000:Capex_from_Jul_2014!S100) -> 0 | T100: =SUM(ICB_at_2000:Capex_from_Jul_2014!T100) -> 0 | U100: =SUM(ICB_at_2000:Capex_from_Jul_2014!U100) -> 0 | V100: =SUM(ICB_at_2000:Capex_from_Jul_2014!V100) -> 0 | W100: =SUM(ICB_at_2000:Capex_from_Jul_2014!W100) -> 0 | X100: =SUM(ICB_at_2000:Capex_from_Jul_2014!X100) -> 0 | Y100: =SUM(ICB_at_2000:Capex_from_Jul_2014!Y100) -> 0 | Z100: =SUM(ICB_at_2000:Capex_from_Jul_2014!Z100) -> 0
B101: =Inputs!$B$346 -> Medium pressure mains | C101: $m | E101: =SUM(ICB_at_2000:Capex_from_Jul_2014!E101) -> 0 | F101: =SUM(ICB_at_2000:Capex_from_Jul_2014!F101) -> 0 | G101: =SUM(ICB_at_2000:Capex_from_Jul_2014!G101) -> 0 | H101: =SUM(ICB_at_2000:Capex_from_Jul_2014!H101) -> 0 | I101: =SUM(ICB_at_2000:Capex_from_Jul_2014!I101) -> 0 | J101: =SUM(ICB_at_2000:Capex_from_Jul_2014!J101) -> 0 | K101: =SUM(ICB_at_2000:Capex_from_Jul_2014!K101) -> 0 | L101: =SUM(ICB_at_2000:Capex_from_Jul_2014!L101) -> 0 | M101: =SUM(ICB_at_2000:Capex_from_Jul_2014!M101) -> 0 | N101: =SUM(ICB_at_2000:Capex_from_Jul_2014!N101) -> 0 | O101: =SUM(ICB_at_2000:Capex_from_Jul_2014!O101) -> 0 | P101: =SUM(ICB_at_2000:Capex_from_Jul_2014!P101) -> 0 | Q101: =SUM(ICB_at_2000:Capex_from_Jul_2014!Q101) -> 0 | R101: =SUM(ICB_at_2000:Capex_from_Jul_2014!R101) -> 0 | S101: =SUM(ICB_at_2000:Capex_from_Jul_2014!S101) -> 0 | T101: =SUM(ICB_at_2000:Capex_from_Jul_2014!T101) -> 0 | U101: =SUM(ICB_at_2000:Capex_from_Jul_2014!U101) -> 0 | V101: =SUM(ICB_at_2000:Capex_from_Jul_2014!V101) -> 0 | W101: =SUM(ICB_at_2000:Capex_from_Jul_2014!W101) -> 0 | X101: =SUM(ICB_at_2000:Capex_from_Jul_2014!X101) -> 0 | Y101: =SUM(ICB_at_2000:Capex_from_Jul_2014!Y101) -> 0 | Z101: =SUM(ICB_at_2000:Capex_from_Jul_2014!Z101) -> 0
B102: =Inputs!$B$347 -> Medium/low pressure mains | C102: $m | E102: =SUM(ICB_at_2000:Capex_from_Jul_2014!E102) -> 0 | F102: =SUM(ICB_at_2000:Capex_from_Jul_2014!F102) -> 0 | G102: =SUM(ICB_at_2000:Capex_from_Jul_2014!G102) -> 0 | H102: =SUM(ICB_at_2000:Capex_from_Jul_2014!H102) -> 0 | I102: =SUM(ICB_at_2000:Capex_from_Jul_2014!I102) -> 0 | J102: =SUM(ICB_at_2000:Capex_from_Jul_2014!J102) -> 0 | K102: =SUM(ICB_at_2000:Capex_from_Jul_2014!K102) -> 0 | L102: =SUM(ICB_at_2000:Capex_from_Jul_2014!L102) -> 0 | M102: =SUM(ICB_at_2000:Capex_from_Jul_2014!M102) -> 0 | N102: =SUM(ICB_at_2000:Capex_from_Jul_2014!N102) -> 0 | O102: =SUM(ICB_at_2000:Capex_from_Jul_2014!O102) -> 0 | P102: =SUM(ICB_at_2000:Capex_from_Jul_2014!P102) -> 0 | Q102: =SUM(ICB_at_2000:Capex_from_Jul_2014!Q102) -> 0 | R102: =SUM(ICB_at_2000:Capex_from_Jul_2014!R102) -> 0 | S102: =SUM(ICB_at_2000:Capex_from_Jul_2014!S102) -> 0 | T102: =SUM(ICB_at_2000:Capex_from_Jul_2014!T102) -> 0 | U102: =SUM(ICB_at_2000:Capex_from_Jul_2014!U102) -> 0 | V102: =SUM(ICB_at_2000:Capex_from_Jul_2014!V102) -> 0 | W102: =SUM(ICB_at_2000:Capex_from_Jul_2014!W102) -> 0 | X102: =SUM(ICB_at_2000:Capex_from_Jul_2014!X102) -> 0 | Y102: =SUM(ICB_at_2000:Capex_from_Jul_2014!Y102) -> 0 | Z102: =SUM(ICB_at_2000:Capex_from_Jul_2014!Z102) -> 0
B103: =Inputs!$B$348 -> Low pressure mains | C103: $m | E103: =SUM(ICB_at_2000:Capex_from_Jul_2014!E103) -> 0 | F103: =SUM(ICB_at_2000:Capex_from_Jul_2014!F103) -> 0 | G103: =SUM(ICB_at_2000:Capex_from_Jul_2014!G103) -> 0 | H103: =SUM(ICB_at_2000:Capex_from_Jul_2014!H103) -> 0 | I103: =SUM(ICB_at_2000:Capex_from_Jul_2014!I103) -> 0 | J103: =SUM(ICB_at_2000:Capex_from_Jul_2014!J103) -> 0 | K103: =SUM(ICB_at_2000:Capex_from_Jul_2014!K103) -> 0 | L103: =SUM(ICB_at_2000:Capex_from_Jul_2014!L103) -> 0 | M103: =SUM(ICB_at_2000:Capex_from_Jul_2014!M103) -> 0 | N103: =SUM(ICB_at_2000:Capex_from_Jul_2014!N103) -> 0 | O103: =SUM(ICB_at_2000:Capex_from_Jul_2014!O103) -> 0 | P103: =SUM(ICB_at_2000:Capex_from_Jul_2014!P103) -> 0 | Q103: =SUM(ICB_at_2000:Capex_from_Jul_2014!Q103) -> 0 | R103: =SUM(ICB_at_2000:Capex_from_Jul_2014!R103) -> 0 | S103: =SUM(ICB_at_2000:Capex_from_Jul_2014!S103) -> 0 | T103: =SUM(ICB_at_2000:Capex_from_Jul_2014!T103) -> 0 | U103: =SUM(ICB_at_2000:Capex_from_Jul_2014!U103) -> 0 | V103: =SUM(ICB_at_2000:Capex_from_Jul_2014!V103) -> 0 | W103: =SUM(ICB_at_2000:Capex_from_Jul_2014!W103) -> 0 | X103: =SUM(ICB_at_2000:Capex_from_Jul_2014!X103) -> 0 | Y103: =SUM(ICB_at_2000:Capex_from_Jul_2014!Y103) -> 0 | Z103: =SUM(ICB_at_2000:Capex_from_Jul_2014!Z103) -> 0
B104: =Inputs!$B$349 -> Regulators | C104: $m | E104: =SUM(ICB_at_2000:Capex_from_Jul_2014!E104) -> 0 | F104: =SUM(ICB_at_2000:Capex_from_Jul_2014!F104) -> 0 | G104: =SUM(ICB_at_2000:Capex_from_Jul_2014!G104) -> 0 | H104: =SUM(ICB_at_2000:Capex_from_Jul_2014!H104) -> 0 | I104: =SUM(ICB_at_2000:Capex_from_Jul_2014!I104) -> 0 | J104: =SUM(ICB_at_2000:Capex_from_Jul_2014!J104) -> 0 | K104: =SUM(ICB_at_2000:Capex_from_Jul_2014!K104) -> 0 | L104: =SUM(ICB_at_2000:Capex_from_Jul_2014!L104) -> 0 | M104: =SUM(ICB_at_2000:Capex_from_Jul_2014!M104) -> 0 | N104: =SUM(ICB_at_2000:Capex_from_Jul_2014!N104) -> 0 | O104: =SUM(ICB_at_2000:Capex_from_Jul_2014!O104) -> 0 | P104: =SUM(ICB_at_2000:Capex_from_Jul_2014!P104) -> 0 | Q104: =SUM(ICB_at_2000:Capex_from_Jul_2014!Q104) -> 0 | R104: =SUM(ICB_at_2000:Capex_from_Jul_2014!R104) -> 0 | S104: =SUM(ICB_at_2000:Capex_from_Jul_2014!S104) -> 0 | T104: =SUM(ICB_at_2000:Capex_from_Jul_2014!T104) -> 0 | U104: =SUM(ICB_at_2000:Capex_from_Jul_2014!U104) -> 0 | V104: =SUM(ICB_at_2000:Capex_from_Jul_2014!V104) -> 0 | W104: =SUM(ICB_at_2000:Capex_from_Jul_2014!W104) -> 0 | X104: =SUM(ICB_at_2000:Capex_from_Jul_2014!X104) -> 0 | Y104: =SUM(ICB_at_2000:Capex_from_Jul_2014!Y104) -> 0 | Z104: =SUM(ICB_at_2000:Capex_from_Jul_2014!Z104) -> 0
B105: =Inputs!$B$350 -> Secondary gate stations | C105: $m | E105: =SUM(ICB_at_2000:Capex_from_Jul_2014!E105) -> 0 | F105: =SUM(ICB_at_2000:Capex_from_Jul_2014!F105) -> 0 | G105: =SUM(ICB_at_2000:Capex_from_Jul_2014!G105) -> 0 | H105: =SUM(ICB_at_2000:Capex_from_Jul_2014!H105) -> 0 | I105: =SUM(ICB_at_2000:Capex_from_Jul_2014!I105) -> 0 | J105: =SUM(ICB_at_2000:Capex_from_Jul_2014!J105) -> 0 | K105: =SUM(ICB_at_2000:Capex_from_Jul_2014!K105) -> 0 | L105: =SUM(ICB_at_2000:Capex_from_Jul_2014!L105) -> 0 | M105: =SUM(ICB_at_2000:Capex_from_Jul_2014!M105) -> 0 | N105: =SUM(ICB_at_2000:Capex_from_Jul_2014!N105) -> 0 | O105: =SUM(ICB_at_2000:Capex_from_Jul_2014!O105) -> 0 | P105: =SUM(ICB_at_2000:Capex_from_Jul_2014!P105) -> 0 | Q105: =SUM(ICB_at_2000:Capex_from_Jul_2014!Q105) -> 0 | R105: =SUM(ICB_at_2000:Capex_from_Jul_2014!R105) -> 0 | S105: =SUM(ICB_at_2000:Capex_from_Jul_2014!S105) -> 0 | T105: =SUM(ICB_at_2000:Capex_from_Jul_2014!T105) -> 0 | U105: =SUM(ICB_at_2000:Capex_from_Jul_2014!U105) -> 0 | V105: =SUM(ICB_at_2000:Capex_from_Jul_2014!V105) -> 0 | W105: =SUM(ICB_at_2000:Capex_from_Jul_2014!W105) -> 0 | X105: =SUM(ICB_at_2000:Capex_from_Jul_2014!X105) -> 0 | Y105: =SUM(ICB_at_2000:Capex_from_Jul_2014!Y105) -> 0 | Z105: =SUM(ICB_at_2000:Capex_from_Jul_2014!Z105) -> 0
B106: =Inputs!$B$351 -> Buildings | C106: $m | E106: =SUM(ICB_at_2000:Capex_from_Jul_2014!E106) -> 0 | F106: =SUM(ICB_at_2000:Capex_from_Jul_2014!F106) -> 0 | G106: =SUM(ICB_at_2000:Capex_from_Jul_2014!G106) -> 0 | H106: =SUM(ICB_at_2000:Capex_from_Jul_2014!H106) -> 0 | I106: =SUM(ICB_at_2000:Capex_from_Jul_2014!I106) -> 0 | J106: =SUM(ICB_at_2000:Capex_from_Jul_2014!J106) -> 0 | K106: =SUM(ICB_at_2000:Capex_from_Jul_2014!K106) -> 0 | L106: =SUM(ICB_at_2000:Capex_from_Jul_2014!L106) -> 0 | M106: =SUM(ICB_at_2000:Capex_from_Jul_2014!M106) -> 0 | N106: =SUM(ICB_at_2000:Capex_from_Jul_2014!N106) -> 1.156519215 | O106: =SUM(ICB_at_2000:Capex_from_Jul_2014!O106) -> 0 | P106: =SUM(ICB_at_2000:Capex_from_Jul_2014!P106) -> 0 | Q106: =SUM(ICB_at_2000:Capex_from_Jul_2014!Q106) -> 0 | R106: =SUM(ICB_at_2000:Capex_from_Jul_2014!R106) -> 0 | S106: =SUM(ICB_at_2000:Capex_from_Jul_2014!S106) -> 0 | T106: =SUM(ICB_at_2000:Capex_from_Jul_2014!T106) -> 0 | U106: =SUM(ICB_at_2000:Capex_from_Jul_2014!U106) -> 0 | V106: =SUM(ICB_at_2000:Capex_from_Jul_2014!V106) -> 0 | W106: =SUM(ICB_at_2000:Capex_from_Jul_2014!W106) -> 0 | X106: =SUM(ICB_at_2000:Capex_from_Jul_2014!X106) -> 0 | Y106: =SUM(ICB_at_2000:Capex_from_Jul_2014!Y106) -> 0 | Z106: =SUM(ICB_at_2000:Capex_from_Jul_2014!Z106) -> 0
B107: =Inputs!$B$352 -> Meter and services pipes | C107: $m | E107: =SUM(ICB_at_2000:Capex_from_Jul_2014!E107) -> 0 | F107: =SUM(ICB_at_2000:Capex_from_Jul_2014!F107) -> 0 | G107: =SUM(ICB_at_2000:Capex_from_Jul_2014!G107) -> 0 | H107: =SUM(ICB_at_2000:Capex_from_Jul_2014!H107) -> 0 | I107: =SUM(ICB_at_2000:Capex_from_Jul_2014!I107) -> 0 | J107: =SUM(ICB_at_2000:Capex_from_Jul_2014!J107) -> 0 | K107: =SUM(ICB_at_2000:Capex_from_Jul_2014!K107) -> 0 | L107: =SUM(ICB_at_2000:Capex_from_Jul_2014!L107) -> 0 | M107: =SUM(ICB_at_2000:Capex_from_Jul_2014!M107) -> 0 | N107: =SUM(ICB_at_2000:Capex_from_Jul_2014!N107) -> 0 | O107: =SUM(ICB_at_2000:Capex_from_Jul_2014!O107) -> 0 | P107: =SUM(ICB_at_2000:Capex_from_Jul_2014!P107) -> 0 | Q107: =SUM(ICB_at_2000:Capex_from_Jul_2014!Q107) -> 0 | R107: =SUM(ICB_at_2000:Capex_from_Jul_2014!R107) -> 0 | S107: =SUM(ICB_at_2000:Capex_from_Jul_2014!S107) -> 0 | T107: =SUM(ICB_at_2000:Capex_from_Jul_2014!T107) -> 0 | U107: =SUM(ICB_at_2000:Capex_from_Jul_2014!U107) -> 0 | V107: =SUM(ICB_at_2000:Capex_from_Jul_2014!V107) -> 0 | W107: =SUM(ICB_at_2000:Capex_from_Jul_2014!W107) -> 0 | X107: =SUM(ICB_at_2000:Capex_from_Jul_2014!X107) -> 0 | Y107: =SUM(ICB_at_2000:Capex_from_Jul_2014!Y107) -> 0 | Z107: =SUM(ICB_at_2000:Capex_from_Jul_2014!Z107) -> 0
B108: =Inputs!$B$353 -> Equipment and vehicles | C108: $m | E108: =SUM(ICB_at_2000:Capex_from_Jul_2014!E108) -> 0 | F108: =SUM(ICB_at_2000:Capex_from_Jul_2014!F108) -> 0 | G108: =SUM(ICB_at_2000:Capex_from_Jul_2014!G108) -> 0 | H108: =SUM(ICB_at_2000:Capex_from_Jul_2014!H108) -> 0 | I108: =SUM(ICB_at_2000:Capex_from_Jul_2014!I108) -> 0 | J108: =SUM(ICB_at_2000:Capex_from_Jul_2014!J108) -> 0 | K108: =SUM(ICB_at_2000:Capex_from_Jul_2014!K108) -> 0 | L108: =SUM(ICB_at_2000:Capex_from_Jul_2014!L108) -> 0 | M108: =SUM(ICB_at_2000:Capex_from_Jul_2014!M108) -> 0 | N108: =SUM(ICB_at_2000:Capex_from_Jul_2014!N108) -> 0 | O108: =SUM(ICB_at_2000:Capex_from_Jul_2014!O108) -> 0 | P108: =SUM(ICB_at_2000:Capex_from_Jul_2014!P108) -> 0 | Q108: =SUM(ICB_at_2000:Capex_from_Jul_2014!Q108) -> 0 | R108: =SUM(ICB_at_2000:Capex_from_Jul_2014!R108) -> 0 | S108: =SUM(ICB_at_2000:Capex_from_Jul_2014!S108) -> 0 | T108: =SUM(ICB_at_2000:Capex_from_Jul_2014!T108) -> 0 | U108: =SUM(ICB_at_2000:Capex_from_Jul_2014!U108) -> 0 | V108: =SUM(ICB_at_2000:Capex_from_Jul_2014!V108) -> 0 | W108: =SUM(ICB_at_2000:Capex_from_Jul_2014!W108) -> 0 | X108: =SUM(ICB_at_2000:Capex_from_Jul_2014!X108) -> 0 | Y108: =SUM(ICB_at_2000:Capex_from_Jul_2014!Y108) -> 0 | Z108: =SUM(ICB_at_2000:Capex_from_Jul_2014!Z108) -> 0
B109: =Inputs!$B$354 -> Vehicles | C109: $m | E109: =SUM(ICB_at_2000:Capex_from_Jul_2014!E109) -> 0 | F109: =SUM(ICB_at_2000:Capex_from_Jul_2014!F109) -> 0 | G109: =SUM(ICB_at_2000:Capex_from_Jul_2014!G109) -> 0 | H109: =SUM(ICB_at_2000:Capex_from_Jul_2014!H109) -> 0 | I109: =SUM(ICB_at_2000:Capex_from_Jul_2014!I109) -> 0 | J109: =SUM(ICB_at_2000:Capex_from_Jul_2014!J109) -> 0 | K109: =SUM(ICB_at_2000:Capex_from_Jul_2014!K109) -> 0 | L109: =SUM(ICB_at_2000:Capex_from_Jul_2014!L109) -> 0 | M109: =SUM(ICB_at_2000:Capex_from_Jul_2014!M109) -> 0 | N109: =SUM(ICB_at_2000:Capex_from_Jul_2014!N109) -> 0 | O109: =SUM(ICB_at_2000:Capex_from_Jul_2014!O109) -> 0 | P109: =SUM(ICB_at_2000:Capex_from_Jul_2014!P109) -> 0 | Q109: =SUM(ICB_at_2000:Capex_from_Jul_2014!Q109) -> 0 | R109: =SUM(ICB_at_2000:Capex_from_Jul_2014!R109) -> 0 | S109: =SUM(ICB_at_2000:Capex_from_Jul_2014!S109) -> 0 | T109: =SUM(ICB_at_2000:Capex_from_Jul_2014!T109) -> 0 | U109: =SUM(ICB_at_2000:Capex_from_Jul_2014!U109) -> 0 | V109: =SUM(ICB_at_2000:Capex_from_Jul_2014!V109) -> 0 | W109: =SUM(ICB_at_2000:Capex_from_Jul_2014!W109) -> 0 | X109: =SUM(ICB_at_2000:Capex_from_Jul_2014!X109) -> 0 | Y109: =SUM(ICB_at_2000:Capex_from_Jul_2014!Y109) -> 0 | Z109: =SUM(ICB_at_2000:Capex_from_Jul_2014!Z109) -> 0
B110: =Inputs!$B$355 -> Information technology | C110: $m | E110: =SUM(ICB_at_2000:Capex_from_Jul_2014!E110) -> 0 | F110: =SUM(ICB_at_2000:Capex_from_Jul_2014!F110) -> 0 | G110: =SUM(ICB_at_2000:Capex_from_Jul_2014!G110) -> 0 | H110: =SUM(ICB_at_2000:Capex_from_Jul_2014!H110) -> 0 | I110: =SUM(ICB_at_2000:Capex_from_Jul_2014!I110) -> 0 | J110: =SUM(ICB_at_2000:Capex_from_Jul_2014!J110) -> 0 | K110: =SUM(ICB_at_2000:Capex_from_Jul_2014!K110) -> 0 | L110: =SUM(ICB_at_2000:Capex_from_Jul_2014!L110) -> 0 | M110: =SUM(ICB_at_2000:Capex_from_Jul_2014!M110) -> 0 | N110: =SUM(ICB_at_2000:Capex_from_Jul_2014!N110) -> 0 | O110: =SUM(ICB_at_2000:Capex_from_Jul_2014!O110) -> 0 | P110: =SUM(ICB_at_2000:Capex_from_Jul_2014!P110) -> 0 | Q110: =SUM(ICB_at_2000:Capex_from_Jul_2014!Q110) -> 0 | R110: =SUM(ICB_at_2000:Capex_from_Jul_2014!R110) -> 0 | S110: =SUM(ICB_at_2000:Capex_from_Jul_2014!S110) -> 0 | T110: =SUM(ICB_at_2000:Capex_from_Jul_2014!T110) -> 0 | U110: =SUM(ICB_at_2000:Capex_from_Jul_2014!U110) -> 0 | V110: =SUM(ICB_at_2000:Capex_from_Jul_2014!V110) -> 0 | W110: =SUM(ICB_at_2000:Capex_from_Jul_2014!W110) -> 0 | X110: =SUM(ICB_at_2000:Capex_from_Jul_2014!X110) -> 0 | Y110: =SUM(ICB_at_2000:Capex_from_Jul_2014!Y110) -> 0 | Z110: =SUM(ICB_at_2000:Capex_from_Jul_2014!Z110) -> 0
B111: =Inputs!$B$356 -> Full retail contestability | C111: $m | E111: =SUM(ICB_at_2000:Capex_from_Jul_2014!E111) -> 0 | F111: =SUM(ICB_at_2000:Capex_from_Jul_2014!F111) -> 0 | G111: =SUM(ICB_at_2000:Capex_from_Jul_2014!G111) -> 0 | H111: =SUM(ICB_at_2000:Capex_from_Jul_2014!H111) -> 0 | I111: =SUM(ICB_at_2000:Capex_from_Jul_2014!I111) -> 0 | J111: =SUM(ICB_at_2000:Capex_from_Jul_2014!J111) -> 0 | K111: =SUM(ICB_at_2000:Capex_from_Jul_2014!K111) -> 0 | L111: =SUM(ICB_at_2000:Capex_from_Jul_2014!L111) -> 0 | M111: =SUM(ICB_at_2000:Capex_from_Jul_2014!M111) -> 0 | N111: =SUM(ICB_at_2000:Capex_from_Jul_2014!N111) -> 0 | O111: =SUM(ICB_at_2000:Capex_from_Jul_2014!O111) -> 0 | P111: =SUM(ICB_at_2000:Capex_from_Jul_2014!P111) -> 0 | Q111: =SUM(ICB_at_2000:Capex_from_Jul_2014!Q111) -> 0 | R111: =SUM(ICB_at_2000:Capex_from_Jul_2014!R111) -> 0 | S111: =SUM(ICB_at_2000:Capex_from_Jul_2014!S111) -> 0 | T111: =SUM(ICB_at_2000:Capex_from_Jul_2014!T111) -> 0 | U111: =SUM(ICB_at_2000:Capex_from_Jul_2014!U111) -> 0 | V111: =SUM(ICB_at_2000:Capex_from_Jul_2014!V111) -> 0 | W111: =SUM(ICB_at_2000:Capex_from_Jul_2014!W111) -> 0 | X111: =SUM(ICB_at_2000:Capex_from_Jul_2014!X111) -> 0 | Y111: =SUM(ICB_at_2000:Capex_from_Jul_2014!Y111) -> 0 | Z111: =SUM(ICB_at_2000:Capex_from_Jul_2014!Z111) -> 0
B112: =Inputs!$B$357 -> Land | C112: $m | E112: =SUM(ICB_at_2000:Capex_from_Jul_2014!E112) -> 0 | F112: =SUM(ICB_at_2000:Capex_from_Jul_2014!F112) -> 0 | G112: =SUM(ICB_at_2000:Capex_from_Jul_2014!G112) -> 0 | H112: =SUM(ICB_at_2000:Capex_from_Jul_2014!H112) -> 0 | I112: =SUM(ICB_at_2000:Capex_from_Jul_2014!I112) -> 0 | J112: =SUM(ICB_at_2000:Capex_from_Jul_2014!J112) -> 0 | K112: =SUM(ICB_at_2000:Capex_from_Jul_2014!K112) -> 0 | L112: =SUM(ICB_at_2000:Capex_from_Jul_2014!L112) -> 0 | M112: =SUM(ICB_at_2000:Capex_from_Jul_2014!M112) -> 0 | N112: =SUM(ICB_at_2000:Capex_from_Jul_2014!N112) -> 3.804748436 | O112: =SUM(ICB_at_2000:Capex_from_Jul_2014!O112) -> 0 | P112: =SUM(ICB_at_2000:Capex_from_Jul_2014!P112) -> 0 | Q112: =SUM(ICB_at_2000:Capex_from_Jul_2014!Q112) -> 0 | R112: =SUM(ICB_at_2000:Capex_from_Jul_2014!R112) -> 0 | S112: =SUM(ICB_at_2000:Capex_from_Jul_2014!S112) -> 0 | T112: =SUM(ICB_at_2000:Capex_from_Jul_2014!T112) -> 0 | U112: =SUM(ICB_at_2000:Capex_from_Jul_2014!U112) -> 0 | V112: =SUM(ICB_at_2000:Capex_from_Jul_2014!V112) -> 0 | W112: =SUM(ICB_at_2000:Capex_from_Jul_2014!W112) -> 0 | X112: =SUM(ICB_at_2000:Capex_from_Jul_2014!X112) -> 0 | Y112: =SUM(ICB_at_2000:Capex_from_Jul_2014!Y112) -> 0 | Z112: =SUM(ICB_at_2000:Capex_from_Jul_2014!Z112) -> 0
B114: Total asset disposals | C114: $m | E114: =SUM(E99:E113) -> 0 | F114: 0 | G114: 0 | H114: 0 | I114: 0 | J114: 0 | K114: 0 | L114: 0 | M114: 0 | N114: 4.961267652 | O114: 0 | P114: 0 | Q114: 0 | R114: 0 | S114: 0 | T114: 0 | U114: 0 | V114: 0 | W114: 0 | X114: 0 | Y114: 0 | Z114: 0
B116: ="Over Depreciation: "&$B$4 -> Over Depreciation:
B117: =Inputs!$B$344 -> High pressure mains - steel | C117: $m | E117: =SUM(ICB_at_2000:Capex_from_Jul_2014!E117) -> 0 | F117: =SUM(ICB_at_2000:Capex_from_Jul_2014!F117) -> 0 | G117: =SUM(ICB_at_2000:Capex_from_Jul_2014!G117) -> 0 | H117: =SUM(ICB_at_2000:Capex_from_Jul_2014!H117) -> 0 | I117: =SUM(ICB_at_2000:Capex_from_Jul_2014!I117) -> 0 | J117: =SUM(ICB_at_2000:Capex_from_Jul_2014!J117) -> 0 | K117: =SUM(ICB_at_2000:Capex_from_Jul_2014!K117) -> 0 | L117: =SUM(ICB_at_2000:Capex_from_Jul_2014!L117) -> 0 | M117: =SUM(ICB_at_2000:Capex_from_Jul_2014!M117) -> 0 | N117: =SUM(ICB_at_2000:Capex_from_Jul_2014!N117) -> -0.208499268 | O117: =SUM(ICB_at_2000:Capex_from_Jul_2014!O117) -> 0 | P117: =SUM(ICB_at_2000:Capex_from_Jul_2014!P117) -> 0 | Q117: =SUM(ICB_at_2000:Capex_from_Jul_2014!Q117) -> 0 | R117: =SUM(ICB_at_2000:Capex_from_Jul_2014!R117) -> 0 | S117: =SUM(ICB_at_2000:Capex_from_Jul_2014!S117) -> 0.009839819321 | T117: =SUM(ICB_at_2000:Capex_from_Jul_2014!T117) -> 0 | U117: =SUM(ICB_at_2000:Capex_from_Jul_2014!U117) -> 0 | V117: =SUM(ICB_at_2000:Capex_from_Jul_2014!V117) -> 0 | W117: =SUM(ICB_at_2000:Capex_from_Jul_2014!W117) -> 0 | X117: =SUM(ICB_at_2000:Capex_from_Jul_2014!X117) -> 0 | Y117: =SUM(ICB_at_2000:Capex_from_Jul_2014!Y117) -> 0 | Z117: =SUM(ICB_at_2000:Capex_from_Jul_2014!Z117) -> 0
B118: =Inputs!$B$345 -> High pressure mains - PE | C118: $m | E118: =SUM(ICB_at_2000:Capex_from_Jul_2014!E118) -> 0 | F118: =SUM(ICB_at_2000:Capex_from_Jul_2014!F118) -> 0 | G118: =SUM(ICB_at_2000:Capex_from_Jul_2014!G118) -> 0 | H118: =SUM(ICB_at_2000:Capex_from_Jul_2014!H118) -> 0 | I118: =SUM(ICB_at_2000:Capex_from_Jul_2014!I118) -> 0 | J118: =SUM(ICB_at_2000:Capex_from_Jul_2014!J118) -> 0 | K118: =SUM(ICB_at_2000:Capex_from_Jul_2014!K118) -> 0 | L118: =SUM(ICB_at_2000:Capex_from_Jul_2014!L118) -> 0 | M118: =SUM(ICB_at_2000:Capex_from_Jul_2014!M118) -> 0 | N118: =SUM(ICB_at_2000:Capex_from_Jul_2014!N118) -> 0 | O118: =SUM(ICB_at_2000:Capex_from_Jul_2014!O118) -> 0 | P118: =SUM(ICB_at_2000:Capex_from_Jul_2014!P118) -> 0 | Q118: =SUM(ICB_at_2000:Capex_from_Jul_2014!Q118) -> 0 | R118: =SUM(ICB_at_2000:Capex_from_Jul_2014!R118) -> 0 | S118: =SUM(ICB_at_2000:Capex_from_Jul_2014!S118) -> 0.00245995483 | T118: =SUM(ICB_at_2000:Capex_from_Jul_2014!T118) -> 0 | U118: =SUM(ICB_at_2000:Capex_from_Jul_2014!U118) -> 0 | V118: =SUM(ICB_at_2000:Capex_from_Jul_2014!V118) -> 0 | W118: =SUM(ICB_at_2000:Capex_from_Jul_2014!W118) -> 0 | X118: =SUM(ICB_at_2000:Capex_from_Jul_2014!X118) -> 0 | Y118: =SUM(ICB_at_2000:Capex_from_Jul_2014!Y118) -> 0 | Z118: =SUM(ICB_at_2000:Capex_from_Jul_2014!Z118) -> 0
B119: =Inputs!$B$346 -> Medium pressure mains | C119: $m | E119: =SUM(ICB_at_2000:Capex_from_Jul_2014!E119) -> 0 | F119: =SUM(ICB_at_2000:Capex_from_Jul_2014!F119) -> 0 | G119: =SUM(ICB_at_2000:Capex_from_Jul_2014!G119) -> 0 | H119: =SUM(ICB_at_2000:Capex_from_Jul_2014!H119) -> 0 | I119: =SUM(ICB_at_2000:Capex_from_Jul_2014!I119) -> 0 | J119: =SUM(ICB_at_2000:Capex_from_Jul_2014!J119) -> 0 | K119: =SUM(ICB_at_2000:Capex_from_Jul_2014!K119) -> 0 | L119: =SUM(ICB_at_2000:Capex_from_Jul_2014!L119) -> 0 | M119: =SUM(ICB_at_2000:Capex_from_Jul_2014!M119) -> 0 | N119: =SUM(ICB_at_2000:Capex_from_Jul_2014!N119) -> -1.119120983 | O119: =SUM(ICB_at_2000:Capex_from_Jul_2014!O119) -> 0 | P119: =SUM(ICB_at_2000:Capex_from_Jul_2014!P119) -> 0 | Q119: =SUM(ICB_at_2000:Capex_from_Jul_2014!Q119) -> 0 | R119: =SUM(ICB_at_2000:Capex_from_Jul_2014!R119) -> 0 | S119: =SUM(ICB_at_2000:Capex_from_Jul_2014!S119) -> 0 | T119: =SUM(ICB_at_2000:Capex_from_Jul_2014!T119) -> 0 | U119: =SUM(ICB_at_2000:Capex_from_Jul_2014!U119) -> 0 | V119: =SUM(ICB_at_2000:Capex_from_Jul_2014!V119) -> 0 | W119: =SUM(ICB_at_2000:Capex_from_Jul_2014!W119) -> 0 | X119: =SUM(ICB_at_2000:Capex_from_Jul_2014!X119) -> 0 | Y119: =SUM(ICB_at_2000:Capex_from_Jul_2014!Y119) -> 0 | Z119: =SUM(ICB_at_2000:Capex_from_Jul_2014!Z119) -> 0
B120: =Inputs!$B$347 -> Medium/low pressure mains | C120: $m | E120: =SUM(ICB_at_2000:Capex_from_Jul_2014!E120) -> 0 | F120: =SUM(ICB_at_2000:Capex_from_Jul_2014!F120) -> 0 | G120: =SUM(ICB_at_2000:Capex_from_Jul_2014!G120) -> 0 | H120: =SUM(ICB_at_2000:Capex_from_Jul_2014!H120) -> 0 | I120: =SUM(ICB_at_2000:Capex_from_Jul_2014!I120) -> 0 | J120: =SUM(ICB_at_2000:Capex_from_Jul_2014!J120) -> 0 | K120: =SUM(ICB_at_2000:Capex_from_Jul_2014!K120) -> 0 | L120: =SUM(ICB_at_2000:Capex_from_Jul_2014!L120) -> 0 | M120: =SUM(ICB_at_2000:Capex_from_Jul_2014!M120) -> 0 | N120: =SUM(ICB_at_2000:Capex_from_Jul_2014!N120) -> -0.0003092119718 | O120: =SUM(ICB_at_2000:Capex_from_Jul_2014!O120) -> 0 | P120: =SUM(ICB_at_2000:Capex_from_Jul_2014!P120) -> 0 | Q120: =SUM(ICB_at_2000:Capex_from_Jul_2014!Q120) -> 0 | R120: =SUM(ICB_at_2000:Capex_from_Jul_2014!R120) -> 0 | S120: =SUM(ICB_at_2000:Capex_from_Jul_2014!S120) -> 0 | T120: =SUM(ICB_at_2000:Capex_from_Jul_2014!T120) -> 0 | U120: =SUM(ICB_at_2000:Capex_from_Jul_2014!U120) -> 0 | V120: =SUM(ICB_at_2000:Capex_from_Jul_2014!V120) -> 0 | W120: =SUM(ICB_at_2000:Capex_from_Jul_2014!W120) -> 0 | X120: =SUM(ICB_at_2000:Capex_from_Jul_2014!X120) -> 0 | Y120: =SUM(ICB_at_2000:Capex_from_Jul_2014!Y120) -> 0 | Z120: =SUM(ICB_at_2000:Capex_from_Jul_2014!Z120) -> 0
B121: =Inputs!$B$348 -> Low pressure mains | C121: $m | E121: =SUM(ICB_at_2000:Capex_from_Jul_2014!E121) -> 0 | F121: =SUM(ICB_at_2000:Capex_from_Jul_2014!F121) -> 0 | G121: =SUM(ICB_at_2000:Capex_from_Jul_2014!G121) -> 0 | H121: =SUM(ICB_at_2000:Capex_from_Jul_2014!H121) -> 0 | I121: =SUM(ICB_at_2000:Capex_from_Jul_2014!I121) -> 1.110223025e-16 | J121: =SUM(ICB_at_2000:Capex_from_Jul_2014!J121) -> 0 | K121: =SUM(ICB_at_2000:Capex_from_Jul_2014!K121) -> 0 | L121: =SUM(ICB_at_2000:Capex_from_Jul_2014!L121) -> 0 | M121: =SUM(ICB_at_2000:Capex_from_Jul_2014!M121) -> 0 | N121: =SUM(ICB_at_2000:Capex_from_Jul_2014!N121) -> 0 | O121: =SUM(ICB_at_2000:Capex_from_Jul_2014!O121) -> 0 | P121: =SUM(ICB_at_2000:Capex_from_Jul_2014!P121) -> 0 | Q121: =SUM(ICB_at_2000:Capex_from_Jul_2014!Q121) -> 0 | R121: =SUM(ICB_at_2000:Capex_from_Jul_2014!R121) -> 0 | S121: =SUM(ICB_at_2000:Capex_from_Jul_2014!S121) -> 0 | T121: =SUM(ICB_at_2000:Capex_from_Jul_2014!T121) -> 0 | U121: =SUM(ICB_at_2000:Capex_from_Jul_2014!U121) -> 0 | V121: =SUM(ICB_at_2000:Capex_from_Jul_2014!V121) -> 0 | W121: =SUM(ICB_at_2000:Capex_from_Jul_2014!W121) -> 0 | X121: =SUM(ICB_at_2000:Capex_from_Jul_2014!X121) -> 0 | Y121: =SUM(ICB_at_2000:Capex_from_Jul_2014!Y121) -> 0 | Z121: =SUM(ICB_at_2000:Capex_from_Jul_2014!Z121) -> 0
B122: =Inputs!$B$349 -> Regulators | C122: $m | E122: =SUM(ICB_at_2000:Capex_from_Jul_2014!E122) -> 0 | F122: =SUM(ICB_at_2000:Capex_from_Jul_2014!F122) -> 0 | G122: =SUM(ICB_at_2000:Capex_from_Jul_2014!G122) -> 0 | H122: =SUM(ICB_at_2000:Capex_from_Jul_2014!H122) -> 0 | I122: =SUM(ICB_at_2000:Capex_from_Jul_2014!I122) -> 0 | J122: =SUM(ICB_at_2000:Capex_from_Jul_2014!J122) -> 0 | K122: =SUM(ICB_at_2000:Capex_from_Jul_2014!K122) -> 0 | L122: =SUM(ICB_at_2000:Capex_from_Jul_2014!L122) -> 0 | M122: =SUM(ICB_at_2000:Capex_from_Jul_2014!M122) -> 0 | N122: =SUM(ICB_at_2000:Capex_from_Jul_2014!N122) -> -0.04085758127 | O122: =SUM(ICB_at_2000:Capex_from_Jul_2014!O122) -> 0 | P122: =SUM(ICB_at_2000:Capex_from_Jul_2014!P122) -> 0 | Q122: =SUM(ICB_at_2000:Capex_from_Jul_2014!Q122) -> 0 | R122: =SUM(ICB_at_2000:Capex_from_Jul_2014!R122) -> 0 | S122: =SUM(ICB_at_2000:Capex_from_Jul_2014!S122) -> 0 | T122: =SUM(ICB_at_2000:Capex_from_Jul_2014!T122) -> 0 | U122: =SUM(ICB_at_2000:Capex_from_Jul_2014!U122) -> 0 | V122: =SUM(ICB_at_2000:Capex_from_Jul_2014!V122) -> 0 | W122: =SUM(ICB_at_2000:Capex_from_Jul_2014!W122) -> 0 | X122: =SUM(ICB_at_2000:Capex_from_Jul_2014!X122) -> 0 | Y122: =SUM(ICB_at_2000:Capex_from_Jul_2014!Y122) -> 0 | Z122: =SUM(ICB_at_2000:Capex_from_Jul_2014!Z122) -> 0
B123: =Inputs!$B$350 -> Secondary gate stations | C123: $m | E123: =SUM(ICB_at_2000:Capex_from_Jul_2014!E123) -> 0 | F123: =SUM(ICB_at_2000:Capex_from_Jul_2014!F123) -> 0 | G123: =SUM(ICB_at_2000:Capex_from_Jul_2014!G123) -> 0 | H123: =SUM(ICB_at_2000:Capex_from_Jul_2014!H123) -> 0 | I123: =SUM(ICB_at_2000:Capex_from_Jul_2014!I123) -> 6.938893904e-18 | J123: =SUM(ICB_at_2000:Capex_from_Jul_2014!J123) -> 0 | K123: =SUM(ICB_at_2000:Capex_from_Jul_2014!K123) -> 0 | L123: =SUM(ICB_at_2000:Capex_from_Jul_2014!L123) -> 0 | M123: =SUM(ICB_at_2000:Capex_from_Jul_2014!M123) -> 0 | N123: =SUM(ICB_at_2000:Capex_from_Jul_2014!N123) -> -0.002179304796 | O123: =SUM(ICB_at_2000:Capex_from_Jul_2014!O123) -> 0 | P123: =SUM(ICB_at_2000:Capex_from_Jul_2014!P123) -> 0 | Q123: =SUM(ICB_at_2000:Capex_from_Jul_2014!Q123) -> 0 | R123: =SUM(ICB_at_2000:Capex_from_Jul_2014!R123) -> 0 | S123: =SUM(ICB_at_2000:Capex_from_Jul_2014!S123) -> 0 | T123: =SUM(ICB_at_2000:Capex_from_Jul_2014!T123) -> 0 | U123: =SUM(ICB_at_2000:Capex_from_Jul_2014!U123) -> 0 | V123: =SUM(ICB_at_2000:Capex_from_Jul_2014!V123) -> 0 | W123: =SUM(ICB_at_2000:Capex_from_Jul_2014!W123) -> 0 | X123: =SUM(ICB_at_2000:Capex_from_Jul_2014!X123) -> 0 | Y123: =SUM(ICB_at_2000:Capex_from_Jul_2014!Y123) -> 0 | Z123: =SUM(ICB_at_2000:Capex_from_Jul_2014!Z123) -> 0
B124: =Inputs!$B$351 -> Buildings | C124: $m | E124: =SUM(ICB_at_2000:Capex_from_Jul_2014!E124) -> 0 | F124: =SUM(ICB_at_2000:Capex_from_Jul_2014!F124) -> 0 | G124: =SUM(ICB_at_2000:Capex_from_Jul_2014!G124) -> 0 | H124: =SUM(ICB_at_2000:Capex_from_Jul_2014!H124) -> 0 | I124: =SUM(ICB_at_2000:Capex_from_Jul_2014!I124) -> 0 | J124: =SUM(ICB_at_2000:Capex_from_Jul_2014!J124) -> 0 | K124: =SUM(ICB_at_2000:Capex_from_Jul_2014!K124) -> 0 | L124: =SUM(ICB_at_2000:Capex_from_Jul_2014!L124) -> 0 | M124: =SUM(ICB_at_2000:Capex_from_Jul_2014!M124) -> 0 | N124: =SUM(ICB_at_2000:Capex_from_Jul_2014!N124) -> -0.035979611 | O124: =SUM(ICB_at_2000:Capex_from_Jul_2014!O124) -> 0 | P124: =SUM(ICB_at_2000:Capex_from_Jul_2014!P124) -> 0 | Q124: =SUM(ICB_at_2000:Capex_from_Jul_2014!Q124) -> 0 | R124: =SUM(ICB_at_2000:Capex_from_Jul_2014!R124) -> 0 | S124: =SUM(ICB_at_2000:Capex_from_Jul_2014!S124) -> 0 | T124: =SUM(ICB_at_2000:Capex_from_Jul_2014!T124) -> 0 | U124: =SUM(ICB_at_2000:Capex_from_Jul_2014!U124) -> 0 | V124: =SUM(ICB_at_2000:Capex_from_Jul_2014!V124) -> 0 | W124: =SUM(ICB_at_2000:Capex_from_Jul_2014!W124) -> 0 | X124: =SUM(ICB_at_2000:Capex_from_Jul_2014!X124) -> 0 | Y124: =SUM(ICB_at_2000:Capex_from_Jul_2014!Y124) -> 0 | Z124: =SUM(ICB_at_2000:Capex_from_Jul_2014!Z124) -> 0
B125: =Inputs!$B$352 -> Meter and services pipes | C125: $m | E125: =SUM(ICB_at_2000:Capex_from_Jul_2014!E125) -> 0 | F125: =SUM(ICB_at_2000:Capex_from_Jul_2014!F125) -> 0 | G125: =SUM(ICB_at_2000:Capex_from_Jul_2014!G125) -> 0 | H125: =SUM(ICB_at_2000:Capex_from_Jul_2014!H125) -> 0 | I125: =SUM(ICB_at_2000:Capex_from_Jul_2014!I125) -> 0 | J125: =SUM(ICB_at_2000:Capex_from_Jul_2014!J125) -> 0 | K125: =SUM(ICB_at_2000:Capex_from_Jul_2014!K125) -> 0 | L125: =SUM(ICB_at_2000:Capex_from_Jul_2014!L125) -> 0 | M125: =SUM(ICB_at_2000:Capex_from_Jul_2014!M125) -> 0 | N125: =SUM(ICB_at_2000:Capex_from_Jul_2014!N125) -> 0 | O125: =SUM(ICB_at_2000:Capex_from_Jul_2014!O125) -> 0 | P125: =SUM(ICB_at_2000:Capex_from_Jul_2014!P125) -> 0 | Q125: =SUM(ICB_at_2000:Capex_from_Jul_2014!Q125) -> 0 | R125: =SUM(ICB_at_2000:Capex_from_Jul_2014!R125) -> 0 | S125: =SUM(ICB_at_2000:Capex_from_Jul_2014!S125) -> 0 | T125: =SUM(ICB_at_2000:Capex_from_Jul_2014!T125) -> 0 | U125: =SUM(ICB_at_2000:Capex_from_Jul_2014!U125) -> 0 | V125: =SUM(ICB_at_2000:Capex_from_Jul_2014!V125) -> 0 | W125: =SUM(ICB_at_2000:Capex_from_Jul_2014!W125) -> 0 | X125: =SUM(ICB_at_2000:Capex_from_Jul_2014!X125) -> 0 | Y125: =SUM(ICB_at_2000:Capex_from_Jul_2014!Y125) -> 0 | Z125: =SUM(ICB_at_2000:Capex_from_Jul_2014!Z125) -> 0
B126: =Inputs!$B$353 -> Equipment and vehicles | C126: $m | E126: =SUM(ICB_at_2000:Capex_from_Jul_2014!E126) -> 0 | F126: =SUM(ICB_at_2000:Capex_from_Jul_2014!F126) -> 0 | G126: =SUM(ICB_at_2000:Capex_from_Jul_2014!G126) -> 0 | H126: =SUM(ICB_at_2000:Capex_from_Jul_2014!H126) -> 0 | I126: =SUM(ICB_at_2000:Capex_from_Jul_2014!I126) -> 8.881784197e-16 | J126: =SUM(ICB_at_2000:Capex_from_Jul_2014!J126) -> 0 | K126: =SUM(ICB_at_2000:Capex_from_Jul_2014!K126) -> 0 | L126: =SUM(ICB_at_2000:Capex_from_Jul_2014!L126) -> 0 | M126: =SUM(ICB_at_2000:Capex_from_Jul_2014!M126) -> 0 | N126: =SUM(ICB_at_2000:Capex_from_Jul_2014!N126) -> -3.762438318 | O126: =SUM(ICB_at_2000:Capex_from_Jul_2014!O126) -> 0 | P126: =SUM(ICB_at_2000:Capex_from_Jul_2014!P126) -> 0 | Q126: =SUM(ICB_at_2000:Capex_from_Jul_2014!Q126) -> 0 | R126: =SUM(ICB_at_2000:Capex_from_Jul_2014!R126) -> 0 | S126: =SUM(ICB_at_2000:Capex_from_Jul_2014!S126) -> 0 | T126: =SUM(ICB_at_2000:Capex_from_Jul_2014!T126) -> 0 | U126: =SUM(ICB_at_2000:Capex_from_Jul_2014!U126) -> 0 | V126: =SUM(ICB_at_2000:Capex_from_Jul_2014!V126) -> 0 | W126: =SUM(ICB_at_2000:Capex_from_Jul_2014!W126) -> 0 | X126: =SUM(ICB_at_2000:Capex_from_Jul_2014!X126) -> 0 | Y126: =SUM(ICB_at_2000:Capex_from_Jul_2014!Y126) -> 0 | Z126: =SUM(ICB_at_2000:Capex_from_Jul_2014!Z126) -> 0
B127: =Inputs!$B$354 -> Vehicles | C127: $m | E127: =SUM(ICB_at_2000:Capex_from_Jul_2014!E127) -> 0 | F127: =SUM(ICB_at_2000:Capex_from_Jul_2014!F127) -> 0 | G127: =SUM(ICB_at_2000:Capex_from_Jul_2014!G127) -> 0 | H127: =SUM(ICB_at_2000:Capex_from_Jul_2014!H127) -> 0 | I127: =SUM(ICB_at_2000:Capex_from_Jul_2014!I127) -> 0 | J127: =SUM(ICB_at_2000:Capex_from_Jul_2014!J127) -> 0 | K127: =SUM(ICB_at_2000:Capex_from_Jul_2014!K127) -> 0 | L127: =SUM(ICB_at_2000:Capex_from_Jul_2014!L127) -> 0 | M127: =SUM(ICB_at_2000:Capex_from_Jul_2014!M127) -> 0 | N127: =SUM(ICB_at_2000:Capex_from_Jul_2014!N127) -> 0 | O127: =SUM(ICB_at_2000:Capex_from_Jul_2014!O127) -> 0 | P127: =SUM(ICB_at_2000:Capex_from_Jul_2014!P127) -> 0 | Q127: =SUM(ICB_at_2000:Capex_from_Jul_2014!Q127) -> 0 | R127: =SUM(ICB_at_2000:Capex_from_Jul_2014!R127) -> 0 | S127: =SUM(ICB_at_2000:Capex_from_Jul_2014!S127) -> 0 | T127: =SUM(ICB_at_2000:Capex_from_Jul_2014!T127) -> 0 | U127: =SUM(ICB_at_2000:Capex_from_Jul_2014!U127) -> 0 | V127: =SUM(ICB_at_2000:Capex_from_Jul_2014!V127) -> 0 | W127: =SUM(ICB_at_2000:Capex_from_Jul_2014!W127) -> 0 | X127: =SUM(ICB_at_2000:Capex_from_Jul_2014!X127) -> 0 | Y127: =SUM(ICB_at_2000:Capex_from_Jul_2014!Y127) -> 0 | Z127: =SUM(ICB_at_2000:Capex_from_Jul_2014!Z127) -> 0
B128: =Inputs!$B$355 -> Information technology | C128: $m | E128: =SUM(ICB_at_2000:Capex_from_Jul_2014!E128) -> 0 | F128: =SUM(ICB_at_2000:Capex_from_Jul_2014!F128) -> 0 | G128: =SUM(ICB_at_2000:Capex_from_Jul_2014!G128) -> 0 | H128: =SUM(ICB_at_2000:Capex_from_Jul_2014!H128) -> 0 | I128: =SUM(ICB_at_2000:Capex_from_Jul_2014!I128) -> 0 | J128: =SUM(ICB_at_2000:Capex_from_Jul_2014!J128) -> 0 | K128: =SUM(ICB_at_2000:Capex_from_Jul_2014!K128) -> 0 | L128: =SUM(ICB_at_2000:Capex_from_Jul_2014!L128) -> 0 | M128: =SUM(ICB_at_2000:Capex_from_Jul_2014!M128) -> 0 | N128: =SUM(ICB_at_2000:Capex_from_Jul_2014!N128) -> -6.437107424 | O128: =SUM(ICB_at_2000:Capex_from_Jul_2014!O128) -> 0 | P128: =SUM(ICB_at_2000:Capex_from_Jul_2014!P128) -> 0 | Q128: =SUM(ICB_at_2000:Capex_from_Jul_2014!Q128) -> 0 | R128: =SUM(ICB_at_2000:Capex_from_Jul_2014!R128) -> 0 | S128: =SUM(ICB_at_2000:Capex_from_Jul_2014!S128) -> 0 | T128: =SUM(ICB_at_2000:Capex_from_Jul_2014!T128) -> 0 | U128: =SUM(ICB_at_2000:Capex_from_Jul_2014!U128) -> 0 | V128: =SUM(ICB_at_2000:Capex_from_Jul_2014!V128) -> 0 | W128: =SUM(ICB_at_2000:Capex_from_Jul_2014!W128) -> 0 | X128: =SUM(ICB_at_2000:Capex_from_Jul_2014!X128) -> 0 | Y128: =SUM(ICB_at_2000:Capex_from_Jul_2014!Y128) -> 0 | Z128: =SUM(ICB_at_2000:Capex_from_Jul_2014!Z128) -> 0
B129: =Inputs!$B$356 -> Full retail contestability | C129: $m | E129: =SUM(ICB_at_2000:Capex_from_Jul_2014!E129) -> 0 | F129: =SUM(ICB_at_2000:Capex_from_Jul_2014!F129) -> 0 | G129: =SUM(ICB_at_2000:Capex_from_Jul_2014!G129) -> 0 | H129: =SUM(ICB_at_2000:Capex_from_Jul_2014!H129) -> 0 | I129: =SUM(ICB_at_2000:Capex_from_Jul_2014!I129) -> 0 | J129: =SUM(ICB_at_2000:Capex_from_Jul_2014!J129) -> 0 | K129: =SUM(ICB_at_2000:Capex_from_Jul_2014!K129) -> 0 | L129: =SUM(ICB_at_2000:Capex_from_Jul_2014!L129) -> 0 | M129: =SUM(ICB_at_2000:Capex_from_Jul_2014!M129) -> 0 | N129: =SUM(ICB_at_2000:Capex_from_Jul_2014!N129) -> -6.245852973e-16 | O129: =SUM(ICB_at_2000:Capex_from_Jul_2014!O129) -> 0 | P129: =SUM(ICB_at_2000:Capex_from_Jul_2014!P129) -> 0 | Q129: =SUM(ICB_at_2000:Capex_from_Jul_2014!Q129) -> 0 | R129: =SUM(ICB_at_2000:Capex_from_Jul_2014!R129) -> 0 | S129: =SUM(ICB_at_2000:Capex_from_Jul_2014!S129) -> 0 | T129: =SUM(ICB_at_2000:Capex_from_Jul_2014!T129) -> 0 | U129: =SUM(ICB_at_2000:Capex_from_Jul_2014!U129) -> 0 | V129: =SUM(ICB_at_2000:Capex_from_Jul_2014!V129) -> 0 | W129: =SUM(ICB_at_2000:Capex_from_Jul_2014!W129) -> 0 | X129: =SUM(ICB_at_2000:Capex_from_Jul_2014!X129) -> 0 | Y129: =SUM(ICB_at_2000:Capex_from_Jul_2014!Y129) -> 0 | Z129: =SUM(ICB_at_2000:Capex_from_Jul_2014!Z129) -> 0
B130: =Inputs!$B$357 -> Land | C130: $m | E130: =SUM(ICB_at_2000:Capex_from_Jul_2014!E130) -> 0 | F130: =SUM(ICB_at_2000:Capex_from_Jul_2014!F130) -> 0 | G130: =SUM(ICB_at_2000:Capex_from_Jul_2014!G130) -> 0 | H130: =SUM(ICB_at_2000:Capex_from_Jul_2014!H130) -> 0 | I130: =SUM(ICB_at_2000:Capex_from_Jul_2014!I130) -> 0 | J130: =SUM(ICB_at_2000:Capex_from_Jul_2014!J130) -> 0 | K130: =SUM(ICB_at_2000:Capex_from_Jul_2014!K130) -> 0 | L130: =SUM(ICB_at_2000:Capex_from_Jul_2014!L130) -> 0 | M130: =SUM(ICB_at_2000:Capex_from_Jul_2014!M130) -> 0 | N130: =SUM(ICB_at_2000:Capex_from_Jul_2014!N130) -> 0 | O130: =SUM(ICB_at_2000:Capex_from_Jul_2014!O130) -> 0 | P130: =SUM(ICB_at_2000:Capex_from_Jul_2014!P130) -> 0 | Q130: =SUM(ICB_at_2000:Capex_from_Jul_2014!Q130) -> 0 | R130: =SUM(ICB_at_2000:Capex_from_Jul_2014!R130) -> 0 | S130: =SUM(ICB_at_2000:Capex_from_Jul_2014!S130) -> 0 | T130: =SUM(ICB_at_2000:Capex_from_Jul_2014!T130) -> 0 | U130: =SUM(ICB_at_2000:Capex_from_Jul_2014!U130) -> 0 | V130: =SUM(ICB_at_2000:Capex_from_Jul_2014!V130) -> 0 | W130: =SUM(ICB_at_2000:Capex_from_Jul_2014!W130) -> 0 | X130: =SUM(ICB_at_2000:Capex_from_Jul_2014!X130) -> 0 | Y130: =SUM(ICB_at_2000:Capex_from_Jul_2014!Y130) -> 0 | Z130: =SUM(ICB_at_2000:Capex_from_Jul_2014!Z130) -> 0
B132: Total over depreciation | C132: $m | E132: =SUM(E117:E131) -> 0 | F132: 0 | G132: 0 | H132: 0 | I132: 1.006139616e-15 | J132: 0 | K132: 0 | L132: 0 | M132: 0 | N132: -11.6064917 | O132: 0 | P132: 0 | Q132: 0 | R132: 0 | S132: 0.01229977415 | T132: 0 | U132: 0 | V132: 0 | W132: 0 | X132: 0 | Y132: 0 | Z132: 0
B134: Amounts added to Capital Base under NGR 82, 84, 86
B135: =Inputs!$B$344 -> High pressure mains - steel | C135: $m | E135: =SUM(ICB_at_2000:Capex_from_Jul_2014!E135) -> 0 | F135: =SUM(ICB_at_2000:Capex_from_Jul_2014!F135) -> 0 | G135: =SUM(ICB_at_2000:Capex_from_Jul_2014!G135) -> 0 | H135: =SUM(ICB_at_2000:Capex_from_Jul_2014!H135) -> 0 | I135: =SUM(ICB_at_2000:Capex_from_Jul_2014!I135) -> 0 | J135: =SUM(ICB_at_2000:Capex_from_Jul_2014!J135) -> 0 | K135: =SUM(ICB_at_2000:Capex_from_Jul_2014!K135) -> 0 | L135: =SUM(ICB_at_2000:Capex_from_Jul_2014!L135) -> 0 | M135: =SUM(ICB_at_2000:Capex_from_Jul_2014!M135) -> 0 | N135: =SUM(ICB_at_2000:Capex_from_Jul_2014!N135) -> 0 | O135: =SUM(ICB_at_2000:Capex_from_Jul_2014!O135) -> 0 | P135: =SUM(ICB_at_2000:Capex_from_Jul_2014!P135) -> 0 | Q135: =SUM(ICB_at_2000:Capex_from_Jul_2014!Q135) -> 0 | R135: =SUM(ICB_at_2000:Capex_from_Jul_2014!R135) -> 0 | S135: =SUM(ICB_at_2000:Capex_from_Jul_2014!S135) -> 0 | T135: =SUM(ICB_at_2000:Capex_from_Jul_2014!T135) -> 0 | U135: =SUM(ICB_at_2000:Capex_from_Jul_2014!U135) -> 0 | V135: =SUM(ICB_at_2000:Capex_from_Jul_2014!V135) -> 0 | W135: =SUM(ICB_at_2000:Capex_from_Jul_2014!W135) -> 0 | X135: =SUM(ICB_at_2000:Capex_from_Jul_2014!X135) -> 0 | Y135: =SUM(ICB_at_2000:Capex_from_Jul_2014!Y135) -> 0 | Z135: =SUM(ICB_at_2000:Capex_from_Jul_2014!Z135) -> 0
B136: =Inputs!$B$345 -> High pressure mains - PE | C136: $m | E136: =SUM(ICB_at_2000:Capex_from_Jul_2014!E136) -> 0 | F136: =SUM(ICB_at_2000:Capex_from_Jul_2014!F136) -> 0 | G136: =SUM(ICB_at_2000:Capex_from_Jul_2014!G136) -> 0 | H136: =SUM(ICB_at_2000:Capex_from_Jul_2014!H136) -> 0 | I136: =SUM(ICB_at_2000:Capex_from_Jul_2014!I136) -> 0 | J136: =SUM(ICB_at_2000:Capex_from_Jul_2014!J136) -> 0 | K136: =SUM(ICB_at_2000:Capex_from_Jul_2014!K136) -> 0 | L136: =SUM(ICB_at_2000:Capex_from_Jul_2014!L136) -> 0 | M136: =SUM(ICB_at_2000:Capex_from_Jul_2014!M136) -> 0 | N136: =SUM(ICB_at_2000:Capex_from_Jul_2014!N136) -> 0 | O136: =SUM(ICB_at_2000:Capex_from_Jul_2014!O136) -> 0 | P136: =SUM(ICB_at_2000:Capex_from_Jul_2014!P136) -> 0 | Q136: =SUM(ICB_at_2000:Capex_from_Jul_2014!Q136) -> 0 | R136: =SUM(ICB_at_2000:Capex_from_Jul_2014!R136) -> 0 | S136: =SUM(ICB_at_2000:Capex_from_Jul_2014!S136) -> 0 | T136: =SUM(ICB_at_2000:Capex_from_Jul_2014!T136) -> 0 | U136: =SUM(ICB_at_2000:Capex_from_Jul_2014!U136) -> 0 | V136: =SUM(ICB_at_2000:Capex_from_Jul_2014!V136) -> 0 | W136: =SUM(ICB_at_2000:Capex_from_Jul_2014!W136) -> 0 | X136: =SUM(ICB_at_2000:Capex_from_Jul_2014!X136) -> 0 | Y136: =SUM(ICB_at_2000:Capex_from_Jul_2014!Y136) -> 0 | Z136: =SUM(ICB_at_2000:Capex_from_Jul_2014!Z136) -> 0
B137: =Inputs!$B$346 -> Medium pressure mains | C137: $m | E137: =SUM(ICB_at_2000:Capex_from_Jul_2014!E137) -> 0 | F137: =SUM(ICB_at_2000:Capex_from_Jul_2014!F137) -> 0 | G137: =SUM(ICB_at_2000:Capex_from_Jul_2014!G137) -> 0 | H137: =SUM(ICB_at_2000:Capex_from_Jul_2014!H137) -> 0 | I137: =SUM(ICB_at_2000:Capex_from_Jul_2014!I137) -> 0 | J137: =SUM(ICB_at_2000:Capex_from_Jul_2014!J137) -> 0 | K137: =SUM(ICB_at_2000:Capex_from_Jul_2014!K137) -> 0 | L137: =SUM(ICB_at_2000:Capex_from_Jul_2014!L137) -> 0 | M137: =SUM(ICB_at_2000:Capex_from_Jul_2014!M137) -> 0 | N137: =SUM(ICB_at_2000:Capex_from_Jul_2014!N137) -> 0 | O137: =SUM(ICB_at_2000:Capex_from_Jul_2014!O137) -> 0 | P137: =SUM(ICB_at_2000:Capex_from_Jul_2014!P137) -> 0 | Q137: =SUM(ICB_at_2000:Capex_from_Jul_2014!Q137) -> 0 | R137: =SUM(ICB_at_2000:Capex_from_Jul_2014!R137) -> 0 | S137: =SUM(ICB_at_2000:Capex_from_Jul_2014!S137) -> 0 | T137: =SUM(ICB_at_2000:Capex_from_Jul_2014!T137) -> 0 | U137: =SUM(ICB_at_2000:Capex_from_Jul_2014!U137) -> 0 | V137: =SUM(ICB_at_2000:Capex_from_Jul_2014!V137) -> 0 | W137: =SUM(ICB_at_2000:Capex_from_Jul_2014!W137) -> 0 | X137: =SUM(ICB_at_2000:Capex_from_Jul_2014!X137) -> 0 | Y137: =SUM(ICB_at_2000:Capex_from_Jul_2014!Y137) -> 0 | Z137: =SUM(ICB_at_2000:Capex_from_Jul_2014!Z137) -> 0
B138: =Inputs!$B$347 -> Medium/low pressure mains | C138: $m | E138: =SUM(ICB_at_2000:Capex_from_Jul_2014!E138) -> 0 | F138: =SUM(ICB_at_2000:Capex_from_Jul_2014!F138) -> 0 | G138: =SUM(ICB_at_2000:Capex_from_Jul_2014!G138) -> 0 | H138: =SUM(ICB_at_2000:Capex_from_Jul_2014!H138) -> 0 | I138: =SUM(ICB_at_2000:Capex_from_Jul_2014!I138) -> 0 | J138: =SUM(ICB_at_2000:Capex_from_Jul_2014!J138) -> 0 | K138: =SUM(ICB_at_2000:Capex_from_Jul_2014!K138) -> 0 | L138: =SUM(ICB_at_2000:Capex_from_Jul_2014!L138) -> 0 | M138: =SUM(ICB_at_2000:Capex_from_Jul_2014!M138) -> 0 | N138: =SUM(ICB_at_2000:Capex_from_Jul_2014!N138) -> 0 | O138: =SUM(ICB_at_2000:Capex_from_Jul_2014!O138) -> 0 | P138: =SUM(ICB_at_2000:Capex_from_Jul_2014!P138) -> 0 | Q138: =SUM(ICB_at_2000:Capex_from_Jul_2014!Q138) -> 0 | R138: =SUM(ICB_at_2000:Capex_from_Jul_2014!R138) -> 0 | S138: =SUM(ICB_at_2000:Capex_from_Jul_2014!S138) -> 0 | T138: =SUM(ICB_at_2000:Capex_from_Jul_2014!T138) -> 0 | U138: =SUM(ICB_at_2000:Capex_from_Jul_2014!U138) -> 0 | V138: =SUM(ICB_at_2000:Capex_from_Jul_2014!V138) -> 0 | W138: =SUM(ICB_at_2000:Capex_from_Jul_2014!W138) -> 0 | X138: =SUM(ICB_at_2000:Capex_from_Jul_2014!X138) -> 0 | Y138: =SUM(ICB_at_2000:Capex_from_Jul_2014!Y138) -> 0 | Z138: =SUM(ICB_at_2000:Capex_from_Jul_2014!Z138) -> 0
B139: =Inputs!$B$348 -> Low pressure mains | C139: $m | E139: =SUM(ICB_at_2000:Capex_from_Jul_2014!E139) -> 0 | F139: =SUM(ICB_at_2000:Capex_from_Jul_2014!F139) -> 0 | G139: =SUM(ICB_at_2000:Capex_from_Jul_2014!G139) -> 0 | H139: =SUM(ICB_at_2000:Capex_from_Jul_2014!H139) -> 0 | I139: =SUM(ICB_at_2000:Capex_from_Jul_2014!I139) -> 0 | J139: =SUM(ICB_at_2000:Capex_from_Jul_2014!J139) -> 0 | K139: =SUM(ICB_at_2000:Capex_from_Jul_2014!K139) -> 0 | L139: =SUM(ICB_at_2000:Capex_from_Jul_2014!L139) -> 0 | M139: =SUM(ICB_at_2000:Capex_from_Jul_2014!M139) -> 0 | N139: =SUM(ICB_at_2000:Capex_from_Jul_2014!N139) -> 0 | O139: =SUM(ICB_at_2000:Capex_from_Jul_2014!O139) -> 0 | P139: =SUM(ICB_at_2000:Capex_from_Jul_2014!P139) -> 0 | Q139: =SUM(ICB_at_2000:Capex_from_Jul_2014!Q139) -> 0 | R139: =SUM(ICB_at_2000:Capex_from_Jul_2014!R139) -> 0 | S139: =SUM(ICB_at_2000:Capex_from_Jul_2014!S139) -> 0 | T139: =SUM(ICB_at_2000:Capex_from_Jul_2014!T139) -> 0 | U139: =SUM(ICB_at_2000:Capex_from_Jul_2014!U139) -> 0 | V139: =SUM(ICB_at_2000:Capex_from_Jul_2014!V139) -> 0 | W139: =SUM(ICB_at_2000:Capex_from_Jul_2014!W139) -> 0 | X139: =SUM(ICB_at_2000:Capex_from_Jul_2014!X139) -> 0 | Y139: =SUM(ICB_at_2000:Capex_from_Jul_2014!Y139) -> 0 | Z139: =SUM(ICB_at_2000:Capex_from_Jul_2014!Z139) -> 0
B140: =Inputs!$B$349 -> Regulators | C140: $m | E140: =SUM(ICB_at_2000:Capex_from_Jul_2014!E140) -> 0 | F140: =SUM(ICB_at_2000:Capex_from_Jul_2014!F140) -> 0 | G140: =SUM(ICB_at_2000:Capex_from_Jul_2014!G140) -> 0 | H140: =SUM(ICB_at_2000:Capex_from_Jul_2014!H140) -> 0 | I140: =SUM(ICB_at_2000:Capex_from_Jul_2014!I140) -> 0 | J140: =SUM(ICB_at_2000:Capex_from_Jul_2014!J140) -> 0 | K140: =SUM(ICB_at_2000:Capex_from_Jul_2014!K140) -> 0 | L140: =SUM(ICB_at_2000:Capex_from_Jul_2014!L140) -> 0 | M140: =SUM(ICB_at_2000:Capex_from_Jul_2014!M140) -> 0 | N140: =SUM(ICB_at_2000:Capex_from_Jul_2014!N140) -> 0 | O140: =SUM(ICB_at_2000:Capex_from_Jul_2014!O140) -> 0 | P140: =SUM(ICB_at_2000:Capex_from_Jul_2014!P140) -> 0 | Q140: =SUM(ICB_at_2000:Capex_from_Jul_2014!Q140) -> 0 | R140: =SUM(ICB_at_2000:Capex_from_Jul_2014!R140) -> 0 | S140: =SUM(ICB_at_2000:Capex_from_Jul_2014!S140) -> 0 | T140: =SUM(ICB_at_2000:Capex_from_Jul_2014!T140) -> 0 | U140: =SUM(ICB_at_2000:Capex_from_Jul_2014!U140) -> 0 | V140: =SUM(ICB_at_2000:Capex_from_Jul_2014!V140) -> 0 | W140: =SUM(ICB_at_2000:Capex_from_Jul_2014!W140) -> 0 | X140: =SUM(ICB_at_2000:Capex_from_Jul_2014!X140) -> 0 | Y140: =SUM(ICB_at_2000:Capex_from_Jul_2014!Y140) -> 0 | Z140: =SUM(ICB_at_2000:Capex_from_Jul_2014!Z140) -> 0
B141: =Inputs!$B$350 -> Secondary gate stations | C141: $m | E141: =SUM(ICB_at_2000:Capex_from_Jul_2014!E141) -> 0 | F141: =SUM(ICB_at_2000:Capex_from_Jul_2014!F141) -> 0 | G141: =SUM(ICB_at_2000:Capex_from_Jul_2014!G141) -> 0 | H141: =SUM(ICB_at_2000:Capex_from_Jul_2014!H141) -> 0 | I141: =SUM(ICB_at_2000:Capex_from_Jul_2014!I141) -> 0 | J141: =SUM(ICB_at_2000:Capex_from_Jul_2014!J141) -> 0 | K141: =SUM(ICB_at_2000:Capex_from_Jul_2014!K141) -> 0 | L141: =SUM(ICB_at_2000:Capex_from_Jul_2014!L141) -> 0 | M141: =SUM(ICB_at_2000:Capex_from_Jul_2014!M141) -> 0 | N141: =SUM(ICB_at_2000:Capex_from_Jul_2014!N141) -> 0 | O141: =SUM(ICB_at_2000:Capex_from_Jul_2014!O141) -> 0 | P141: =SUM(ICB_at_2000:Capex_from_Jul_2014!P141) -> 0 | Q141: =SUM(ICB_at_2000:Capex_from_Jul_2014!Q141) -> 0 | R141: =SUM(ICB_at_2000:Capex_from_Jul_2014!R141) -> 0 | S141: =SUM(ICB_at_2000:Capex_from_Jul_2014!S141) -> 0 | T141: =SUM(ICB_at_2000:Capex_from_Jul_2014!T141) -> 0 | U141: =SUM(ICB_at_2000:Capex_from_Jul_2014!U141) -> 0 | V141: =SUM(ICB_at_2000:Capex_from_Jul_2014!V141) -> 0 | W141: =SUM(ICB_at_2000:Capex_from_Jul_2014!W141) -> 0 | X141: =SUM(ICB_at_2000:Capex_from_Jul_2014!X141) -> 0 | Y141: =SUM(ICB_at_2000:Capex_from_Jul_2014!Y141) -> 0 | Z141: =SUM(ICB_at_2000:Capex_from_Jul_2014!Z141) -> 0
B142: =Inputs!$B$351 -> Buildings | C142: $m | E142: =SUM(ICB_at_2000:Capex_from_Jul_2014!E142) -> 0 | F142: =SUM(ICB_at_2000:Capex_from_Jul_2014!F142) -> 0 | G142: =SUM(ICB_at_2000:Capex_from_Jul_2014!G142) -> 0 | H142: =SUM(ICB_at_2000:Capex_from_Jul_2014!H142) -> 0 | I142: =SUM(ICB_at_2000:Capex_from_Jul_2014!I142) -> 0 | J142: =SUM(ICB_at_2000:Capex_from_Jul_2014!J142) -> 0 | K142: =SUM(ICB_at_2000:Capex_from_Jul_2014!K142) -> 0 | L142: =SUM(ICB_at_2000:Capex_from_Jul_2014!L142) -> 0 | M142: =SUM(ICB_at_2000:Capex_from_Jul_2014!M142) -> 0 | N142: =SUM(ICB_at_2000:Capex_from_Jul_2014!N142) -> 0 | O142: =SUM(ICB_at_2000:Capex_from_Jul_2014!O142) -> 0 | P142: =SUM(ICB_at_2000:Capex_from_Jul_2014!P142) -> 0 | Q142: =SUM(ICB_at_2000:Capex_from_Jul_2014!Q142) -> 0 | R142: =SUM(ICB_at_2000:Capex_from_Jul_2014!R142) -> 0 | S142: =SUM(ICB_at_2000:Capex_from_Jul_2014!S142) -> 0 | T142: =SUM(ICB_at_2000:Capex_from_Jul_2014!T142) -> 0 | U142: =SUM(ICB_at_2000:Capex_from_Jul_2014!U142) -> 0 | V142: =SUM(ICB_at_2000:Capex_from_Jul_2014!V142) -> 0 | W142: =SUM(ICB_at_2000:Capex_from_Jul_2014!W142) -> 0 | X142: =SUM(ICB_at_2000:Capex_from_Jul_2014!X142) -> 0 | Y142: =SUM(ICB_at_2000:Capex_from_Jul_2014!Y142) -> 0 | Z142: =SUM(ICB_at_2000:Capex_from_Jul_2014!Z142) -> 0
B143: =Inputs!$B$352 -> Meter and services pipes | C143: $m | E143: =SUM(ICB_at_2000:Capex_from_Jul_2014!E143) -> 0 | F143: =SUM(ICB_at_2000:Capex_from_Jul_2014!F143) -> 0 | G143: =SUM(ICB_at_2000:Capex_from_Jul_2014!G143) -> 0 | H143: =SUM(ICB_at_2000:Capex_from_Jul_2014!H143) -> 0 | I143: =SUM(ICB_at_2000:Capex_from_Jul_2014!I143) -> 0 | J143: =SUM(ICB_at_2000:Capex_from_Jul_2014!J143) -> 0 | K143: =SUM(ICB_at_2000:Capex_from_Jul_2014!K143) -> 0 | L143: =SUM(ICB_at_2000:Capex_from_Jul_2014!L143) -> 0 | M143: =SUM(ICB_at_2000:Capex_from_Jul_2014!M143) -> 0 | N143: =SUM(ICB_at_2000:Capex_from_Jul_2014!N143) -> 0 | O143: =SUM(ICB_at_2000:Capex_from_Jul_2014!O143) -> 0 | P143: =SUM(ICB_at_2000:Capex_from_Jul_2014!P143) -> 0 | Q143: =SUM(ICB_at_2000:Capex_from_Jul_2014!Q143) -> 0 | R143: =SUM(ICB_at_2000:Capex_from_Jul_2014!R143) -> 0 | S143: =SUM(ICB_at_2000:Capex_from_Jul_2014!S143) -> 0 | T143: =SUM(ICB_at_2000:Capex_from_Jul_2014!T143) -> 0 | U143: =SUM(ICB_at_2000:Capex_from_Jul_2014!U143) -> 0 | V143: =SUM(ICB_at_2000:Capex_from_Jul_2014!V143) -> 0 | W143: =SUM(ICB_at_2000:Capex_from_Jul_2014!W143) -> 0 | X143: =SUM(ICB_at_2000:Capex_from_Jul_2014!X143) -> 0 | Y143: =SUM(ICB_at_2000:Capex_from_Jul_2014!Y143) -> 0 | Z143: =SUM(ICB_at_2000:Capex_from_Jul_2014!Z143) -> 0
B144: =Inputs!$B$353 -> Equipment and vehicles | C144: $m | E144: =SUM(ICB_at_2000:Capex_from_Jul_2014!E144) -> 0 | F144: =SUM(ICB_at_2000:Capex_from_Jul_2014!F144) -> 0 | G144: =SUM(ICB_at_2000:Capex_from_Jul_2014!G144) -> 0 | H144: =SUM(ICB_at_2000:Capex_from_Jul_2014!H144) -> 0 | I144: =SUM(ICB_at_2000:Capex_from_Jul_2014!I144) -> 0 | J144: =SUM(ICB_at_2000:Capex_from_Jul_2014!J144) -> 0 | K144: =SUM(ICB_at_2000:Capex_from_Jul_2014!K144) -> 0 | L144: =SUM(ICB_at_2000:Capex_from_Jul_2014!L144) -> 0 | M144: =SUM(ICB_at_2000:Capex_from_Jul_2014!M144) -> 0 | N144: =SUM(ICB_at_2000:Capex_from_Jul_2014!N144) -> 0 | O144: =SUM(ICB_at_2000:Capex_from_Jul_2014!O144) -> 0 | P144: =SUM(ICB_at_2000:Capex_from_Jul_2014!P144) -> 0 | Q144: =SUM(ICB_at_2000:Capex_from_Jul_2014!Q144) -> 0 | R144: =SUM(ICB_at_2000:Capex_from_Jul_2014!R144) -> 0 | S144: =SUM(ICB_at_2000:Capex_from_Jul_2014!S144) -> 0 | T144: =SUM(ICB_at_2000:Capex_from_Jul_2014!T144) -> 0 | U144: =SUM(ICB_at_2000:Capex_from_Jul_2014!U144) -> 0 | V144: =SUM(ICB_at_2000:Capex_from_Jul_2014!V144) -> 0 | W144: =SUM(ICB_at_2000:Capex_from_Jul_2014!W144) -> 0 | X144: =SUM(ICB_at_2000:Capex_from_Jul_2014!X144) -> 0 | Y144: =SUM(ICB_at_2000:Capex_from_Jul_2014!Y144) -> 0 | Z144: =SUM(ICB_at_2000:Capex_from_Jul_2014!Z144) -> 0
B145: =Inputs!$B$354 -> Vehicles | C145: $m | E145: =SUM(ICB_at_2000:Capex_from_Jul_2014!E145) -> 0 | F145: =SUM(ICB_at_2000:Capex_from_Jul_2014!F145) -> 0 | G145: =SUM(ICB_at_2000:Capex_from_Jul_2014!G145) -> 0 | H145: =SUM(ICB_at_2000:Capex_from_Jul_2014!H145) -> 0 | I145: =SUM(ICB_at_2000:Capex_from_Jul_2014!I145) -> 0 | J145: =SUM(ICB_at_2000:Capex_from_Jul_2014!J145) -> 0 | K145: =SUM(ICB_at_2000:Capex_from_Jul_2014!K145) -> 0 | L145: =SUM(ICB_at_2000:Capex_from_Jul_2014!L145) -> 0 | M145: =SUM(ICB_at_2000:Capex_from_Jul_2014!M145) -> 0 | N145: =SUM(ICB_at_2000:Capex_from_Jul_2014!N145) -> 0 | O145: =SUM(ICB_at_2000:Capex_from_Jul_2014!O145) -> 0 | P145: =SUM(ICB_at_2000:Capex_from_Jul_2014!P145) -> 0 | Q145: =SUM(ICB_at_2000:Capex_from_Jul_2014!Q145) -> 0 | R145: =SUM(ICB_at_2000:Capex_from_Jul_2014!R145) -> 0 | S145: =SUM(ICB_at_2000:Capex_from_Jul_2014!S145) -> 0 | T145: =SUM(ICB_at_2000:Capex_from_Jul_2014!T145) -> 0 | U145: =SUM(ICB_at_2000:Capex_from_Jul_2014!U145) -> 0 | V145: =SUM(ICB_at_2000:Capex_from_Jul_2014!V145) -> 0 | W145: =SUM(ICB_at_2000:Capex_from_Jul_2014!W145) -> 0 | X145: =SUM(ICB_at_2000:Capex_from_Jul_2014!X145) -> 0 | Y145: =SUM(ICB_at_2000:Capex_from_Jul_2014!Y145) -> 0 | Z145: =SUM(ICB_at_2000:Capex_from_Jul_2014!Z145) -> 0
B146: =Inputs!$B$355 -> Information technology | C146: $m | E146: =SUM(ICB_at_2000:Capex_from_Jul_2014!E146) -> 0 | F146: =SUM(ICB_at_2000:Capex_from_Jul_2014!F146) -> 0 | G146: =SUM(ICB_at_2000:Capex_from_Jul_2014!G146) -> 0 | H146: =SUM(ICB_at_2000:Capex_from_Jul_2014!H146) -> 0 | I146: =SUM(ICB_at_2000:Capex_from_Jul_2014!I146) -> 0 | J146: =SUM(ICB_at_2000:Capex_from_Jul_2014!J146) -> 0 | K146: =SUM(ICB_at_2000:Capex_from_Jul_2014!K146) -> 0 | L146: =SUM(ICB_at_2000:Capex_from_Jul_2014!L146) -> 0 | M146: =SUM(ICB_at_2000:Capex_from_Jul_2014!M146) -> 0 | N146: =SUM(ICB_at_2000:Capex_from_Jul_2014!N146) -> 0 | O146: =SUM(ICB_at_2000:Capex_from_Jul_2014!O146) -> 0 | P146: =SUM(ICB_at_2000:Capex_from_Jul_2014!P146) -> 0 | Q146: =SUM(ICB_at_2000:Capex_from_Jul_2014!Q146) -> 0 | R146: =SUM(ICB_at_2000:Capex_from_Jul_2014!R146) -> 0 | S146: =SUM(ICB_at_2000:Capex_from_Jul_2014!S146) -> 0 | T146: =SUM(ICB_at_2000:Capex_from_Jul_2014!T146) -> 0 | U146: =SUM(ICB_at_2000:Capex_from_Jul_2014!U146) -> 0 | V146: =SUM(ICB_at_2000:Capex_from_Jul_2014!V146) -> 0 | W146: =SUM(ICB_at_2000:Capex_from_Jul_2014!W146) -> 0 | X146: =SUM(ICB_at_2000:Capex_from_Jul_2014!X146) -> 0 | Y146: =SUM(ICB_at_2000:Capex_from_Jul_2014!Y146) -> 0 | Z146: =SUM(ICB_at_2000:Capex_from_Jul_2014!Z146) -> 0
B147: =Inputs!$B$356 -> Full retail contestability | C147: $m | E147: =SUM(ICB_at_2000:Capex_from_Jul_2014!E147) -> 0 | F147: =SUM(ICB_at_2000:Capex_from_Jul_2014!F147) -> 0 | G147: =SUM(ICB_at_2000:Capex_from_Jul_2014!G147) -> 0 | H147: =SUM(ICB_at_2000:Capex_from_Jul_2014!H147) -> 0 | I147: =SUM(ICB_at_2000:Capex_from_Jul_2014!I147) -> 0 | J147: =SUM(ICB_at_2000:Capex_from_Jul_2014!J147) -> 0 | K147: =SUM(ICB_at_2000:Capex_from_Jul_2014!K147) -> 0 | L147: =SUM(ICB_at_2000:Capex_from_Jul_2014!L147) -> 0 | M147: =SUM(ICB_at_2000:Capex_from_Jul_2014!M147) -> 0 | N147: =SUM(ICB_at_2000:Capex_from_Jul_2014!N147) -> 0 | O147: =SUM(ICB_at_2000:Capex_from_Jul_2014!O147) -> 0 | P147: =SUM(ICB_at_2000:Capex_from_Jul_2014!P147) -> 0 | Q147: =SUM(ICB_at_2000:Capex_from_Jul_2014!Q147) -> 0 | R147: =SUM(ICB_at_2000:Capex_from_Jul_2014!R147) -> 0 | S147: =SUM(ICB_at_2000:Capex_from_Jul_2014!S147) -> 0 | T147: =SUM(ICB_at_2000:Capex_from_Jul_2014!T147) -> 0 | U147: =SUM(ICB_at_2000:Capex_from_Jul_2014!U147) -> 0 | V147: =SUM(ICB_at_2000:Capex_from_Jul_2014!V147) -> 0 | W147: =SUM(ICB_at_2000:Capex_from_Jul_2014!W147) -> 0 | X147: =SUM(ICB_at_2000:Capex_from_Jul_2014!X147) -> 0 | Y147: =SUM(ICB_at_2000:Capex_from_Jul_2014!Y147) -> 0 | Z147: =SUM(ICB_at_2000:Capex_from_Jul_2014!Z147) -> 0
B148: =Inputs!$B$357 -> Land | C148: $m | E148: =SUM(ICB_at_2000:Capex_from_Jul_2014!E148) -> 0 | F148: =SUM(ICB_at_2000:Capex_from_Jul_2014!F148) -> 0 | G148: =SUM(ICB_at_2000:Capex_from_Jul_2014!G148) -> 0 | H148: =SUM(ICB_at_2000:Capex_from_Jul_2014!H148) -> 0 | I148: =SUM(ICB_at_2000:Capex_from_Jul_2014!I148) -> 0 | J148: =SUM(ICB_at_2000:Capex_from_Jul_2014!J148) -> 0 | K148: =SUM(ICB_at_2000:Capex_from_Jul_2014!K148) -> 0 | L148: =SUM(ICB_at_2000:Capex_from_Jul_2014!L148) -> 0 | M148: =SUM(ICB_at_2000:Capex_from_Jul_2014!M148) -> 0 | N148: =SUM(ICB_at_2000:Capex_from_Jul_2014!N148) -> 0 | O148: =SUM(ICB_at_2000:Capex_from_Jul_2014!O148) -> 0 | P148: =SUM(ICB_at_2000:Capex_from_Jul_2014!P148) -> 0 | Q148: =SUM(ICB_at_2000:Capex_from_Jul_2014!Q148) -> 0 | R148: =SUM(ICB_at_2000:Capex_from_Jul_2014!R148) -> 0 | S148: =SUM(ICB_at_2000:Capex_from_Jul_2014!S148) -> 0 | T148: =SUM(ICB_at_2000:Capex_from_Jul_2014!T148) -> 0 | U148: =SUM(ICB_at_2000:Capex_from_Jul_2014!U148) -> 0 | V148: =SUM(ICB_at_2000:Capex_from_Jul_2014!V148) -> 0 | W148: =SUM(ICB_at_2000:Capex_from_Jul_2014!W148) -> 0 | X148: =SUM(ICB_at_2000:Capex_from_Jul_2014!X148) -> 0 | Y148: =SUM(ICB_at_2000:Capex_from_Jul_2014!Y148) -> 0 | Z148: =SUM(ICB_at_2000:Capex_from_Jul_2014!Z148) -> 0
B150: Total added uner NGR 82,84 86 | C150: $m | E150: =SUM(E135:E149) -> 0 | F150: 0 | G150: 0 | H150: 0 | I150: 0 | J150: 0 | K150: 0 | L150: 0 | M150: 0 | N150: 0 | O150: 0 | P150: 0 | Q150: 0 | R150: 0 | S150: 0 | T150: 0 | U150: 0 | V150: 0 | W150: 0 | X150: 0 | Y150: 0 | Z150: 0
B152: Depreciation per Tariff Variation
B153: =Inputs!$B$344 -> High pressure mains - steel | C153: $m | E153: =SUM(ICB_at_2000:Capex_from_Jul_2014!E153) -> 0 | F153: =SUM(ICB_at_2000:Capex_from_Jul_2014!F153) -> 0 | G153: =SUM(ICB_at_2000:Capex_from_Jul_2014!G153) -> 0 | H153: =SUM(ICB_at_2000:Capex_from_Jul_2014!H153) -> 0 | I153: =SUM(ICB_at_2000:Capex_from_Jul_2014!I153) -> 0 | J153: =SUM(ICB_at_2000:Capex_from_Jul_2014!J153) -> 0 | K153: =SUM(ICB_at_2000:Capex_from_Jul_2014!K153) -> 0 | L153: =SUM(ICB_at_2000:Capex_from_Jul_2014!L153) -> 0 | M153: =SUM(ICB_at_2000:Capex_from_Jul_2014!M153) -> 0 | N153: =SUM(ICB_at_2000:Capex_from_Jul_2014!N153) -> 0 | O153: =SUM(ICB_at_2000:Capex_from_Jul_2014!O153) -> 0 | P153: =SUM(ICB_at_2000:Capex_from_Jul_2014!P153) -> 0 | Q153: =SUM(ICB_at_2000:Capex_from_Jul_2014!Q153) -> 0 | R153: =SUM(ICB_at_2000:Capex_from_Jul_2014!R153) -> 0 | S153: =SUM(ICB_at_2000:Capex_from_Jul_2014!S153) -> 0 | T153: =SUM(ICB_at_2000:Capex_from_Jul_2014!T153) -> 0 | U153: =SUM(ICB_at_2000:Capex_from_Jul_2014!U153) -> 0 | V153: =SUM(ICB_at_2000:Capex_from_Jul_2014!V153) -> 0 | W153: =SUM(ICB_at_2000:Capex_from_Jul_2014!W153) -> 0 | X153: =SUM(ICB_at_2000:Capex_from_Jul_2014!X153) -> 0 | Y153: =SUM(ICB_at_2000:Capex_from_Jul_2014!Y153) -> 0 | Z153: =SUM(ICB_at_2000:Capex_from_Jul_2014!Z153) -> 0
B154: =Inputs!$B$345 -> High pressure mains - PE | C154: $m | E154: =SUM(ICB_at_2000:Capex_from_Jul_2014!E154) -> 0 | F154: =SUM(ICB_at_2000:Capex_from_Jul_2014!F154) -> 0 | G154: =SUM(ICB_at_2000:Capex_from_Jul_2014!G154) -> 0 | H154: =SUM(ICB_at_2000:Capex_from_Jul_2014!H154) -> 0 | I154: =SUM(ICB_at_2000:Capex_from_Jul_2014!I154) -> 0 | J154: =SUM(ICB_at_2000:Capex_from_Jul_2014!J154) -> 0 | K154: =SUM(ICB_at_2000:Capex_from_Jul_2014!K154) -> 0 | L154: =SUM(ICB_at_2000:Capex_from_Jul_2014!L154) -> 0 | M154: =SUM(ICB_at_2000:Capex_from_Jul_2014!M154) -> 0 | N154: =SUM(ICB_at_2000:Capex_from_Jul_2014!N154) -> 0 | O154: =SUM(ICB_at_2000:Capex_from_Jul_2014!O154) -> 0 | P154: =SUM(ICB_at_2000:Capex_from_Jul_2014!P154) -> 0 | Q154: =SUM(ICB_at_2000:Capex_from_Jul_2014!Q154) -> 0 | R154: =SUM(ICB_at_2000:Capex_from_Jul_2014!R154) -> 0 | S154: =SUM(ICB_at_2000:Capex_from_Jul_2014!S154) -> 0 | T154: =SUM(ICB_at_2000:Capex_from_Jul_2014!T154) -> 0 | U154: =SUM(ICB_at_2000:Capex_from_Jul_2014!U154) -> 0 | V154: =SUM(ICB_at_2000:Capex_from_Jul_2014!V154) -> 0 | W154: =SUM(ICB_at_2000:Capex_from_Jul_2014!W154) -> 0 | X154: =SUM(ICB_at_2000:Capex_from_Jul_2014!X154) -> 0 | Y154: =SUM(ICB_at_2000:Capex_from_Jul_2014!Y154) -> 0 | Z154: =SUM(ICB_at_2000:Capex_from_Jul_2014!Z154) -> 0
B155: =Inputs!$B$346 -> Medium pressure mains | C155: $m | E155: =SUM(ICB_at_2000:Capex_from_Jul_2014!E155) -> 0 | F155: =SUM(ICB_at_2000:Capex_from_Jul_2014!F155) -> 0 | G155: =SUM(ICB_at_2000:Capex_from_Jul_2014!G155) -> 0 | H155: =SUM(ICB_at_2000:Capex_from_Jul_2014!H155) -> 0 | I155: =SUM(ICB_at_2000:Capex_from_Jul_2014!I155) -> 0 | J155: =SUM(ICB_at_2000:Capex_from_Jul_2014!J155) -> 0 | K155: =SUM(ICB_at_2000:Capex_from_Jul_2014!K155) -> 0 | L155: =SUM(ICB_at_2000:Capex_from_Jul_2014!L155) -> 0 | M155: =SUM(ICB_at_2000:Capex_from_Jul_2014!M155) -> 0 | N155: =SUM(ICB_at_2000:Capex_from_Jul_2014!N155) -> 0 | O155: =SUM(ICB_at_2000:Capex_from_Jul_2014!O155) -> 0 | P155: =SUM(ICB_at_2000:Capex_from_Jul_2014!P155) -> 0 | Q155: =SUM(ICB_at_2000:Capex_from_Jul_2014!Q155) -> 0 | R155: =SUM(ICB_at_2000:Capex_from_Jul_2014!R155) -> 0 | S155: =SUM(ICB_at_2000:Capex_from_Jul_2014!S155) -> 0 | T155: =SUM(ICB_at_2000:Capex_from_Jul_2014!T155) -> 0 | U155: =SUM(ICB_at_2000:Capex_from_Jul_2014!U155) -> 0 | V155: =SUM(ICB_at_2000:Capex_from_Jul_2014!V155) -> 0 | W155: =SUM(ICB_at_2000:Capex_from_Jul_2014!W155) -> 0 | X155: =SUM(ICB_at_2000:Capex_from_Jul_2014!X155) -> 0 | Y155: =SUM(ICB_at_2000:Capex_from_Jul_2014!Y155) -> 0 | Z155: =SUM(ICB_at_2000:Capex_from_Jul_2014!Z155) -> 0
B156: =Inputs!$B$347 -> Medium/low pressure mains | C156: $m | E156: =SUM(ICB_at_2000:Capex_from_Jul_2014!E156) -> 0 | F156: =SUM(ICB_at_2000:Capex_from_Jul_2014!F156) -> 0 | G156: =SUM(ICB_at_2000:Capex_from_Jul_2014!G156) -> 0 | H156: =SUM(ICB_at_2000:Capex_from_Jul_2014!H156) -> 0 | I156: =SUM(ICB_at_2000:Capex_from_Jul_2014!I156) -> 0 | J156: =SUM(ICB_at_2000:Capex_from_Jul_2014!J156) -> 0 | K156: =SUM(ICB_at_2000:Capex_from_Jul_2014!K156) -> 0 | L156: =SUM(ICB_at_2000:Capex_from_Jul_2014!L156) -> 0 | M156: =SUM(ICB_at_2000:Capex_from_Jul_2014!M156) -> 0 | N156: =SUM(ICB_at_2000:Capex_from_Jul_2014!N156) -> 0 | O156: =SUM(ICB_at_2000:Capex_from_Jul_2014!O156) -> 0 | P156: =SUM(ICB_at_2000:Capex_from_Jul_2014!P156) -> 0 | Q156: =SUM(ICB_at_2000:Capex_from_Jul_2014!Q156) -> 0 | R156: =SUM(ICB_at_2000:Capex_from_Jul_2014!R156) -> 0 | S156: =SUM(ICB_at_2000:Capex_from_Jul_2014!S156) -> 0 | T156: =SUM(ICB_at_2000:Capex_from_Jul_2014!T156) -> 0 | U156: =SUM(ICB_at_2000:Capex_from_Jul_2014!U156) -> 0 | V156: =SUM(ICB_at_2000:Capex_from_Jul_2014!V156) -> 0 | W156: =SUM(ICB_at_2000:Capex_from_Jul_2014!W156) -> 0 | X156: =SUM(ICB_at_2000:Capex_from_Jul_2014!X156) -> 0 | Y156: =SUM(ICB_at_2000:Capex_from_Jul_2014!Y156) -> 0 | Z156: =SUM(ICB_at_2000:Capex_from_Jul_2014!Z156) -> 0
